Workbook

Sheet ACCUEIL
F7: 2020-12-31
F8: PROVISOIRE
E21: Date des Données :
E23: Clients | F23: Particuliers | G23: Fin Novembre
F24: Pros | G24: Fin Novembre
F25: Premium | G25: Fin Novembre
E27: Edoc et Opt'in | G27: Fin Novembre
E28: SED | G28: 2020-12-31
E29: Remises commerciales | G29: Fin Novembre
E31: QHD | G31: Fin Octobre
E32: NPS | G32: Fin Octobre
E34: Base PNB réel | G34: Fin Novembre
E36: Données Hebdo | G36: 2020-12-31
E37: CA UC + Arbitrage | G37: 2020-12-24
E39: ETP | G39: Fin Octobre

Sheet Accueilagence
A1: Accueil
E7: =ACCUEIL!F7 -> 2020-12-31

Sheet Accueilsecteur
A1: Accueil
E7: =ACCUEIL!F7 -> 2020-12-31

Sheet AccueilDircom
A1: Accueil
E7: =ACCUEIL!F7 -> 2020-12-31

Sheet DC_FICHE
A1: Accueil
A2: BAROMETRE BDD
A4: UNITE: | B4: DIRECTION REGIONALE | E4: ETP perf : | F4: =VLOOKUP(A5,'RECAP DIRCOM'!$G$6:$I$12,3,FALSE) -> 262.45
A5: =VLOOKUP(B5,LISTES!$M$6:$N$12,2,FALSE) -> 262 | B5: BAS-RHIN
C6: Coefficient du critére | E6: Résultats | I6: Ecart au 1ier | M6: Evolution | O6: Rang
E7: du 1ier | G7: DIRECTION | I7: Du mois | K7: Au 31/12/2019
A9: RANG au CLASSEMENT GENERAL | K9: =VLOOKUP($A$5,'RECAP DIRCOM AN'!$G$6:$FS$312,168,FALSE) -> 6 | M9: =+K9-O9 -> 0 | O9: =VLOOKUP($A$5,'RECAP DIRCOM'!$G$6:$FS$312,168,FALSE) -> 6
A11: CRITERE CLIENTS | C11: 15% | O11: =VLOOKUP($A$5,'RECAP DIRCOM'!$G$6:$FS$312,23,FALSE) -> 6
B12: PNB Evolution nette Clients BP | C12: 4% | E12: ='RECAP DIRCOM'!K4 -> 0.8 | G12: =VLOOKUP($A$5,'RECAP DIRCOM'!$G$6:$FS$312,6,FALSE) -> -2.8 | I12: =VLOOKUP($A$5,'RECAP DIRCOM'!$G$6:$FS$312,7,FALSE) -> 90% | K12: =VLOOKUP($A$5,'RECAP DIRCOM AN'!$G$6:$FS$312,7,FALSE) -> 130% | M12: =+K12-I12 -> 40% | O12: =VLOOKUP($A$5,'RECAP DIRCOM'!$G$6:$FS$312,8,FALSE) -> 6
B13: PNB Evolution nette Clients PREMIUM | C13: 5% | E13: ='RECAP DIRCOM'!O4 -> 2.2 | G13: =VLOOKUP($A$5,'RECAP DIRCOM'!$G$6:$FS$312,10,FALSE) -> 1.6 | I13: =VLOOKUP($A$5,'RECAP DIRCOM'!$G$6:$FS$312,11,FALSE) -> 26% | K13: =VLOOKUP($A$5,'RECAP DIRCOM AN'!$G$6:$FS$312,11,FALSE) -> 1% | M13: =+K13-I13 -> -25% | O13: =VLOOKUP($A$5,'RECAP DIRCOM'!$G$6:$FS$312,12,FALSE) -> 5
B14: PNB Evolution nette Clients Jeunes Equipés | C14: 3% | E14: ='RECAP DIRCOM'!S4 -> -0.1 | G14: =VLOOKUP($A$5,'RECAP DIRCOM'!$G$6:$FS$312,14,FALSE) -> -0.7 | I14: =VLOOKUP($A$5,'RECAP DIRCOM'!$G$6:$FS$312,15,FALSE) -> 106% | K14: =VLOOKUP($A$5,'RECAP DIRCOM AN'!$G$6:$FS$312,15,FALSE) -> 69% | M14: =+K14-I14 -> -37% | O14: =VLOOKUP($A$5,'RECAP DIRCOM'!$G$6:$FS$312,16,FALSE) -> 6
B15: PNB Evolution nette Clients Pro Actifs Equipés | C15: 3% | E15: ='RECAP DIRCOM'!W4 -> 1.9 | G15: =VLOOKUP($A$5,'RECAP DIRCOM'!$G$6:$FS$312,18,FALSE) -> 1.2 | I15: =VLOOKUP($A$5,'RECAP DIRCOM'!$G$6:$FS$312,19,FALSE) -> 34% | K15: =VLOOKUP($A$5,'RECAP DIRCOM AN'!$G$6:$FS$312,19,FALSE) -> 0% | M15: =+K15-I15 -> -34% | O15: =VLOOKUP($A$5,'RECAP DIRCOM'!$G$6:$FS$312,20,FALSE) -> 4
A17: CRITERE BANCARISATION | C17: 15% | O17: =VLOOKUP($A$5,'RECAP DIRCOM'!$G$6:$FS$312,48,FALSE) -> 3
B18: PNB Ventes nettes forfaits | C18: 4% | E18: ='RECAP DIRCOM'!AJ4 -> 9.5 | G18: =VLOOKUP($A$5,'RECAP DIRCOM'!$G$6:$FS$312,31,FALSE) -> 3.2 | I18: =VLOOKUP($A$5,'RECAP DIRCOM'!$G$6:$FS$312,32,FALSE) -> 67% | K18: =VLOOKUP($A$5,'RECAP DIRCOM AN'!$G$6:$FS$312,32,FALSE) -> 126% | M18: =+K18-I18 -> 59% | O18: =VLOOKUP($A$5,'RECAP DIRCOM'!$G$6:$FS$312,33,FALSE) -> 5
B19: PNB Ventes nettes IZICARTES Débit Différé | C19: 4% | E19: ='RECAP DIRCOM'!AN4 -> 6.3 | G19: =VLOOKUP($A$5,'RECAP DIRCOM'!$G$6:$FS$312,35,FALSE) -> 5.0 | I19: =VLOOKUP($A$5,'RECAP DIRCOM'!$G$6:$FS$312,36,FALSE) -> 21% | K19: =VLOOKUP($A$5,'RECAP DIRCOM AN'!$G$6:$FS$312,36,FALSE) -> 0% | M19: =+K19-I19 -> -21% | O19: =VLOOKUP($A$5,'RECAP DIRCOM'!$G$6:$FS$312,37,FALSE) -> 3
B20: PNB Ventes nettes cartes HDG Débit Différé | C20: 4% | E20: ='RECAP DIRCOM'!AR4 -> 9.4 | G20: =VLOOKUP($A$5,'RECAP DIRCOM'!$G$6:$FS$312,39,FALSE) -> 9.4 | I20: =VLOOKUP($A$5,'RECAP DIRCOM'!$G$6:$FS$312,40,FALSE) -> 0% | K20: =VLOOKUP($A$5,'RECAP DIRCOM AN'!$G$6:$FS$312,40,FALSE) -> 0% | M20: =+K20-I20 -> 0% | O20: =VLOOKUP($A$5,'RECAP DIRCOM'!$G$6:$FS$312,41,FALSE) -> 1
B21: PNB Ventes nettes Forfaits Pro, Carte pro | C21: 3% | E21: ='RECAP DIRCOM'!AV4 -> 1.7 | G21: =VLOOKUP($A$5,'RECAP DIRCOM'!$G$6:$FS$312,43,FALSE) -> 0.9 | I21: =VLOOKUP($A$5,'RECAP DIRCOM'!$G$6:$FS$312,44,FALSE) -> 48% | K21: =VLOOKUP($A$5,'RECAP DIRCOM AN'!$G$6:$FS$312,44,FALSE) -> 44% | M21: =+K21-I21 -> -4% | O21: =VLOOKUP($A$5,'RECAP DIRCOM'!$G$6:$FS$312,45,FALSE) -> 5
A23: CRITERE EPARGNE | C23: 10% | O23: =VLOOKUP($A$5,'RECAP DIRCOM'!$G$6:$FS$312,69,FALSE) -> 3
B24: PNB Epargne Liquide | C24: 3% | E24: ='RECAP DIRCOM'!BI4 -> 11.0 | G24: =VLOOKUP($A$5,'RECAP DIRCOM'!$G$6:$FS$312,56,FALSE) -> 10.6 | I24: =VLOOKUP($A$5,'RECAP DIRCOM'!$G$6:$FS$312,57,FALSE) -> 4% | K24: =VLOOKUP($A$5,'RECAP DIRCOM AN'!$G$6:$FS$312,57,FALSE) -> 23% | M24: =+K24-I24 -> 20% | O24: =VLOOKUP($A$5,'RECAP DIRCOM'!$G$6:$FS$312,58,FALSE) -> 2
B25: PNB CA UC + arbitrage | C25: 4% | E25: ='RECAP DIRCOM'!BM4 -> 1.3 | G25: =VLOOKUP($A$5,'RECAP DIRCOM'!$G$6:$FS$312,60,FALSE) -> 1.3 | I25: =VLOOKUP($A$5,'RECAP DIRCOM'!$G$6:$FS$312,61,FALSE) -> 4% | K25: =VLOOKUP($A$5,'RECAP DIRCOM AN'!$G$6:$FS$312,61,FALSE) -> 0% | M25: =+K25-I25 -> -4% | O25: =VLOOKUP($A$5,'RECAP DIRCOM'!$G$6:$FS$312,62,FALSE) -> 2
B26: PNB Excédent assurance vie | C26: 3% | E26: ='RECAP DIRCOM'!BQ4 -> 0.6 | G26: =VLOOKUP($A$5,'RECAP DIRCOM'!$G$6:$FS$312,64,FALSE) -> -1.6 | I26: =VLOOKUP($A$5,'RECAP DIRCOM'!$G$6:$FS$312,65,FALSE) -> 71% | K26: =VLOOKUP($A$5,'RECAP DIRCOM AN'!$G$6:$FS$312,65,FALSE) -> 63% | M26: =+K26-I26 -> -8% | O26: =VLOOKUP($A$5,'RECAP DIRCOM'!$G$6:$FS$312,66,FALSE) -> 4
A28: CRITERE CREDITS | C28: 15% | O28: =VLOOKUP($A$5,'RECAP DIRCOM'!$G$6:$FS$312,102,FALSE) -> 5
B29: PNB crédit conso | C29: 4% | E29: ='RECAP DIRCOM'!CD4 -> 45.1 | G29: =VLOOKUP($A$5,'RECAP DIRCOM'!$G$6:$FS$312,77,FALSE) -> 34.3 | I29: =VLOOKUP($A$5,'RECAP DIRCOM'!$G$6:$FS$312,78,FALSE) -> 24% | K29: =VLOOKUP($A$5,'RECAP DIRCOM AN'!$G$6:$FS$312,78,FALSE) -> 29% | M29: =+K29-I29 -> 5% | O29: =VLOOKUP($A$5,'RECAP DIRCOM'!$G$6:$FS$312,79,FALSE) -> 6
B30: PNB ADE crédit conso | C30: 1% | E30: ='RECAP DIRCOM'!CH4 -> 10.8 | G30: =VLOOKUP($A$5,'RECAP DIRCOM'!$G$6:$FS$312,81,FALSE) -> 8.7 | I30: =VLOOKUP($A$5,'RECAP DIRCOM'!$G$6:$FS$312,82,FALSE) -> 19% | K30: =VLOOKUP($A$5,'RECAP DIRCOM AN'!$G$6:$FS$312,82,FALSE) -> 29% | M30: 10% | O30: =VLOOKUP($A$5,'RECAP DIRCOM'!$G$6:$FS$312,83,FALSE) -> 6
B31: PNB crédit immo | C31: 4% | E31: ='RECAP DIRCOM'!CL4 -> 95.9 | G31: =VLOOKUP($A$5,'RECAP DIRCOM'!$G$6:$FS$312,85,FALSE) -> 44.6 | I31: =VLOOKUP($A$5,'RECAP DIRCOM'!$G$6:$FS$312,86,FALSE) -> 54% | K31: =VLOOKUP($A$5,'RECAP DIRCOM AN'!$G$6:$FS$312,86,FALSE) -> 33% | M31: -20% | O31: =VLOOKUP($A$5,'RECAP DIRCOM'!$G$6:$FS$312,87,FALSE) -> 6
B32: PNB ADE crédit immo | C32: 2% | E32: ='RECAP DIRCOM'!CP4 -> 56.3 | G32: =VLOOKUP($A$5,'RECAP DIRCOM'!$G$6:$FS$312,89,FALSE) -> 24.9 | I32: =VLOOKUP($A$5,'RECAP DIRCOM'!$G$6:$FS$312,90,FALSE) -> 56% | K32: =VLOOKUP($A$5,'RECAP DIRCOM AN'!$G$6:$FS$312,90,FALSE) -> 47% | M32: -9% | O32: =VLOOKUP($A$5,'RECAP DIRCOM'!$G$6:$FS$312,91,FALSE) -> 5
B33: PNB SACCEF | C33: 2% | E33: ='RECAP DIRCOM'!CT4 -> 5.1 | G33: =VLOOKUP($A$5,'RECAP DIRCOM'!$G$6:$FS$312,93,FALSE) -> 2.7 | I33: =VLOOKUP($A$5,'RECAP DIRCOM'!$G$6:$FS$312,94,FALSE) -> 47% | K33: =VLOOKUP($A$5,'RECAP DIRCOM AN'!$G$6:$FS$312,94,FALSE) -> 36% | M33: -11% | O33: =VLOOKUP($A$5,'RECAP DIRCOM'!$G$6:$FS$312,95,FALSE) -> 4
B34: PNB Crédit MLT + Crédit Bail | C34: 2% | E34: ='RECAP DIRCOM'!CX4 -> 7.8 | G34: =VLOOKUP($A$5,'RECAP DIRCOM'!$G$6:$FS$312,97,FALSE) -> 6.8 | I34: =VLOOKUP($A$5,'RECAP DIRCOM'!$G$6:$FS$312,98,FALSE) -> 13% | K34: =VLOOKUP($A$5,'RECAP DIRCOM AN'!$G$6:$FS$312,98,FALSE) -> 0% | M34: -13% | O34: =VLOOKUP($A$5,'RECAP DIRCOM'!$G$6:$FS$312,99,FALSE) -> 3
A36: CRITERE IARD PREVOYANCE | C36: 15% | O36: =VLOOKUP($A$5,'RECAP DIRCOM'!$G$6:$FS$312,119,FALSE) -> 6
B37: PNB Ventes nettes IARD | C37: 9% | E37: ='RECAP DIRCOM'!DK4 -> 1.7 | G37: =VLOOKUP($A$5,'RECAP DIRCOM'!$G$6:$FS$312,110,FALSE) -> 0.5 | I37: =VLOOKUP($A$5,'RECAP DIRCOM'!$G$6:$FS$312,111,FALSE) -> 70% | K37: =VLOOKUP($A$5,'RECAP DIRCOM AN'!$G$6:$FS$312,111,FALSE) -> 69% | M37: =+K37-I37 -> -1% | O37: =VLOOKUP($A$5,'RECAP DIRCOM'!$G$6:$FS$312,112,FALSE) -> 6
B38: PNB Ventes nettes Prévoyance | C38: 6% | E38: ='RECAP DIRCOM'!DO4 -> 1.8 | G38: =VLOOKUP($A$5,'RECAP DIRCOM'!$G$6:$FS$312,114,FALSE) -> 1.3 | I38: =VLOOKUP($A$5,'RECAP DIRCOM'!$G$6:$FS$312,115,FALSE) -> 23% | K38: =VLOOKUP($A$5,'RECAP DIRCOM AN'!$G$6:$FS$312,115,FALSE) -> 42% | M38: =+K38-I38 -> 19% | O38: =VLOOKUP($A$5,'RECAP DIRCOM'!$G$6:$FS$312,116,FALSE) -> 6
A40: CRITERE ACCELERATEURS PNB | C40: 15% | O40: =VLOOKUP($A$5,'RECAP DIRCOM'!$G$6:$FS$312,144,FALSE) -> 5
B41: PNB Ventes brutes SED Finalisées | C41: 6% | E41: ='RECAP DIRCOM'!EB4 -> 0.7 | G41: =VLOOKUP($A$5,'RECAP DIRCOM'!$G$6:$FS$312,127,FALSE) -> 0.5 | I41: =VLOOKUP($A$5,'RECAP DIRCOM'!$G$6:$FS$312,128,FALSE) -> 20% | K41: =VLOOKUP($A$5,'RECAP DIRCOM AN'!$G$6:$FS$312,128,FALSE) -> 11% | M41: =+K41-I41 -> -8% | O41: =VLOOKUP($A$5,'RECAP DIRCOM'!$G$6:$FS$312,129,FALSE) -> 4
B42: PNB clients équipés E documents | C42: 3% | E42: ='RECAP DIRCOM'!EF4 -> 2.1 | G42: =VLOOKUP($A$5,'RECAP DIRCOM'!$G$6:$FS$312,131,FALSE) -> 1.6 | I42: =VLOOKUP($A$5,'RECAP DIRCOM'!$G$6:$FS$312,132,FALSE) -> 22% | K42: =VLOOKUP($A$5,'RECAP DIRCOM AN'!$G$6:$FS$312,132,FALSE) -> 0% | M42: =+K42-I42 -> -22% | O42: =VLOOKUP($A$5,'RECAP DIRCOM'!$G$6:$FS$312,133,FALSE) -> 5
B43: Economie opt'in | C43: 3% | E43: ='RECAP DIRCOM'!EJ4 -> 0.7 | G43: =VLOOKUP($A$5,'RECAP DIRCOM'!$G$6:$FS$312,135,FALSE) -> 0.5 | I43: =VLOOKUP($A$5,'RECAP DIRCOM'!$G$6:$FS$312,136,FALSE) -> 25% | K43: =VLOOKUP($A$5,'RECAP DIRCOM AN'!$G$6:$FS$312,136,FALSE) -> 2% | M43: =+K43-I43 -> -23% | O43: =VLOOKUP($A$5,'RECAP DIRCOM'!$G$6:$FS$312,137,FALSE) -> 3
B44: Remises commerciales | C44: 3% | E44: ='RECAP DIRCOM'!EN4 -> -2.7 | G44: =VLOOKUP($A$5,'RECAP DIRCOM'!$G$6:$FS$312,139,FALSE) -> -3.3 | I44: =VLOOKUP($A$5,'RECAP DIRCOM'!$G$6:$FS$312,140,FALSE) -> 24% | K44: =VLOOKUP($A$5,'RECAP DIRCOM AN'!$G$6:$FS$312,140,FALSE) -> 17% | M44: =+K44-I44 -> -7% | O44: =VLOOKUP($A$5,'RECAP DIRCOM'!$G$6:$FS$312,141,FALSE) -> 6
A46: CRITERE Qualité-Satisfaction Clients | C46: 15% | O46: =VLOOKUP($A$5,'RECAP DIRCOM'!$G$6:$FS$312,159,FALSE) -> 6
B47: Objectifs NPS* | C47: 8% | E47: ='RECAP DIRCOM'!FA4 -> -8 | G47: =VLOOKUP($A$5,'RECAP DIRCOM'!$G$6:$FS$312,151,FALSE) -> -22 | I47: =VLOOKUP($A$5,'RECAP DIRCOM'!$G$6:$FS$312,152,FALSE) -> 150% | K47: =VLOOKUP($A$5,'RECAP DIRCOM AN'!$G$6:$FS$312,152,FALSE) -> 150% | M47: =+K47-I47 -> 0% | O47: =VLOOKUP($A$5,'RECAP DIRCOM'!$G$6:$FS$312,153,FALSE) -> 6
B48: Enquête Qualité Haute Définition | C48: 7% | E48: ='RECAP DIRCOM'!FD4 -> 57% | G48: =VLOOKUP($A$5,'RECAP DIRCOM'!$G$6:$FS$312,154,FALSE) -> 41% | I48: =VLOOKUP($A$5,'RECAP DIRCOM'!$G$6:$FS$312,155,FALSE) -> 28% | K48: =VLOOKUP($A$5,'RECAP DIRCOM AN'!$G$6:$FS$312,155,FALSE) -> 8% | M48: =+K48-I48 -> -20% | O48: =VLOOKUP($A$5,'RECAP DIRCOM'!$G$6:$FS$312,156,FALSE) -> 6

Sheet DC_TOTAL
B1: Accueil | D1: BAROMETRE BDD - DIRECTIONS REGIONALES
D2: TOTAL GENERAL
D3: =ACCUEIL!F7 -> 2020-12-31
D7: TOTAL GENERAL | G7: Total Clients | J7: Total Bancarisation | M7: Total Epargne | P7: Total Crédits | S7: Total IARD Prévoyance | V7: Total Accélérateurs PNB | Y7: Total Qualité-Satisfaction Clients
E8: coef | F8: 100% | H8: coef | I8: ='RECAP DIRCOM'!$AC$4 -> 15% | K8: coef | L8: ='RECAP DIRCOM'!$BB$4 -> 15% | N8: coef | O8: ='RECAP DIRCOM'!$BW$4 -> 10% | Q8: coef | R8: ='RECAP DIRCOM'!$DD$4 -> 15% | T8: coef | U8: ='RECAP DIRCOM'!$DU$4 -> 15% | W8: coef | X8: ='RECAP DIRCOM'!$ET$4 -> 15% | Z8: coef | AA8: ='RECAP DIRCOM'!$FI$4 -> 15%
A9: eds | B9: Direction | C9: ="ETP perf "&DATEMAJ!$C$39 -> ETP perf au 31/10 | D9: Moyenne ecart au 1er | E9: % Ecart au 1er | F9: Rang CEGEE | G9: Moyenne ecart au 1er | H9: % Ecart au 1er | I9: Rang CEGEE | J9: Moyenne ecart au 1er | K9: % Ecart au 1er | L9: Rang CEGEE | M9: Moyenne ecart au 1er | N9: % Ecart au 1er | O9: Rang CEGEE | P9: Moyenne ecart au 1er | Q9: % Ecart au 1er | R9: Rang CEGEE | S9: Moyenne ecart au 1er | T9: % Ecart au 1er | U9: Rang CEGEE | V9: Moyenne ecart au 1er | W9: % Ecart au 1er | X9: Rang CEGEE | Y9: Moyenne ecart au 1er | Z9: % Ecart au 1er | AA9: Rang CEGEE
A10: 30 | B10: Marne-Ardennes | C10: 224 | D10: 2% | E10: 0% | F10: 1 | G10: 8% | H10: 0% | I10: 1 | J10: 8% | K10: 2% | L10: 2 | M10: 33% | N10: 15% | O10: 5 | P10: 5% | Q10: 0% | R10: 1 | S10: 7% | T10: 0% | U10: 2 | V10: 7% | W10: 0% | X10: 1 | Y10: 0% | Z10: 0% | AA10: 1
A11: 110 | B11: Meurthe et Moselle Meuse | C11: 235 | D11: 7% | E11: 6% | F11: 2 | G11: 19% | H11: 12% | I11: 2 | J11: 6% | K11: 0% | L11: 1 | M11: 21% | N11: 3% | O11: 2 | P11: 7% | Q11: 2% | R11: 2 | S11: 6% | T11: 0% | U11: 1 | V11: 11% | W11: 4% | X11: 2 | Y11: 30% | Z11: 30% | AA11: 3
A12: 80 | B12: Vosges | C12: 133 | D12: 21% | E12: 19% | F12: 3 | G12: 35% | H12: 28% | I12: 3 | J12: 34% | K12: 28% | L12: 4 | M12: 18% | N12: 0% | O12: 1 | P12: 38% | Q12: 33% | R12: 6 | S12: 32% | T12: 25% | U12: 4 | V12: 14% | W12: 8% | X12: 3 | Y12: 19% | Z12: 19% | AA12: 2
A13: 160 | B13: Moselle | C13: 275 | D13: 28% | E13: 26% | F13: 4 | G13: 46% | H13: 39% | I13: 4 | J13: 49% | K13: 43% | L13: 6 | M13: 29% | N13: 11% | O13: 4 | P13: 31% | Q13: 26% | R13: 3 | S13: 31% | T13: 25% | U13: 3 | V13: 16% | W13: 10% | X13: 4 | Y13: 37% | Z13: 37% | AA13: 5
A14: 50 | B14: Aube Haute Marne | C14: 129 | D14: 31% | E14: 29% | F14: 5 | G14: 51% | H14: 43% | I14: 5 | J14: 44% | K14: 38% | L14: 5 | M14: 44% | N14: 26% | O14: 6 | P14: 32% | Q14: 27% | R14: 4 | S14: 34% | T14: 28% | U14: 5 | V14: 23% | W14: 17% | X14: 6 | Y14: 34% | Z14: 34% | AA14: 4
A15: 262 | B15: Bas-Rhin | C15: 262 | D15: 41% | E15: 39% | F15: 6 | G15: 61% | H15: 53% | I15: 6 | J15: 33% | K15: 27% | L15: 3 | M15: 24% | N15: 6% | O15: 3 | P15: 37% | Q15: 33% | R15: 5 | S15: 51% | T15: 45% | U15: 6 | V15: 22% | W15: 16% | X15: 5 | Y15: 93% | Z15: 93% | AA15: 6
A16: 264 | B16: Haut-Rhin | C16: 160 | D16: 56% | E16: 54% | F16: 7 | G16: 93% | H16: 85% | I16: 7 | J16: 53% | K16: 47% | L16: 7 | M16: 57% | N16: 39% | O16: 7 | P16: 44% | Q16: 39% | R16: 7 | S16: 63% | T16: 57% | U16: 7 | V16: 32% | W16: 25% | X16: 7 | Y16: 95% | Z16: 95% | AA16: 7
B17: Total CEGEE Directions Régionales | C17: =SUM(C10:C16) -> 1418

Sheet DC_BANCA
B1: Accueil | D1: BAROMETRE BDD - DIRECTIONS REGIONALES
D2: BANCARISATION
D3: =ACCUEIL!F7 -> 2020-12-31
D7: Ventes nettes FORFAITS | H7: Ventes nettes IZICARTES débit différé | L7: Ventes nettes Cartes HDG débit différé | P7: Ventes nettes Forfaits Pro Cartes Pro | T7: Total Bancarisation
D8: =DATEMAJ!C12 -> au 31/12 | F8: coef | G8: ='RECAP DIRCOM'!AM4 -> 4% | H8: =DATEMAJ!C13 -> au 31/12 | J8: coef | K8: ='RECAP DIRCOM'!AQ4 -> 4% | L8: =DATEMAJ!C14 -> au 31/12 | N8: coef | O8: ='RECAP DIRCOM'!AU4 -> 4% | P8: =DATEMAJ!C15 -> au 31/12 | R8: coef | S8: ='RECAP DIRCOM'!AY4 -> 3% | U8: coef | V8: ='RECAP DIRCOM'!BB4 -> 15%
B9: Direction | C9: ="ETP perf "&DATEMAJ!$C$39 -> ETP perf au 31/10 | D9: Nb / ETP | E9: PNB / ETP | F9: % Ecart au 1er | G9: Rang | H9: Nb / ETP | I9: PNB / ETP | J9: % Ecart au 1er | K9: Rang | L9: Nb / ETP | M9: PNB / ETP | N9: % Ecart au 1er | O9: Rang | P9: Nb / ETP | Q9: PNB / ETP | R9: % Ecart au 1er | S9: Rang | T9: Moyenne ecart au 1er | U9: % Ecart au 1er | V9: Rang CEGEE
A10: 50 | B10: Aube Haute Marne | C10: =VLOOKUP($A10,'RECAP DIRCOM'!$G$6:$FJ$12,3,FALSE) -> 129 | D10: =VLOOKUP($A10,'RECAP DIRCOM'!$G$6:$FJ$12,30,FALSE) -> 8.02 | E10: =VLOOKUP($A10,'RECAP DIRCOM'!$G$6:$FJ$12,31,FALSE) -> 2.98 | F10: =VLOOKUP($A10,'RECAP DIRCOM'!$G$6:$FJ$12,32,FALSE) -> 69% | G10: =VLOOKUP($A10,'RECAP DIRCOM'!$G$6:$FJ$12,33,FALSE) -> 6 | H10: =VLOOKUP($A10,'RECAP DIRCOM'!$G$6:$FJ$12,34,FALSE) -> 5.36 | I10: =VLOOKUP($A10,'RECAP DIRCOM'!$G$6:$FJ$12,35,FALSE) -> 3.27 | J10: =VLOOKUP($A10,'RECAP DIRCOM'!$G$6:$FJ$12,36,FALSE) -> 48% | K10: =VLOOKUP($A10,'RECAP DIRCOM'!$G$6:$FJ$12,37,FALSE) -> 7 | L10: =VLOOKUP($A10,'RECAP DIRCOM'!$G$6:$FJ$12,38,FALSE) -> 7.37 | M10: =VLOOKUP($A10,'RECAP DIRCOM'!$G$6:$FJ$12,39,FALSE) -> 4.97 | N10: =VLOOKUP($A10,'RECAP DIRCOM'!$G$6:$FJ$12,40,FALSE) -> 47% | O10: =VLOOKUP($A10,'RECAP DIRCOM'!$G$6:$FJ$12,41,FALSE) -> 7 | P10: =VLOOKUP($A10,'RECAP DIRCOM'!$G$6:$FJ$12,42,FALSE) -> 2.77 | Q10: =VLOOKUP($A10,'RECAP DIRCOM'!$G$6:$FJ$12,43,FALSE) -> 1.69 | R10: =VLOOKUP($A10,'RECAP DIRCOM'!$G$6:$FJ$12,44,FALSE) -> 0% | S10: =VLOOKUP($A10,'RECAP DIRCOM'!$G$6:$FJ$12,45,FALSE) -> 1 | T10: =VLOOKUP($A10,'RECAP DIRCOM'!$G$6:$FJ$12,46,FALSE) -> 44% | U10: =VLOOKUP($A10,'RECAP DIRCOM'!$G$6:$FJ$12,47,FALSE) -> 38% | V10: =VLOOKUP($A10,'RECAP DIRCOM'!$G$6:$FJ$12,48,FALSE) -> 5
A11: 262 | B11: Bas-Rhin | C11: =VLOOKUP($A11,'RECAP DIRCOM'!$G$6:$FJ$12,3,FALSE) -> 262 | D11: =VLOOKUP($A11,'RECAP DIRCOM'!$G$6:$FJ$12,30,FALSE) -> 9.78 | E11: =VLOOKUP($A11,'RECAP DIRCOM'!$G$6:$FJ$12,31,FALSE) -> 3.18 | F11: =VLOOKUP($A11,'RECAP DIRCOM'!$G$6:$FJ$12,32,FALSE) -> 67% | G11: =VLOOKUP($A11,'RECAP DIRCOM'!$G$6:$FJ$12,33,FALSE) -> 5 | H11: =VLOOKUP($A11,'RECAP DIRCOM'!$G$6:$FJ$12,34,FALSE) -> 7.43 | I11: =VLOOKUP($A11,'RECAP DIRCOM'!$G$6:$FJ$12,35,FALSE) -> 4.97 | J11: =VLOOKUP($A11,'RECAP DIRCOM'!$G$6:$FJ$12,36,FALSE) -> 21% | K11: =VLOOKUP($A11,'RECAP DIRCOM'!$G$6:$FJ$12,37,FALSE) -> 3 | L11: =VLOOKUP($A11,'RECAP DIRCOM'!$G$6:$FJ$12,38,FALSE) -> 14.27 | M11: =VLOOKUP($A11,'RECAP DIRCOM'!$G$6:$FJ$12,39,FALSE) -> 9.44 | N11: =VLOOKUP($A11,'RECAP DIRCOM'!$G$6:$FJ$12,40,FALSE) -> 0% | O11: =VLOOKUP($A11,'RECAP DIRCOM'!$G$6:$FJ$12,41,FALSE) -> 1 | P11: =VLOOKUP($A11,'RECAP DIRCOM'!$G$6:$FJ$12,42,FALSE) -> 1.68 | Q11: =VLOOKUP($A11,'RECAP DIRCOM'!$G$6:$FJ$12,43,FALSE) -> 0.88 | R11: =VLOOKUP($A11,'RECAP DIRCOM'!$G$6:$FJ$12,44,FALSE) -> 48% | S11: =VLOOKUP($A11,'RECAP DIRCOM'!$G$6:$FJ$12,45,FALSE) -> 5 | T11: =VLOOKUP($A11,'RECAP DIRCOM'!$G$6:$FJ$12,46,FALSE) -> 33% | U11: =VLOOKUP($A11,'RECAP DIRCOM'!$G$6:$FJ$12,47,FALSE) -> 27% | V11: =VLOOKUP($A11,'RECAP DIRCOM'!$G$6:$FJ$12,48,FALSE) -> 3
A12: 264 | B12: Haut-Rhin | C12: =VLOOKUP($A12,'RECAP DIRCOM'!$G$6:$FJ$12,3,FALSE) -> 160 | D12: =VLOOKUP($A12,'RECAP DIRCOM'!$G$6:$FJ$12,30,FALSE) -> 3.55 | E12: =VLOOKUP($A12,'RECAP DIRCOM'!$G$6:$FJ$12,31,FALSE) -> 1.05 | F12: =VLOOKUP($A12,'RECAP DIRCOM'!$G$6:$FJ$12,32,FALSE) -> 89% | G12: =VLOOKUP($A12,'RECAP DIRCOM'!$G$6:$FJ$12,33,FALSE) -> 7 | H12: =VLOOKUP($A12,'RECAP DIRCOM'!$G$6:$FJ$12,34,FALSE) -> 5.36 | I12: =VLOOKUP($A12,'RECAP DIRCOM'!$G$6:$FJ$12,35,FALSE) -> 3.77 | J12: =VLOOKUP($A12,'RECAP DIRCOM'!$G$6:$FJ$12,36,FALSE) -> 40% | K12: =VLOOKUP($A12,'RECAP DIRCOM'!$G$6:$FJ$12,37,FALSE) -> 6 | L12: =VLOOKUP($A12,'RECAP DIRCOM'!$G$6:$FJ$12,38,FALSE) -> 10.66 | M12: =VLOOKUP($A12,'RECAP DIRCOM'!$G$6:$FJ$12,39,FALSE) -> 7.28 | N12: =VLOOKUP($A12,'RECAP DIRCOM'!$G$6:$FJ$12,40,FALSE) -> 23% | O12: =VLOOKUP($A12,'RECAP DIRCOM'!$G$6:$FJ$12,41,FALSE) -> 5 | P12: =VLOOKUP($A12,'RECAP DIRCOM'!$G$6:$FJ$12,42,FALSE) -> 1.61 | Q12: =VLOOKUP($A12,'RECAP DIRCOM'!$G$6:$FJ$12,43,FALSE) -> 0.64 | R12: =VLOOKUP($A12,'RECAP DIRCOM'!$G$6:$FJ$12,44,FALSE) -> 62% | S12: =VLOOKUP($A12,'RECAP DIRCOM'!$G$6:$FJ$12,45,FALSE) -> 6 | T12: =VLOOKUP($A12,'RECAP DIRCOM'!$G$6:$FJ$12,46,FALSE) -> 53% | U12: =VLOOKUP($A12,'RECAP DIRCOM'!$G$6:$FJ$12,47,FALSE) -> 47% | V12: =VLOOKUP($A12,'RECAP DIRCOM'!$G$6:$FJ$12,48,FALSE) -> 7
A13: 30 | B13: Marne-Ardennes | C13: =VLOOKUP($A13,'RECAP DIRCOM'!$G$6:$FJ$12,3,FALSE) -> 224 | D13: =VLOOKUP($A13,'RECAP DIRCOM'!$G$6:$FJ$12,30,FALSE) -> 16.70 | E13: =VLOOKUP($A13,'RECAP DIRCOM'!$G$6:$FJ$12,31,FALSE) -> 9.49 | F13: =VLOOKUP($A13,'RECAP DIRCOM'!$G$6:$FJ$12,32,FALSE) -> 0% | G13: =VLOOKUP($A13,'RECAP DIRCOM'!$G$6:$FJ$12,33,FALSE) -> 1 | H13: =VLOOKUP($A13,'RECAP DIRCOM'!$G$6:$FJ$12,34,FALSE) -> 8.35 | I13: =VLOOKUP($A13,'RECAP DIRCOM'!$G$6:$FJ$12,35,FALSE) -> 5.51 | J13: =VLOOKUP($A13,'RECAP DIRCOM'!$G$6:$FJ$12,36,FALSE) -> 13% | K13: =VLOOKUP($A13,'RECAP DIRCOM'!$G$6:$FJ$12,37,FALSE) -> 2 | L13: =VLOOKUP($A13,'RECAP DIRCOM'!$G$6:$FJ$12,38,FALSE) -> 11.88 | M13: =VLOOKUP($A13,'RECAP DIRCOM'!$G$6:$FJ$12,39,FALSE) -> 8.06 | N13: =VLOOKUP($A13,'RECAP DIRCOM'!$G$6:$FJ$12,40,FALSE) -> 15% | O13: =VLOOKUP($A13,'RECAP DIRCOM'!$G$6:$FJ$12,41,FALSE) -> 3 | P13: =VLOOKUP($A13,'RECAP DIRCOM'!$G$6:$FJ$12,42,FALSE) -> 2.64 | Q13: =VLOOKUP($A13,'RECAP DIRCOM'!$G$6:$FJ$12,43,FALSE) -> 1.66 | R13: =VLOOKUP($A13,'RECAP DIRCOM'!$G$6:$FJ$12,44,FALSE) -> 2% | S13: =VLOOKUP($A13,'RECAP DIRCOM'!$G$6:$FJ$12,45,FALSE) -> 3 | T13: =VLOOKUP($A13,'RECAP DIRCOM'!$G$6:$FJ$12,46,FALSE) -> 8% | U13: =VLOOKUP($A13,'RECAP DIRCOM'!$G$6:$FJ$12,47,FALSE) -> 2% | V13: =VLOOKUP($A13,'RECAP DIRCOM'!$G$6:$FJ$12,48,FALSE) -> 2
A14: 110 | B14: Meurthe et Moselle Meuse | C14: =VLOOKUP($A14,'RECAP DIRCOM'!$G$6:$FJ$12,3,FALSE) -> 235 | D14: =VLOOKUP($A14,'RECAP DIRCOM'!$G$6:$FJ$12,30,FALSE) -> 16.64 | E14: =VLOOKUP($A14,'RECAP DIRCOM'!$G$6:$FJ$12,31,FALSE) -> 7.96 | F14: =VLOOKUP($A14,'RECAP DIRCOM'!$G$6:$FJ$12,32,FALSE) -> 16% | G14: =VLOOKUP($A14,'RECAP DIRCOM'!$G$6:$FJ$12,33,FALSE) -> 2 | H14: =VLOOKUP($A14,'RECAP DIRCOM'!$G$6:$FJ$12,34,FALSE) -> 9.81 | I14: =VLOOKUP($A14,'RECAP DIRCOM'!$G$6:$FJ$12,35,FALSE) -> 6.32 | J14: =VLOOKUP($A14,'RECAP DIRCOM'!$G$6:$FJ$12,36,FALSE) -> 0% | K14: =VLOOKUP($A14,'RECAP DIRCOM'!$G$6:$FJ$12,37,FALSE) -> 1 | L14: =VLOOKUP($A14,'RECAP DIRCOM'!$G$6:$FJ$12,38,FALSE) -> 13.38 | M14: =VLOOKUP($A14,'RECAP DIRCOM'!$G$6:$FJ$12,39,FALSE) -> 8.99 | N14: =VLOOKUP($A14,'RECAP DIRCOM'!$G$6:$FJ$12,40,FALSE) -> 5% | O14: =VLOOKUP($A14,'RECAP DIRCOM'!$G$6:$FJ$12,41,FALSE) -> 2 | P14: =VLOOKUP($A14,'RECAP DIRCOM'!$G$6:$FJ$12,42,FALSE) -> 2.64 | Q14: =VLOOKUP($A14,'RECAP DIRCOM'!$G$6:$FJ$12,43,FALSE) -> 1.67 | R14: =VLOOKUP($A14,'RECAP DIRCOM'!$G$6:$FJ$12,44,FALSE) -> 1% | S14: =VLOOKUP($A14,'RECAP DIRCOM'!$G$6:$FJ$12,45,FALSE) -> 2 | T14: =VLOOKUP($A14,'RECAP DIRCOM'!$G$6:$FJ$12,46,FALSE) -> 6% | U14: =VLOOKUP($A14,'RECAP DIRCOM'!$G$6:$FJ$12,47,FALSE) -> 0% | V14: =VLOOKUP($A14,'RECAP DIRCOM'!$G$6:$FJ$12,48,FALSE) -> 1
A15: 160 | B15: Moselle | C15: =VLOOKUP($A15,'RECAP DIRCOM'!$G$6:$FJ$12,3,FALSE) -> 275 | D15: =VLOOKUP($A15,'RECAP DIRCOM'!$G$6:$FJ$12,30,FALSE) -> 10.02 | E15: =VLOOKUP($A15,'RECAP DIRCOM'!$G$6:$FJ$12,31,FALSE) -> 5.15 | F15: =VLOOKUP($A15,'RECAP DIRCOM'!$G$6:$FJ$12,32,FALSE) -> 46% | G15: =VLOOKUP($A15,'RECAP DIRCOM'!$G$6:$FJ$12,33,FALSE) -> 3 | H15: =VLOOKUP($A15,'RECAP DIRCOM'!$G$6:$FJ$12,34,FALSE) -> 5.92 | I15: =VLOOKUP($A15,'RECAP DIRCOM'!$G$6:$FJ$12,35,FALSE) -> 3.95 | J15: =VLOOKUP($A15,'RECAP DIRCOM'!$G$6:$FJ$12,36,FALSE) -> 37% | K15: =VLOOKUP($A15,'RECAP DIRCOM'!$G$6:$FJ$12,37,FALSE) -> 4 | L15: =VLOOKUP($A15,'RECAP DIRCOM'!$G$6:$FJ$12,38,FALSE) -> 8.80 | M15: =VLOOKUP($A15,'RECAP DIRCOM'!$G$6:$FJ$12,39,FALSE) -> 6.12 | N15: =VLOOKUP($A15,'RECAP DIRCOM'!$G$6:$FJ$12,40,FALSE) -> 35% | O15: =VLOOKUP($A15,'RECAP DIRCOM'!$G$6:$FJ$12,41,FALSE) -> 6 | P15: =VLOOKUP($A15,'RECAP DIRCOM'!$G$6:$FJ$12,42,FALSE) -> 0.90 | Q15: =VLOOKUP($A15,'RECAP DIRCOM'!$G$6:$FJ$12,43,FALSE) -> 0.21 | R15: =VLOOKUP($A15,'RECAP DIRCOM'!$G$6:$FJ$12,44,FALSE) -> 88% | S15: =VLOOKUP($A15,'RECAP DIRCOM'!$G$6:$FJ$12,45,FALSE) -> 7 | T15: =VLOOKUP($A15,'RECAP DIRCOM'!$G$6:$FJ$12,46,FALSE) -> 49% | U15: =VLOOKUP($A15,'RECAP DIRCOM'!$G$6:$FJ$12,47,FALSE) -> 43% | V15: =VLOOKUP($A15,'RECAP DIRCOM'!$G$6:$FJ$12,48,FALSE) -> 6
A16: 80 | B16: Vosges | C16: =VLOOKUP($A16,'RECAP DIRCOM'!$G$6:$FJ$12,3,FALSE) -> 133 | D16: =VLOOKUP($A16,'RECAP DIRCOM'!$G$6:$FJ$12,30,FALSE) -> 11.64 | E16: =VLOOKUP($A16,'RECAP DIRCOM'!$G$6:$FJ$12,31,FALSE) -> 4.21 | F16: =VLOOKUP($A16,'RECAP DIRCOM'!$G$6:$FJ$12,32,FALSE) -> 56% | G16: =VLOOKUP($A16,'RECAP DIRCOM'!$G$6:$FJ$12,33,FALSE) -> 4 | H16: =VLOOKUP($A16,'RECAP DIRCOM'!$G$6:$FJ$12,34,FALSE) -> 5.74 | I16: =VLOOKUP($A16,'RECAP DIRCOM'!$G$6:$FJ$12,35,FALSE) -> 3.91 | J16: =VLOOKUP($A16,'RECAP DIRCOM'!$G$6:$FJ$12,36,FALSE) -> 38% | K16: =VLOOKUP($A16,'RECAP DIRCOM'!$G$6:$FJ$12,37,FALSE) -> 5 | L16: =VLOOKUP($A16,'RECAP DIRCOM'!$G$6:$FJ$12,38,FALSE) -> 10.84 | M16: =VLOOKUP($A16,'RECAP DIRCOM'!$G$6:$FJ$12,39,FALSE) -> 7.28 | N16: =VLOOKUP($A16,'RECAP DIRCOM'!$G$6:$FJ$12,40,FALSE) -> 23% | O16: =VLOOKUP($A16,'RECAP DIRCOM'!$G$6:$FJ$12,41,FALSE) -> 4 | P16: =VLOOKUP($A16,'RECAP DIRCOM'!$G$6:$FJ$12,42,FALSE) -> 2.39 | Q16: =VLOOKUP($A16,'RECAP DIRCOM'!$G$6:$FJ$12,43,FALSE) -> 1.43 | R16: =VLOOKUP($A16,'RECAP DIRCOM'!$G$6:$FJ$12,44,FALSE) -> 15% | S16: =VLOOKUP($A16,'RECAP DIRCOM'!$G$6:$FJ$12,45,FALSE) -> 4 | T16: =VLOOKUP($A16,'RECAP DIRCOM'!$G$6:$FJ$12,46,FALSE) -> 34% | U16: =VLOOKUP($A16,'RECAP DIRCOM'!$G$6:$FJ$12,47,FALSE) -> 28% | V16: =VLOOKUP($A16,'RECAP DIRCOM'!$G$6:$FJ$12,48,FALSE) -> 4
B17: Total CEGEE Directions Régionales | C17: =SUM(C10:C16) -> 1418

Sheet DC_EPARGNE
B1: Accueil | D1: BAROMETRE BDD - DIRECTIONS REGIONALES
D2: EPARGNE
D3: =ACCUEIL!F7 -> 2020-12-31
D7: Excédent Epargne Liquide | H7: CA UC + arbitrage | L7: Excédent Assurance Vie | P7: Total Epargne
D8: =DATEMAJ!C17 -> au 31/12 | F8: coef | G8: ='RECAP DIRCOM'!BL4 -> 3% | H8: =DATEMAJ!C18 -> au 24/12 | J8: coef | K8: ='RECAP DIRCOM'!BP4 -> 4% | L8: =DATEMAJ!C19 -> au 31/12 | N8: coef | O8: ='RECAP DIRCOM'!BT4 -> 3% | Q8: coef | R8: ='RECAP DIRCOM'!BW4 -> 10%
B9: Direction | C9: ="ETP perf "&DATEMAJ!$C$39 -> ETP perf au 31/10 | D9: Réal / ETP | E9: PNB / ETP | F9: % Ecart au 1er | G9: Rang | H9: Réal / ETP | I9: PNB / ETP | J9: % Ecart au 1er | K9: Rang | L9: Réal / ETP | M9: PNB / ETP | N9: % Ecart au 1er | O9: Rang | P9: Moyenne ecart au 1er | Q9: % Ecart au 1er | R9: Rang CEGEE
A10: 50 | B10: Aube Haute Marne | C10: =VLOOKUP($A10,'RECAP DIRCOM'!$G$6:$FJ$12,3,FALSE) -> 129 | D10: =VLOOKUP($A10,'RECAP DIRCOM'!$G$6:$FJ$12,55,FALSE) -> 374.46 | E10: =VLOOKUP($A10,'RECAP DIRCOM'!$G$6:$FJ$12,56,FALSE) -> 8.54 | F10: =VLOOKUP($A10,'RECAP DIRCOM'!$G$6:$FJ$12,57,FALSE) -> 22% | G10: =VLOOKUP($A10,'RECAP DIRCOM'!$G$6:$FJ$12,58,FALSE) -> 5 | H10: =VLOOKUP($A10,'RECAP DIRCOM'!$G$6:$FJ$12,59,FALSE) -> 178.12 | I10: =VLOOKUP($A10,'RECAP DIRCOM'!$G$6:$FJ$12,60,FALSE) -> 1.31 | J10: =VLOOKUP($A10,'RECAP DIRCOM'!$G$6:$FJ$12,61,FALSE) -> 0% | K10: =VLOOKUP($A10,'RECAP DIRCOM'!$G$6:$FJ$12,62,FALSE) -> 1 | L10: =VLOOKUP($A10,'RECAP DIRCOM'!$G$6:$FJ$12,63,FALSE) -> -90 | M10: =VLOOKUP($A10,'RECAP DIRCOM'!$G$6:$FJ$12,64,FALSE) -> -3.23 | N10: =VLOOKUP($A10,'RECAP DIRCOM'!$G$6:$FJ$12,65,FALSE) -> 125% | O10: =VLOOKUP($A10,'RECAP DIRCOM'!$G$6:$FJ$12,66,FALSE) -> 6 | P10: =VLOOKUP($A10,'RECAP DIRCOM'!$G$6:$FJ$12,67,FALSE) -> 44% | Q10: =VLOOKUP($A10,'RECAP DIRCOM'!$G$6:$FJ$12,68,FALSE) -> 26% | R10: =VLOOKUP($A10,'RECAP DIRCOM'!$G$6:$FJ$12,69,FALSE) -> 6
A11: 262 | B11: Bas-Rhin | C11: =VLOOKUP($A11,'RECAP DIRCOM'!$G$6:$FJ$12,3,FALSE) -> 262 | D11: =VLOOKUP($A11,'RECAP DIRCOM'!$G$6:$FJ$12,55,FALSE) -> 456.17 | E11: =VLOOKUP($A11,'RECAP DIRCOM'!$G$6:$FJ$12,56,FALSE) -> 10.62 | F11: =VLOOKUP($A11,'RECAP DIRCOM'!$G$6:$FJ$12,57,FALSE) -> 4% | G11: =VLOOKUP($A11,'RECAP DIRCOM'!$G$6:$FJ$12,58,FALSE) -> 2 | H11: =VLOOKUP($A11,'RECAP DIRCOM'!$G$6:$FJ$12,59,FALSE) -> 188.18 | I11: =VLOOKUP($A11,'RECAP DIRCOM'!$G$6:$FJ$12,60,FALSE) -> 1.25 | J11: =VLOOKUP($A11,'RECAP DIRCOM'!$G$6:$FJ$12,61,FALSE) -> 4% | K11: =VLOOKUP($A11,'RECAP DIRCOM'!$G$6:$FJ$12,62,FALSE) -> 2 | L11: =VLOOKUP($A11,'RECAP DIRCOM'!$G$6:$FJ$12,63,FALSE) -> -43 | M11: =VLOOKUP($A11,'RECAP DIRCOM'!$G$6:$FJ$12,64,FALSE) -> -1.56 | N11: =VLOOKUP($A11,'RECAP DIRCOM'!$G$6:$FJ$12,65,FALSE) -> 71% | O11: =VLOOKUP($A11,'RECAP DIRCOM'!$G$6:$FJ$12,66,FALSE) -> 4 | P11: =VLOOKUP($A11,'RECAP DIRCOM'!$G$6:$FJ$12,67,FALSE) -> 24% | Q11: =VLOOKUP($A11,'RECAP DIRCOM'!$G$6:$FJ$12,68,FALSE) -> 6% | R11: =VLOOKUP($A11,'RECAP DIRCOM'!$G$6:$FJ$12,69,FALSE) -> 3
A12: 264 | B12: Haut-Rhin | C12: =VLOOKUP($A12,'RECAP DIRCOM'!$G$6:$FJ$12,3,FALSE) -> 160 | D12: =VLOOKUP($A12,'RECAP DIRCOM'!$G$6:$FJ$12,55,FALSE) -> 353.09 | E12: =VLOOKUP($A12,'RECAP DIRCOM'!$G$6:$FJ$12,56,FALSE) -> 8.37 | F12: =VLOOKUP($A12,'RECAP DIRCOM'!$G$6:$FJ$12,57,FALSE) -> 24% | G12: =VLOOKUP($A12,'RECAP DIRCOM'!$G$6:$FJ$12,58,FALSE) -> 6 | H12: =VLOOKUP($A12,'RECAP DIRCOM'!$G$6:$FJ$12,59,FALSE) -> 154.95 | I12: =VLOOKUP($A12,'RECAP DIRCOM'!$G$6:$FJ$12,60,FALSE) -> 1.14 | J12: =VLOOKUP($A12,'RECAP DIRCOM'!$G$6:$FJ$12,61,FALSE) -> 13% | K12: =VLOOKUP($A12,'RECAP DIRCOM'!$G$6:$FJ$12,62,FALSE) -> 3 | L12: =VLOOKUP($A12,'RECAP DIRCOM'!$G$6:$FJ$12,63,FALSE) -> -111 | M12: =VLOOKUP($A12,'RECAP DIRCOM'!$G$6:$FJ$12,64,FALSE) -> -3.99 | N12: =VLOOKUP($A12,'RECAP DIRCOM'!$G$6:$FJ$12,65,FALSE) -> 150% | O12: =VLOOKUP($A12,'RECAP DIRCOM'!$G$6:$FJ$12,66,FALSE) -> 7 | P12: =VLOOKUP($A12,'RECAP DIRCOM'!$G$6:$FJ$12,67,FALSE) -> 57% | Q12: =VLOOKUP($A12,'RECAP DIRCOM'!$G$6:$FJ$12,68,FALSE) -> 39% | R12: =VLOOKUP($A12,'RECAP DIRCOM'!$G$6:$FJ$12,69,FALSE) -> 7
A13: 30 | B13: Marne-Ardennes | C13: =VLOOKUP($A13,'RECAP DIRCOM'!$G$6:$FJ$12,3,FALSE) -> 224 | D13: =VLOOKUP($A13,'RECAP DIRCOM'!$G$6:$FJ$12,55,FALSE) -> 467.97 | E13: =VLOOKUP($A13,'RECAP DIRCOM'!$G$6:$FJ$12,56,FALSE) -> 11.01 | F13: =VLOOKUP($A13,'RECAP DIRCOM'!$G$6:$FJ$12,57,FALSE) -> 0% | G13: =VLOOKUP($A13,'RECAP DIRCOM'!$G$6:$FJ$12,58,FALSE) -> 1 | H13: =VLOOKUP($A13,'RECAP DIRCOM'!$G$6:$FJ$12,59,FALSE) -> 177.29 | I13: =VLOOKUP($A13,'RECAP DIRCOM'!$G$6:$FJ$12,60,FALSE) -> 1.10 | J13: =VLOOKUP($A13,'RECAP DIRCOM'!$G$6:$FJ$12,61,FALSE) -> 16% | K13: =VLOOKUP($A13,'RECAP DIRCOM'!$G$6:$FJ$12,62,FALSE) -> 6 | L13: =VLOOKUP($A13,'RECAP DIRCOM'!$G$6:$FJ$12,63,FALSE) -> -57 | M13: =VLOOKUP($A13,'RECAP DIRCOM'!$G$6:$FJ$12,64,FALSE) -> -2.06 | N13: =VLOOKUP($A13,'RECAP DIRCOM'!$G$6:$FJ$12,65,FALSE) -> 88% | O13: =VLOOKUP($A13,'RECAP DIRCOM'!$G$6:$FJ$12,66,FALSE) -> 5 | P13: =VLOOKUP($A13,'RECAP DIRCOM'!$G$6:$FJ$12,67,FALSE) -> 33% | Q13: =VLOOKUP($A13,'RECAP DIRCOM'!$G$6:$FJ$12,68,FALSE) -> 15% | R13: =VLOOKUP($A13,'RECAP DIRCOM'!$G$6:$FJ$12,69,FALSE) -> 5
A14: 110 | B14: Meurthe et Moselle Meuse | C14: =VLOOKUP($A14,'RECAP DIRCOM'!$G$6:$FJ$12,3,FALSE) -> 235 | D14: =VLOOKUP($A14,'RECAP DIRCOM'!$G$6:$FJ$12,55,FALSE) -> 393.84 | E14: =VLOOKUP($A14,'RECAP DIRCOM'!$G$6:$FJ$12,56,FALSE) -> 9.13 | F14: =VLOOKUP($A14,'RECAP DIRCOM'!$G$6:$FJ$12,57,FALSE) -> 17% | G14: =VLOOKUP($A14,'RECAP DIRCOM'!$G$6:$FJ$12,58,FALSE) -> 3 | H14: =VLOOKUP($A14,'RECAP DIRCOM'!$G$6:$FJ$12,59,FALSE) -> 182.71 | I14: =VLOOKUP($A14,'RECAP DIRCOM'!$G$6:$FJ$12,60,FALSE) -> 1.13 | J14: =VLOOKUP($A14,'RECAP DIRCOM'!$G$6:$FJ$12,61,FALSE) -> 14% | K14: =VLOOKUP($A14,'RECAP DIRCOM'!$G$6:$FJ$12,62,FALSE) -> 4 | L14: =VLOOKUP($A14,'RECAP DIRCOM'!$G$6:$FJ$12,63,FALSE) -> -12 | M14: =VLOOKUP($A14,'RECAP DIRCOM'!$G$6:$FJ$12,64,FALSE) -> -0.45 | N14: =VLOOKUP($A14,'RECAP DIRCOM'!$G$6:$FJ$12,65,FALSE) -> 35% | O14: =VLOOKUP($A14,'RECAP DIRCOM'!$G$6:$FJ$12,66,FALSE) -> 2 | P14: =VLOOKUP($A14,'RECAP DIRCOM'!$G$6:$FJ$12,67,FALSE) -> 21% | Q14: =VLOOKUP($A14,'RECAP DIRCOM'!$G$6:$FJ$12,68,FALSE) -> 3% | R14: =VLOOKUP($A14,'RECAP DIRCOM'!$G$6:$FJ$12,69,FALSE) -> 2
A15: 160 | B15: Moselle | C15: =VLOOKUP($A15,'RECAP DIRCOM'!$G$6:$FJ$12,3,FALSE) -> 275 | D15: =VLOOKUP($A15,'RECAP DIRCOM'!$G$6:$FJ$12,55,FALSE) -> 416.68 | E15: =VLOOKUP($A15,'RECAP DIRCOM'!$G$6:$FJ$12,56,FALSE) -> 9.07 | F15: =VLOOKUP($A15,'RECAP DIRCOM'!$G$6:$FJ$12,57,FALSE) -> 18% | G15: =VLOOKUP($A15,'RECAP DIRCOM'!$G$6:$FJ$12,58,FALSE) -> 4 | H15: =VLOOKUP($A15,'RECAP DIRCOM'!$G$6:$FJ$12,59,FALSE) -> 175.27 | I15: =VLOOKUP($A15,'RECAP DIRCOM'!$G$6:$FJ$12,60,FALSE) -> 1.11 | J15: =VLOOKUP($A15,'RECAP DIRCOM'!$G$6:$FJ$12,61,FALSE) -> 15% | K15: =VLOOKUP($A15,'RECAP DIRCOM'!$G$6:$FJ$12,62,FALSE) -> 5 | L15: =VLOOKUP($A15,'RECAP DIRCOM'!$G$6:$FJ$12,63,FALSE) -> -34 | M15: =VLOOKUP($A15,'RECAP DIRCOM'!$G$6:$FJ$12,64,FALSE) -> -1.22 | N15: =VLOOKUP($A15,'RECAP DIRCOM'!$G$6:$FJ$12,65,FALSE) -> 60% | O15: =VLOOKUP($A15,'RECAP DIRCOM'!$G$6:$FJ$12,66,FALSE) -> 3 | P15: =VLOOKUP($A15,'RECAP DIRCOM'!$G$6:$FJ$12,67,FALSE) -> 29% | Q15: =VLOOKUP($A15,'RECAP DIRCOM'!$G$6:$FJ$12,68,FALSE) -> 11% | R15: =VLOOKUP($A15,'RECAP DIRCOM'!$G$6:$FJ$12,69,FALSE) -> 4
A16: 80 | B16: Vosges | C16: =VLOOKUP($A16,'RECAP DIRCOM'!$G$6:$FJ$12,3,FALSE) -> 133 | D16: =VLOOKUP($A16,'RECAP DIRCOM'!$G$6:$FJ$12,55,FALSE) -> 301.52 | E16: =VLOOKUP($A16,'RECAP DIRCOM'!$G$6:$FJ$12,56,FALSE) -> 7.99 | F16: =VLOOKUP($A16,'RECAP DIRCOM'!$G$6:$FJ$12,57,FALSE) -> 27% | G16: =VLOOKUP($A16,'RECAP DIRCOM'!$G$6:$FJ$12,58,FALSE) -> 7 | H16: =VLOOKUP($A16,'RECAP DIRCOM'!$G$6:$FJ$12,59,FALSE) -> 190.44 | I16: =VLOOKUP($A16,'RECAP DIRCOM'!$G$6:$FJ$12,60,FALSE) -> 0.99 | J16: =VLOOKUP($A16,'RECAP DIRCOM'!$G$6:$FJ$12,61,FALSE) -> 25% | K16: =VLOOKUP($A16,'RECAP DIRCOM'!$G$6:$FJ$12,62,FALSE) -> 7 | L16: =VLOOKUP($A16,'RECAP DIRCOM'!$G$6:$FJ$12,63,FALSE) -> 18 | M16: =VLOOKUP($A16,'RECAP DIRCOM'!$G$6:$FJ$12,64,FALSE) -> 0.64 | N16: =VLOOKUP($A16,'RECAP DIRCOM'!$G$6:$FJ$12,65,FALSE) -> 0% | O16: =VLOOKUP($A16,'RECAP DIRCOM'!$G$6:$FJ$12,66,FALSE) -> 1 | P16: =VLOOKUP($A16,'RECAP DIRCOM'!$G$6:$FJ$12,67,FALSE) -> 18% | Q16: =VLOOKUP($A16,'RECAP DIRCOM'!$G$6:$FJ$12,68,FALSE) -> 0% | R16: =VLOOKUP($A16,'RECAP DIRCOM'!$G$6:$FJ$12,69,FALSE) -> 1
B17: Total CEGEE Directions Régionales | C17: =SUM(C10:C16) -> 1418

Sheet DC_CREDIT
B1: Accueil | D1: BAROMETRE BDD - DIRECTIONS REGIONALES
D2: CREDITS
D3: =ACCUEIL!F7 -> 2020-12-31
D7: Engagements crédits conso | H7: ADE crédits conso | L7: Engagements crédits immo | P7: ADE crédits immo | T7: SACCEF | X7: Engagement Crédits MLT + Crédits Bail | AB7: Total Crédits
D8: =DATEMAJ!C21 -> au 31/12 | F8: coef | G8: ='RECAP DIRCOM'!CG4 -> 4% | I8: =DATEMAJ!C22 -> au 31/12 | J8: coef | K8: ='RECAP DIRCOM'!CK4 -> 1% | L8: =DATEMAJ!C23 -> au 31/12 | N8: coef | O8: ='RECAP DIRCOM'!CO4 -> 4% | Q8: =DATEMAJ!C24 -> au 31/12 | R8: coef | S8: ='RECAP DIRCOM'!CS4 -> 2% | U8: =DATEMAJ!C25 -> au 31/12 | V8: coef | W8: ='RECAP DIRCOM'!CW4 -> 2% | X8: =DATEMAJ!C26 -> au 31/12 | Z8: coef | AA8: ='RECAP DIRCOM'!DA4 -> 2% | AC8: coef | AD8: ='RECAP DIRCOM'!DD4 -> 15%
B9: Direction | C9: ="ETP perf "&DATEMAJ!$C$39 -> ETP perf au 31/10 | D9: Réal / ETP | E9: PNB / ETP | F9: % Ecart au 1er | G9: Rang | I9: PNB / ETP | J9: % Ecart au 1er | K9: Rang | L9: Réal / ETP | M9: PNB / ETP | N9: % Ecart au 1er | O9: Rang | Q9: PNB / ETP | R9: % Ecart au 1er | S9: Rang | U9: PNB / ETP | V9: % Ecart au 1er | W9: Rang | X9: Réal / ETP | Y9: PNB / ETP | Z9: % Ecart au 1er | AA9: Rang | AB9: Moyenne ecart au 1er | AC9: % Ecart au 1er | AD9: Rang CEGEE
A10: 50 | B10: Aube Haute Marne | C10: =VLOOKUP($A10,'RECAP DIRCOM'!$G$6:$FJ$12,3,FALSE) -> 129 | D10: =VLOOKUP($A10,'RECAP DIRCOM'!$G$6:$FJ$12,76,FALSE) -> 473.13 | E10: =VLOOKUP($A10,'RECAP DIRCOM'!$G$6:$FJ$12,77,FALSE) -> 42.08 | F10: =VLOOKUP($A10,'RECAP DIRCOM'!$G$6:$FJ$12,78,FALSE) -> 7% | G10: =VLOOKUP($A10,'RECAP DIRCOM'!$G$6:$FJ$12,79,FALSE) -> 2 | I10: =VLOOKUP($A10,'RECAP DIRCOM'!$G$6:$FJ$12,81,FALSE) -> 9.26 | J10: =VLOOKUP($A10,'RECAP DIRCOM'!$G$6:$FJ$12,82,FALSE) -> 14% | K10: =VLOOKUP($A10,'RECAP DIRCOM'!$G$6:$FJ$12,83,FALSE) -> 4 | L10: =VLOOKUP($A10,'RECAP DIRCOM'!$G$6:$FJ$12,84,FALSE) -> 1089.02 | M10: =VLOOKUP($A10,'RECAP DIRCOM'!$G$6:$FJ$12,85,FALSE) -> 48.65 | N10: =VLOOKUP($A10,'RECAP DIRCOM'!$G$6:$FJ$12,86,FALSE) -> 49% | O10: =VLOOKUP($A10,'RECAP DIRCOM'!$G$6:$FJ$12,87,FALSE) -> 5 | Q10: =VLOOKUP($A10,'RECAP DIRCOM'!$G$6:$FJ$12,89,FALSE) -> 20.75 | R10: =VLOOKUP($A10,'RECAP DIRCOM'!$G$6:$FJ$12,90,FALSE) -> 63% | S10: =VLOOKUP($A10,'RECAP DIRCOM'!$G$6:$FJ$12,91,FALSE) -> 7 | U10: =VLOOKUP($A10,'RECAP DIRCOM'!$G$6:$FJ$12,93,FALSE) -> 2.48 | V10: =VLOOKUP($A10,'RECAP DIRCOM'!$G$6:$FJ$12,94,FALSE) -> 51% | W10: =VLOOKUP($A10,'RECAP DIRCOM'!$G$6:$FJ$12,95,FALSE) -> 5 | X10: =VLOOKUP($A10,'RECAP DIRCOM'!$G$6:$FJ$12,96,FALSE) -> 197.60 | Y10: =VLOOKUP($A10,'RECAP DIRCOM'!$G$6:$FJ$12,97,FALSE) -> 7.31 | Z10: =VLOOKUP($A10,'RECAP DIRCOM'!$G$6:$FJ$12,98,FALSE) -> 6% | AA10: =VLOOKUP($A10,'RECAP DIRCOM'!$G$6:$FJ$12,99,FALSE) -> 2 | AB10: =VLOOKUP($A10,'RECAP DIRCOM'!$G$6:$FJ$12,100,FALSE) -> 32% | AC10: =VLOOKUP($A10,'RECAP DIRCOM'!$G$6:$FJ$12,101,FALSE) -> 27% | AD10: =VLOOKUP($A10,'RECAP DIRCOM'!$G$6:$FJ$12,102,FALSE) -> 4
A11: 262 | B11: Bas-Rhin | C11: =VLOOKUP($A11,'RECAP DIRCOM'!$G$6:$FJ$12,3,FALSE) -> 262 | D11: =VLOOKUP($A11,'RECAP DIRCOM'!$G$6:$FJ$12,76,FALSE) -> 415.90 | E11: =VLOOKUP($A11,'RECAP DIRCOM'!$G$6:$FJ$12,77,FALSE) -> 34.25 | F11: =VLOOKUP($A11,'RECAP DIRCOM'!$G$6:$FJ$12,78,FALSE) -> 24% | G11: =VLOOKUP($A11,'RECAP DIRCOM'!$G$6:$FJ$12,79,FALSE) -> 6 | I11: =VLOOKUP($A11,'RECAP DIRCOM'!$G$6:$FJ$12,81,FALSE) -> 8.72 | J11: =VLOOKUP($A11,'RECAP DIRCOM'!$G$6:$FJ$12,82,FALSE) -> 19% | K11: =VLOOKUP($A11,'RECAP DIRCOM'!$G$6:$FJ$12,83,FALSE) -> 6 | L11: =VLOOKUP($A11,'RECAP DIRCOM'!$G$6:$FJ$12,84,FALSE) -> 1411.89 | M11: =VLOOKUP($A11,'RECAP DIRCOM'!$G$6:$FJ$12,85,FALSE) -> 44.56 | N11: =VLOOKUP($A11,'RECAP DIRCOM'!$G$6:$FJ$12,86,FALSE) -> 54% | O11: =VLOOKUP($A11,'RECAP DIRCOM'!$G$6:$FJ$12,87,FALSE) -> 6 | Q11: =VLOOKUP($A11,'RECAP DIRCOM'!$G$6:$FJ$12,89,FALSE) -> 24.87 | R11: =VLOOKUP($A11,'RECAP DIRCOM'!$G$6:$FJ$12,90,FALSE) -> 56% | S11: =VLOOKUP($A11,'RECAP DIRCOM'!$G$6:$FJ$12,91,FALSE) -> 5 | U11: =VLOOKUP($A11,'RECAP DIRCOM'!$G$6:$FJ$12,93,FALSE) -> 2.71 | V11: =VLOOKUP($A11,'RECAP DIRCOM'!$G$6:$FJ$12,94,FALSE) -> 47% | W11: =VLOOKUP($A11,'RECAP DIRCOM'!$G$6:$FJ$12,95,FALSE) -> 4 | X11: =VLOOKUP($A11,'RECAP DIRCOM'!$G$6:$FJ$12,96,FALSE) -> 178.19 | Y11: =VLOOKUP($A11,'RECAP DIRCOM'!$G$6:$FJ$12,97,FALSE) -> 6.80 | Z11: =VLOOKUP($A11,'RECAP DIRCOM'!$G$6:$FJ$12,98,FALSE) -> 13% | AA11: =VLOOKUP($A11,'RECAP DIRCOM'!$G$6:$FJ$12,99,FALSE) -> 3 | AB11: =VLOOKUP($A11,'RECAP DIRCOM'!$G$6:$FJ$12,100,FALSE) -> 37% | AC11: =VLOOKUP($A11,'RECAP DIRCOM'!$G$6:$FJ$12,101,FALSE) -> 33% | AD11: =VLOOKUP($A11,'RECAP DIRCOM'!$G$6:$FJ$12,102,FALSE) -> 5
A12: 264 | B12: Haut-Rhin | C12: =VLOOKUP($A12,'RECAP DIRCOM'!$G$6:$FJ$12,3,FALSE) -> 160 | D12: =VLOOKUP($A12,'RECAP DIRCOM'!$G$6:$FJ$12,76,FALSE) -> 374.16 | E12: =VLOOKUP($A12,'RECAP DIRCOM'!$G$6:$FJ$12,77,FALSE) -> 31.68 | F12: =VLOOKUP($A12,'RECAP DIRCOM'!$G$6:$FJ$12,78,FALSE) -> 30% | G12: =VLOOKUP($A12,'RECAP DIRCOM'!$G$6:$FJ$12,79,FALSE) -> 7 | I12: =VLOOKUP($A12,'RECAP DIRCOM'!$G$6:$FJ$12,81,FALSE) -> 7.52 | J12: =VLOOKUP($A12,'RECAP DIRCOM'!$G$6:$FJ$12,82,FALSE) -> 30% | K12: =VLOOKUP($A12,'RECAP DIRCOM'!$G$6:$FJ$12,83,FALSE) -> 7 | L12: =VLOOKUP($A12,'RECAP DIRCOM'!$G$6:$FJ$12,84,FALSE) -> 1217.35 | M12: =VLOOKUP($A12,'RECAP DIRCOM'!$G$6:$FJ$12,85,FALSE) -> 43.63 | N12: =VLOOKUP($A12,'RECAP DIRCOM'!$G$6:$FJ$12,86,FALSE) -> 55% | O12: =VLOOKUP($A12,'RECAP DIRCOM'!$G$6:$FJ$12,87,FALSE) -> 7 | Q12: =VLOOKUP($A12,'RECAP DIRCOM'!$G$6:$FJ$12,89,FALSE) -> 25.52 | R12: =VLOOKUP($A12,'RECAP DIRCOM'!$G$6:$FJ$12,90,FALSE) -> 55% | S12: =VLOOKUP($A12,'RECAP DIRCOM'!$G$6:$FJ$12,91,FALSE) -> 4 | U12: =VLOOKUP($A12,'RECAP DIRCOM'!$G$6:$FJ$12,93,FALSE) -> 1.90 | V12: =VLOOKUP($A12,'RECAP DIRCOM'!$G$6:$FJ$12,94,FALSE) -> 62% | W12: =VLOOKUP($A12,'RECAP DIRCOM'!$G$6:$FJ$12,95,FALSE) -> 7 | X12: =VLOOKUP($A12,'RECAP DIRCOM'!$G$6:$FJ$12,96,FALSE) -> 169.10 | Y12: =VLOOKUP($A12,'RECAP DIRCOM'!$G$6:$FJ$12,97,FALSE) -> 5.70 | Z12: =VLOOKUP($A12,'RECAP DIRCOM'!$G$6:$FJ$12,98,FALSE) -> 27% | AA12: =VLOOKUP($A12,'RECAP DIRCOM'!$G$6:$FJ$12,99,FALSE) -> 4 | AB12: =VLOOKUP($A12,'RECAP DIRCOM'!$G$6:$FJ$12,100,FALSE) -> 44% | AC12: =VLOOKUP($A12,'RECAP DIRCOM'!$G$6:$FJ$12,101,FALSE) -> 39% | AD12: =VLOOKUP($A12,'RECAP DIRCOM'!$G$6:$FJ$12,102,FALSE) -> 7
A13: 30 | B13: Marne-Ardennes | C13: =VLOOKUP($A13,'RECAP DIRCOM'!$G$6:$FJ$12,3,FALSE) -> 224 | D13: =VLOOKUP($A13,'RECAP DIRCOM'!$G$6:$FJ$12,76,FALSE) -> 469.00 | E13: =VLOOKUP($A13,'RECAP DIRCOM'!$G$6:$FJ$12,77,FALSE) -> 39.36 | F13: =VLOOKUP($A13,'RECAP DIRCOM'!$G$6:$FJ$12,78,FALSE) -> 13% | G13: =VLOOKUP($A13,'RECAP DIRCOM'!$G$6:$FJ$12,79,FALSE) -> 4 | I13: =VLOOKUP($A13,'RECAP DIRCOM'!$G$6:$FJ$12,81,FALSE) -> 9.64 | J13: =VLOOKUP($A13,'RECAP DIRCOM'!$G$6:$FJ$12,82,FALSE) -> 10% | K13: =VLOOKUP($A13,'RECAP DIRCOM'!$G$6:$FJ$12,83,FALSE) -> 2 | L13: =VLOOKUP($A13,'RECAP DIRCOM'!$G$6:$FJ$12,84,FALSE) -> 2126.72 | M13: =VLOOKUP($A13,'RECAP DIRCOM'!$G$6:$FJ$12,85,FALSE) -> 95.93 | N13: =VLOOKUP($A13,'RECAP DIRCOM'!$G$6:$FJ$12,86,FALSE) -> 0% | O13: =VLOOKUP($A13,'RECAP DIRCOM'!$G$6:$FJ$12,87,FALSE) -> 1 | Q13: =VLOOKUP($A13,'RECAP DIRCOM'!$G$6:$FJ$12,89,FALSE) -> 56.32 | R13: =VLOOKUP($A13,'RECAP DIRCOM'!$G$6:$FJ$12,90,FALSE) -> 0% | S13: =VLOOKUP($A13,'RECAP DIRCOM'!$G$6:$FJ$12,91,FALSE) -> 1 | U13: =VLOOKUP($A13,'RECAP DIRCOM'!$G$6:$FJ$12,93,FALSE) -> 4.82 | V13: =VLOOKUP($A13,'RECAP DIRCOM'!$G$6:$FJ$12,94,FALSE) -> 5% | W13: =VLOOKUP($A13,'RECAP DIRCOM'!$G$6:$FJ$12,95,FALSE) -> 2 | X13: =VLOOKUP($A13,'RECAP DIRCOM'!$G$6:$FJ$12,96,FALSE) -> 250.62 | Y13: =VLOOKUP($A13,'RECAP DIRCOM'!$G$6:$FJ$12,97,FALSE) -> 7.79 | Z13: =VLOOKUP($A13,'RECAP DIRCOM'!$G$6:$FJ$12,98,FALSE) -> 0% | AA13: =VLOOKUP($A13,'RECAP DIRCOM'!$G$6:$FJ$12,99,FALSE) -> 1 | AB13: =VLOOKUP($A13,'RECAP DIRCOM'!$G$6:$FJ$12,100,FALSE) -> 5% | AC13: =VLOOKUP($A13,'RECAP DIRCOM'!$G$6:$FJ$12,101,FALSE) -> 0% | AD13: =VLOOKUP($A13,'RECAP DIRCOM'!$G$6:$FJ$12,102,FALSE) -> 1
A14: 110 | B14: Meurthe et Moselle Meuse | C14: =VLOOKUP($A14,'RECAP DIRCOM'!$G$6:$FJ$12,3,FALSE) -> 235 | D14: =VLOOKUP($A14,'RECAP DIRCOM'!$G$6:$FJ$12,76,FALSE) -> 494.53 | E14: =VLOOKUP($A14,'RECAP DIRCOM'!$G$6:$FJ$12,77,FALSE) -> 45.09 | F14: =VLOOKUP($A14,'RECAP DIRCOM'!$G$6:$FJ$12,78,FALSE) -> 0% | G14: =VLOOKUP($A14,'RECAP DIRCOM'!$G$6:$FJ$12,79,FALSE) -> 1 | I14: =VLOOKUP($A14,'RECAP DIRCOM'!$G$6:$FJ$12,81,FALSE) -> 10.77 | J14: =VLOOKUP($A14,'RECAP DIRCOM'!$G$6:$FJ$12,82,FALSE) -> 0% | K14: =VLOOKUP($A14,'RECAP DIRCOM'!$G$6:$FJ$12,83,FALSE) -> 1 | L14: =VLOOKUP($A14,'RECAP DIRCOM'!$G$6:$FJ$12,84,FALSE) -> 2272.40 | M14: =VLOOKUP($A14,'RECAP DIRCOM'!$G$6:$FJ$12,85,FALSE) -> 94.26 | N14: =VLOOKUP($A14,'RECAP DIRCOM'!$G$6:$FJ$12,86,FALSE) -> 2% | O14: =VLOOKUP($A14,'RECAP DIRCOM'!$G$6:$FJ$12,87,FALSE) -> 2 | Q14: =VLOOKUP($A14,'RECAP DIRCOM'!$G$6:$FJ$12,89,FALSE) -> 51.90 | R14: =VLOOKUP($A14,'RECAP DIRCOM'!$G$6:$FJ$12,90,FALSE) -> 8% | S14: =VLOOKUP($A14,'RECAP DIRCOM'!$G$6:$FJ$12,91,FALSE) -> 2 | U14: =VLOOKUP($A14,'RECAP DIRCOM'!$G$6:$FJ$12,93,FALSE) -> 5.07 | V14: =VLOOKUP($A14,'RECAP DIRCOM'!$G$6:$FJ$12,94,FALSE) -> 0% | W14: =VLOOKUP($A14,'RECAP DIRCOM'!$G$6:$FJ$12,95,FALSE) -> 1 | X14: =VLOOKUP($A14,'RECAP DIRCOM'!$G$6:$FJ$12,96,FALSE) -> 110.54 | Y14: =VLOOKUP($A14,'RECAP DIRCOM'!$G$6:$FJ$12,97,FALSE) -> 4.87 | Z14: =VLOOKUP($A14,'RECAP DIRCOM'!$G$6:$FJ$12,98,FALSE) -> 37% | AA14: =VLOOKUP($A14,'RECAP DIRCOM'!$G$6:$FJ$12,99,FALSE) -> 5 | AB14: =VLOOKUP($A14,'RECAP DIRCOM'!$G$6:$FJ$12,100,FALSE) -> 7% | AC14: =VLOOKUP($A14,'RECAP DIRCOM'!$G$6:$FJ$12,101,FALSE) -> 2% | AD14: =VLOOKUP($A14,'RECAP DIRCOM'!$G$6:$FJ$12,102,FALSE) -> 2
A15: 160 | B15: Moselle | C15: =VLOOKUP($A15,'RECAP DIRCOM'!$G$6:$FJ$12,3,FALSE) -> 275 | D15: =VLOOKUP($A15,'RECAP DIRCOM'!$G$6:$FJ$12,76,FALSE) -> 473.41 | E15: =VLOOKUP($A15,'RECAP DIRCOM'!$G$6:$FJ$12,77,FALSE) -> 41.37 | F15: =VLOOKUP($A15,'RECAP DIRCOM'!$G$6:$FJ$12,78,FALSE) -> 8% | G15: =VLOOKUP($A15,'RECAP DIRCOM'!$G$6:$FJ$12,79,FALSE) -> 3 | I15: =VLOOKUP($A15,'RECAP DIRCOM'!$G$6:$FJ$12,81,FALSE) -> 9.46 | J15: =VLOOKUP($A15,'RECAP DIRCOM'!$G$6:$FJ$12,82,FALSE) -> 12% | K15: =VLOOKUP($A15,'RECAP DIRCOM'!$G$6:$FJ$12,83,FALSE) -> 3 | L15: =VLOOKUP($A15,'RECAP DIRCOM'!$G$6:$FJ$12,84,FALSE) -> 1583.27 | M15: =VLOOKUP($A15,'RECAP DIRCOM'!$G$6:$FJ$12,85,FALSE) -> 60.15 | N15: =VLOOKUP($A15,'RECAP DIRCOM'!$G$6:$FJ$12,86,FALSE) -> 37% | O15: =VLOOKUP($A15,'RECAP DIRCOM'!$G$6:$FJ$12,87,FALSE) -> 3 | Q15: =VLOOKUP($A15,'RECAP DIRCOM'!$G$6:$FJ$12,89,FALSE) -> 30.82 | R15: =VLOOKUP($A15,'RECAP DIRCOM'!$G$6:$FJ$12,90,FALSE) -> 45% | S15: =VLOOKUP($A15,'RECAP DIRCOM'!$G$6:$FJ$12,91,FALSE) -> 3 | U15: =VLOOKUP($A15,'RECAP DIRCOM'!$G$6:$FJ$12,93,FALSE) -> 3.38 | V15: =VLOOKUP($A15,'RECAP DIRCOM'!$G$6:$FJ$12,94,FALSE) -> 33% | W15: =VLOOKUP($A15,'RECAP DIRCOM'!$G$6:$FJ$12,95,FALSE) -> 3 | X15: =VLOOKUP($A15,'RECAP DIRCOM'!$G$6:$FJ$12,96,FALSE) -> 80.04 | Y15: =VLOOKUP($A15,'RECAP DIRCOM'!$G$6:$FJ$12,97,FALSE) -> 3.40 | Z15: =VLOOKUP($A15,'RECAP DIRCOM'!$G$6:$FJ$12,98,FALSE) -> 56% | AA15: =VLOOKUP($A15,'RECAP DIRCOM'!$G$6:$FJ$12,99,FALSE) -> 7 | AB15: =VLOOKUP($A15,'RECAP DIRCOM'!$G$6:$FJ$12,100,FALSE) -> 31% | AC15: =VLOOKUP($A15,'RECAP DIRCOM'!$G$6:$FJ$12,101,FALSE) -> 26% | AD15: =VLOOKUP($A15,'RECAP DIRCOM'!$G$6:$FJ$12,102,FALSE) -> 3
A16: 80 | B16: Vosges | C16: =VLOOKUP($A16,'RECAP DIRCOM'!$G$6:$FJ$12,3,FALSE) -> 133 | D16: =VLOOKUP($A16,'RECAP DIRCOM'!$G$6:$FJ$12,76,FALSE) -> 440.09 | E16: =VLOOKUP($A16,'RECAP DIRCOM'!$G$6:$FJ$12,77,FALSE) -> 38.26 | F16: =VLOOKUP($A16,'RECAP DIRCOM'!$G$6:$FJ$12,78,FALSE) -> 15% | G16: =VLOOKUP($A16,'RECAP DIRCOM'!$G$6:$FJ$12,79,FALSE) -> 5 | I16: =VLOOKUP($A16,'RECAP DIRCOM'!$G$6:$FJ$12,81,FALSE) -> 9.06 | J16: =VLOOKUP($A16,'RECAP DIRCOM'!$G$6:$FJ$12,82,FALSE) -> 16% | K16: =VLOOKUP($A16,'RECAP DIRCOM'!$G$6:$FJ$12,83,FALSE) -> 5 | L16: =VLOOKUP($A16,'RECAP DIRCOM'!$G$6:$FJ$12,84,FALSE) -> 1103.66 | M16: =VLOOKUP($A16,'RECAP DIRCOM'!$G$6:$FJ$12,85,FALSE) -> 50.61 | N16: =VLOOKUP($A16,'RECAP DIRCOM'!$G$6:$FJ$12,86,FALSE) -> 47% | O16: =VLOOKUP($A16,'RECAP DIRCOM'!$G$6:$FJ$12,87,FALSE) -> 4 | Q16: =VLOOKUP($A16,'RECAP DIRCOM'!$G$6:$FJ$12,89,FALSE) -> 24.42 | R16: =VLOOKUP($A16,'RECAP DIRCOM'!$G$6:$FJ$12,90,FALSE) -> 57% | S16: =VLOOKUP($A16,'RECAP DIRCOM'!$G$6:$FJ$12,91,FALSE) -> 6 | U16: =VLOOKUP($A16,'RECAP DIRCOM'!$G$6:$FJ$12,93,FALSE) -> 2.43 | V16: =VLOOKUP($A16,'RECAP DIRCOM'!$G$6:$FJ$12,94,FALSE) -> 52% | W16: =VLOOKUP($A16,'RECAP DIRCOM'!$G$6:$FJ$12,95,FALSE) -> 6 | X16: =VLOOKUP($A16,'RECAP DIRCOM'!$G$6:$FJ$12,96,FALSE) -> 124.50 | Y16: =VLOOKUP($A16,'RECAP DIRCOM'!$G$6:$FJ$12,97,FALSE) -> 4.62 | Z16: =VLOOKUP($A16,'RECAP DIRCOM'!$G$6:$FJ$12,98,FALSE) -> 41% | AA16: =VLOOKUP($A16,'RECAP DIRCOM'!$G$6:$FJ$12,99,FALSE) -> 6 | AB16: =VLOOKUP($A16,'RECAP DIRCOM'!$G$6:$FJ$12,100,FALSE) -> 38% | AC16: =VLOOKUP($A16,'RECAP DIRCOM'!$G$6:$FJ$12,101,FALSE) -> 33% | AD16: =VLOOKUP($A16,'RECAP DIRCOM'!$G$6:$FJ$12,102,FALSE) -> 6
B17: Total CEGEE Directions Régionales | C17: =SUM(C10:C16) -> 1418

Sheet DC_IARD
B1: Accueil | D1: BAROMETRE BDD - DIRECTIONS REGIONALES
D2: IARD ET PREVOYANCE
D3: =ACCUEIL!F7 -> 2020-12-31
D7: Ventes nettes IARD | H7: Ventes nettes Prévoyance | L7: Total IARD Prévoyance
D8: =DATEMAJ!C28 -> au 31/12 | F8: coef | G8: ='RECAP DIRCOM'!DN4 -> 9% | H8: =DATEMAJ!C29 -> au 31/12 | J8: coef | K8: ='RECAP DIRCOM'!DR4 -> 6% | M8: coef | N8: ='RECAP DIRCOM'!DU4 -> 15%
B9: Direction | C9: ="ETP perf "&DATEMAJ!$C$39 -> ETP perf au 31/10 | D9: Nb / ETP | E9: PNB / ETP | F9: % Ecart au 1er | G9: Rang | H9: Nb / ETP | I9: PNB / ETP | J9: % Ecart au 1er | K9: Rang | L9: Moyenne ecart au 1er | M9: % Ecart au 1er | N9: Rang CEGEE
A10: 50 | B10: Aube Haute Marne | C10: =VLOOKUP($A10,'RECAP DIRCOM'!$G$6:$FJ$12,3,FALSE) -> 129 | D10: =VLOOKUP($A10,'RECAP DIRCOM'!$G$6:$FJ$12,109,FALSE) -> 8.70 | E10: =VLOOKUP($A10,'RECAP DIRCOM'!$G$6:$FJ$12,110,FALSE) -> 0.89 | F10: =VLOOKUP($A10,'RECAP DIRCOM'!$G$6:$FJ$12,111,FALSE) -> 48% | G10: =VLOOKUP($A10,'RECAP DIRCOM'!$G$6:$FJ$12,112,FALSE) -> 5 | H10: =VLOOKUP($A10,'RECAP DIRCOM'!$G$6:$FJ$12,113,FALSE) -> 6.76 | I10: =VLOOKUP($A10,'RECAP DIRCOM'!$G$6:$FJ$12,114,FALSE) -> 1.52 | J10: =VLOOKUP($A10,'RECAP DIRCOM'!$G$6:$FJ$12,115,FALSE) -> 13% | K10: =VLOOKUP($A10,'RECAP DIRCOM'!$G$6:$FJ$12,116,FALSE) -> 2 | L10: =VLOOKUP($A10,'RECAP DIRCOM'!$G$6:$FJ$12,117,FALSE) -> 34% | M10: =VLOOKUP($A10,'RECAP DIRCOM'!$G$6:$FJ$12,118,FALSE) -> 28% | N10: =VLOOKUP($A10,'RECAP DIRCOM'!$G$6:$FJ$12,119,FALSE) -> 5
A11: 262 | B11: Bas-Rhin | C11: =VLOOKUP($A11,'RECAP DIRCOM'!$G$6:$FJ$12,3,FALSE) -> 262 | D11: =VLOOKUP($A11,'RECAP DIRCOM'!$G$6:$FJ$12,109,FALSE) -> 5.63 | E11: =VLOOKUP($A11,'RECAP DIRCOM'!$G$6:$FJ$12,110,FALSE) -> 0.52 | F11: =VLOOKUP($A11,'RECAP DIRCOM'!$G$6:$FJ$12,111,FALSE) -> 70% | G11: =VLOOKUP($A11,'RECAP DIRCOM'!$G$6:$FJ$12,112,FALSE) -> 6 | H11: =VLOOKUP($A11,'RECAP DIRCOM'!$G$6:$FJ$12,113,FALSE) -> 6.10 | I11: =VLOOKUP($A11,'RECAP DIRCOM'!$G$6:$FJ$12,114,FALSE) -> 1.34 | J11: =VLOOKUP($A11,'RECAP DIRCOM'!$G$6:$FJ$12,115,FALSE) -> 23% | K11: =VLOOKUP($A11,'RECAP DIRCOM'!$G$6:$FJ$12,116,FALSE) -> 6 | L11: =VLOOKUP($A11,'RECAP DIRCOM'!$G$6:$FJ$12,117,FALSE) -> 51% | M11: =VLOOKUP($A11,'RECAP DIRCOM'!$G$6:$FJ$12,118,FALSE) -> 45% | N11: =VLOOKUP($A11,'RECAP DIRCOM'!$G$6:$FJ$12,119,FALSE) -> 6
A12: 264 | B12: Haut-Rhin | C12: =VLOOKUP($A12,'RECAP DIRCOM'!$G$6:$FJ$12,3,FALSE) -> 160 | D12: =VLOOKUP($A12,'RECAP DIRCOM'!$G$6:$FJ$12,109,FALSE) -> 2.00 | E12: =VLOOKUP($A12,'RECAP DIRCOM'!$G$6:$FJ$12,110,FALSE) -> 0.15 | F12: =VLOOKUP($A12,'RECAP DIRCOM'!$G$6:$FJ$12,111,FALSE) -> 91% | G12: =VLOOKUP($A12,'RECAP DIRCOM'!$G$6:$FJ$12,112,FALSE) -> 7 | H12: =VLOOKUP($A12,'RECAP DIRCOM'!$G$6:$FJ$12,113,FALSE) -> 6.25 | I12: =VLOOKUP($A12,'RECAP DIRCOM'!$G$6:$FJ$12,114,FALSE) -> 1.39 | J12: =VLOOKUP($A12,'RECAP DIRCOM'!$G$6:$FJ$12,115,FALSE) -> 21% | K12: =VLOOKUP($A12,'RECAP DIRCOM'!$G$6:$FJ$12,116,FALSE) -> 4 | L12: =VLOOKUP($A12,'RECAP DIRCOM'!$G$6:$FJ$12,117,FALSE) -> 63% | M12: =VLOOKUP($A12,'RECAP DIRCOM'!$G$6:$FJ$12,118,FALSE) -> 57% | N12: =VLOOKUP($A12,'RECAP DIRCOM'!$G$6:$FJ$12,119,FALSE) -> 7
A13: 30 | B13: Marne-Ardennes | C13: =VLOOKUP($A13,'RECAP DIRCOM'!$G$6:$FJ$12,3,FALSE) -> 224 | D13: =VLOOKUP($A13,'RECAP DIRCOM'!$G$6:$FJ$12,109,FALSE) -> 14.50 | E13: =VLOOKUP($A13,'RECAP DIRCOM'!$G$6:$FJ$12,110,FALSE) -> 1.52 | F13: =VLOOKUP($A13,'RECAP DIRCOM'!$G$6:$FJ$12,111,FALSE) -> 11% | G13: =VLOOKUP($A13,'RECAP DIRCOM'!$G$6:$FJ$12,112,FALSE) -> 2 | H13: =VLOOKUP($A13,'RECAP DIRCOM'!$G$6:$FJ$12,113,FALSE) -> 8.49 | I13: =VLOOKUP($A13,'RECAP DIRCOM'!$G$6:$FJ$12,114,FALSE) -> 1.75 | J13: =VLOOKUP($A13,'RECAP DIRCOM'!$G$6:$FJ$12,115,FALSE) -> 0% | K13: =VLOOKUP($A13,'RECAP DIRCOM'!$G$6:$FJ$12,116,FALSE) -> 1 | L13: =VLOOKUP($A13,'RECAP DIRCOM'!$G$6:$FJ$12,117,FALSE) -> 7% | M13: =VLOOKUP($A13,'RECAP DIRCOM'!$G$6:$FJ$12,118,FALSE) -> 0% | N13: =VLOOKUP($A13,'RECAP DIRCOM'!$G$6:$FJ$12,119,FALSE) -> 2
A14: 110 | B14: Meurthe et Moselle Meuse | C14: =VLOOKUP($A14,'RECAP DIRCOM'!$G$6:$FJ$12,3,FALSE) -> 235 | D14: =VLOOKUP($A14,'RECAP DIRCOM'!$G$6:$FJ$12,109,FALSE) -> 17.29 | E14: =VLOOKUP($A14,'RECAP DIRCOM'!$G$6:$FJ$12,110,FALSE) -> 1.71 | F14: =VLOOKUP($A14,'RECAP DIRCOM'!$G$6:$FJ$12,111,FALSE) -> 0% | G14: =VLOOKUP($A14,'RECAP DIRCOM'!$G$6:$FJ$12,112,FALSE) -> 1 | H14: =VLOOKUP($A14,'RECAP DIRCOM'!$G$6:$FJ$12,113,FALSE) -> 9.96 | I14: =VLOOKUP($A14,'RECAP DIRCOM'!$G$6:$FJ$12,114,FALSE) -> 1.48 | J14: =VLOOKUP($A14,'RECAP DIRCOM'!$G$6:$FJ$12,115,FALSE) -> 16% | K14: =VLOOKUP($A14,'RECAP DIRCOM'!$G$6:$FJ$12,116,FALSE) -> 3 | L14: =VLOOKUP($A14,'RECAP DIRCOM'!$G$6:$FJ$12,117,FALSE) -> 6% | M14: =VLOOKUP($A14,'RECAP DIRCOM'!$G$6:$FJ$12,118,FALSE) -> 0% | N14: =VLOOKUP($A14,'RECAP DIRCOM'!$G$6:$FJ$12,119,FALSE) -> 1
A15: 160 | B15: Moselle | C15: =VLOOKUP($A15,'RECAP DIRCOM'!$G$6:$FJ$12,3,FALSE) -> 275 | D15: =VLOOKUP($A15,'RECAP DIRCOM'!$G$6:$FJ$12,109,FALSE) -> 11.86 | E15: =VLOOKUP($A15,'RECAP DIRCOM'!$G$6:$FJ$12,110,FALSE) -> 1.22 | F15: =VLOOKUP($A15,'RECAP DIRCOM'!$G$6:$FJ$12,111,FALSE) -> 29% | G15: =VLOOKUP($A15,'RECAP DIRCOM'!$G$6:$FJ$12,112,FALSE) -> 3 | H15: =VLOOKUP($A15,'RECAP DIRCOM'!$G$6:$FJ$12,113,FALSE) -> 5.83 | I15: =VLOOKUP($A15,'RECAP DIRCOM'!$G$6:$FJ$12,114,FALSE) -> 1.13 | J15: =VLOOKUP($A15,'RECAP DIRCOM'!$G$6:$FJ$12,115,FALSE) -> 35% | K15: =VLOOKUP($A15,'RECAP DIRCOM'!$G$6:$FJ$12,116,FALSE) -> 7 | L15: =VLOOKUP($A15,'RECAP DIRCOM'!$G$6:$FJ$12,117,FALSE) -> 31% | M15: =VLOOKUP($A15,'RECAP DIRCOM'!$G$6:$FJ$12,118,FALSE) -> 25% | N15: =VLOOKUP($A15,'RECAP DIRCOM'!$G$6:$FJ$12,119,FALSE) -> 3
A16: 80 | B16: Vosges | C16: =VLOOKUP($A16,'RECAP DIRCOM'!$G$6:$FJ$12,3,FALSE) -> 133 | D16: =VLOOKUP($A16,'RECAP DIRCOM'!$G$6:$FJ$12,109,FALSE) -> 9.83 | E16: =VLOOKUP($A16,'RECAP DIRCOM'!$G$6:$FJ$12,110,FALSE) -> 1.06 | F16: =VLOOKUP($A16,'RECAP DIRCOM'!$G$6:$FJ$12,111,FALSE) -> 38% | G16: =VLOOKUP($A16,'RECAP DIRCOM'!$G$6:$FJ$12,112,FALSE) -> 4 | H16: =VLOOKUP($A16,'RECAP DIRCOM'!$G$6:$FJ$12,113,FALSE) -> 6.53 | I16: =VLOOKUP($A16,'RECAP DIRCOM'!$G$6:$FJ$12,114,FALSE) -> 1.36 | J16: =VLOOKUP($A16,'RECAP DIRCOM'!$G$6:$FJ$12,115,FALSE) -> 22% | K16: =VLOOKUP($A16,'RECAP DIRCOM'!$G$6:$FJ$12,116,FALSE) -> 5 | L16: =VLOOKUP($A16,'RECAP DIRCOM'!$G$6:$FJ$12,117,FALSE) -> 32% | M16: =VLOOKUP($A16,'RECAP DIRCOM'!$G$6:$FJ$12,118,FALSE) -> 25% | N16: =VLOOKUP($A16,'RECAP DIRCOM'!$G$6:$FJ$12,119,FALSE) -> 4
B17: Total CEGEE Directions Régionales | C17: =SUM(C10:C16) -> 1418

Sheet DC_CONQUETE
B1: Accueil | D1: BAROMETRE BDD - DIRECTIONS REGIONALES
D2: CLIENTS
D3: =ACCUEIL!F7 -> 2020-12-31
D7: Evolution nette clients Bancarisés Principaux | H7: Evolution nette relations PREMIUM | L7: Evolution nette clients Jeunes équipés | P7: Evolution nette clients Pro actif équipés | T7: Total Clients
D8: =DATEMAJ!C7 -> au 30/11 | F8: coef | G8: ='RECAP DIRCOM'!N4 -> 4% | H8: =DATEMAJ!C8 -> au 30/11 | J8: coef | K8: ='RECAP DIRCOM'!R4 -> 5% | L8: =DATEMAJ!C9 -> au 30/11 | N8: coef | O8: ='RECAP DIRCOM'!V4 -> 3% | P8: =DATEMAJ!C10 -> au 30/11 | R8: coef | S8: ='RECAP DIRCOM'!Z4 -> 3% | U8: coef | V8: ='RECAP DIRCOM'!AC4 -> 15%
B9: Direction | C9: ="ETP perf "&DATEMAJ!$C$39 -> ETP perf au 31/10 | D9: Nb / ETP | E9: PNB / ETP | F9: % Ecart au 1er | G9: Rang | H9: Nb / ETP | I9: PNB / ETP | J9: % Ecart au 1er | K9: Rang | L9: Nb / ETP | M9: PNB / ETP | N9: % Ecart au 1er | O9: Rang | P9: Nb / ETP | Q9: PNB / ETP | R9: % Ecart au 1er | S9: Rang | T9: Moyenne ecart au 1er | U9: % Ecart au 1er | V9: Rang CEGEE
A10: 50 | B10: Aube Haute Marne | C10: =VLOOKUP($A10,'RECAP DIRCOM'!$G$6:$FJ$12,3,FALSE) -> 129 | D10: =VLOOKUP($A10,'RECAP DIRCOM'!$G$6:$FJ$12,5,FALSE) -> -4.75 | E10: =VLOOKUP($A10,'RECAP DIRCOM'!$G$6:$FJ$12,6,FALSE) -> -2.37 | F10: =VLOOKUP($A10,'RECAP DIRCOM'!$G$6:$FJ$12,7,FALSE) -> 79% | G10: =VLOOKUP($A10,'RECAP DIRCOM'!$G$6:$FJ$12,8,FALSE) -> 5 | H10: =VLOOKUP($A10,'RECAP DIRCOM'!$G$6:$FJ$12,9,FALSE) -> 2.15 | I10: =VLOOKUP($A10,'RECAP DIRCOM'!$G$6:$FJ$12,10,FALSE) -> 1.51 | J10: =VLOOKUP($A10,'RECAP DIRCOM'!$G$6:$FJ$12,11,FALSE) -> 31% | K10: =VLOOKUP($A10,'RECAP DIRCOM'!$G$6:$FJ$12,12,FALSE) -> 6 | L10: =VLOOKUP($A10,'RECAP DIRCOM'!$G$6:$FJ$12,13,FALSE) -> -3.65 | M10: =VLOOKUP($A10,'RECAP DIRCOM'!$G$6:$FJ$12,14,FALSE) -> -0.55 | N10: =VLOOKUP($A10,'RECAP DIRCOM'!$G$6:$FJ$12,15,FALSE) -> 86% | O10: =VLOOKUP($A10,'RECAP DIRCOM'!$G$6:$FJ$12,16,FALSE) -> 5 | P10: =VLOOKUP($A10,'RECAP DIRCOM'!$G$6:$FJ$12,17,FALSE) -> 0.66 | Q10: =VLOOKUP($A10,'RECAP DIRCOM'!$G$6:$FJ$12,18,FALSE) -> 1.66 | R10: =VLOOKUP($A10,'RECAP DIRCOM'!$G$6:$FJ$12,19,FALSE) -> 11% | S10: =VLOOKUP($A10,'RECAP DIRCOM'!$G$6:$FJ$12,20,FALSE) -> 3 | T10: =VLOOKUP($A10,'RECAP DIRCOM'!$G$6:$FJ$12,21,FALSE) -> 51% | U10: =VLOOKUP($A10,'RECAP DIRCOM'!$G$6:$FJ$12,22,FALSE) -> 43% | V10: =VLOOKUP($A10,'RECAP DIRCOM'!$G$6:$FJ$12,23,FALSE) -> 5
A11: 262 | B11: Bas-Rhin | C11: =VLOOKUP($A11,'RECAP DIRCOM'!$G$6:$FJ$12,3,FALSE) -> 262 | D11: =VLOOKUP($A11,'RECAP DIRCOM'!$G$6:$FJ$12,5,FALSE) -> -5.58 | E11: =VLOOKUP($A11,'RECAP DIRCOM'!$G$6:$FJ$12,6,FALSE) -> -2.79 | F11: =VLOOKUP($A11,'RECAP DIRCOM'!$G$6:$FJ$12,7,FALSE) -> 90% | G11: =VLOOKUP($A11,'RECAP DIRCOM'!$G$6:$FJ$12,8,FALSE) -> 6 | H11: =VLOOKUP($A11,'RECAP DIRCOM'!$G$6:$FJ$12,9,FALSE) -> 2.31 | I11: =VLOOKUP($A11,'RECAP DIRCOM'!$G$6:$FJ$12,10,FALSE) -> 1.62 | J11: =VLOOKUP($A11,'RECAP DIRCOM'!$G$6:$FJ$12,11,FALSE) -> 26% | K11: =VLOOKUP($A11,'RECAP DIRCOM'!$G$6:$FJ$12,12,FALSE) -> 5 | L11: =VLOOKUP($A11,'RECAP DIRCOM'!$G$6:$FJ$12,13,FALSE) -> -4.39 | M11: =VLOOKUP($A11,'RECAP DIRCOM'!$G$6:$FJ$12,14,FALSE) -> -0.66 | N11: =VLOOKUP($A11,'RECAP DIRCOM'!$G$6:$FJ$12,15,FALSE) -> 106% | O11: =VLOOKUP($A11,'RECAP DIRCOM'!$G$6:$FJ$12,16,FALSE) -> 6 | P11: =VLOOKUP($A11,'RECAP DIRCOM'!$G$6:$FJ$12,17,FALSE) -> 0.50 | Q11: =VLOOKUP($A11,'RECAP DIRCOM'!$G$6:$FJ$12,18,FALSE) -> 1.24 | R11: =VLOOKUP($A11,'RECAP DIRCOM'!$G$6:$FJ$12,19,FALSE) -> 34% | S11: =VLOOKUP($A11,'RECAP DIRCOM'!$G$6:$FJ$12,20,FALSE) -> 4 | T11: =VLOOKUP($A11,'RECAP DIRCOM'!$G$6:$FJ$12,21,FALSE) -> 61% | U11: =VLOOKUP($A11,'RECAP DIRCOM'!$G$6:$FJ$12,22,FALSE) -> 53% | V11: =VLOOKUP($A11,'RECAP DIRCOM'!$G$6:$FJ$12,23,FALSE) -> 6
A12: 264 | B12: Haut-Rhin | C12: =VLOOKUP($A12,'RECAP DIRCOM'!$G$6:$FJ$12,3,FALSE) -> 160 | D12: =VLOOKUP($A12,'RECAP DIRCOM'!$G$6:$FJ$12,5,FALSE) -> -10.34 | E12: =VLOOKUP($A12,'RECAP DIRCOM'!$G$6:$FJ$12,6,FALSE) -> -5.17 | F12: =VLOOKUP($A12,'RECAP DIRCOM'!$G$6:$FJ$12,7,FALSE) -> 150% | G12: =VLOOKUP($A12,'RECAP DIRCOM'!$G$6:$FJ$12,8,FALSE) -> 7 | H12: =VLOOKUP($A12,'RECAP DIRCOM'!$G$6:$FJ$12,9,FALSE) -> 1.76 | I12: =VLOOKUP($A12,'RECAP DIRCOM'!$G$6:$FJ$12,10,FALSE) -> 1.23 | J12: =VLOOKUP($A12,'RECAP DIRCOM'!$G$6:$FJ$12,11,FALSE) -> 44% | K12: =VLOOKUP($A12,'RECAP DIRCOM'!$G$6:$FJ$12,12,FALSE) -> 7 | L12: =VLOOKUP($A12,'RECAP DIRCOM'!$G$6:$FJ$12,13,FALSE) -> -5.96 | M12: =VLOOKUP($A12,'RECAP DIRCOM'!$G$6:$FJ$12,14,FALSE) -> -0.89 | N12: =VLOOKUP($A12,'RECAP DIRCOM'!$G$6:$FJ$12,15,FALSE) -> 150% | O12: =VLOOKUP($A12,'RECAP DIRCOM'!$G$6:$FJ$12,16,FALSE) -> 7 | P12: =VLOOKUP($A12,'RECAP DIRCOM'!$G$6:$FJ$12,17,FALSE) -> 0.43 | Q12: =VLOOKUP($A12,'RECAP DIRCOM'!$G$6:$FJ$12,18,FALSE) -> 1.08 | R12: =VLOOKUP($A12,'RECAP DIRCOM'!$G$6:$FJ$12,19,FALSE) -> 42% | S12: =VLOOKUP($A12,'RECAP DIRCOM'!$G$6:$FJ$12,20,FALSE) -> 6 | T12: =VLOOKUP($A12,'RECAP DIRCOM'!$G$6:$FJ$12,21,FALSE) -> 93% | U12: =VLOOKUP($A12,'RECAP DIRCOM'!$G$6:$FJ$12,22,FALSE) -> 85% | V12: =VLOOKUP($A12,'RECAP DIRCOM'!$G$6:$FJ$12,23,FALSE) -> 7
A13: 30 | B13: Marne-Ardennes | C13: =VLOOKUP($A13,'RECAP DIRCOM'!$G$6:$FJ$12,3,FALSE) -> 224 | D13: =VLOOKUP($A13,'RECAP DIRCOM'!$G$6:$FJ$12,5,FALSE) -> 1.50 | E13: =VLOOKUP($A13,'RECAP DIRCOM'!$G$6:$FJ$12,6,FALSE) -> 0.75 | F13: =VLOOKUP($A13,'RECAP DIRCOM'!$G$6:$FJ$12,7,FALSE) -> 0% | G13: =VLOOKUP($A13,'RECAP DIRCOM'!$G$6:$FJ$12,8,FALSE) -> 1 | H13: =VLOOKUP($A13,'RECAP DIRCOM'!$G$6:$FJ$12,9,FALSE) -> 2.42 | I13: =VLOOKUP($A13,'RECAP DIRCOM'!$G$6:$FJ$12,10,FALSE) -> 1.70 | J13: =VLOOKUP($A13,'RECAP DIRCOM'!$G$6:$FJ$12,11,FALSE) -> 22% | K13: =VLOOKUP($A13,'RECAP DIRCOM'!$G$6:$FJ$12,12,FALSE) -> 4 | L13: =VLOOKUP($A13,'RECAP DIRCOM'!$G$6:$FJ$12,13,FALSE) -> -0.53 | M13: =VLOOKUP($A13,'RECAP DIRCOM'!$G$6:$FJ$12,14,FALSE) -> -0.08 | N13: =VLOOKUP($A13,'RECAP DIRCOM'!$G$6:$FJ$12,15,FALSE) -> 0% | O13: =VLOOKUP($A13,'RECAP DIRCOM'!$G$6:$FJ$12,16,FALSE) -> 1 | P13: =VLOOKUP($A13,'RECAP DIRCOM'!$G$6:$FJ$12,17,FALSE) -> 0.74 | Q13: =VLOOKUP($A13,'RECAP DIRCOM'!$G$6:$FJ$12,18,FALSE) -> 1.84 | R13: =VLOOKUP($A13,'RECAP DIRCOM'!$G$6:$FJ$12,19,FALSE) -> 1% | S13: =VLOOKUP($A13,'RECAP DIRCOM'!$G$6:$FJ$12,20,FALSE) -> 2 | T13: =VLOOKUP($A13,'RECAP DIRCOM'!$G$6:$FJ$12,21,FALSE) -> 8% | U13: =VLOOKUP($A13,'RECAP DIRCOM'!$G$6:$FJ$12,22,FALSE) -> 0% | V13: =VLOOKUP($A13,'RECAP DIRCOM'!$G$6:$FJ$12,23,FALSE) -> 1
A14: 110 | B14: Meurthe et Moselle Meuse | C14: =VLOOKUP($A14,'RECAP DIRCOM'!$G$6:$FJ$12,3,FALSE) -> 235 | D14: =VLOOKUP($A14,'RECAP DIRCOM'!$G$6:$FJ$12,5,FALSE) -> 0.30 | E14: =VLOOKUP($A14,'RECAP DIRCOM'!$G$6:$FJ$12,6,FALSE) -> 0.15 | F14: =VLOOKUP($A14,'RECAP DIRCOM'!$G$6:$FJ$12,7,FALSE) -> 15% | G14: =VLOOKUP($A14,'RECAP DIRCOM'!$G$6:$FJ$12,8,FALSE) -> 2 | H14: =VLOOKUP($A14,'RECAP DIRCOM'!$G$6:$FJ$12,9,FALSE) -> 3.12 | I14: =VLOOKUP($A14,'RECAP DIRCOM'!$G$6:$FJ$12,10,FALSE) -> 2.18 | J14: =VLOOKUP($A14,'RECAP DIRCOM'!$G$6:$FJ$12,11,FALSE) -> 0% | K14: =VLOOKUP($A14,'RECAP DIRCOM'!$G$6:$FJ$12,12,FALSE) -> 1 | L14: =VLOOKUP($A14,'RECAP DIRCOM'!$G$6:$FJ$12,13,FALSE) -> -1.87 | M14: =VLOOKUP($A14,'RECAP DIRCOM'!$G$6:$FJ$12,14,FALSE) -> -0.28 | N14: =VLOOKUP($A14,'RECAP DIRCOM'!$G$6:$FJ$12,15,FALSE) -> 37% | O14: =VLOOKUP($A14,'RECAP DIRCOM'!$G$6:$FJ$12,16,FALSE) -> 2 | P14: =VLOOKUP($A14,'RECAP DIRCOM'!$G$6:$FJ$12,17,FALSE) -> 0.45 | Q14: =VLOOKUP($A14,'RECAP DIRCOM'!$G$6:$FJ$12,18,FALSE) -> 1.13 | R14: =VLOOKUP($A14,'RECAP DIRCOM'!$G$6:$FJ$12,19,FALSE) -> 39% | S14: =VLOOKUP($A14,'RECAP DIRCOM'!$G$6:$FJ$12,20,FALSE) -> 5 | T14: =VLOOKUP($A14,'RECAP DIRCOM'!$G$6:$FJ$12,21,FALSE) -> 19% | U14: =VLOOKUP($A14,'RECAP DIRCOM'!$G$6:$FJ$12,22,FALSE) -> 12% | V14: =VLOOKUP($A14,'RECAP DIRCOM'!$G$6:$FJ$12,23,FALSE) -> 2
A15: 160 | B15: Moselle | C15: =VLOOKUP($A15,'RECAP DIRCOM'!$G$6:$FJ$12,3,FALSE) -> 275 | D15: =VLOOKUP($A15,'RECAP DIRCOM'!$G$6:$FJ$12,5,FALSE) -> -3.75 | E15: =VLOOKUP($A15,'RECAP DIRCOM'!$G$6:$FJ$12,6,FALSE) -> -1.87 | F15: =VLOOKUP($A15,'RECAP DIRCOM'!$G$6:$FJ$12,7,FALSE) -> 66% | G15: =VLOOKUP($A15,'RECAP DIRCOM'!$G$6:$FJ$12,8,FALSE) -> 3 | H15: =VLOOKUP($A15,'RECAP DIRCOM'!$G$6:$FJ$12,9,FALSE) -> 2.68 | I15: =VLOOKUP($A15,'RECAP DIRCOM'!$G$6:$FJ$12,10,FALSE) -> 1.87 | J15: =VLOOKUP($A15,'RECAP DIRCOM'!$G$6:$FJ$12,11,FALSE) -> 14% | K15: =VLOOKUP($A15,'RECAP DIRCOM'!$G$6:$FJ$12,12,FALSE) -> 2 | L15: =VLOOKUP($A15,'RECAP DIRCOM'!$G$6:$FJ$12,13,FALSE) -> -2.88 | M15: =VLOOKUP($A15,'RECAP DIRCOM'!$G$6:$FJ$12,14,FALSE) -> -0.43 | N15: =VLOOKUP($A15,'RECAP DIRCOM'!$G$6:$FJ$12,15,FALSE) -> 65% | O15: =VLOOKUP($A15,'RECAP DIRCOM'!$G$6:$FJ$12,16,FALSE) -> 4 | P15: =VLOOKUP($A15,'RECAP DIRCOM'!$G$6:$FJ$12,17,FALSE) -> 0.34 | Q15: =VLOOKUP($A15,'RECAP DIRCOM'!$G$6:$FJ$12,18,FALSE) -> 0.84 | R15: =VLOOKUP($A15,'RECAP DIRCOM'!$G$6:$FJ$12,19,FALSE) -> 55% | S15: =VLOOKUP($A15,'RECAP DIRCOM'!$G$6:$FJ$12,20,FALSE) -> 7 | T15: =VLOOKUP($A15,'RECAP DIRCOM'!$G$6:$FJ$12,21,FALSE) -> 46% | U15: =VLOOKUP($A15,'RECAP DIRCOM'!$G$6:$FJ$12,22,FALSE) -> 39% | V15: =VLOOKUP($A15,'RECAP DIRCOM'!$G$6:$FJ$12,23,FALSE) -> 4
A16: 80 | B16: Vosges | C16: =VLOOKUP($A16,'RECAP DIRCOM'!$G$6:$FJ$12,3,FALSE) -> 133 | D16: =VLOOKUP($A16,'RECAP DIRCOM'!$G$6:$FJ$12,5,FALSE) -> -4.63 | E16: =VLOOKUP($A16,'RECAP DIRCOM'!$G$6:$FJ$12,6,FALSE) -> -2.31 | F16: =VLOOKUP($A16,'RECAP DIRCOM'!$G$6:$FJ$12,7,FALSE) -> 78% | G16: =VLOOKUP($A16,'RECAP DIRCOM'!$G$6:$FJ$12,8,FALSE) -> 4 | H16: =VLOOKUP($A16,'RECAP DIRCOM'!$G$6:$FJ$12,9,FALSE) -> 2.62 | I16: =VLOOKUP($A16,'RECAP DIRCOM'!$G$6:$FJ$12,10,FALSE) -> 1.83 | J16: =VLOOKUP($A16,'RECAP DIRCOM'!$G$6:$FJ$12,11,FALSE) -> 16% | K16: =VLOOKUP($A16,'RECAP DIRCOM'!$G$6:$FJ$12,12,FALSE) -> 3 | L16: =VLOOKUP($A16,'RECAP DIRCOM'!$G$6:$FJ$12,13,FALSE) -> -2.22 | M16: =VLOOKUP($A16,'RECAP DIRCOM'!$G$6:$FJ$12,14,FALSE) -> -0.33 | N16: =VLOOKUP($A16,'RECAP DIRCOM'!$G$6:$FJ$12,15,FALSE) -> 47% | O16: =VLOOKUP($A16,'RECAP DIRCOM'!$G$6:$FJ$12,16,FALSE) -> 3 | P16: =VLOOKUP($A16,'RECAP DIRCOM'!$G$6:$FJ$12,17,FALSE) -> 0.75 | Q16: =VLOOKUP($A16,'RECAP DIRCOM'!$G$6:$FJ$12,18,FALSE) -> 1.86 | R16: =VLOOKUP($A16,'RECAP DIRCOM'!$G$6:$FJ$12,19,FALSE) -> 0% | S16: =VLOOKUP($A16,'RECAP DIRCOM'!$G$6:$FJ$12,20,FALSE) -> 1 | T16: =VLOOKUP($A16,'RECAP DIRCOM'!$G$6:$FJ$12,21,FALSE) -> 35% | U16: =VLOOKUP($A16,'RECAP DIRCOM'!$G$6:$FJ$12,22,FALSE) -> 28% | V16: =VLOOKUP($A16,'RECAP DIRCOM'!$G$6:$FJ$12,23,FALSE) -> 3
B17: Total CEGEE Directions Régionales | C17: =SUM(C10:C16) -> 1418

Sheet DC_ACCELER
B1: Accueil | D1: BAROMETRE BDD - DIRECTIONS REGIONALES
D2: ACCELERATEURS DE PNB
D3: =ACCUEIL!F7 -> 2020-12-31
D7: Ventes brutes SED finalisées | H7: Clients Equipés E documents | L7: Economie Opt'in | P7: Remises Commerciales | T7: Total Accélérateurs PNB
D8: =DATEMAJ!C31 -> au 31/12 | F8: coef | G8: ='RECAP DIRCOM'!EE4 -> 6% | H8: =DATEMAJ!C32 -> au 30/11 | J8: coef | K8: ='RECAP DIRCOM'!EI4 -> 3% | L8: =DATEMAJ!C33 -> au 30/11 | N8: coef | O8: ='RECAP DIRCOM'!EM4 -> 3% | P8: =DATEMAJ!C34 -> au 30/11 | R8: coef | S8: ='RECAP DIRCOM'!EQ4 -> 3% | U8: coef | V8: ='RECAP DIRCOM'!ET4 -> 15%
B9: Direction | C9: ="ETP perf "&DATEMAJ!$C$39 -> ETP perf au 31/10 | D9: Nb / ETP | E9: PNB / ETP | F9: % Ecart au 1er | G9: Rang | H9: Nb / ETP | I9: PNB / ETP | J9: % Ecart au 1er | K9: Rang | L9: Nb / ETP | M9: PNB / ETP | N9: % Ecart au 1er | O9: Rang | P9: Rem / ETP | Q9: PNB / ETP | R9: % Ecart au 1er | S9: Rang | T9: Moyenne ecart au 1er | U9: % Ecart au 1er | V9: Rang CEGEE
A10: 50 | B10: Aube Haute Marne | C10: =VLOOKUP($A10,'RECAP DIRCOM'!$G$6:$FJ$12,3,FALSE) -> 129 | D10: =VLOOKUP($A10,'RECAP DIRCOM'!$G$6:$FJ$12,126,FALSE) -> 49.28 | E10: =VLOOKUP($A10,'RECAP DIRCOM'!$G$6:$FJ$12,127,FALSE) -> 0.49 | F10: =VLOOKUP($A10,'RECAP DIRCOM'!$G$6:$FJ$12,128,FALSE) -> 27% | G10: =VLOOKUP($A10,'RECAP DIRCOM'!$G$6:$FJ$12,129,FALSE) -> 6 | H10: =VLOOKUP($A10,'RECAP DIRCOM'!$G$6:$FJ$12,130,FALSE) -> 30.53 | I10: =VLOOKUP($A10,'RECAP DIRCOM'!$G$6:$FJ$12,131,FALSE) -> 1.53 | J10: =VLOOKUP($A10,'RECAP DIRCOM'!$G$6:$FJ$12,132,FALSE) -> 27% | K10: =VLOOKUP($A10,'RECAP DIRCOM'!$G$6:$FJ$12,133,FALSE) -> 6 | L10: =VLOOKUP($A10,'RECAP DIRCOM'!$G$6:$FJ$12,134,FALSE) -> 30.40 | M10: =VLOOKUP($A10,'RECAP DIRCOM'!$G$6:$FJ$12,135,FALSE) -> 0.46 | N10: =VLOOKUP($A10,'RECAP DIRCOM'!$G$6:$FJ$12,136,FALSE) -> 37% | O10: =VLOOKUP($A10,'RECAP DIRCOM'!$G$6:$FJ$12,137,FALSE) -> 7 | P10: =VLOOKUP($A10,'RECAP DIRCOM'!$G$6:$FJ$12,138,FALSE) -> -346.10 | Q10: =VLOOKUP($A10,'RECAP DIRCOM'!$G$6:$FJ$12,139,FALSE) -> -2.67 | R10: =VLOOKUP($A10,'RECAP DIRCOM'!$G$6:$FJ$12,140,FALSE) -> 0% | S10: =VLOOKUP($A10,'RECAP DIRCOM'!$G$6:$FJ$12,141,FALSE) -> 1 | T10: =VLOOKUP($A10,'RECAP DIRCOM'!$G$6:$FJ$12,142,FALSE) -> 23% | U10: =VLOOKUP($A10,'RECAP DIRCOM'!$G$6:$FJ$12,143,FALSE) -> 17% | V10: =VLOOKUP($A10,'RECAP DIRCOM'!$G$6:$FJ$12,144,FALSE) -> 6
A11: 262 | B11: Bas-Rhin | C11: =VLOOKUP($A11,'RECAP DIRCOM'!$G$6:$FJ$12,3,FALSE) -> 262 | D11: =VLOOKUP($A11,'RECAP DIRCOM'!$G$6:$FJ$12,126,FALSE) -> 53.84 | E11: =VLOOKUP($A11,'RECAP DIRCOM'!$G$6:$FJ$12,127,FALSE) -> 0.54 | F11: =VLOOKUP($A11,'RECAP DIRCOM'!$G$6:$FJ$12,128,FALSE) -> 20% | G11: =VLOOKUP($A11,'RECAP DIRCOM'!$G$6:$FJ$12,129,FALSE) -> 4 | H11: =VLOOKUP($A11,'RECAP DIRCOM'!$G$6:$FJ$12,130,FALSE) -> 32.67 | I11: =VLOOKUP($A11,'RECAP DIRCOM'!$G$6:$FJ$12,131,FALSE) -> 1.63 | J11: =VLOOKUP($A11,'RECAP DIRCOM'!$G$6:$FJ$12,132,FALSE) -> 22% | K11: =VLOOKUP($A11,'RECAP DIRCOM'!$G$6:$FJ$12,133,FALSE) -> 5 | L11: =VLOOKUP($A11,'RECAP DIRCOM'!$G$6:$FJ$12,134,FALSE) -> 36.24 | M11: =VLOOKUP($A11,'RECAP DIRCOM'!$G$6:$FJ$12,135,FALSE) -> 0.54 | N11: =VLOOKUP($A11,'RECAP DIRCOM'!$G$6:$FJ$12,136,FALSE) -> 25% | O11: =VLOOKUP($A11,'RECAP DIRCOM'!$G$6:$FJ$12,137,FALSE) -> 3 | P11: =VLOOKUP($A11,'RECAP DIRCOM'!$G$6:$FJ$12,138,FALSE) -> -872.44 | Q11: =VLOOKUP($A11,'RECAP DIRCOM'!$G$6:$FJ$12,139,FALSE) -> -3.32 | R11: =VLOOKUP($A11,'RECAP DIRCOM'!$G$6:$FJ$12,140,FALSE) -> 24% | S11: =VLOOKUP($A11,'RECAP DIRCOM'!$G$6:$FJ$12,141,FALSE) -> 6 | T11: =VLOOKUP($A11,'RECAP DIRCOM'!$G$6:$FJ$12,142,FALSE) -> 22% | U11: =VLOOKUP($A11,'RECAP DIRCOM'!$G$6:$FJ$12,143,FALSE) -> 16% | V11: =VLOOKUP($A11,'RECAP DIRCOM'!$G$6:$FJ$12,144,FALSE) -> 5
A12: 264 | B12: Haut-Rhin | C12: =VLOOKUP($A12,'RECAP DIRCOM'!$G$6:$FJ$12,3,FALSE) -> 160 | D12: =VLOOKUP($A12,'RECAP DIRCOM'!$G$6:$FJ$12,126,FALSE) -> 45.34 | E12: =VLOOKUP($A12,'RECAP DIRCOM'!$G$6:$FJ$12,127,FALSE) -> 0.45 | F12: =VLOOKUP($A12,'RECAP DIRCOM'!$G$6:$FJ$12,128,FALSE) -> 32% | G12: =VLOOKUP($A12,'RECAP DIRCOM'!$G$6:$FJ$12,129,FALSE) -> 7 | H12: =VLOOKUP($A12,'RECAP DIRCOM'!$G$6:$FJ$12,130,FALSE) -> 28.76 | I12: =VLOOKUP($A12,'RECAP DIRCOM'!$G$6:$FJ$12,131,FALSE) -> 1.44 | J12: =VLOOKUP($A12,'RECAP DIRCOM'!$G$6:$FJ$12,132,FALSE) -> 31% | K12: =VLOOKUP($A12,'RECAP DIRCOM'!$G$6:$FJ$12,133,FALSE) -> 7 | L12: =VLOOKUP($A12,'RECAP DIRCOM'!$G$6:$FJ$12,134,FALSE) -> 31.47 | M12: =VLOOKUP($A12,'RECAP DIRCOM'!$G$6:$FJ$12,135,FALSE) -> 0.47 | N12: =VLOOKUP($A12,'RECAP DIRCOM'!$G$6:$FJ$12,136,FALSE) -> 35% | O12: =VLOOKUP($A12,'RECAP DIRCOM'!$G$6:$FJ$12,137,FALSE) -> 6 | P12: =VLOOKUP($A12,'RECAP DIRCOM'!$G$6:$FJ$12,138,FALSE) -> -545.31 | Q12: =VLOOKUP($A12,'RECAP DIRCOM'!$G$6:$FJ$12,139,FALSE) -> -3.41 | R12: =VLOOKUP($A12,'RECAP DIRCOM'!$G$6:$FJ$12,140,FALSE) -> 28% | S12: =VLOOKUP($A12,'RECAP DIRCOM'!$G$6:$FJ$12,141,FALSE) -> 7 | T12: =VLOOKUP($A12,'RECAP DIRCOM'!$G$6:$FJ$12,142,FALSE) -> 32% | U12: =VLOOKUP($A12,'RECAP DIRCOM'!$G$6:$FJ$12,143,FALSE) -> 25% | V12: =VLOOKUP($A12,'RECAP DIRCOM'!$G$6:$FJ$12,144,FALSE) -> 7
A13: 30 | B13: Marne-Ardennes | C13: =VLOOKUP($A13,'RECAP DIRCOM'!$G$6:$FJ$12,3,FALSE) -> 224 | D13: =VLOOKUP($A13,'RECAP DIRCOM'!$G$6:$FJ$12,126,FALSE) -> 67.15 | E13: =VLOOKUP($A13,'RECAP DIRCOM'!$G$6:$FJ$12,127,FALSE) -> 0.67 | F13: =VLOOKUP($A13,'RECAP DIRCOM'!$G$6:$FJ$12,128,FALSE) -> 0% | G13: =VLOOKUP($A13,'RECAP DIRCOM'!$G$6:$FJ$12,129,FALSE) -> 1 | H13: =VLOOKUP($A13,'RECAP DIRCOM'!$G$6:$FJ$12,130,FALSE) -> 41.63 | I13: =VLOOKUP($A13,'RECAP DIRCOM'!$G$6:$FJ$12,131,FALSE) -> 2.08 | J13: =VLOOKUP($A13,'RECAP DIRCOM'!$G$6:$FJ$12,132,FALSE) -> 0% | K13: =VLOOKUP($A13,'RECAP DIRCOM'!$G$6:$FJ$12,133,FALSE) -> 1 | L13: =VLOOKUP($A13,'RECAP DIRCOM'!$G$6:$FJ$12,134,FALSE) -> 38.51 | M13: =VLOOKUP($A13,'RECAP DIRCOM'!$G$6:$FJ$12,135,FALSE) -> 0.58 | N13: =VLOOKUP($A13,'RECAP DIRCOM'!$G$6:$FJ$12,136,FALSE) -> 20% | O13: =VLOOKUP($A13,'RECAP DIRCOM'!$G$6:$FJ$12,137,FALSE) -> 2 | P13: =VLOOKUP($A13,'RECAP DIRCOM'!$G$6:$FJ$12,138,FALSE) -> -673.26 | Q13: =VLOOKUP($A13,'RECAP DIRCOM'!$G$6:$FJ$12,139,FALSE) -> -3.00 | R13: =VLOOKUP($A13,'RECAP DIRCOM'!$G$6:$FJ$12,140,FALSE) -> 12% | S13: =VLOOKUP($A13,'RECAP DIRCOM'!$G$6:$FJ$12,141,FALSE) -> 4 | T13: =VLOOKUP($A13,'RECAP DIRCOM'!$G$6:$FJ$12,142,FALSE) -> 7% | U13: =VLOOKUP($A13,'RECAP DIRCOM'!$G$6:$FJ$12,143,FALSE) -> 0% | V13: =VLOOKUP($A13,'RECAP DIRCOM'!$G$6:$FJ$12,144,FALSE) -> 1
A14: 110 | B14: Meurthe et Moselle Meuse | C14: =VLOOKUP($A14,'RECAP DIRCOM'!$G$6:$FJ$12,3,FALSE) -> 235 | D14: =VLOOKUP($A14,'RECAP DIRCOM'!$G$6:$FJ$12,126,FALSE) -> 65.02 | E14: =VLOOKUP($A14,'RECAP DIRCOM'!$G$6:$FJ$12,127,FALSE) -> 0.65 | F14: =VLOOKUP($A14,'RECAP DIRCOM'!$G$6:$FJ$12,128,FALSE) -> 3% | G14: =VLOOKUP($A14,'RECAP DIRCOM'!$G$6:$FJ$12,129,FALSE) -> 2 | H14: =VLOOKUP($A14,'RECAP DIRCOM'!$G$6:$FJ$12,130,FALSE) -> 40.49 | I14: =VLOOKUP($A14,'RECAP DIRCOM'!$G$6:$FJ$12,131,FALSE) -> 2.02 | J14: =VLOOKUP($A14,'RECAP DIRCOM'!$G$6:$FJ$12,132,FALSE) -> 3% | K14: =VLOOKUP($A14,'RECAP DIRCOM'!$G$6:$FJ$12,133,FALSE) -> 2 | L14: =VLOOKUP($A14,'RECAP DIRCOM'!$G$6:$FJ$12,134,FALSE) -> 36.21 | M14: =VLOOKUP($A14,'RECAP DIRCOM'!$G$6:$FJ$12,135,FALSE) -> 0.54 | N14: =VLOOKUP($A14,'RECAP DIRCOM'!$G$6:$FJ$12,136,FALSE) -> 25% | O14: =VLOOKUP($A14,'RECAP DIRCOM'!$G$6:$FJ$12,137,FALSE) -> 4 | P14: =VLOOKUP($A14,'RECAP DIRCOM'!$G$6:$FJ$12,138,FALSE) -> -751.72 | Q14: =VLOOKUP($A14,'RECAP DIRCOM'!$G$6:$FJ$12,139,FALSE) -> -3.21 | R14: =VLOOKUP($A14,'RECAP DIRCOM'!$G$6:$FJ$12,140,FALSE) -> 20% | S14: =VLOOKUP($A14,'RECAP DIRCOM'!$G$6:$FJ$12,141,FALSE) -> 5 | T14: =VLOOKUP($A14,'RECAP DIRCOM'!$G$6:$FJ$12,142,FALSE) -> 11% | U14: =VLOOKUP($A14,'RECAP DIRCOM'!$G$6:$FJ$12,143,FALSE) -> 4% | V14: =VLOOKUP($A14,'RECAP DIRCOM'!$G$6:$FJ$12,144,FALSE) -> 2
A15: 160 | B15: Moselle | C15: =VLOOKUP($A15,'RECAP DIRCOM'!$G$6:$FJ$12,3,FALSE) -> 275 | D15: =VLOOKUP($A15,'RECAP DIRCOM'!$G$6:$FJ$12,126,FALSE) -> 57.20 | E15: =VLOOKUP($A15,'RECAP DIRCOM'!$G$6:$FJ$12,127,FALSE) -> 0.57 | F15: =VLOOKUP($A15,'RECAP DIRCOM'!$G$6:$FJ$12,128,FALSE) -> 15% | G15: =VLOOKUP($A15,'RECAP DIRCOM'!$G$6:$FJ$12,129,FALSE) -> 3 | H15: =VLOOKUP($A15,'RECAP DIRCOM'!$G$6:$FJ$12,130,FALSE) -> 34.54 | I15: =VLOOKUP($A15,'RECAP DIRCOM'!$G$6:$FJ$12,131,FALSE) -> 1.73 | J15: =VLOOKUP($A15,'RECAP DIRCOM'!$G$6:$FJ$12,132,FALSE) -> 17% | K15: =VLOOKUP($A15,'RECAP DIRCOM'!$G$6:$FJ$12,133,FALSE) -> 4 | L15: =VLOOKUP($A15,'RECAP DIRCOM'!$G$6:$FJ$12,134,FALSE) -> 35.20 | M15: =VLOOKUP($A15,'RECAP DIRCOM'!$G$6:$FJ$12,135,FALSE) -> 0.53 | N15: =VLOOKUP($A15,'RECAP DIRCOM'!$G$6:$FJ$12,136,FALSE) -> 27% | O15: =VLOOKUP($A15,'RECAP DIRCOM'!$G$6:$FJ$12,137,FALSE) -> 5 | P15: =VLOOKUP($A15,'RECAP DIRCOM'!$G$6:$FJ$12,138,FALSE) -> -797.09 | Q15: =VLOOKUP($A15,'RECAP DIRCOM'!$G$6:$FJ$12,139,FALSE) -> -2.90 | R15: =VLOOKUP($A15,'RECAP DIRCOM'!$G$6:$FJ$12,140,FALSE) -> 9% | S15: =VLOOKUP($A15,'RECAP DIRCOM'!$G$6:$FJ$12,141,FALSE) -> 2 | T15: =VLOOKUP($A15,'RECAP DIRCOM'!$G$6:$FJ$12,142,FALSE) -> 16% | U15: =VLOOKUP($A15,'RECAP DIRCOM'!$G$6:$FJ$12,143,FALSE) -> 10% | V15: =VLOOKUP($A15,'RECAP DIRCOM'!$G$6:$FJ$12,144,FALSE) -> 4
A16: 80 | B16: Vosges | C16: =VLOOKUP($A16,'RECAP DIRCOM'!$G$6:$FJ$12,3,FALSE) -> 133 | D16: =VLOOKUP($A16,'RECAP DIRCOM'!$G$6:$FJ$12,126,FALSE) -> 51.80 | E16: =VLOOKUP($A16,'RECAP DIRCOM'!$G$6:$FJ$12,127,FALSE) -> 0.52 | F16: =VLOOKUP($A16,'RECAP DIRCOM'!$G$6:$FJ$12,128,FALSE) -> 23% | G16: =VLOOKUP($A16,'RECAP DIRCOM'!$G$6:$FJ$12,129,FALSE) -> 5 | H16: =VLOOKUP($A16,'RECAP DIRCOM'!$G$6:$FJ$12,130,FALSE) -> 35.76 | I16: =VLOOKUP($A16,'RECAP DIRCOM'!$G$6:$FJ$12,131,FALSE) -> 1.79 | J16: =VLOOKUP($A16,'RECAP DIRCOM'!$G$6:$FJ$12,132,FALSE) -> 14% | K16: =VLOOKUP($A16,'RECAP DIRCOM'!$G$6:$FJ$12,133,FALSE) -> 3 | L16: =VLOOKUP($A16,'RECAP DIRCOM'!$G$6:$FJ$12,134,FALSE) -> 48.37 | M16: =VLOOKUP($A16,'RECAP DIRCOM'!$G$6:$FJ$12,135,FALSE) -> 0.73 | N16: =VLOOKUP($A16,'RECAP DIRCOM'!$G$6:$FJ$12,136,FALSE) -> 0% | O16: =VLOOKUP($A16,'RECAP DIRCOM'!$G$6:$FJ$12,137,FALSE) -> 1 | P16: =VLOOKUP($A16,'RECAP DIRCOM'!$G$6:$FJ$12,138,FALSE) -> -394.08 | Q16: =VLOOKUP($A16,'RECAP DIRCOM'!$G$6:$FJ$12,139,FALSE) -> -2.97 | R16: =VLOOKUP($A16,'RECAP DIRCOM'!$G$6:$FJ$12,140,FALSE) -> 11% | S16: =VLOOKUP($A16,'RECAP DIRCOM'!$G$6:$FJ$12,141,FALSE) -> 3 | T16: =VLOOKUP($A16,'RECAP DIRCOM'!$G$6:$FJ$12,142,FALSE) -> 14% | U16: =VLOOKUP($A16,'RECAP DIRCOM'!$G$6:$FJ$12,143,FALSE) -> 8% | V16: =VLOOKUP($A16,'RECAP DIRCOM'!$G$6:$FJ$12,144,FALSE) -> 3
B17: Total CEGEE Directions Régionales | C17: =SUM(C10:C16) -> 1418

Sheet DC_SATISFACTION
B1: Accueil | D1: BAROMETRE BDD - DIRECTIONS REGIONALES
D2: QUALITE / SATISFACTION
D3: =ACCUEIL!F7 -> 2020-12-31
D7: N P S | G7: Enquête Qualité Haute Définition | J7: Total Satisfaction Clients
D8: =DATEMAJ!C36 -> au 31/10 | E8: coef | F8: ='RECAP DIRCOM'!FC4 -> 8% | G8: =DATEMAJ!C37 -> au 31/10 | H8: coef | I8: ='RECAP DIRCOM'!FF4 -> 7% | K8: coef | L8: ='RECAP DIRCOM'!FI4 -> 15%
B9: Direction | C9: ="ETP perf "&DATEMAJ!$C$39 -> ETP perf au 31/10 | E9: % Ecart au 1er | F9: Rang | H9: % Ecart au 1er | I9: Rang | J9: Moyenne ecart au 1er | K9: % Ecart au 1er | L9: Rang CEGEE
A10: 50 | B10: Aube Haute Marne | C10: =VLOOKUP($A10,'RECAP DIRCOM'!$G$6:$FJ$12,3,FALSE) -> 129 | D10: =VLOOKUP($A10,'RECAP DIRCOM'!$G$6:$FJ$12,151,FALSE) -> -12 | E10: =VLOOKUP($A10,'RECAP DIRCOM'!$G$6:$FJ$12,152,FALSE) -> 43% | F10: =VLOOKUP($A10,'RECAP DIRCOM'!$G$6:$FJ$12,153,FALSE) -> 3 | G10: =VLOOKUP($A10,'RECAP DIRCOM'!$G$6:$FJ$12,154,FALSE) -> 43% | H10: =VLOOKUP($A10,'RECAP DIRCOM'!$G$6:$FJ$12,155,FALSE) -> 25% | I10: =VLOOKUP($A10,'RECAP DIRCOM'!$G$6:$FJ$12,156,FALSE) -> 5 | J10: =VLOOKUP($A10,'RECAP DIRCOM'!$G$6:$FJ$12,157,FALSE) -> 34% | K10: =VLOOKUP($A10,'RECAP DIRCOM'!$G$6:$FJ$12,158,FALSE) -> 34% | L10: =VLOOKUP($A10,'RECAP DIRCOM'!$G$6:$FJ$12,159,FALSE) -> 4
A11: 262 | B11: Bas-Rhin | C11: =VLOOKUP($A11,'RECAP DIRCOM'!$G$6:$FJ$12,3,FALSE) -> 262 | D11: =VLOOKUP($A11,'RECAP DIRCOM'!$G$6:$FJ$12,151,FALSE) -> -22 | E11: =VLOOKUP($A11,'RECAP DIRCOM'!$G$6:$FJ$12,152,FALSE) -> 150% | F11: =VLOOKUP($A11,'RECAP DIRCOM'!$G$6:$FJ$12,153,FALSE) -> 6 | G11: =VLOOKUP($A11,'RECAP DIRCOM'!$G$6:$FJ$12,154,FALSE) -> 41% | H11: =VLOOKUP($A11,'RECAP DIRCOM'!$G$6:$FJ$12,155,FALSE) -> 28% | I11: =VLOOKUP($A11,'RECAP DIRCOM'!$G$6:$FJ$12,156,FALSE) -> 6 | J11: =VLOOKUP($A11,'RECAP DIRCOM'!$G$6:$FJ$12,157,FALSE) -> 93% | K11: =VLOOKUP($A11,'RECAP DIRCOM'!$G$6:$FJ$12,158,FALSE) -> 93% | L11: =VLOOKUP($A11,'RECAP DIRCOM'!$G$6:$FJ$12,159,FALSE) -> 6
A12: 264 | B12: Haut-Rhin | C12: =VLOOKUP($A12,'RECAP DIRCOM'!$G$6:$FJ$12,3,FALSE) -> 160 | D12: =VLOOKUP($A12,'RECAP DIRCOM'!$G$6:$FJ$12,151,FALSE) -> -22 | E12: =VLOOKUP($A12,'RECAP DIRCOM'!$G$6:$FJ$12,152,FALSE) -> 150% | F12: =VLOOKUP($A12,'RECAP DIRCOM'!$G$6:$FJ$12,153,FALSE) -> 6 | G12: =VLOOKUP($A12,'RECAP DIRCOM'!$G$6:$FJ$12,154,FALSE) -> 39% | H12: =VLOOKUP($A12,'RECAP DIRCOM'!$G$6:$FJ$12,155,FALSE) -> 31% | I12: =VLOOKUP($A12,'RECAP DIRCOM'!$G$6:$FJ$12,156,FALSE) -> 7 | J12: =VLOOKUP($A12,'RECAP DIRCOM'!$G$6:$FJ$12,157,FALSE) -> 95% | K12: =VLOOKUP($A12,'RECAP DIRCOM'!$G$6:$FJ$12,158,FALSE) -> 95% | L12: =VLOOKUP($A12,'RECAP DIRCOM'!$G$6:$FJ$12,159,FALSE) -> 7
A13: 30 | B13: Marne-Ardennes | C13: =VLOOKUP($A13,'RECAP DIRCOM'!$G$6:$FJ$12,3,FALSE) -> 224 | D13: =VLOOKUP($A13,'RECAP DIRCOM'!$G$6:$FJ$12,151,FALSE) -> -8 | E13: =VLOOKUP($A13,'RECAP DIRCOM'!$G$6:$FJ$12,152,FALSE) -> 0% | F13: =VLOOKUP($A13,'RECAP DIRCOM'!$G$6:$FJ$12,153,FALSE) -> 1 | G13: =VLOOKUP($A13,'RECAP DIRCOM'!$G$6:$FJ$12,154,FALSE) -> 57% | H13: =VLOOKUP($A13,'RECAP DIRCOM'!$G$6:$FJ$12,155,FALSE) -> 0% | I13: =VLOOKUP($A13,'RECAP DIRCOM'!$G$6:$FJ$12,156,FALSE) -> 1 | J13: =VLOOKUP($A13,'RECAP DIRCOM'!$G$6:$FJ$12,157,FALSE) -> 0% | K13: =VLOOKUP($A13,'RECAP DIRCOM'!$G$6:$FJ$12,158,FALSE) -> 0% | L13: =VLOOKUP($A13,'RECAP DIRCOM'!$G$6:$FJ$12,159,FALSE) -> 1
A14: 110 | B14: Meurthe et Moselle Meuse | C14: =VLOOKUP($A14,'RECAP DIRCOM'!$G$6:$FJ$12,3,FALSE) -> 235 | D14: =VLOOKUP($A14,'RECAP DIRCOM'!$G$6:$FJ$12,151,FALSE) -> -12 | E14: =VLOOKUP($A14,'RECAP DIRCOM'!$G$6:$FJ$12,152,FALSE) -> 43% | F14: =VLOOKUP($A14,'RECAP DIRCOM'!$G$6:$FJ$12,153,FALSE) -> 3 | G14: =VLOOKUP($A14,'RECAP DIRCOM'!$G$6:$FJ$12,154,FALSE) -> 49% | H14: =VLOOKUP($A14,'RECAP DIRCOM'!$G$6:$FJ$12,155,FALSE) -> 15% | I14: =VLOOKUP($A14,'RECAP DIRCOM'!$G$6:$FJ$12,156,FALSE) -> 3 | J14: =VLOOKUP($A14,'RECAP DIRCOM'!$G$6:$FJ$12,157,FALSE) -> 30% | K14: =VLOOKUP($A14,'RECAP DIRCOM'!$G$6:$FJ$12,158,FALSE) -> 30% | L14: =VLOOKUP($A14,'RECAP DIRCOM'!$G$6:$FJ$12,159,FALSE) -> 3
A15: 160 | B15: Moselle | C15: =VLOOKUP($A15,'RECAP DIRCOM'!$G$6:$FJ$12,3,FALSE) -> 275 | D15: =VLOOKUP($A15,'RECAP DIRCOM'!$G$6:$FJ$12,151,FALSE) -> -13 | E15: =VLOOKUP($A15,'RECAP DIRCOM'!$G$6:$FJ$12,152,FALSE) -> 54% | F15: =VLOOKUP($A15,'RECAP DIRCOM'!$G$6:$FJ$12,153,FALSE) -> 5 | G15: =VLOOKUP($A15,'RECAP DIRCOM'!$G$6:$FJ$12,154,FALSE) -> 46% | H15: =VLOOKUP($A15,'RECAP DIRCOM'!$G$6:$FJ$12,155,FALSE) -> 19% | I15: =VLOOKUP($A15,'RECAP DIRCOM'!$G$6:$FJ$12,156,FALSE) -> 4 | J15: =VLOOKUP($A15,'RECAP DIRCOM'!$G$6:$FJ$12,157,FALSE) -> 37% | K15: =VLOOKUP($A15,'RECAP DIRCOM'!$G$6:$FJ$12,158,FALSE) -> 37% | L15: =VLOOKUP($A15,'RECAP DIRCOM'!$G$6:$FJ$12,159,FALSE) -> 5
A16: 80 | B16: Vosges | C16: =VLOOKUP($A16,'RECAP DIRCOM'!$G$6:$FJ$12,3,FALSE) -> 133 | D16: =VLOOKUP($A16,'RECAP DIRCOM'!$G$6:$FJ$12,151,FALSE) -> -11 | E16: =VLOOKUP($A16,'RECAP DIRCOM'!$G$6:$FJ$12,152,FALSE) -> 32% | F16: =VLOOKUP($A16,'RECAP DIRCOM'!$G$6:$FJ$12,153,FALSE) -> 2 | G16: =VLOOKUP($A16,'RECAP DIRCOM'!$G$6:$FJ$12,154,FALSE) -> 54% | H16: =VLOOKUP($A16,'RECAP DIRCOM'!$G$6:$FJ$12,155,FALSE) -> 5% | I16: =VLOOKUP($A16,'RECAP DIRCOM'!$G$6:$FJ$12,156,FALSE) -> 2 | J16: =VLOOKUP($A16,'RECAP DIRCOM'!$G$6:$FJ$12,157,FALSE) -> 19% | K16: =VLOOKUP($A16,'RECAP DIRCOM'!$G$6:$FJ$12,158,FALSE) -> 19% | L16: =VLOOKUP($A16,'RECAP DIRCOM'!$G$6:$FJ$12,159,FALSE) -> 2
B17: Total CEGEE Directions Régionales | C17: =SUM(C10:C16) -> 1418

Sheet SE_FICHE
A1: Accueil
A2: BAROMETRE BDD
A4: UNITE: | B4: TERRITOIRE | E4: ETP perf : | F4: =VLOOKUP(A5,'RECAP SECT'!$G$6:$I$23,3,FALSE) -> 65.91
A5: =VLOOKUP(B5,LISTES!$H$6:$I$23,2,FALSE) -> 5130 | B5: COLMAR
C6: Coefficient du critére | E6: Résultats | I6: Ecart au 1ier | M6: Evolution | O6: Rang
E7: du 1ier | G7: du territoire | I7: Du mois | K7: Au 31/12/2019
A9: RANG au CLASSEMENT GENERAL | K9: =VLOOKUP($A$5,'RECAP SECT AN'!$G$6:$FS$312,168,FALSE) -> 17 | M9: =+K9-O9 -> 1 | O9: =VLOOKUP($A$5,'RECAP SECT'!$G$6:$FS$312,168,FALSE) -> 16 | S9: =VLOOKUP($A$5,'RECAP SECT AN'!$G$6:$FE$312,154,FALSE) -> 1 | U9: =+S9-O9 -> -15
A11: CRITERE CONQUETE | C11: 15% | O11: =VLOOKUP($A$5,'RECAP SECT'!$G$6:$FS$312,23,FALSE) -> 16
B12: PNB Evolution nette Clients BP | C12: 4% | E12: ='RECAP SECT'!K4 -> 2.3 | G12: =VLOOKUP($A$5,'RECAP SECT'!$G$6:$FS$312,6,FALSE) -> -5.6 | I12: =VLOOKUP($A$5,'RECAP SECT'!$G$6:$FS$312,7,FALSE) -> 122% | K12: =VLOOKUP($A$5,'RECAP SECT AN'!$G$6:$FS$312,7,FALSE) -> 134% | M12: =+K12-I12 -> 12% | O12: =VLOOKUP($A$5,'RECAP SECT'!$G$6:$FS$312,8,FALSE) -> 16 | S12: =VLOOKUP($A$5,'RECAP SECT AN'!$G$6:$FE$312,6,FALSE) -> -181% | U12: =+S12-I12 -> -303%
B13: PNB Evolution nette Clients PREMIUM | C13: 5% | E13: ='RECAP SECT'!O4 -> 3.2 | G13: =VLOOKUP($A$5,'RECAP SECT'!$G$6:$FS$312,10,FALSE) -> 2.2 | I13: =VLOOKUP($A$5,'RECAP SECT'!$G$6:$FS$312,11,FALSE) -> 31% | K13: =VLOOKUP($A$5,'RECAP SECT AN'!$G$6:$FS$312,11,FALSE) -> 20% | M13: =+K13-I13 -> -10% | O13: =VLOOKUP($A$5,'RECAP SECT'!$G$6:$FS$312,12,FALSE) -> 8 | S13: =VLOOKUP($A$5,'RECAP SECT AN'!$G$6:$FE$312,9,FALSE) -> 287% | U13: =+S13-I13 -> 256%
B14: PNB Evolution nette Clients Jeunes Equipés | C14: 3% | E14: ='RECAP SECT'!S4 -> 0.5 | G14: =VLOOKUP($A$5,'RECAP SECT'!$G$6:$FS$312,14,FALSE) -> -0.9 | I14: =VLOOKUP($A$5,'RECAP SECT'!$G$6:$FS$312,15,FALSE) -> 112% | K14: =VLOOKUP($A$5,'RECAP SECT AN'!$G$6:$FS$312,15,FALSE) -> -99% | M14: =+K14-I14 -> -211% | O14: =VLOOKUP($A$5,'RECAP SECT'!$G$6:$FS$312,16,FALSE) -> 16 | S14: =VLOOKUP($A$5,'RECAP SECT AN'!$G$6:$FE$312,12,FALSE) -> 1300% | U14: =+S14-I14 -> 1188%
B15: PNB Evolution nette Clients Pro Actifs Equipés | C15: 3% | E15: ='RECAP SECT'!W4 -> 2.9 | G15: =VLOOKUP($A$5,'RECAP SECT'!$G$6:$FS$312,18,FALSE) -> 1.1 | I15: =VLOOKUP($A$5,'RECAP SECT'!$G$6:$FS$312,19,FALSE) -> 60% | K15: =VLOOKUP($A$5,'RECAP SECT AN'!$G$6:$FS$312,19,FALSE) -> 54% | M15: =+K15-I15 -> -7% | O15: =VLOOKUP($A$5,'RECAP SECT'!$G$6:$FS$312,20,FALSE) -> 14 | S15: =VLOOKUP($A$5,'RECAP SECT AN'!$G$6:$FE$312,15,FALSE) -> -99% | U15: =+S15-I15 -> -159%
A17: CRITERE BANCARISATION | C17: 15% | O17: =VLOOKUP($A$5,'RECAP SECT'!$G$6:$FS$312,48,FALSE) -> 10
B18: PNB Ventes nettes forfaits | C18: 4% | E18: ='RECAP SECT'!AJ4 -> 13.2 | G18: =VLOOKUP($A$5,'RECAP SECT'!$G$6:$FS$312,31,FALSE) -> 4.4 | I18: =VLOOKUP($A$5,'RECAP SECT'!$G$6:$FS$312,32,FALSE) -> 67% | K18: =VLOOKUP($A$5,'RECAP SECT AN'!$G$6:$FS$312,32,FALSE) -> 117% | M18: =+K18-I18 -> 50% | O18: =VLOOKUP($A$5,'RECAP SECT'!$G$6:$FS$312,33,FALSE) -> 13 | S18: =VLOOKUP($A$5,'RECAP SECT AN'!$G$6:$FE$312,27,FALSE) -> 0% | U18: =+S18-I18 -> -67%
B19: PNB Ventes nettes IZICARTES Débit Différé | C19: 4% | E19: ='RECAP SECT'!AN4 -> 9.7 | G19: =VLOOKUP($A$5,'RECAP SECT'!$G$6:$FS$312,35,FALSE) -> 5.6 | I19: =VLOOKUP($A$5,'RECAP SECT'!$G$6:$FS$312,36,FALSE) -> 42% | K19: =VLOOKUP($A$5,'RECAP SECT AN'!$G$6:$FS$312,36,FALSE) -> 27% | M19: =+K19-I19 -> -15% | O19: =VLOOKUP($A$5,'RECAP SECT'!$G$6:$FS$312,37,FALSE) -> 8 | S19: =VLOOKUP($A$5,'RECAP SECT AN'!$G$6:$FE$312,30,FALSE) -> 430% | U19: =+S19-I19 -> 388%
B20: PNB Ventes nettes cartes HDG Débit Différé | C20: 4% | E20: ='RECAP SECT'!AR4 -> 16.7 | G20: =VLOOKUP($A$5,'RECAP SECT'!$G$6:$FS$312,39,FALSE) -> 10.7 | I20: =VLOOKUP($A$5,'RECAP SECT'!$G$6:$FS$312,40,FALSE) -> 36% | K20: =VLOOKUP($A$5,'RECAP SECT AN'!$G$6:$FS$312,40,FALSE) -> 35% | M20: =+K20-I20 -> -0% | O20: =VLOOKUP($A$5,'RECAP SECT'!$G$6:$FS$312,41,FALSE) -> 5 | S20: =VLOOKUP($A$5,'RECAP SECT AN'!$G$6:$FE$312,33,FALSE) -> 1600% | U20: =+S20-I20 -> 1564%
B21: PNB Ventes nettes Forfaits Pro, Carte pro | C21: 3% | E21: ='RECAP SECT'!AV4 -> 2.6 | G21: =VLOOKUP($A$5,'RECAP SECT'!$G$6:$FS$312,43,FALSE) -> 0.8 | I21: =VLOOKUP($A$5,'RECAP SECT'!$G$6:$FS$312,44,FALSE) -> 69% | K21: =VLOOKUP($A$5,'RECAP SECT AN'!$G$6:$FS$312,44,FALSE) -> 87% | M21: =+K21-I21 -> 18% | O21: =VLOOKUP($A$5,'RECAP SECT'!$G$6:$FS$312,45,FALSE) -> 14 | S21: =VLOOKUP($A$5,'RECAP SECT AN'!$G$6:$FE$312,39,FALSE) -> 467% | U21: =+S21-I21 -> 398%
A23: CRITERE EPARGNE | C23: 10% | O23: =VLOOKUP($A$5,'RECAP SECT'!$G$6:$FS$312,69,FALSE) -> 10
B24: PNB Epargne Liquide | C24: 3% | E24: ='RECAP SECT'!BI4 -> 16.7 | G24: =VLOOKUP($A$5,'RECAP SECT'!$G$6:$FS$312,56,FALSE) -> 11.8 | I24: =VLOOKUP($A$5,'RECAP SECT'!$G$6:$FS$312,57,FALSE) -> 29% | K24: =VLOOKUP($A$5,'RECAP SECT AN'!$G$6:$FS$312,57,FALSE) -> 25% | M24: =+K24-I24 -> -4% | O24: =VLOOKUP($A$5,'RECAP SECT'!$G$6:$FS$312,58,FALSE) -> 7 | S24: =VLOOKUP($A$5,'RECAP SECT AN'!$G$6:$FE$312,51,FALSE) -> 0% | U24: =+S24-I24 -> -29%
B25: PNB CA UC + arbitrage | C25: 4% | E25: ='RECAP SECT'!BM4 -> 2.0 | G25: =VLOOKUP($A$5,'RECAP SECT'!$G$6:$FS$312,60,FALSE) -> 2.0 | I25: =VLOOKUP($A$5,'RECAP SECT'!$G$6:$FS$312,61,FALSE) -> 0% | K25: =VLOOKUP($A$5,'RECAP SECT AN'!$G$6:$FS$312,61,FALSE) -> 23% | M25: =+K25-I25 -> 23% | O25: =VLOOKUP($A$5,'RECAP SECT'!$G$6:$FS$312,62,FALSE) -> 1 | S25: =VLOOKUP($A$5,'RECAP SECT AN'!$G$6:$FE$312,57,FALSE) -> 25% | U25: =+S25-I25 -> 25%
B26: PNB Excédent assurance vie | C26: 3% | E26: ='RECAP SECT'!BQ4 -> 3.0 | G26: =VLOOKUP($A$5,'RECAP SECT'!$G$6:$FS$312,64,FALSE) -> -4.2 | I26: =VLOOKUP($A$5,'RECAP SECT'!$G$6:$FS$312,65,FALSE) -> 121% | K26: =VLOOKUP($A$5,'RECAP SECT AN'!$G$6:$FS$312,65,FALSE) -> 114% | M26: =+K26-I26 -> -7% | O26: =VLOOKUP($A$5,'RECAP SECT'!$G$6:$FS$312,66,FALSE) -> 13 | S26: =VLOOKUP($A$5,'RECAP SECT AN'!$G$6:$FE$312,60,FALSE) -> 107% | U26: =+S26-I26 -> -14%
A28: CRITERE CREDITS | C28: 15% | O28: =VLOOKUP($A$5,'RECAP SECT'!$G$6:$FS$312,102,FALSE) -> 18
B29: PNB crédit conso | C29: 4% | E29: ='RECAP SECT'!CD4 -> 60.0 | G29: =VLOOKUP($A$5,'RECAP SECT'!$G$6:$FS$312,77,FALSE) -> 35.9 | I29: =VLOOKUP($A$5,'RECAP SECT'!$G$6:$FS$312,78,FALSE) -> 40% | K29: =VLOOKUP($A$5,'RECAP SECT AN'!$G$6:$FS$312,78,FALSE) -> 37% | M29: =+K29-I29 -> -3% | O29: =VLOOKUP($A$5,'RECAP SECT'!$G$6:$FS$312,79,FALSE) -> 18 | S29: =VLOOKUP($A$5,'RECAP SECT AN'!$G$6:$FE$312,75,FALSE) -> 0% | U29: =+S29-I29 -> -40%
B30: PNB ADE crédit conso | C30: 1% | E30: ='RECAP SECT'!CH4 -> 15.8 | G30: =VLOOKUP($A$5,'RECAP SECT'!$G$6:$FS$312,81,FALSE) -> 8.5 | I30: =VLOOKUP($A$5,'RECAP SECT'!$G$6:$FS$312,82,FALSE) -> 46% | K30: =VLOOKUP($A$5,'RECAP SECT AN'!$G$6:$FS$312,82,FALSE) -> 44% | M30: -2% | O30: =VLOOKUP($A$5,'RECAP SECT'!$G$6:$FS$312,83,FALSE) -> 18 | S30: =VLOOKUP($A$5,'RECAP SECT AN'!$G$6:$FE$312,78,FALSE) -> 37% | U30: -9%
B31: PNB crédit immo | C31: 4% | E31: ='RECAP SECT'!CL4 -> 136.5 | G31: =VLOOKUP($A$5,'RECAP SECT'!$G$6:$FS$312,85,FALSE) -> 50.6 | I31: =VLOOKUP($A$5,'RECAP SECT'!$G$6:$FS$312,86,FALSE) -> 63% | K31: =VLOOKUP($A$5,'RECAP SECT AN'!$G$6:$FS$312,86,FALSE) -> 38% | M31: -25% | O31: =VLOOKUP($A$5,'RECAP SECT'!$G$6:$FS$312,87,FALSE) -> 17 | S31: =VLOOKUP($A$5,'RECAP SECT AN'!$G$6:$FE$312,81,FALSE) -> 782% | U31: 719%
B32: PNB ADE crédit immo | C32: 2% | E32: ='RECAP SECT'!CP4 -> 83.4 | G32: =VLOOKUP($A$5,'RECAP SECT'!$G$6:$FS$312,89,FALSE) -> 24.9 | I32: =VLOOKUP($A$5,'RECAP SECT'!$G$6:$FS$312,90,FALSE) -> 70% | K32: =VLOOKUP($A$5,'RECAP SECT AN'!$G$6:$FS$312,90,FALSE) -> 49% | M32: -21% | O32: =VLOOKUP($A$5,'RECAP SECT'!$G$6:$FS$312,91,FALSE) -> 18 | S32: =VLOOKUP($A$5,'RECAP SECT AN'!$G$6:$FE$312,84,FALSE) -> 139312% | U32: 139242%
B33: PNB SACCEF | C33: 2% | E33: ='RECAP SECT'!CT4 -> 7.2 | G33: =VLOOKUP($A$5,'RECAP SECT'!$G$6:$FS$312,93,FALSE) -> 2.5 | I33: =VLOOKUP($A$5,'RECAP SECT'!$G$6:$FS$312,94,FALSE) -> 66% | K33: =VLOOKUP($A$5,'RECAP SECT AN'!$G$6:$FS$312,94,FALSE) -> 51% | M33: -15% | O33: =VLOOKUP($A$5,'RECAP SECT'!$G$6:$FS$312,95,FALSE) -> 17 | S33: =VLOOKUP($A$5,'RECAP SECT AN'!$G$6:$FE$312,87,FALSE) -> 1100% | U33: 1034%
B34: PNB Crédit MLT + Crédit Bail | C34: 2% | E34: ='RECAP SECT'!CX4 -> 16.0 | G34: =VLOOKUP($A$5,'RECAP SECT'!$G$6:$FS$312,97,FALSE) -> 7.5 | I34: =VLOOKUP($A$5,'RECAP SECT'!$G$6:$FS$312,98,FALSE) -> 53% | K34: =VLOOKUP($A$5,'RECAP SECT AN'!$G$6:$FS$312,98,FALSE) -> 74% | M34: 22% | O34: =VLOOKUP($A$5,'RECAP SECT'!$G$6:$FS$312,99,FALSE) -> 5 | S34: =VLOOKUP($A$5,'RECAP SECT AN'!$G$6:$FE$312,90,FALSE) -> 49% | U34: -4%
A36: CRITERE IARD PREVOYANCE | C36: 15% | O36: =VLOOKUP($A$5,'RECAP SECT'!$G$6:$FS$312,119,FALSE) -> 15
B37: PNB Ventes nettes IARD | C37: 9% | E37: ='RECAP SECT'!DK4 -> 2.9 | G37: =VLOOKUP($A$5,'RECAP SECT'!$G$6:$FS$312,110,FALSE) -> 0.4 | I37: =VLOOKUP($A$5,'RECAP SECT'!$G$6:$FS$312,111,FALSE) -> 87% | K37: =VLOOKUP($A$5,'RECAP SECT AN'!$G$6:$FS$312,111,FALSE) -> 75% | M37: =+K37-I37 -> -12% | O37: =VLOOKUP($A$5,'RECAP SECT'!$G$6:$FS$312,112,FALSE) -> 16 | S37: =VLOOKUP($A$5,'RECAP SECT AN'!$G$6:$FE$312,102,FALSE) -> 1800% | U37: =+S37-I37 -> 1713%
B38: PNB Ventes nettes Prévoyance | C38: 6% | E38: ='RECAP SECT'!DO4 -> 2.3 | G38: =VLOOKUP($A$5,'RECAP SECT'!$G$6:$FS$312,114,FALSE) -> 2.1 | I38: =VLOOKUP($A$5,'RECAP SECT'!$G$6:$FS$312,115,FALSE) -> 7% | K38: =VLOOKUP($A$5,'RECAP SECT AN'!$G$6:$FS$312,115,FALSE) -> 62% | M38: =+K38-I38 -> 55% | O38: =VLOOKUP($A$5,'RECAP SECT'!$G$6:$FS$312,116,FALSE) -> 5 | S38: =VLOOKUP($A$5,'RECAP SECT AN'!$G$6:$FE$312,105,FALSE) -> 0% | U38: =+S38-I38 -> -7%
A40: CRITERE ACCELERATEURS PNB | C40: 15% | O40: =VLOOKUP($A$5,'RECAP SECT'!$G$6:$FS$312,144,FALSE) -> 17
B41: PNB Ventes brutes SED Finalisées | C41: 6% | E41: ='RECAP SECT'!EB4 -> 0.9 | G41: =VLOOKUP($A$5,'RECAP SECT'!$G$6:$FS$312,127,FALSE) -> 0.6 | I41: =VLOOKUP($A$5,'RECAP SECT'!$G$6:$FS$312,128,FALSE) -> 34% | K41: =VLOOKUP($A$5,'RECAP SECT AN'!$G$6:$FS$312,128,FALSE) -> 45% | M41: =+K41-I41 -> 11% | O41: =VLOOKUP($A$5,'RECAP SECT'!$G$6:$FS$312,129,FALSE) -> 12 | S41: =VLOOKUP($A$5,'RECAP SECT AN'!$G$6:$FE$312,120,FALSE) -> 0% | U41: =+S41-I41 -> -34%
B42: PNB clients équipés E documents | C42: 3% | E42: ='RECAP SECT'!EF4 -> 2.7 | G42: =VLOOKUP($A$5,'RECAP SECT'!$G$6:$FS$312,131,FALSE) -> 1.7 | I42: =VLOOKUP($A$5,'RECAP SECT'!$G$6:$FS$312,132,FALSE) -> 37% | K42: =VLOOKUP($A$5,'RECAP SECT AN'!$G$6:$FS$312,132,FALSE) -> 43% | M42: =+K42-I42 -> 5% | O42: =VLOOKUP($A$5,'RECAP SECT'!$G$6:$FS$312,133,FALSE) -> 17 | S42: =VLOOKUP($A$5,'RECAP SECT AN'!$G$6:$FE$312,123,FALSE) -> 0% | U42: =+S42-I42 -> -37%
B43: Economie opt'in | C43: 3% | E43: ='RECAP SECT'!EJ4 -> 1.0 | G43: =VLOOKUP($A$5,'RECAP SECT'!$G$6:$FS$312,135,FALSE) -> 0.6 | I43: =VLOOKUP($A$5,'RECAP SECT'!$G$6:$FS$312,136,FALSE) -> 43% | K43: =VLOOKUP($A$5,'RECAP SECT AN'!$G$6:$FS$312,136,FALSE) -> 55% | M43: =+K43-I43 -> 12% | O43: =VLOOKUP($A$5,'RECAP SECT'!$G$6:$FS$312,137,FALSE) -> 14
B44: Remises commerciales | C44: 3% | E44: ='RECAP SECT'!EN4 -> -2.8 | G44: =VLOOKUP($A$5,'RECAP SECT'!$G$6:$FS$312,139,FALSE) -> -4.0 | I44: =VLOOKUP($A$5,'RECAP SECT'!$G$6:$FS$312,140,FALSE) -> 43% | K44: =VLOOKUP($A$5,'RECAP SECT AN'!$G$6:$FS$312,140,FALSE) -> 45% | M44: =+K44-I44 -> 2% | O44: =VLOOKUP($A$5,'RECAP SECT'!$G$6:$FS$312,141,FALSE) -> 13 | S44: =VLOOKUP($A$5,'RECAP SECT AN'!$G$6:$FE$312,126,FALSE) -> 2124% | U44: =+S44-I44 -> 2081%
A46: CRITERE Satisfaction Clients | C46: 15% | O46: =VLOOKUP($A$5,'RECAP SECT'!$G$6:$FS$312,159,FALSE) -> 14
B47: Objectifs NPS* | C47: 8% | E47: ='RECAP SECT'!FA4 -> -4 | G47: =VLOOKUP($A$5,'RECAP SECT'!$G$6:$FS$312,151,FALSE) -> -19 | I47: =VLOOKUP($A$5,'RECAP SECT'!$G$6:$FS$312,152,FALSE) -> 94% | K47: =VLOOKUP($A$5,'RECAP SECT AN'!$G$6:$FS$312,152,FALSE) -> 110% | M47: =+K47-I47 -> 16% | O47: =VLOOKUP($A$5,'RECAP SECT'!$G$6:$FS$312,153,FALSE) -> 14 | S47: =VLOOKUP($A$5,'RECAP SECT AN'!$G$6:$FE$312,138,FALSE) -> -33048% | U47: =+S47-I47 -> -33142%
B48: Enquête Qualité Haute Définition | C48: 7% | E48: ='RECAP SECT'!FD4 -> 64% | G48: =VLOOKUP($A$5,'RECAP SECT'!$G$6:$FS$312,154,FALSE) -> 45% | I48: =VLOOKUP($A$5,'RECAP SECT'!$G$6:$FS$312,155,FALSE) -> 30% | K48: =VLOOKUP($A$5,'RECAP SECT AN'!$G$6:$FS$312,155,FALSE) -> 7% | M48: =+K48-I48 -> -23% | O48: =VLOOKUP($A$5,'RECAP SECT'!$G$6:$FS$312,156,FALSE) -> 12 | S48: =VLOOKUP($A$5,'RECAP SECT AN'!$G$6:$FE$312,141,FALSE) -> 1000% | U48: =+S48-I48 -> 970%

Sheet SE_TOTAL
B1: Accueil | F1: BAROMETRE BDD - TERRITOIRES
F2: TOTAL GENERAL
F3: =ACCUEIL!F7 -> 2020-12-31
F7: TOTAL GENERAL | I7: Total Clients | L7: Total Bancarisation | O7: Total Epargne | R7: Total Crédits | U7: Total IARD Prévoyance | X7: Total Accélérateurs PNB | AA7: Total Qualité-Satisfaction Clients
G8: coef | H8: 100% | J8: coef | K8: ='RECAP DIRCOM'!$AC$4 -> 15% | M8: coef | N8: ='RECAP DIRCOM'!$BB$4 -> 15% | P8: coef | Q8: ='RECAP DIRCOM'!$BW$4 -> 10% | S8: coef | T8: ='RECAP DIRCOM'!$DD$4 -> 15% | V8: coef | W8: ='RECAP DIRCOM'!$DU$4 -> 15% | Y8: coef | Z8: ='RECAP DIRCOM'!$ET$4 -> 15% | AB8: coef | AC8: ='RECAP DIRCOM'!$FI$4 -> 15%
B9: Direction | C9: eds | D9: Territoire | E9: ="ETP perf "&DATEMAJ!$C$39 -> ETP perf au 31/10 | F9: Moyenne ecart au 1er | G9: % Ecart au 1er | H9: Rang CEGEE | I9: Moyenne ecart au 1er | J9: % Ecart au 1er | K9: Rang CEGEE | L9: Moyenne ecart au 1er | M9: % Ecart au 1er | N9: Rang CEGEE | O9: Moyenne ecart au 1er | P9: % Ecart au 1er | Q9: Rang CEGEE | R9: Moyenne ecart au 1er | S9: % Ecart au 1er | T9: Rang CEGEE | U9: Moyenne ecart au 1er | V9: % Ecart au 1er | W9: Rang CEGEE | X9: Moyenne ecart au 1er | Y9: % Ecart au 1er | Z9: Rang CEGEE | AA9: Moyenne ecart au 1er | AB9: % Ecart au 1er | AC9: Rang CEGEE
A10: 110 | B10: MEURTHE ET MOSELLE MEUSE | C10: 27 | D10: PONT A MOUSSON | E10: 74.0 | F10: 10% | G10: 0% | H10: 1 | I10: 25% | J10: 4% | K10: 2 | L10: 10% | M10: 0% | N10: 1 | O10: 31% | P10: 8% | Q10: 3 | R10: 7% | S10: 0% | T10: 1 | U10: 3% | V10: 0% | W10: 1 | X10: 19% | Y10: 7% | Z10: 6 | AA10: 50% | AB10: 47% | AC10: 12
A11: 30 | B11: MARNE-ARDENNES | C11: 11 | D11: REIMS | E11: 80.3 | F11: 13% | G11: 3% | H11: 2 | I11: 37% | J11: 15% | K11: 5 | L11: 19% | M11: 9% | N11: 2 | O11: 47% | P11: 24% | Q11: 11 | R11: 9% | S11: 2% | T11: 2 | U11: 21% | V11: 18% | W11: 3 | X11: 24% | Y11: 12% | Z11: 7 | AA11: 18% | AB11: 14% | AC11: 3
A12: 30 | B12: MARNE-ARDENNES | C12: 2 | D12: CHARLEVILLE MEZIERES | E12: 54.8 | F12: 14% | G12: 4% | H12: 3 | I12: 22% | J12: 0% | K12: 1 | L12: 21% | M12: 11% | N12: 3 | O12: 41% | P12: 18% | Q12: 6 | R12: 25% | S12: 18% | T12: 3 | U12: 26% | V12: 24% | W12: 4 | X12: 12% | Y12: 0% | Z12: 1 | AA12: 31% | AB12: 28% | AC12: 8
A13: 30 | B13: MARNE-ARDENNES | C13: 6 | D13: CHALONS EN CHAMPAGNE | E13: 45.2 | F13: 15% | G13: 6% | H13: 4 | I13: 32% | J13: 10% | K13: 3 | L13: 42% | M13: 32% | N13: 8 | O13: 51% | P13: 28% | Q13: 13 | R13: 31% | S13: 23% | T13: 5 | U13: 20% | V13: 17% | W13: 2 | X13: 12% | Y13: 0% | Z13: 2 | AA13: 3% | AB13: 0% | AC13: 1
A14: 110 | B14: MEURTHE ET MOSELLE MEUSE | C14: 26 | D14: NANCY | E14: 65.2 | F14: 23% | G14: 13% | H14: 5 | I14: 34% | J14: 13% | K14: 4 | L14: 33% | M14: 23% | N14: 5 | O14: 52% | P14: 29% | Q14: 14 | R14: 26% | S14: 19% | T14: 4 | U14: 39% | V14: 36% | W14: 7 | X14: 19% | Y14: 7% | Z14: 4 | AA14: 39% | AB14: 36% | AC14: 11
A15: 80 | B15: VOSGES | C15: 55 | D15: SAINT DIE | E15: 48.0 | F15: 25% | G15: 15% | H15: 6 | I15: 57% | J15: 35% | K15: 9 | L15: 37% | M15: 27% | N15: 6 | O15: 23% | P15: 0% | Q15: 1 | R15: 45% | S15: 38% | T15: 12 | U15: 39% | V15: 36% | W15: 8 | X15: 19% | Y15: 7% | Z15: 5 | AA15: 24% | AB15: 21% | AC15: 6
A16: 110 | B16: MEURTHE ET MOSELLE MEUSE | C16: 31 | D16: VERDUN | E16: 53.6 | F16: 27% | G16: 18% | H16: 7 | I16: 62% | J16: 40% | K16: 13 | L16: 41% | M16: 31% | N16: 7 | O16: 40% | P16: 17% | Q16: 5 | R16: 34% | S16: 27% | T16: 6 | U16: 40% | V16: 37% | W16: 9 | X16: 32% | Y16: 20% | Z16: 13 | AA16: 19% | AB16: 16% | AC16: 4
A17: 50 | B17: AUBE HAUTE MARNE | C17: 21 | D17: CHAUMONT | E17: 36.0 | F17: 29% | G17: 19% | H17: 8 | I17: 59% | J17: 37% | K17: 10 | L17: 52% | M17: 42% | N17: 9 | O17: 44% | P17: 21% | Q17: 8 | R17: 44% | S17: 37% | T17: 11 | U17: 37% | V17: 34% | W17: 6 | X17: 28% | Y17: 15% | Z17: 8 | AA17: 15% | AB17: 11% | AC17: 2
A18: 160 | B18: MOSELLE | C18: 45 | D18: METZ | E18: 87.6 | F18: 29% | G18: 20% | H18: 9 | I18: 44% | J18: 22% | K18: 6 | L18: 63% | M18: 53% | N18: 17 | O18: 29% | P18: 6% | Q18: 2 | R18: 40% | S18: 33% | T18: 7 | U18: 50% | V18: 47% | W18: 13 | X18: 30% | Y18: 18% | Z18: 11 | AA18: 22% | AB18: 18% | AC18: 5
A19: 80 | B19: VOSGES | C19: 57 | D19: EPINAL | E19: 59.8 | F19: 34% | G19: 24% | H19: 10 | I19: 44% | J19: 23% | K19: 7 | L19: 58% | M19: 48% | N19: 12 | O19: 52% | P19: 29% | Q19: 15 | R19: 49% | S19: 41% | T19: 13 | U19: 47% | V19: 44% | W19: 12 | X19: 29% | Y19: 17% | Z19: 9 | AA19: 37% | AB19: 33% | AC19: 9
A20: 160 | B20: MOSELLE | C20: 44 | D20: MOSELLE NORD | E20: 71.8 | F20: 38% | G20: 29% | H20: 11 | I20: 60% | J20: 38% | K20: 11 | L20: 58% | M20: 48% | N20: 13 | O20: 49% | P20: 26% | Q20: 12 | R20: 41% | S20: 33% | T20: 8 | U20: 35% | V20: 33% | W20: 5 | X20: 17% | Y20: 4% | Z20: 3 | AA20: 83% | AB20: 80% | AC20: 15
A21: 262 | B21: BAS-RHIN | C21: 5060 | D21: HAGUENAU | E21: 75.0 | F21: 39% | G21: 29% | H21: 12 | I21: 68% | J21: 47% | K21: 14 | L21: 59% | M21: 49% | N21: 14 | O21: 35% | P21: 12% | Q21: 4 | R21: 52% | S21: 45% | T21: 17 | U21: 61% | V21: 58% | W21: 16 | X21: 29% | Y21: 17% | Z21: 10 | AA21: 38% | AB21: 35% | AC21: 10
A22: 262 | B22: BAS-RHIN | C22: 5006 | D22: STRASBOURG | E22: 76.0 | F22: 39% | G22: 30% | H22: 13 | I22: 52% | J22: 30% | K22: 8 | L22: 28% | M22: 18% | N22: 4 | O22: 43% | P22: 20% | Q22: 7 | R22: 42% | S22: 35% | T22: 10 | U22: 43% | V22: 41% | W22: 10 | X22: 37% | Y22: 25% | Z22: 16 | AA22: 102% | AB22: 99% | AC22: 18
A23: 50 | B23: AUBE HAUTE MARNE | C23: 14 | D23: TROYES | E23: 67.3 | F23: 39% | G23: 30% | H23: 14 | I23: 61% | J23: 39% | K23: 12 | L23: 56% | M23: 46% | N23: 11 | O23: 59% | P23: 36% | Q23: 16 | R23: 41% | S23: 34% | T23: 9 | U23: 47% | V23: 44% | W23: 11 | X23: 34% | Y23: 22% | Z23: 14 | AA23: 56% | AB23: 52% | AC23: 13
A24: 160 | B24: MOSELLE | C24: 42 | D24: MOSELLE EST | E24: 73.0 | F24: 41% | G24: 32% | H24: 15 | I24: 75% | J24: 53% | K24: 15 | L24: 63% | M24: 53% | N24: 16 | O24: 66% | P24: 43% | Q24: 17 | R24: 49% | S24: 42% | T24: 15 | U24: 53% | V24: 50% | W24: 14 | X24: 37% | Y24: 25% | Z24: 15 | AA24: 26% | AB24: 23% | AC24: 7
A25: 264 | B25: HAUT-RHIN | C25: 5130 | D25: COLMAR | E25: 65.9 | F25: 45% | G25: 36% | H25: 16 | I25: 77% | J25: 56% | K25: 16 | L25: 52% | M25: 42% | N25: 10 | O25: 45% | P25: 22% | Q25: 10 | R25: 56% | S25: 48% | T25: 18 | U25: 55% | V25: 52% | W25: 15 | X25: 38% | Y25: 26% | Z25: 17 | AA25: 64% | AB25: 61% | AC25: 14
A26: 262 | B26: BAS-RHIN | C26: 5101 | D26: SELESTAT | E26: 63.0 | F26: 51% | G26: 42% | H26: 17 | I26: 83% | J26: 62% | K26: 17 | L26: 61% | M26: 51% | N26: 15 | O26: 45% | P26: 22% | Q26: 9 | R26: 51% | S26: 43% | T26: 16 | U26: 71% | V26: 68% | W26: 17 | X26: 32% | Y26: 20% | Z26: 12 | AA26: 87% | AB26: 84% | AC26: 16
A27: 264 | B27: HAUT-RHIN | C27: 5169 | D27: MULHOUSE | E27: 62.1 | F27: 64% | G27: 54% | H27: 18 | I27: 104% | J27: 82% | K27: 18 | L27: 76% | M27: 66% | N27: 18 | O27: 83% | P27: 60% | Q27: 18 | R27: 49% | S27: 41% | T27: 14 | U27: 76% | V27: 73% | W27: 18 | X27: 45% | Y27: 33% | Z27: 18 | AA27: 92% | AB27: 89% | AC27: 17
A28: Total CEGEE Directions Régionales | E28: =SUM(E10:E27) -> 1159

Sheet SE_BANCA
B1: Accueil | F1: BAROMETRE BDD - TERRITOIRES
F2: BANCARISATION
F3: =ACCUEIL!F7 -> 2020-12-31
F7: Ventes nettes FORFAITS | J7: Ventes nettes IZICARTES débit différé | N7: Ventes nettes Cartes HDG débit différé | R7: Ventes nettes Forfaits Pro Cartes Pro | V7: Total Bancarisation
F8: =DATEMAJ!C12 -> au 31/12 | H8: coef | I8: ='RECAP DIRCOM'!AM4 -> 4% | J8: =DATEMAJ!C13 -> au 31/12 | L8: coef | M8: ='RECAP DIRCOM'!AQ4 -> 4% | N8: =DATEMAJ!C14 -> au 31/12 | P8: coef | Q8: ='RECAP DIRCOM'!AU4 -> 4% | R8: =DATEMAJ!C15 -> au 31/12 | T8: coef | U8: ='RECAP DIRCOM'!AY4 -> 3% | W8: coef | X8: ='RECAP DIRCOM'!BB4 -> 15%
B9: Direction | C9: eds | D9: Territoire | E9: ="ETP perf "&DATEMAJ!$C$39 -> ETP perf au 31/10 | F9: Nb / ETP | G9: PNB / ETP | H9: % Ecart au 1er | I9: Rang | J9: Nb / ETP | K9: PNB / ETP | L9: % Ecart au 1er | M9: Rang | N9: Nb / ETP | O9: PNB / ETP | P9: % Ecart au 1er | Q9: Rang | R9: Nb / ETP | S9: PNB / ETP | T9: % Ecart au 1er | U9: Rang | V9: Moyenne ecart au 1er | W9: % Ecart au 1er | X9: Rang CEGEE
A10: 50 | B10: AUBE HAUTE MARNE | C10: 21 | D10: CHAUMONT | E10: =VLOOKUP($C10,'RECAP SECT'!$G$6:$FJ$253,3,FALSE) -> 36.0 | F10: =VLOOKUP($C10,'RECAP SECT'!$G$6:$FJ$253,30,FALSE) -> 14.76 | G10: =VLOOKUP($C10,'RECAP SECT'!$G$6:$FJ$253,31,FALSE) -> 5.75 | H10: =VLOOKUP($C10,'RECAP SECT'!$G$6:$FJ$253,32,FALSE) -> 57% | I10: =VLOOKUP($C10,'RECAP SECT'!$G$6:$FJ$253,33,FALSE) -> 9 | J10: =VLOOKUP($C10,'RECAP SECT'!$G$6:$FJ$253,34,FALSE) -> 6.89 | K10: =VLOOKUP($C10,'RECAP SECT'!$G$6:$FJ$253,35,FALSE) -> 4.20 | L10: =VLOOKUP($C10,'RECAP SECT'!$G$6:$FJ$253,36,FALSE) -> 57% | M10: =VLOOKUP($C10,'RECAP SECT'!$G$6:$FJ$253,37,FALSE) -> 13 | N10: =VLOOKUP($C10,'RECAP SECT'!$G$6:$FJ$253,38,FALSE) -> 9.28 | O10: =VLOOKUP($C10,'RECAP SECT'!$G$6:$FJ$253,39,FALSE) -> 6.31 | P10: =VLOOKUP($C10,'RECAP SECT'!$G$6:$FJ$253,40,FALSE) -> 62% | Q10: =VLOOKUP($C10,'RECAP SECT'!$G$6:$FJ$253,41,FALSE) -> 17 | R10: =VLOOKUP($C10,'RECAP SECT'!$G$6:$FJ$253,42,FALSE) -> 3.36 | S10: =VLOOKUP($C10,'RECAP SECT'!$G$6:$FJ$253,43,FALSE) -> 1.92 | T10: =VLOOKUP($C10,'RECAP SECT'!$G$6:$FJ$253,44,FALSE) -> 25% | U10: =VLOOKUP($C10,'RECAP SECT'!$G$6:$FJ$253,45,FALSE) -> 7 | V10: =VLOOKUP($C10,'RECAP SECT'!$G$6:$FJ$253,46,FALSE) -> 52% | W10: =VLOOKUP($C10,'RECAP SECT'!$G$6:$FJ$253,47,FALSE) -> 42% | X10: =VLOOKUP($C10,'RECAP SECT'!$G$6:$FJ$253,48,FALSE) -> 9
A11: 50 | B11: AUBE HAUTE MARNE | C11: 14 | D11: TROYES | E11: =VLOOKUP($C11,'RECAP SECT'!$G$6:$FJ$253,3,FALSE) -> 67.3 | F11: =VLOOKUP($C11,'RECAP SECT'!$G$6:$FJ$253,30,FALSE) -> 7.54 | G11: =VLOOKUP($C11,'RECAP SECT'!$G$6:$FJ$253,31,FALSE) -> 2.66 | H11: =VLOOKUP($C11,'RECAP SECT'!$G$6:$FJ$253,32,FALSE) -> 80% | I11: =VLOOKUP($C11,'RECAP SECT'!$G$6:$FJ$253,33,FALSE) -> 17 | J11: =VLOOKUP($C11,'RECAP SECT'!$G$6:$FJ$253,34,FALSE) -> 6.63 | K11: =VLOOKUP($C11,'RECAP SECT'!$G$6:$FJ$253,35,FALSE) -> 4.05 | L11: =VLOOKUP($C11,'RECAP SECT'!$G$6:$FJ$253,36,FALSE) -> 58% | M11: =VLOOKUP($C11,'RECAP SECT'!$G$6:$FJ$253,37,FALSE) -> 15 | N11: =VLOOKUP($C11,'RECAP SECT'!$G$6:$FJ$253,38,FALSE) -> 9.22 | O11: =VLOOKUP($C11,'RECAP SECT'!$G$6:$FJ$253,39,FALSE) -> 6.19 | P11: =VLOOKUP($C11,'RECAP SECT'!$G$6:$FJ$253,40,FALSE) -> 63% | Q11: =VLOOKUP($C11,'RECAP SECT'!$G$6:$FJ$253,41,FALSE) -> 18 | R11: =VLOOKUP($C11,'RECAP SECT'!$G$6:$FJ$253,42,FALSE) -> 3.54 | S11: =VLOOKUP($C11,'RECAP SECT'!$G$6:$FJ$253,43,FALSE) -> 2.22 | T11: =VLOOKUP($C11,'RECAP SECT'!$G$6:$FJ$253,44,FALSE) -> 14% | U11: =VLOOKUP($C11,'RECAP SECT'!$G$6:$FJ$253,45,FALSE) -> 3 | V11: =VLOOKUP($C11,'RECAP SECT'!$G$6:$FJ$253,46,FALSE) -> 56% | W11: =VLOOKUP($C11,'RECAP SECT'!$G$6:$FJ$253,47,FALSE) -> 46% | X11: =VLOOKUP($C11,'RECAP SECT'!$G$6:$FJ$253,48,FALSE) -> 11
A12: 262 | B12: BAS-RHIN | C12: 5060 | D12: HAGUENAU | E12: =VLOOKUP($C12,'RECAP SECT'!$G$6:$FJ$253,3,FALSE) -> 75.0 | F12: =VLOOKUP($C12,'RECAP SECT'!$G$6:$FJ$253,30,FALSE) -> 12.71 | G12: =VLOOKUP($C12,'RECAP SECT'!$G$6:$FJ$253,31,FALSE) -> 3.92 | H12: =VLOOKUP($C12,'RECAP SECT'!$G$6:$FJ$253,32,FALSE) -> 70% | I12: =VLOOKUP($C12,'RECAP SECT'!$G$6:$FJ$253,33,FALSE) -> 15 | J12: =VLOOKUP($C12,'RECAP SECT'!$G$6:$FJ$253,34,FALSE) -> 6.05 | K12: =VLOOKUP($C12,'RECAP SECT'!$G$6:$FJ$253,35,FALSE) -> 4.06 | L12: =VLOOKUP($C12,'RECAP SECT'!$G$6:$FJ$253,36,FALSE) -> 58% | M12: =VLOOKUP($C12,'RECAP SECT'!$G$6:$FJ$253,37,FALSE) -> 14 | N12: =VLOOKUP($C12,'RECAP SECT'!$G$6:$FJ$253,38,FALSE) -> 11.71 | O12: =VLOOKUP($C12,'RECAP SECT'!$G$6:$FJ$253,39,FALSE) -> 7.73 | P12: =VLOOKUP($C12,'RECAP SECT'!$G$6:$FJ$253,40,FALSE) -> 54% | Q12: =VLOOKUP($C12,'RECAP SECT'!$G$6:$FJ$253,41,FALSE) -> 12 | R12: =VLOOKUP($C12,'RECAP SECT'!$G$6:$FJ$253,42,FALSE) -> 2.40 | S12: =VLOOKUP($C12,'RECAP SECT'!$G$6:$FJ$253,43,FALSE) -> 1.22 | T12: =VLOOKUP($C12,'RECAP SECT'!$G$6:$FJ$253,44,FALSE) -> 52% | U12: =VLOOKUP($C12,'RECAP SECT'!$G$6:$FJ$253,45,FALSE) -> 11 | V12: =VLOOKUP($C12,'RECAP SECT'!$G$6:$FJ$253,46,FALSE) -> 59% | W12: =VLOOKUP($C12,'RECAP SECT'!$G$6:$FJ$253,47,FALSE) -> 49% | X12: =VLOOKUP($C12,'RECAP SECT'!$G$6:$FJ$253,48,FALSE) -> 14
A13: 262 | B13: BAS-RHIN | C13: 5101 | D13: SELESTAT | E13: =VLOOKUP($C13,'RECAP SECT'!$G$6:$FJ$253,3,FALSE) -> 63.0 | F13: =VLOOKUP($C13,'RECAP SECT'!$G$6:$FJ$253,30,FALSE) -> 10.32 | G13: =VLOOKUP($C13,'RECAP SECT'!$G$6:$FJ$253,31,FALSE) -> 4.16 | H13: =VLOOKUP($C13,'RECAP SECT'!$G$6:$FJ$253,32,FALSE) -> 69% | I13: =VLOOKUP($C13,'RECAP SECT'!$G$6:$FJ$253,33,FALSE) -> 14 | J13: =VLOOKUP($C13,'RECAP SECT'!$G$6:$FJ$253,34,FALSE) -> 6.45 | K13: =VLOOKUP($C13,'RECAP SECT'!$G$6:$FJ$253,35,FALSE) -> 4.74 | L13: =VLOOKUP($C13,'RECAP SECT'!$G$6:$FJ$253,36,FALSE) -> 51% | M13: =VLOOKUP($C13,'RECAP SECT'!$G$6:$FJ$253,37,FALSE) -> 11 | N13: =VLOOKUP($C13,'RECAP SECT'!$G$6:$FJ$253,38,FALSE) -> 14.91 | O13: =VLOOKUP($C13,'RECAP SECT'!$G$6:$FJ$253,39,FALSE) -> 9.94 | P13: =VLOOKUP($C13,'RECAP SECT'!$G$6:$FJ$253,40,FALSE) -> 41% | Q13: =VLOOKUP($C13,'RECAP SECT'!$G$6:$FJ$253,41,FALSE) -> 7 | R13: =VLOOKUP($C13,'RECAP SECT'!$G$6:$FJ$253,42,FALSE) -> 0.92 | S13: =VLOOKUP($C13,'RECAP SECT'!$G$6:$FJ$253,43,FALSE) -> 0.28 | T13: =VLOOKUP($C13,'RECAP SECT'!$G$6:$FJ$253,44,FALSE) -> 89% | U13: =VLOOKUP($C13,'RECAP SECT'!$G$6:$FJ$253,45,FALSE) -> 16 | V13: =VLOOKUP($C13,'RECAP SECT'!$G$6:$FJ$253,46,FALSE) -> 61% | W13: =VLOOKUP($C13,'RECAP SECT'!$G$6:$FJ$253,47,FALSE) -> 51% | X13: =VLOOKUP($C13,'RECAP SECT'!$G$6:$FJ$253,48,FALSE) -> 15
A14: 262 | B14: BAS-RHIN | C14: 5006 | D14: STRASBOURG | E14: =VLOOKUP($C14,'RECAP SECT'!$G$6:$FJ$253,3,FALSE) -> 76.0 | F14: =VLOOKUP($C14,'RECAP SECT'!$G$6:$FJ$253,30,FALSE) -> 12.66 | G14: =VLOOKUP($C14,'RECAP SECT'!$G$6:$FJ$253,31,FALSE) -> 3.65 | H14: =VLOOKUP($C14,'RECAP SECT'!$G$6:$FJ$253,32,FALSE) -> 72% | I14: =VLOOKUP($C14,'RECAP SECT'!$G$6:$FJ$253,33,FALSE) -> 16 | J14: =VLOOKUP($C14,'RECAP SECT'!$G$6:$FJ$253,34,FALSE) -> 14.36 | K14: =VLOOKUP($C14,'RECAP SECT'!$G$6:$FJ$253,35,FALSE) -> 9.24 | L14: =VLOOKUP($C14,'RECAP SECT'!$G$6:$FJ$253,36,FALSE) -> 5% | M14: =VLOOKUP($C14,'RECAP SECT'!$G$6:$FJ$253,37,FALSE) -> 2 | N14: =VLOOKUP($C14,'RECAP SECT'!$G$6:$FJ$253,38,FALSE) -> 25.37 | O14: =VLOOKUP($C14,'RECAP SECT'!$G$6:$FJ$253,39,FALSE) -> 16.75 | P14: =VLOOKUP($C14,'RECAP SECT'!$G$6:$FJ$253,40,FALSE) -> 0% | Q14: =VLOOKUP($C14,'RECAP SECT'!$G$6:$FJ$253,41,FALSE) -> 1 | R14: =VLOOKUP($C14,'RECAP SECT'!$G$6:$FJ$253,42,FALSE) -> 2.67 | S14: =VLOOKUP($C14,'RECAP SECT'!$G$6:$FJ$253,43,FALSE) -> 1.61 | T14: =VLOOKUP($C14,'RECAP SECT'!$G$6:$FJ$253,44,FALSE) -> 37% | U14: =VLOOKUP($C14,'RECAP SECT'!$G$6:$FJ$253,45,FALSE) -> 9 | V14: =VLOOKUP($C14,'RECAP SECT'!$G$6:$FJ$253,46,FALSE) -> 28% | W14: =VLOOKUP($C14,'RECAP SECT'!$G$6:$FJ$253,47,FALSE) -> 18% | X14: =VLOOKUP($C14,'RECAP SECT'!$G$6:$FJ$253,48,FALSE) -> 4
A15: 264 | B15: HAUT-RHIN | C15: 5130 | D15: COLMAR | E15: =VLOOKUP($C15,'RECAP SECT'!$G$6:$FJ$253,3,FALSE) -> 65.9 | F15: =VLOOKUP($C15,'RECAP SECT'!$G$6:$FJ$253,30,FALSE) -> 8.83 | G15: =VLOOKUP($C15,'RECAP SECT'!$G$6:$FJ$253,31,FALSE) -> 4.39 | H15: =VLOOKUP($C15,'RECAP SECT'!$G$6:$FJ$253,32,FALSE) -> 67% | I15: =VLOOKUP($C15,'RECAP SECT'!$G$6:$FJ$253,33,FALSE) -> 13 | J15: =VLOOKUP($C15,'RECAP SECT'!$G$6:$FJ$253,34,FALSE) -> 8.03 | K15: =VLOOKUP($C15,'RECAP SECT'!$G$6:$FJ$253,35,FALSE) -> 5.65 | L15: =VLOOKUP($C15,'RECAP SECT'!$G$6:$FJ$253,36,FALSE) -> 42% | M15: =VLOOKUP($C15,'RECAP SECT'!$G$6:$FJ$253,37,FALSE) -> 8 | N15: =VLOOKUP($C15,'RECAP SECT'!$G$6:$FJ$253,38,FALSE) -> 15.98 | O15: =VLOOKUP($C15,'RECAP SECT'!$G$6:$FJ$253,39,FALSE) -> 10.74 | P15: =VLOOKUP($C15,'RECAP SECT'!$G$6:$FJ$253,40,FALSE) -> 36% | Q15: =VLOOKUP($C15,'RECAP SECT'!$G$6:$FJ$253,41,FALSE) -> 5 | R15: =VLOOKUP($C15,'RECAP SECT'!$G$6:$FJ$253,42,FALSE) -> 1.99 | S15: =VLOOKUP($C15,'RECAP SECT'!$G$6:$FJ$253,43,FALSE) -> 0.80 | T15: =VLOOKUP($C15,'RECAP SECT'!$G$6:$FJ$253,44,FALSE) -> 69% | U15: =VLOOKUP($C15,'RECAP SECT'!$G$6:$FJ$253,45,FALSE) -> 14 | V15: =VLOOKUP($C15,'RECAP SECT'!$G$6:$FJ$253,46,FALSE) -> 52% | W15: =VLOOKUP($C15,'RECAP SECT'!$G$6:$FJ$253,47,FALSE) -> 42% | X15: =VLOOKUP($C15,'RECAP SECT'!$G$6:$FJ$253,48,FALSE) -> 10
A16: 264 | B16: HAUT-RHIN | C16: 5169 | D16: MULHOUSE | E16: =VLOOKUP($C16,'RECAP SECT'!$G$6:$FJ$253,3,FALSE) -> 62.1 | F16: =VLOOKUP($C16,'RECAP SECT'!$G$6:$FJ$253,30,FALSE) -> -0.23 | G16: =VLOOKUP($C16,'RECAP SECT'!$G$6:$FJ$253,31,FALSE) -> -1.97 | H16: =VLOOKUP($C16,'RECAP SECT'!$G$6:$FJ$253,32,FALSE) -> 115% | I16: =VLOOKUP($C16,'RECAP SECT'!$G$6:$FJ$253,33,FALSE) -> 18 | J16: =VLOOKUP($C16,'RECAP SECT'!$G$6:$FJ$253,34,FALSE) -> 5.30 | K16: =VLOOKUP($C16,'RECAP SECT'!$G$6:$FJ$253,35,FALSE) -> 3.70 | L16: =VLOOKUP($C16,'RECAP SECT'!$G$6:$FJ$253,36,FALSE) -> 62% | M16: =VLOOKUP($C16,'RECAP SECT'!$G$6:$FJ$253,37,FALSE) -> 18 | N16: =VLOOKUP($C16,'RECAP SECT'!$G$6:$FJ$253,38,FALSE) -> 10.50 | O16: =VLOOKUP($C16,'RECAP SECT'!$G$6:$FJ$253,39,FALSE) -> 7.34 | P16: =VLOOKUP($C16,'RECAP SECT'!$G$6:$FJ$253,40,FALSE) -> 56% | Q16: =VLOOKUP($C16,'RECAP SECT'!$G$6:$FJ$253,41,FALSE) -> 13 | R16: =VLOOKUP($C16,'RECAP SECT'!$G$6:$FJ$253,42,FALSE) -> 2.03 | S16: =VLOOKUP($C16,'RECAP SECT'!$G$6:$FJ$253,43,FALSE) -> 0.80 | T16: =VLOOKUP($C16,'RECAP SECT'!$G$6:$FJ$253,44,FALSE) -> 69% | U16: =VLOOKUP($C16,'RECAP SECT'!$G$6:$FJ$253,45,FALSE) -> 13 | V16: =VLOOKUP($C16,'RECAP SECT'!$G$6:$FJ$253,46,FALSE) -> 76% | W16: =VLOOKUP($C16,'RECAP SECT'!$G$6:$FJ$253,47,FALSE) -> 66% | X16: =VLOOKUP($C16,'RECAP SECT'!$G$6:$FJ$253,48,FALSE) -> 18
A17: 30 | B17: MARNE-ARDENNES | C17: 6 | D17: CHALONS EN CHAMPAGNE | E17: =VLOOKUP($C17,'RECAP SECT'!$G$6:$FJ$253,3,FALSE) -> 45.2 | F17: =VLOOKUP($C17,'RECAP SECT'!$G$6:$FJ$253,30,FALSE) -> 21.46 | G17: =VLOOKUP($C17,'RECAP SECT'!$G$6:$FJ$253,31,FALSE) -> 10.64 | H17: =VLOOKUP($C17,'RECAP SECT'!$G$6:$FJ$253,32,FALSE) -> 20% | I17: =VLOOKUP($C17,'RECAP SECT'!$G$6:$FJ$253,33,FALSE) -> 4 | J17: =VLOOKUP($C17,'RECAP SECT'!$G$6:$FJ$253,34,FALSE) -> 8.00 | K17: =VLOOKUP($C17,'RECAP SECT'!$G$6:$FJ$253,35,FALSE) -> 5.25 | L17: =VLOOKUP($C17,'RECAP SECT'!$G$6:$FJ$253,36,FALSE) -> 46% | M17: =VLOOKUP($C17,'RECAP SECT'!$G$6:$FJ$253,37,FALSE) -> 10 | N17: =VLOOKUP($C17,'RECAP SECT'!$G$6:$FJ$253,38,FALSE) -> 12.80 | O17: =VLOOKUP($C17,'RECAP SECT'!$G$6:$FJ$253,39,FALSE) -> 8.50 | P17: =VLOOKUP($C17,'RECAP SECT'!$G$6:$FJ$253,40,FALSE) -> 49% | Q17: =VLOOKUP($C17,'RECAP SECT'!$G$6:$FJ$253,41,FALSE) -> 10 | R17: =VLOOKUP($C17,'RECAP SECT'!$G$6:$FJ$253,42,FALSE) -> 2.12 | S17: =VLOOKUP($C17,'RECAP SECT'!$G$6:$FJ$253,43,FALSE) -> 1.07 | T17: =VLOOKUP($C17,'RECAP SECT'!$G$6:$FJ$253,44,FALSE) -> 58% | U17: =VLOOKUP($C17,'RECAP SECT'!$G$6:$FJ$253,45,FALSE) -> 12 | V17: =VLOOKUP($C17,'RECAP SECT'!$G$6:$FJ$253,46,FALSE) -> 42% | W17: =VLOOKUP($C17,'RECAP SECT'!$G$6:$FJ$253,47,FALSE) -> 32% | X17: =VLOOKUP($C17,'RECAP SECT'!$G$6:$FJ$253,48,FALSE) -> 8
A18: 30 | B18: MARNE-ARDENNES | C18: 2 | D18: CHARLEVILLE MEZIERES | E18: =VLOOKUP($C18,'RECAP SECT'!$G$6:$FJ$253,3,FALSE) -> 54.8 | F18: =VLOOKUP($C18,'RECAP SECT'!$G$6:$FJ$253,30,FALSE) -> 20.61 | G18: =VLOOKUP($C18,'RECAP SECT'!$G$6:$FJ$253,31,FALSE) -> 11.65 | H18: =VLOOKUP($C18,'RECAP SECT'!$G$6:$FJ$253,32,FALSE) -> 12% | I18: =VLOOKUP($C18,'RECAP SECT'!$G$6:$FJ$253,33,FALSE) -> 3 | J18: =VLOOKUP($C18,'RECAP SECT'!$G$6:$FJ$253,34,FALSE) -> 11.78 | K18: =VLOOKUP($C18,'RECAP SECT'!$G$6:$FJ$253,35,FALSE) -> 7.82 | L18: =VLOOKUP($C18,'RECAP SECT'!$G$6:$FJ$253,36,FALSE) -> 20% | M18: =VLOOKUP($C18,'RECAP SECT'!$G$6:$FJ$253,37,FALSE) -> 3 | N18: =VLOOKUP($C18,'RECAP SECT'!$G$6:$FJ$253,38,FALSE) -> 16.25 | O18: =VLOOKUP($C18,'RECAP SECT'!$G$6:$FJ$253,39,FALSE) -> 11.06 | P18: =VLOOKUP($C18,'RECAP SECT'!$G$6:$FJ$253,40,FALSE) -> 34% | Q18: =VLOOKUP($C18,'RECAP SECT'!$G$6:$FJ$253,41,FALSE) -> 4 | R18: =VLOOKUP($C18,'RECAP SECT'!$G$6:$FJ$253,42,FALSE) -> 3.47 | S18: =VLOOKUP($C18,'RECAP SECT'!$G$6:$FJ$253,43,FALSE) -> 2.16 | T18: =VLOOKUP($C18,'RECAP SECT'!$G$6:$FJ$253,44,FALSE) -> 16% | U18: =VLOOKUP($C18,'RECAP SECT'!$G$6:$FJ$253,45,FALSE) -> 4 | V18: =VLOOKUP($C18,'RECAP SECT'!$G$6:$FJ$253,46,FALSE) -> 21% | W18: =VLOOKUP($C18,'RECAP SECT'!$G$6:$FJ$253,47,FALSE) -> 11% | X18: =VLOOKUP($C18,'RECAP SECT'!$G$6:$FJ$253,48,FALSE) -> 3
A19: 30 | B19: MARNE-ARDENNES | C19: 11 | D19: REIMS | E19: =VLOOKUP($C19,'RECAP SECT'!$G$6:$FJ$253,3,FALSE) -> 80.3 | F19: =VLOOKUP($C19,'RECAP SECT'!$G$6:$FJ$253,30,FALSE) -> 20.51 | G19: =VLOOKUP($C19,'RECAP SECT'!$G$6:$FJ$253,31,FALSE) -> 12.58 | H19: =VLOOKUP($C19,'RECAP SECT'!$G$6:$FJ$253,32,FALSE) -> 5% | I19: =VLOOKUP($C19,'RECAP SECT'!$G$6:$FJ$253,33,FALSE) -> 2 | J19: =VLOOKUP($C19,'RECAP SECT'!$G$6:$FJ$253,34,FALSE) -> 10.78 | K19: =VLOOKUP($C19,'RECAP SECT'!$G$6:$FJ$253,35,FALSE) -> 7.12 | L19: =VLOOKUP($C19,'RECAP SECT'!$G$6:$FJ$253,36,FALSE) -> 27% | M19: =VLOOKUP($C19,'RECAP SECT'!$G$6:$FJ$253,37,FALSE) -> 4 | N19: =VLOOKUP($C19,'RECAP SECT'!$G$6:$FJ$253,38,FALSE) -> 14.90 | O19: =VLOOKUP($C19,'RECAP SECT'!$G$6:$FJ$253,39,FALSE) -> 10.19 | P19: =VLOOKUP($C19,'RECAP SECT'!$G$6:$FJ$253,40,FALSE) -> 39% | Q19: =VLOOKUP($C19,'RECAP SECT'!$G$6:$FJ$253,41,FALSE) -> 6 | R19: =VLOOKUP($C19,'RECAP SECT'!$G$6:$FJ$253,42,FALSE) -> 3.82 | S19: =VLOOKUP($C19,'RECAP SECT'!$G$6:$FJ$253,43,FALSE) -> 2.56 | T19: =VLOOKUP($C19,'RECAP SECT'!$G$6:$FJ$253,44,FALSE) -> 0% | U19: =VLOOKUP($C19,'RECAP SECT'!$G$6:$FJ$253,45,FALSE) -> 1 | V19: =VLOOKUP($C19,'RECAP SECT'!$G$6:$FJ$253,46,FALSE) -> 19% | W19: =VLOOKUP($C19,'RECAP SECT'!$G$6:$FJ$253,47,FALSE) -> 9% | X19: =VLOOKUP($C19,'RECAP SECT'!$G$6:$FJ$253,48,FALSE) -> 2
A20: 110 | B20: MEURTHE ET MOSELLE MEUSE | C20: 26 | D20: NANCY | E20: =VLOOKUP($C20,'RECAP SECT'!$G$6:$FJ$253,3,FALSE) -> 65.2 | F20: =VLOOKUP($C20,'RECAP SECT'!$G$6:$FJ$253,30,FALSE) -> 19.18 | G20: =VLOOKUP($C20,'RECAP SECT'!$G$6:$FJ$253,31,FALSE) -> 8.84 | H20: =VLOOKUP($C20,'RECAP SECT'!$G$6:$FJ$253,32,FALSE) -> 33% | I20: =VLOOKUP($C20,'RECAP SECT'!$G$6:$FJ$253,33,FALSE) -> 5 | J20: =VLOOKUP($C20,'RECAP SECT'!$G$6:$FJ$253,34,FALSE) -> 9.73 | K20: =VLOOKUP($C20,'RECAP SECT'!$G$6:$FJ$253,35,FALSE) -> 6.38 | L20: =VLOOKUP($C20,'RECAP SECT'!$G$6:$FJ$253,36,FALSE) -> 34% | M20: =VLOOKUP($C20,'RECAP SECT'!$G$6:$FJ$253,37,FALSE) -> 6 | N20: =VLOOKUP($C20,'RECAP SECT'!$G$6:$FJ$253,38,FALSE) -> 13.28 | O20: =VLOOKUP($C20,'RECAP SECT'!$G$6:$FJ$253,39,FALSE) -> 9.09 | P20: =VLOOKUP($C20,'RECAP SECT'!$G$6:$FJ$253,40,FALSE) -> 46% | Q20: =VLOOKUP($C20,'RECAP SECT'!$G$6:$FJ$253,41,FALSE) -> 9 | R20: =VLOOKUP($C20,'RECAP SECT'!$G$6:$FJ$253,42,FALSE) -> 4.16 | S20: =VLOOKUP($C20,'RECAP SECT'!$G$6:$FJ$253,43,FALSE) -> 2.26 | T20: =VLOOKUP($C20,'RECAP SECT'!$G$6:$FJ$253,44,FALSE) -> 12% | U20: =VLOOKUP($C20,'RECAP SECT'!$G$6:$FJ$253,45,FALSE) -> 2 | V20: =VLOOKUP($C20,'RECAP SECT'!$G$6:$FJ$253,46,FALSE) -> 33% | W20: =VLOOKUP($C20,'RECAP SECT'!$G$6:$FJ$253,47,FALSE) -> 23% | X20: =VLOOKUP($C20,'RECAP SECT'!$G$6:$FJ$253,48,FALSE) -> 5
A21: 110 | B21: MEURTHE ET MOSELLE MEUSE | C21: 27 | D21: PONT A MOUSSON | E21: =VLOOKUP($C21,'RECAP SECT'!$G$6:$FJ$253,3,FALSE) -> 74.0 | F21: =VLOOKUP($C21,'RECAP SECT'!$G$6:$FJ$253,30,FALSE) -> 26.47 | G21: =VLOOKUP($C21,'RECAP SECT'!$G$6:$FJ$253,31,FALSE) -> 13.24 | H21: =VLOOKUP($C21,'RECAP SECT'!$G$6:$FJ$253,32,FALSE) -> 0% | I21: =VLOOKUP($C21,'RECAP SECT'!$G$6:$FJ$253,33,FALSE) -> 1 | J21: =VLOOKUP($C21,'RECAP SECT'!$G$6:$FJ$253,34,FALSE) -> 14.98 | K21: =VLOOKUP($C21,'RECAP SECT'!$G$6:$FJ$253,35,FALSE) -> 9.74 | L21: =VLOOKUP($C21,'RECAP SECT'!$G$6:$FJ$253,36,FALSE) -> 0% | M21: =VLOOKUP($C21,'RECAP SECT'!$G$6:$FJ$253,37,FALSE) -> 1 | N21: =VLOOKUP($C21,'RECAP SECT'!$G$6:$FJ$253,38,FALSE) -> 20.11 | O21: =VLOOKUP($C21,'RECAP SECT'!$G$6:$FJ$253,39,FALSE) -> 13.46 | P21: =VLOOKUP($C21,'RECAP SECT'!$G$6:$FJ$253,40,FALSE) -> 20% | Q21: =VLOOKUP($C21,'RECAP SECT'!$G$6:$FJ$253,41,FALSE) -> 2 | R21: =VLOOKUP($C21,'RECAP SECT'!$G$6:$FJ$253,42,FALSE) -> 2.73 | S21: =VLOOKUP($C21,'RECAP SECT'!$G$6:$FJ$253,43,FALSE) -> 1.95 | T21: =VLOOKUP($C21,'RECAP SECT'!$G$6:$FJ$253,44,FALSE) -> 24% | U21: =VLOOKUP($C21,'RECAP SECT'!$G$6:$FJ$253,45,FALSE) -> 6 | V21: =VLOOKUP($C21,'RECAP SECT'!$G$6:$FJ$253,46,FALSE) -> 10% | W21: =VLOOKUP($C21,'RECAP SECT'!$G$6:$FJ$253,47,FALSE) -> 0% | X21: =VLOOKUP($C21,'RECAP SECT'!$G$6:$FJ$253,48,FALSE) -> 1
A22: 110 | B22: MEURTHE ET MOSELLE MEUSE | C22: 31 | D22: VERDUN | E22: =VLOOKUP($C22,'RECAP SECT'!$G$6:$FJ$253,3,FALSE) -> 53.6 | F22: =VLOOKUP($C22,'RECAP SECT'!$G$6:$FJ$253,30,FALSE) -> 12.93 | G22: =VLOOKUP($C22,'RECAP SECT'!$G$6:$FJ$253,31,FALSE) -> 5.80 | H22: =VLOOKUP($C22,'RECAP SECT'!$G$6:$FJ$253,32,FALSE) -> 56% | I22: =VLOOKUP($C22,'RECAP SECT'!$G$6:$FJ$253,33,FALSE) -> 7 | J22: =VLOOKUP($C22,'RECAP SECT'!$G$6:$FJ$253,34,FALSE) -> 10.39 | K22: =VLOOKUP($C22,'RECAP SECT'!$G$6:$FJ$253,35,FALSE) -> 6.43 | L22: =VLOOKUP($C22,'RECAP SECT'!$G$6:$FJ$253,36,FALSE) -> 34% | M22: =VLOOKUP($C22,'RECAP SECT'!$G$6:$FJ$253,37,FALSE) -> 5 | N22: =VLOOKUP($C22,'RECAP SECT'!$G$6:$FJ$253,38,FALSE) -> 14.65 | O22: =VLOOKUP($C22,'RECAP SECT'!$G$6:$FJ$253,39,FALSE) -> 9.71 | P22: =VLOOKUP($C22,'RECAP SECT'!$G$6:$FJ$253,40,FALSE) -> 42% | Q22: =VLOOKUP($C22,'RECAP SECT'!$G$6:$FJ$253,41,FALSE) -> 8 | R22: =VLOOKUP($C22,'RECAP SECT'!$G$6:$FJ$253,42,FALSE) -> 2.72 | S22: =VLOOKUP($C22,'RECAP SECT'!$G$6:$FJ$253,43,FALSE) -> 1.88 | T22: =VLOOKUP($C22,'RECAP SECT'!$G$6:$FJ$253,44,FALSE) -> 27% | U22: =VLOOKUP($C22,'RECAP SECT'!$G$6:$FJ$253,45,FALSE) -> 8 | V22: =VLOOKUP($C22,'RECAP SECT'!$G$6:$FJ$253,46,FALSE) -> 41% | W22: =VLOOKUP($C22,'RECAP SECT'!$G$6:$FJ$253,47,FALSE) -> 31% | X22: =VLOOKUP($C22,'RECAP SECT'!$G$6:$FJ$253,48,FALSE) -> 7
A23: 160 | B23: MOSELLE | C23: 45 | D23: METZ | E23: =VLOOKUP($C23,'RECAP SECT'!$G$6:$FJ$253,3,FALSE) -> 87.6 | F23: =VLOOKUP($C23,'RECAP SECT'!$G$6:$FJ$253,30,FALSE) -> 12.45 | G23: =VLOOKUP($C23,'RECAP SECT'!$G$6:$FJ$253,31,FALSE) -> 5.10 | H23: =VLOOKUP($C23,'RECAP SECT'!$G$6:$FJ$253,32,FALSE) -> 61% | I23: =VLOOKUP($C23,'RECAP SECT'!$G$6:$FJ$253,33,FALSE) -> 11 | J23: =VLOOKUP($C23,'RECAP SECT'!$G$6:$FJ$253,34,FALSE) -> 5.91 | K23: =VLOOKUP($C23,'RECAP SECT'!$G$6:$FJ$253,35,FALSE) -> 3.98 | L23: =VLOOKUP($C23,'RECAP SECT'!$G$6:$FJ$253,36,FALSE) -> 59% | M23: =VLOOKUP($C23,'RECAP SECT'!$G$6:$FJ$253,37,FALSE) -> 16 | N23: =VLOOKUP($C23,'RECAP SECT'!$G$6:$FJ$253,38,FALSE) -> 9.25 | O23: =VLOOKUP($C23,'RECAP SECT'!$G$6:$FJ$253,39,FALSE) -> 6.48 | P23: =VLOOKUP($C23,'RECAP SECT'!$G$6:$FJ$253,40,FALSE) -> 61% | Q23: =VLOOKUP($C23,'RECAP SECT'!$G$6:$FJ$253,41,FALSE) -> 16 | R23: =VLOOKUP($C23,'RECAP SECT'!$G$6:$FJ$253,42,FALSE) -> 1.76 | S23: =VLOOKUP($C23,'RECAP SECT'!$G$6:$FJ$253,43,FALSE) -> 0.64 | T23: =VLOOKUP($C23,'RECAP SECT'!$G$6:$FJ$253,44,FALSE) -> 75% | U23: =VLOOKUP($C23,'RECAP SECT'!$G$6:$FJ$253,45,FALSE) -> 15 | V23: =VLOOKUP($C23,'RECAP SECT'!$G$6:$FJ$253,46,FALSE) -> 63% | W23: =VLOOKUP($C23,'RECAP SECT'!$G$6:$FJ$253,47,FALSE) -> 53% | X23: =VLOOKUP($C23,'RECAP SECT'!$G$6:$FJ$253,48,FALSE) -> 17
A24: 160 | B24: MOSELLE | C24: 42 | D24: MOSELLE EST | E24: =VLOOKUP($C24,'RECAP SECT'!$G$6:$FJ$253,3,FALSE) -> 73.0 | F24: =VLOOKUP($C24,'RECAP SECT'!$G$6:$FJ$253,30,FALSE) -> 10.92 | G24: =VLOOKUP($C24,'RECAP SECT'!$G$6:$FJ$253,31,FALSE) -> 5.76 | H24: =VLOOKUP($C24,'RECAP SECT'!$G$6:$FJ$253,32,FALSE) -> 57% | I24: =VLOOKUP($C24,'RECAP SECT'!$G$6:$FJ$253,33,FALSE) -> 8 | J24: =VLOOKUP($C24,'RECAP SECT'!$G$6:$FJ$253,34,FALSE) -> 6.91 | K24: =VLOOKUP($C24,'RECAP SECT'!$G$6:$FJ$253,35,FALSE) -> 4.67 | L24: =VLOOKUP($C24,'RECAP SECT'!$G$6:$FJ$253,36,FALSE) -> 52% | M24: =VLOOKUP($C24,'RECAP SECT'!$G$6:$FJ$253,37,FALSE) -> 12 | N24: =VLOOKUP($C24,'RECAP SECT'!$G$6:$FJ$253,38,FALSE) -> 10.14 | O24: =VLOOKUP($C24,'RECAP SECT'!$G$6:$FJ$253,39,FALSE) -> 7.02 | P24: =VLOOKUP($C24,'RECAP SECT'!$G$6:$FJ$253,40,FALSE) -> 58% | Q24: =VLOOKUP($C24,'RECAP SECT'!$G$6:$FJ$253,41,FALSE) -> 14 | R24: =VLOOKUP($C24,'RECAP SECT'!$G$6:$FJ$253,42,FALSE) -> 0.89 | S24: =VLOOKUP($C24,'RECAP SECT'!$G$6:$FJ$253,43,FALSE) -> 0.19 | T24: =VLOOKUP($C24,'RECAP SECT'!$G$6:$FJ$253,44,FALSE) -> 93% | U24: =VLOOKUP($C24,'RECAP SECT'!$G$6:$FJ$253,45,FALSE) -> 17 | V24: =VLOOKUP($C24,'RECAP SECT'!$G$6:$FJ$253,46,FALSE) -> 63% | W24: =VLOOKUP($C24,'RECAP SECT'!$G$6:$FJ$253,47,FALSE) -> 53% | X24: =VLOOKUP($C24,'RECAP SECT'!$G$6:$FJ$253,48,FALSE) -> 16
A25: 160 | B25: MOSELLE | C25: 44 | D25: MOSELLE NORD | E25: =VLOOKUP($C25,'RECAP SECT'!$G$6:$FJ$253,3,FALSE) -> 71.8 | F25: =VLOOKUP($C25,'RECAP SECT'!$G$6:$FJ$253,30,FALSE) -> 12.03 | G25: =VLOOKUP($C25,'RECAP SECT'!$G$6:$FJ$253,31,FALSE) -> 7.62 | H25: =VLOOKUP($C25,'RECAP SECT'!$G$6:$FJ$253,32,FALSE) -> 42% | I25: =VLOOKUP($C25,'RECAP SECT'!$G$6:$FJ$253,33,FALSE) -> 6 | J25: =VLOOKUP($C25,'RECAP SECT'!$G$6:$FJ$253,34,FALSE) -> 8.38 | K25: =VLOOKUP($C25,'RECAP SECT'!$G$6:$FJ$253,35,FALSE) -> 5.52 | L25: =VLOOKUP($C25,'RECAP SECT'!$G$6:$FJ$253,36,FALSE) -> 43% | M25: =VLOOKUP($C25,'RECAP SECT'!$G$6:$FJ$253,37,FALSE) -> 9 | N25: =VLOOKUP($C25,'RECAP SECT'!$G$6:$FJ$253,38,FALSE) -> 12.06 | O25: =VLOOKUP($C25,'RECAP SECT'!$G$6:$FJ$253,39,FALSE) -> 8.37 | P25: =VLOOKUP($C25,'RECAP SECT'!$G$6:$FJ$253,40,FALSE) -> 50% | Q25: =VLOOKUP($C25,'RECAP SECT'!$G$6:$FJ$253,41,FALSE) -> 11 | R25: =VLOOKUP($C25,'RECAP SECT'!$G$6:$FJ$253,42,FALSE) -> 0.38 | S25: =VLOOKUP($C25,'RECAP SECT'!$G$6:$FJ$253,43,FALSE) -> -0.19 | T25: =VLOOKUP($C25,'RECAP SECT'!$G$6:$FJ$253,44,FALSE) -> 107% | U25: =VLOOKUP($C25,'RECAP SECT'!$G$6:$FJ$253,45,FALSE) -> 18 | V25: =VLOOKUP($C25,'RECAP SECT'!$G$6:$FJ$253,46,FALSE) -> 58% | W25: =VLOOKUP($C25,'RECAP SECT'!$G$6:$FJ$253,47,FALSE) -> 48% | X25: =VLOOKUP($C25,'RECAP SECT'!$G$6:$FJ$253,48,FALSE) -> 13
A26: 80 | B26: VOSGES | C26: 57 | D26: EPINAL | E26: =VLOOKUP($C26,'RECAP SECT'!$G$6:$FJ$253,3,FALSE) -> 59.8 | F26: =VLOOKUP($C26,'RECAP SECT'!$G$6:$FJ$253,30,FALSE) -> 14.83 | G26: =VLOOKUP($C26,'RECAP SECT'!$G$6:$FJ$253,31,FALSE) -> 4.81 | H26: =VLOOKUP($C26,'RECAP SECT'!$G$6:$FJ$253,32,FALSE) -> 64% | I26: =VLOOKUP($C26,'RECAP SECT'!$G$6:$FJ$253,33,FALSE) -> 12 | J26: =VLOOKUP($C26,'RECAP SECT'!$G$6:$FJ$253,34,FALSE) -> 5.73 | K26: =VLOOKUP($C26,'RECAP SECT'!$G$6:$FJ$253,35,FALSE) -> 3.92 | L26: =VLOOKUP($C26,'RECAP SECT'!$G$6:$FJ$253,36,FALSE) -> 60% | M26: =VLOOKUP($C26,'RECAP SECT'!$G$6:$FJ$253,37,FALSE) -> 17 | N26: =VLOOKUP($C26,'RECAP SECT'!$G$6:$FJ$253,38,FALSE) -> 9.84 | O26: =VLOOKUP($C26,'RECAP SECT'!$G$6:$FJ$253,39,FALSE) -> 6.51 | P26: =VLOOKUP($C26,'RECAP SECT'!$G$6:$FJ$253,40,FALSE) -> 61% | Q26: =VLOOKUP($C26,'RECAP SECT'!$G$6:$FJ$253,41,FALSE) -> 15 | R26: =VLOOKUP($C26,'RECAP SECT'!$G$6:$FJ$253,42,FALSE) -> 2.64 | S26: =VLOOKUP($C26,'RECAP SECT'!$G$6:$FJ$253,43,FALSE) -> 1.50 | T26: =VLOOKUP($C26,'RECAP SECT'!$G$6:$FJ$253,44,FALSE) -> 41% | U26: =VLOOKUP($C26,'RECAP SECT'!$G$6:$FJ$253,45,FALSE) -> 10 | V26: =VLOOKUP($C26,'RECAP SECT'!$G$6:$FJ$253,46,FALSE) -> 58% | W26: =VLOOKUP($C26,'RECAP SECT'!$G$6:$FJ$253,47,FALSE) -> 48% | X26: =VLOOKUP($C26,'RECAP SECT'!$G$6:$FJ$253,48,FALSE) -> 12
A27: 80 | B27: VOSGES | C27: 55 | D27: SAINT DIE | E27: =VLOOKUP($C27,'RECAP SECT'!$G$6:$FJ$253,3,FALSE) -> 48.0 | F27: =VLOOKUP($C27,'RECAP SECT'!$G$6:$FJ$253,30,FALSE) -> 13.74 | G27: =VLOOKUP($C27,'RECAP SECT'!$G$6:$FJ$253,31,FALSE) -> 5.66 | H27: =VLOOKUP($C27,'RECAP SECT'!$G$6:$FJ$253,32,FALSE) -> 57% | I27: =VLOOKUP($C27,'RECAP SECT'!$G$6:$FJ$253,33,FALSE) -> 10 | J27: =VLOOKUP($C27,'RECAP SECT'!$G$6:$FJ$253,34,FALSE) -> 8.76 | K27: =VLOOKUP($C27,'RECAP SECT'!$G$6:$FJ$253,35,FALSE) -> 5.94 | L27: =VLOOKUP($C27,'RECAP SECT'!$G$6:$FJ$253,36,FALSE) -> 39% | M27: =VLOOKUP($C27,'RECAP SECT'!$G$6:$FJ$253,37,FALSE) -> 7 | N27: =VLOOKUP($C27,'RECAP SECT'!$G$6:$FJ$253,38,FALSE) -> 17.74 | O27: =VLOOKUP($C27,'RECAP SECT'!$G$6:$FJ$253,39,FALSE) -> 12.05 | P27: =VLOOKUP($C27,'RECAP SECT'!$G$6:$FJ$253,40,FALSE) -> 28% | Q27: =VLOOKUP($C27,'RECAP SECT'!$G$6:$FJ$253,41,FALSE) -> 3 | R27: =VLOOKUP($C27,'RECAP SECT'!$G$6:$FJ$253,42,FALSE) -> 3.34 | S27: =VLOOKUP($C27,'RECAP SECT'!$G$6:$FJ$253,43,FALSE) -> 2.09 | T27: =VLOOKUP($C27,'RECAP SECT'!$G$6:$FJ$253,44,FALSE) -> 18% | U27: =VLOOKUP($C27,'RECAP SECT'!$G$6:$FJ$253,45,FALSE) -> 5 | V27: =VLOOKUP($C27,'RECAP SECT'!$G$6:$FJ$253,46,FALSE) -> 37% | W27: =VLOOKUP($C27,'RECAP SECT'!$G$6:$FJ$253,47,FALSE) -> 27% | X27: =VLOOKUP($C27,'RECAP SECT'!$G$6:$FJ$253,48,FALSE) -> 6
A28: Total CEGEE Directions Régionales | E28: =SUM(E10:E27) -> 1159

Sheet SE_EPARGNE
B1: Accueil | F1: BAROMETRE BDD - TERRITOIRES
F2: EPARGNE
F3: =ACCUEIL!F7 -> 2020-12-31
F7: Excédent Epargne Liquide | J7: CA UC + arbitrage | N7: Excédent Assurance Vie | R7: Total Epargne
F8: =DATEMAJ!C17 -> au 31/12 | H8: coef | I8: ='RECAP DIRCOM'!BL4 -> 3% | J8: =DATEMAJ!C18 -> au 24/12 | L8: coef | M8: ='RECAP DIRCOM'!BP4 -> 4% | N8: =DATEMAJ!C19 -> au 31/12 | P8: coef | Q8: ='RECAP DIRCOM'!BT4 -> 3% | S8: coef | T8: ='RECAP DIRCOM'!BW4 -> 10%
A9: eds | B9: Direction | C9: eds | D9: Territoire | E9: ="ETP perf "&DATEMAJ!$C$39 -> ETP perf au 31/10 | F9: Réal / ETP | G9: PNB / ETP | H9: % Ecart au 1er | I9: Rang | J9: Réal / ETP | K9: PNB / ETP | L9: % Ecart au 1er | M9: Rang | N9: Réal / ETP | O9: PNB / ETP | P9: % Ecart au 1er | Q9: Rang | R9: Moyenne ecart au 1er | S9: % Ecart au 1er | T9: Rang CEGEE
A10: 50 | B10: AUBE HAUTE MARNE | C10: 21 | D10: CHAUMONT | E10: =VLOOKUP($C10,'RECAP SECT'!$G$6:$FJ$253,3,FALSE) -> 36.0 | F10: =VLOOKUP($C10,'RECAP SECT'!$G$6:$FJ$253,55,FALSE) -> 507.64 | G10: =VLOOKUP($C10,'RECAP SECT'!$G$6:$FJ$253,56,FALSE) -> 12.46 | H10: =VLOOKUP($C10,'RECAP SECT'!$G$6:$FJ$253,57,FALSE) -> 25% | I10: =VLOOKUP($C10,'RECAP SECT'!$G$6:$FJ$253,58,FALSE) -> 5 | J10: =VLOOKUP($C10,'RECAP SECT'!$G$6:$FJ$253,59,FALSE) -> 178.46 | K10: =VLOOKUP($C10,'RECAP SECT'!$G$6:$FJ$253,60,FALSE) -> 1.27 | L10: =VLOOKUP($C10,'RECAP SECT'!$G$6:$FJ$253,61,FALSE) -> 37% | M10: =VLOOKUP($C10,'RECAP SECT'!$G$6:$FJ$253,62,FALSE) -> 11 | N10: =VLOOKUP($C10,'RECAP SECT'!$G$6:$FJ$253,63,FALSE) -> -35.24 | O10: =VLOOKUP($C10,'RECAP SECT'!$G$6:$FJ$253,64,FALSE) -> -1.27 | P10: =VLOOKUP($C10,'RECAP SECT'!$G$6:$FJ$253,65,FALSE) -> 72% | Q10: =VLOOKUP($C10,'RECAP SECT'!$G$6:$FJ$253,66,FALSE) -> 9 | R10: =VLOOKUP($C10,'RECAP SECT'!$G$6:$FJ$253,67,FALSE) -> 44% | S10: =VLOOKUP($C10,'RECAP SECT'!$G$6:$FJ$253,68,FALSE) -> 21% | T10: =VLOOKUP($C10,'RECAP SECT'!$G$6:$FJ$253,69,FALSE) -> 8
A11: 50 | B11: AUBE HAUTE MARNE | C11: 14 | D11: TROYES | E11: =VLOOKUP($C11,'RECAP SECT'!$G$6:$FJ$253,3,FALSE) -> 67.3 | F11: =VLOOKUP($C11,'RECAP SECT'!$G$6:$FJ$253,55,FALSE) -> 449.34 | G11: =VLOOKUP($C11,'RECAP SECT'!$G$6:$FJ$253,56,FALSE) -> 9.78 | H11: =VLOOKUP($C11,'RECAP SECT'!$G$6:$FJ$253,57,FALSE) -> 41% | I11: =VLOOKUP($C11,'RECAP SECT'!$G$6:$FJ$253,58,FALSE) -> 15 | J11: =VLOOKUP($C11,'RECAP SECT'!$G$6:$FJ$253,59,FALSE) -> 247.43 | K11: =VLOOKUP($C11,'RECAP SECT'!$G$6:$FJ$253,60,FALSE) -> 1.84 | L11: =VLOOKUP($C11,'RECAP SECT'!$G$6:$FJ$253,61,FALSE) -> 8% | M11: =VLOOKUP($C11,'RECAP SECT'!$G$6:$FJ$253,62,FALSE) -> 3 | N11: =VLOOKUP($C11,'RECAP SECT'!$G$6:$FJ$253,63,FALSE) -> -154.32 | O11: =VLOOKUP($C11,'RECAP SECT'!$G$6:$FJ$253,64,FALSE) -> -5.55 | P11: =VLOOKUP($C11,'RECAP SECT'!$G$6:$FJ$253,65,FALSE) -> 144% | Q11: =VLOOKUP($C11,'RECAP SECT'!$G$6:$FJ$253,66,FALSE) -> 17 | R11: =VLOOKUP($C11,'RECAP SECT'!$G$6:$FJ$253,67,FALSE) -> 59% | S11: =VLOOKUP($C11,'RECAP SECT'!$G$6:$FJ$253,68,FALSE) -> 36% | T11: =VLOOKUP($C11,'RECAP SECT'!$G$6:$FJ$253,69,FALSE) -> 16
A12: 262 | B12: BAS-RHIN | C12: 5060 | D12: HAGUENAU | E12: =VLOOKUP($C12,'RECAP SECT'!$G$6:$FJ$253,3,FALSE) -> 75.0 | F12: =VLOOKUP($C12,'RECAP SECT'!$G$6:$FJ$253,55,FALSE) -> 451.74 | G12: =VLOOKUP($C12,'RECAP SECT'!$G$6:$FJ$253,56,FALSE) -> 11.02 | H12: =VLOOKUP($C12,'RECAP SECT'!$G$6:$FJ$253,57,FALSE) -> 34% | I12: =VLOOKUP($C12,'RECAP SECT'!$G$6:$FJ$253,58,FALSE) -> 10 | J12: =VLOOKUP($C12,'RECAP SECT'!$G$6:$FJ$253,59,FALSE) -> 202.95 | K12: =VLOOKUP($C12,'RECAP SECT'!$G$6:$FJ$253,60,FALSE) -> 1.21 | L12: =VLOOKUP($C12,'RECAP SECT'!$G$6:$FJ$253,61,FALSE) -> 40% | M12: =VLOOKUP($C12,'RECAP SECT'!$G$6:$FJ$253,62,FALSE) -> 15 | N12: =VLOOKUP($C12,'RECAP SECT'!$G$6:$FJ$253,63,FALSE) -> 32.33 | O12: =VLOOKUP($C12,'RECAP SECT'!$G$6:$FJ$253,64,FALSE) -> 1.16 | P12: =VLOOKUP($C12,'RECAP SECT'!$G$6:$FJ$253,65,FALSE) -> 31% | Q12: =VLOOKUP($C12,'RECAP SECT'!$G$6:$FJ$253,66,FALSE) -> 3 | R12: =VLOOKUP($C12,'RECAP SECT'!$G$6:$FJ$253,67,FALSE) -> 35% | S12: =VLOOKUP($C12,'RECAP SECT'!$G$6:$FJ$253,68,FALSE) -> 12% | T12: =VLOOKUP($C12,'RECAP SECT'!$G$6:$FJ$253,69,FALSE) -> 4
A13: 262 | B13: BAS-RHIN | C13: 5101 | D13: SELESTAT | E13: =VLOOKUP($C13,'RECAP SECT'!$G$6:$FJ$253,3,FALSE) -> 63.0 | F13: =VLOOKUP($C13,'RECAP SECT'!$G$6:$FJ$253,55,FALSE) -> 610.07 | G13: =VLOOKUP($C13,'RECAP SECT'!$G$6:$FJ$253,56,FALSE) -> 13.72 | H13: =VLOOKUP($C13,'RECAP SECT'!$G$6:$FJ$253,57,FALSE) -> 18% | I13: =VLOOKUP($C13,'RECAP SECT'!$G$6:$FJ$253,58,FALSE) -> 3 | J13: =VLOOKUP($C13,'RECAP SECT'!$G$6:$FJ$253,59,FALSE) -> 218.92 | K13: =VLOOKUP($C13,'RECAP SECT'!$G$6:$FJ$253,60,FALSE) -> 1.46 | L13: =VLOOKUP($C13,'RECAP SECT'!$G$6:$FJ$253,61,FALSE) -> 28% | M13: =VLOOKUP($C13,'RECAP SECT'!$G$6:$FJ$253,62,FALSE) -> 8 | N13: =VLOOKUP($C13,'RECAP SECT'!$G$6:$FJ$253,63,FALSE) -> -73.92 | O13: =VLOOKUP($C13,'RECAP SECT'!$G$6:$FJ$253,64,FALSE) -> -2.66 | P13: =VLOOKUP($C13,'RECAP SECT'!$G$6:$FJ$253,65,FALSE) -> 95% | Q13: =VLOOKUP($C13,'RECAP SECT'!$G$6:$FJ$253,66,FALSE) -> 10 | R13: =VLOOKUP($C13,'RECAP SECT'!$G$6:$FJ$253,67,FALSE) -> 45% | S13: =VLOOKUP($C13,'RECAP SECT'!$G$6:$FJ$253,68,FALSE) -> 22% | T13: =VLOOKUP($C13,'RECAP SECT'!$G$6:$FJ$253,69,FALSE) -> 9
A14: 262 | B14: BAS-RHIN | C14: 5006 | D14: STRASBOURG | E14: =VLOOKUP($C14,'RECAP SECT'!$G$6:$FJ$253,3,FALSE) -> 76.0 | F14: =VLOOKUP($C14,'RECAP SECT'!$G$6:$FJ$253,55,FALSE) -> 624.04 | G14: =VLOOKUP($C14,'RECAP SECT'!$G$6:$FJ$253,56,FALSE) -> 14.43 | H14: =VLOOKUP($C14,'RECAP SECT'!$G$6:$FJ$253,57,FALSE) -> 13% | I14: =VLOOKUP($C14,'RECAP SECT'!$G$6:$FJ$253,58,FALSE) -> 2 | J14: =VLOOKUP($C14,'RECAP SECT'!$G$6:$FJ$253,59,FALSE) -> 268.21 | K14: =VLOOKUP($C14,'RECAP SECT'!$G$6:$FJ$253,60,FALSE) -> 1.93 | L14: =VLOOKUP($C14,'RECAP SECT'!$G$6:$FJ$253,61,FALSE) -> 4% | M14: =VLOOKUP($C14,'RECAP SECT'!$G$6:$FJ$253,62,FALSE) -> 2 | N14: =VLOOKUP($C14,'RECAP SECT'!$G$6:$FJ$253,63,FALSE) -> -120.58 | O14: =VLOOKUP($C14,'RECAP SECT'!$G$6:$FJ$253,64,FALSE) -> -4.33 | P14: =VLOOKUP($C14,'RECAP SECT'!$G$6:$FJ$253,65,FALSE) -> 124% | Q14: =VLOOKUP($C14,'RECAP SECT'!$G$6:$FJ$253,66,FALSE) -> 14 | R14: =VLOOKUP($C14,'RECAP SECT'!$G$6:$FJ$253,67,FALSE) -> 43% | S14: =VLOOKUP($C14,'RECAP SECT'!$G$6:$FJ$253,68,FALSE) -> 20% | T14: =VLOOKUP($C14,'RECAP SECT'!$G$6:$FJ$253,69,FALSE) -> 7
A15: 264 | B15: HAUT-RHIN | C15: 5130 | D15: COLMAR | E15: =VLOOKUP($C15,'RECAP SECT'!$G$6:$FJ$253,3,FALSE) -> 65.9 | F15: =VLOOKUP($C15,'RECAP SECT'!$G$6:$FJ$253,55,FALSE) -> 516.36 | G15: =VLOOKUP($C15,'RECAP SECT'!$G$6:$FJ$253,56,FALSE) -> 11.79 | H15: =VLOOKUP($C15,'RECAP SECT'!$G$6:$FJ$253,57,FALSE) -> 29% | I15: =VLOOKUP($C15,'RECAP SECT'!$G$6:$FJ$253,58,FALSE) -> 7 | J15: =VLOOKUP($C15,'RECAP SECT'!$G$6:$FJ$253,59,FALSE) -> 248.95 | K15: =VLOOKUP($C15,'RECAP SECT'!$G$6:$FJ$253,60,FALSE) -> 2.01 | L15: =VLOOKUP($C15,'RECAP SECT'!$G$6:$FJ$253,61,FALSE) -> 0% | M15: =VLOOKUP($C15,'RECAP SECT'!$G$6:$FJ$253,62,FALSE) -> 1 | N15: =VLOOKUP($C15,'RECAP SECT'!$G$6:$FJ$253,63,FALSE) -> -115.69 | O15: =VLOOKUP($C15,'RECAP SECT'!$G$6:$FJ$253,64,FALSE) -> -4.16 | P15: =VLOOKUP($C15,'RECAP SECT'!$G$6:$FJ$253,65,FALSE) -> 121% | Q15: =VLOOKUP($C15,'RECAP SECT'!$G$6:$FJ$253,66,FALSE) -> 13 | R15: =VLOOKUP($C15,'RECAP SECT'!$G$6:$FJ$253,67,FALSE) -> 45% | S15: =VLOOKUP($C15,'RECAP SECT'!$G$6:$FJ$253,68,FALSE) -> 22% | T15: =VLOOKUP($C15,'RECAP SECT'!$G$6:$FJ$253,69,FALSE) -> 10
A16: 264 | B16: HAUT-RHIN | C16: 5169 | D16: MULHOUSE | E16: =VLOOKUP($C16,'RECAP SECT'!$G$6:$FJ$253,3,FALSE) -> 62.1 | F16: =VLOOKUP($C16,'RECAP SECT'!$G$6:$FJ$253,55,FALSE) -> 361.37 | G16: =VLOOKUP($C16,'RECAP SECT'!$G$6:$FJ$253,56,FALSE) -> 9.04 | H16: =VLOOKUP($C16,'RECAP SECT'!$G$6:$FJ$253,57,FALSE) -> 46% | I16: =VLOOKUP($C16,'RECAP SECT'!$G$6:$FJ$253,58,FALSE) -> 18 | J16: =VLOOKUP($C16,'RECAP SECT'!$G$6:$FJ$253,59,FALSE) -> 134.86 | K16: =VLOOKUP($C16,'RECAP SECT'!$G$6:$FJ$253,60,FALSE) -> 0.79 | L16: =VLOOKUP($C16,'RECAP SECT'!$G$6:$FJ$253,61,FALSE) -> 61% | M16: =VLOOKUP($C16,'RECAP SECT'!$G$6:$FJ$253,62,FALSE) -> 18 | N16: =VLOOKUP($C16,'RECAP SECT'!$G$6:$FJ$253,63,FALSE) -> -163.36 | O16: =VLOOKUP($C16,'RECAP SECT'!$G$6:$FJ$253,64,FALSE) -> -5.87 | P16: =VLOOKUP($C16,'RECAP SECT'!$G$6:$FJ$253,65,FALSE) -> 150% | Q16: =VLOOKUP($C16,'RECAP SECT'!$G$6:$FJ$253,66,FALSE) -> 18 | R16: =VLOOKUP($C16,'RECAP SECT'!$G$6:$FJ$253,67,FALSE) -> 83% | S16: =VLOOKUP($C16,'RECAP SECT'!$G$6:$FJ$253,68,FALSE) -> 60% | T16: =VLOOKUP($C16,'RECAP SECT'!$G$6:$FJ$253,69,FALSE) -> 18
A17: 30 | B17: MARNE-ARDENNES | C17: 6 | D17: CHALONS EN CHAMPAGNE | E17: =VLOOKUP($C17,'RECAP SECT'!$G$6:$FJ$253,3,FALSE) -> 45.2 | F17: =VLOOKUP($C17,'RECAP SECT'!$G$6:$FJ$253,55,FALSE) -> 535.10 | G17: =VLOOKUP($C17,'RECAP SECT'!$G$6:$FJ$253,56,FALSE) -> 12.67 | H17: =VLOOKUP($C17,'RECAP SECT'!$G$6:$FJ$253,57,FALSE) -> 24% | I17: =VLOOKUP($C17,'RECAP SECT'!$G$6:$FJ$253,58,FALSE) -> 4 | J17: =VLOOKUP($C17,'RECAP SECT'!$G$6:$FJ$253,59,FALSE) -> 241.74 | K17: =VLOOKUP($C17,'RECAP SECT'!$G$6:$FJ$253,60,FALSE) -> 1.49 | L17: =VLOOKUP($C17,'RECAP SECT'!$G$6:$FJ$253,61,FALSE) -> 26% | M17: =VLOOKUP($C17,'RECAP SECT'!$G$6:$FJ$253,62,FALSE) -> 6 | N17: =VLOOKUP($C17,'RECAP SECT'!$G$6:$FJ$253,63,FALSE) -> -99.45 | O17: =VLOOKUP($C17,'RECAP SECT'!$G$6:$FJ$253,64,FALSE) -> -3.57 | P17: =VLOOKUP($C17,'RECAP SECT'!$G$6:$FJ$253,65,FALSE) -> 111% | Q17: =VLOOKUP($C17,'RECAP SECT'!$G$6:$FJ$253,66,FALSE) -> 11 | R17: =VLOOKUP($C17,'RECAP SECT'!$G$6:$FJ$253,67,FALSE) -> 51% | S17: =VLOOKUP($C17,'RECAP SECT'!$G$6:$FJ$253,68,FALSE) -> 28% | T17: =VLOOKUP($C17,'RECAP SECT'!$G$6:$FJ$253,69,FALSE) -> 13
A18: 30 | B18: MARNE-ARDENNES | C18: 2 | D18: CHARLEVILLE MEZIERES | E18: =VLOOKUP($C18,'RECAP SECT'!$G$6:$FJ$253,3,FALSE) -> 54.8 | F18: =VLOOKUP($C18,'RECAP SECT'!$G$6:$FJ$253,55,FALSE) -> 426.46 | G18: =VLOOKUP($C18,'RECAP SECT'!$G$6:$FJ$253,56,FALSE) -> 10.17 | H18: =VLOOKUP($C18,'RECAP SECT'!$G$6:$FJ$253,57,FALSE) -> 39% | I18: =VLOOKUP($C18,'RECAP SECT'!$G$6:$FJ$253,58,FALSE) -> 12 | J18: =VLOOKUP($C18,'RECAP SECT'!$G$6:$FJ$253,59,FALSE) -> 192.23 | K18: =VLOOKUP($C18,'RECAP SECT'!$G$6:$FJ$253,60,FALSE) -> 1.21 | L18: =VLOOKUP($C18,'RECAP SECT'!$G$6:$FJ$253,61,FALSE) -> 40% | M18: =VLOOKUP($C18,'RECAP SECT'!$G$6:$FJ$253,62,FALSE) -> 14 | N18: =VLOOKUP($C18,'RECAP SECT'!$G$6:$FJ$253,63,FALSE) -> 8.91 | O18: =VLOOKUP($C18,'RECAP SECT'!$G$6:$FJ$253,64,FALSE) -> 0.32 | P18: =VLOOKUP($C18,'RECAP SECT'!$G$6:$FJ$253,65,FALSE) -> 45% | Q18: =VLOOKUP($C18,'RECAP SECT'!$G$6:$FJ$253,66,FALSE) -> 5 | R18: =VLOOKUP($C18,'RECAP SECT'!$G$6:$FJ$253,67,FALSE) -> 41% | S18: =VLOOKUP($C18,'RECAP SECT'!$G$6:$FJ$253,68,FALSE) -> 18% | T18: =VLOOKUP($C18,'RECAP SECT'!$G$6:$FJ$253,69,FALSE) -> 6
A19: 30 | B19: MARNE-ARDENNES | C19: 11 | D19: REIMS | E19: =VLOOKUP($C19,'RECAP SECT'!$G$6:$FJ$253,3,FALSE) -> 80.3 | F19: =VLOOKUP($C19,'RECAP SECT'!$G$6:$FJ$253,55,FALSE) -> 715.34 | G19: =VLOOKUP($C19,'RECAP SECT'!$G$6:$FJ$253,56,FALSE) -> 16.68 | H19: =VLOOKUP($C19,'RECAP SECT'!$G$6:$FJ$253,57,FALSE) -> 0% | I19: =VLOOKUP($C19,'RECAP SECT'!$G$6:$FJ$253,58,FALSE) -> 1 | J19: =VLOOKUP($C19,'RECAP SECT'!$G$6:$FJ$253,59,FALSE) -> 228.12 | K19: =VLOOKUP($C19,'RECAP SECT'!$G$6:$FJ$253,60,FALSE) -> 1.41 | L19: =VLOOKUP($C19,'RECAP SECT'!$G$6:$FJ$253,61,FALSE) -> 30% | M19: =VLOOKUP($C19,'RECAP SECT'!$G$6:$FJ$253,62,FALSE) -> 9 | N19: =VLOOKUP($C19,'RECAP SECT'!$G$6:$FJ$253,63,FALSE) -> -110.38 | O19: =VLOOKUP($C19,'RECAP SECT'!$G$6:$FJ$253,64,FALSE) -> -3.97 | P19: =VLOOKUP($C19,'RECAP SECT'!$G$6:$FJ$253,65,FALSE) -> 118% | Q19: =VLOOKUP($C19,'RECAP SECT'!$G$6:$FJ$253,66,FALSE) -> 12 | R19: =VLOOKUP($C19,'RECAP SECT'!$G$6:$FJ$253,67,FALSE) -> 47% | S19: =VLOOKUP($C19,'RECAP SECT'!$G$6:$FJ$253,68,FALSE) -> 24% | T19: =VLOOKUP($C19,'RECAP SECT'!$G$6:$FJ$253,69,FALSE) -> 11
A20: 110 | B20: MEURTHE ET MOSELLE MEUSE | C20: 26 | D20: NANCY | E20: =VLOOKUP($C20,'RECAP SECT'!$G$6:$FJ$253,3,FALSE) -> 65.2 | F20: =VLOOKUP($C20,'RECAP SECT'!$G$6:$FJ$253,55,FALSE) -> 484.38 | G20: =VLOOKUP($C20,'RECAP SECT'!$G$6:$FJ$253,56,FALSE) -> 11.16 | H20: =VLOOKUP($C20,'RECAP SECT'!$G$6:$FJ$253,57,FALSE) -> 33% | I20: =VLOOKUP($C20,'RECAP SECT'!$G$6:$FJ$253,58,FALSE) -> 9 | J20: =VLOOKUP($C20,'RECAP SECT'!$G$6:$FJ$253,59,FALSE) -> 250.95 | K20: =VLOOKUP($C20,'RECAP SECT'!$G$6:$FJ$253,60,FALSE) -> 1.78 | L20: =VLOOKUP($C20,'RECAP SECT'!$G$6:$FJ$253,61,FALSE) -> 12% | M20: =VLOOKUP($C20,'RECAP SECT'!$G$6:$FJ$253,62,FALSE) -> 4 | N20: =VLOOKUP($C20,'RECAP SECT'!$G$6:$FJ$253,63,FALSE) -> -121.44 | O20: =VLOOKUP($C20,'RECAP SECT'!$G$6:$FJ$253,64,FALSE) -> -4.36 | P20: =VLOOKUP($C20,'RECAP SECT'!$G$6:$FJ$253,65,FALSE) -> 124% | Q20: =VLOOKUP($C20,'RECAP SECT'!$G$6:$FJ$253,66,FALSE) -> 15 | R20: =VLOOKUP($C20,'RECAP SECT'!$G$6:$FJ$253,67,FALSE) -> 52% | S20: =VLOOKUP($C20,'RECAP SECT'!$G$6:$FJ$253,68,FALSE) -> 29% | T20: =VLOOKUP($C20,'RECAP SECT'!$G$6:$FJ$253,69,FALSE) -> 14
A21: 110 | B21: MEURTHE ET MOSELLE MEUSE | C21: 27 | D21: PONT A MOUSSON | E21: =VLOOKUP($C21,'RECAP SECT'!$G$6:$FJ$253,3,FALSE) -> 74.0 | F21: =VLOOKUP($C21,'RECAP SECT'!$G$6:$FJ$253,55,FALSE) -> 486.10 | G21: =VLOOKUP($C21,'RECAP SECT'!$G$6:$FJ$253,56,FALSE) -> 11.34 | H21: =VLOOKUP($C21,'RECAP SECT'!$G$6:$FJ$253,57,FALSE) -> 32% | I21: =VLOOKUP($C21,'RECAP SECT'!$G$6:$FJ$253,58,FALSE) -> 8 | J21: =VLOOKUP($C21,'RECAP SECT'!$G$6:$FJ$253,59,FALSE) -> 192.14 | K21: =VLOOKUP($C21,'RECAP SECT'!$G$6:$FJ$253,60,FALSE) -> 1.07 | L21: =VLOOKUP($C21,'RECAP SECT'!$G$6:$FJ$253,61,FALSE) -> 47% | M21: =VLOOKUP($C21,'RECAP SECT'!$G$6:$FJ$253,62,FALSE) -> 16 | N21: =VLOOKUP($C21,'RECAP SECT'!$G$6:$FJ$253,63,FALSE) -> 67.96 | O21: =VLOOKUP($C21,'RECAP SECT'!$G$6:$FJ$253,64,FALSE) -> 2.44 | P21: =VLOOKUP($C21,'RECAP SECT'!$G$6:$FJ$253,65,FALSE) -> 9% | Q21: =VLOOKUP($C21,'RECAP SECT'!$G$6:$FJ$253,66,FALSE) -> 2 | R21: =VLOOKUP($C21,'RECAP SECT'!$G$6:$FJ$253,67,FALSE) -> 31% | S21: =VLOOKUP($C21,'RECAP SECT'!$G$6:$FJ$253,68,FALSE) -> 8% | T21: =VLOOKUP($C21,'RECAP SECT'!$G$6:$FJ$253,69,FALSE) -> 3
A22: 110 | B22: MEURTHE ET MOSELLE MEUSE | C22: 31 | D22: VERDUN | E22: =VLOOKUP($C22,'RECAP SECT'!$G$6:$FJ$253,3,FALSE) -> 53.6 | F22: =VLOOKUP($C22,'RECAP SECT'!$G$6:$FJ$253,55,FALSE) -> 463.01 | G22: =VLOOKUP($C22,'RECAP SECT'!$G$6:$FJ$253,56,FALSE) -> 10.70 | H22: =VLOOKUP($C22,'RECAP SECT'!$G$6:$FJ$253,57,FALSE) -> 36% | I22: =VLOOKUP($C22,'RECAP SECT'!$G$6:$FJ$253,58,FALSE) -> 11 | J22: =VLOOKUP($C22,'RECAP SECT'!$G$6:$FJ$253,59,FALSE) -> 229.00 | K22: =VLOOKUP($C22,'RECAP SECT'!$G$6:$FJ$253,60,FALSE) -> 1.33 | L22: =VLOOKUP($C22,'RECAP SECT'!$G$6:$FJ$253,61,FALSE) -> 34% | M22: =VLOOKUP($C22,'RECAP SECT'!$G$6:$FJ$253,62,FALSE) -> 10 | N22: =VLOOKUP($C22,'RECAP SECT'!$G$6:$FJ$253,63,FALSE) -> -0.71 | O22: =VLOOKUP($C22,'RECAP SECT'!$G$6:$FJ$253,64,FALSE) -> -0.03 | P22: =VLOOKUP($C22,'RECAP SECT'!$G$6:$FJ$253,65,FALSE) -> 51% | Q22: =VLOOKUP($C22,'RECAP SECT'!$G$6:$FJ$253,66,FALSE) -> 6 | R22: =VLOOKUP($C22,'RECAP SECT'!$G$6:$FJ$253,67,FALSE) -> 40% | S22: =VLOOKUP($C22,'RECAP SECT'!$G$6:$FJ$253,68,FALSE) -> 17% | T22: =VLOOKUP($C22,'RECAP SECT'!$G$6:$FJ$253,69,FALSE) -> 5
A23: 160 | B23: MOSELLE | C23: 45 | D23: METZ | E23: =VLOOKUP($C23,'RECAP SECT'!$G$6:$FJ$253,3,FALSE) -> 87.6 | F23: =VLOOKUP($C23,'RECAP SECT'!$G$6:$FJ$253,55,FALSE) -> 571.54 | G23: =VLOOKUP($C23,'RECAP SECT'!$G$6:$FJ$253,56,FALSE) -> 11.99 | H23: =VLOOKUP($C23,'RECAP SECT'!$G$6:$FJ$253,57,FALSE) -> 28% | I23: =VLOOKUP($C23,'RECAP SECT'!$G$6:$FJ$253,58,FALSE) -> 6 | J23: =VLOOKUP($C23,'RECAP SECT'!$G$6:$FJ$253,59,FALSE) -> 226.42 | K23: =VLOOKUP($C23,'RECAP SECT'!$G$6:$FJ$253,60,FALSE) -> 1.46 | L23: =VLOOKUP($C23,'RECAP SECT'!$G$6:$FJ$253,61,FALSE) -> 27% | M23: =VLOOKUP($C23,'RECAP SECT'!$G$6:$FJ$253,62,FALSE) -> 7 | N23: =VLOOKUP($C23,'RECAP SECT'!$G$6:$FJ$253,63,FALSE) -> 27.93 | O23: =VLOOKUP($C23,'RECAP SECT'!$G$6:$FJ$253,64,FALSE) -> 1.00 | P23: =VLOOKUP($C23,'RECAP SECT'!$G$6:$FJ$253,65,FALSE) -> 33% | Q23: =VLOOKUP($C23,'RECAP SECT'!$G$6:$FJ$253,66,FALSE) -> 4 | R23: =VLOOKUP($C23,'RECAP SECT'!$G$6:$FJ$253,67,FALSE) -> 29% | S23: =VLOOKUP($C23,'RECAP SECT'!$G$6:$FJ$253,68,FALSE) -> 6% | T23: =VLOOKUP($C23,'RECAP SECT'!$G$6:$FJ$253,69,FALSE) -> 2
A24: 160 | B24: MOSELLE | C24: 42 | D24: MOSELLE EST | E24: =VLOOKUP($C24,'RECAP SECT'!$G$6:$FJ$253,3,FALSE) -> 73.0 | F24: =VLOOKUP($C24,'RECAP SECT'!$G$6:$FJ$253,55,FALSE) -> 441.60 | G24: =VLOOKUP($C24,'RECAP SECT'!$G$6:$FJ$253,56,FALSE) -> 10.14 | H24: =VLOOKUP($C24,'RECAP SECT'!$G$6:$FJ$253,57,FALSE) -> 39% | I24: =VLOOKUP($C24,'RECAP SECT'!$G$6:$FJ$253,58,FALSE) -> 14 | J24: =VLOOKUP($C24,'RECAP SECT'!$G$6:$FJ$253,59,FALSE) -> 188.34 | K24: =VLOOKUP($C24,'RECAP SECT'!$G$6:$FJ$253,60,FALSE) -> 1.22 | L24: =VLOOKUP($C24,'RECAP SECT'!$G$6:$FJ$253,61,FALSE) -> 39% | M24: =VLOOKUP($C24,'RECAP SECT'!$G$6:$FJ$253,62,FALSE) -> 13 | N24: =VLOOKUP($C24,'RECAP SECT'!$G$6:$FJ$253,63,FALSE) -> -129.38 | O24: =VLOOKUP($C24,'RECAP SECT'!$G$6:$FJ$253,64,FALSE) -> -4.65 | P24: =VLOOKUP($C24,'RECAP SECT'!$G$6:$FJ$253,65,FALSE) -> 129% | Q24: =VLOOKUP($C24,'RECAP SECT'!$G$6:$FJ$253,66,FALSE) -> 16 | R24: =VLOOKUP($C24,'RECAP SECT'!$G$6:$FJ$253,67,FALSE) -> 66% | S24: =VLOOKUP($C24,'RECAP SECT'!$G$6:$FJ$253,68,FALSE) -> 43% | T24: =VLOOKUP($C24,'RECAP SECT'!$G$6:$FJ$253,69,FALSE) -> 17
A25: 160 | B25: MOSELLE | C25: 44 | D25: MOSELLE NORD | E25: =VLOOKUP($C25,'RECAP SECT'!$G$6:$FJ$253,3,FALSE) -> 71.8 | F25: =VLOOKUP($C25,'RECAP SECT'!$G$6:$FJ$253,55,FALSE) -> 447.21 | G25: =VLOOKUP($C25,'RECAP SECT'!$G$6:$FJ$253,56,FALSE) -> 9.74 | H25: =VLOOKUP($C25,'RECAP SECT'!$G$6:$FJ$253,57,FALSE) -> 42% | I25: =VLOOKUP($C25,'RECAP SECT'!$G$6:$FJ$253,58,FALSE) -> 16 | J25: =VLOOKUP($C25,'RECAP SECT'!$G$6:$FJ$253,59,FALSE) -> 202.56 | K25: =VLOOKUP($C25,'RECAP SECT'!$G$6:$FJ$253,60,FALSE) -> 1.23 | L25: =VLOOKUP($C25,'RECAP SECT'!$G$6:$FJ$253,61,FALSE) -> 39% | M25: =VLOOKUP($C25,'RECAP SECT'!$G$6:$FJ$253,62,FALSE) -> 12 | N25: =VLOOKUP($C25,'RECAP SECT'!$G$6:$FJ$253,63,FALSE) -> -32.52 | O25: =VLOOKUP($C25,'RECAP SECT'!$G$6:$FJ$253,64,FALSE) -> -1.17 | P25: =VLOOKUP($C25,'RECAP SECT'!$G$6:$FJ$253,65,FALSE) -> 70% | Q25: =VLOOKUP($C25,'RECAP SECT'!$G$6:$FJ$253,66,FALSE) -> 8 | R25: =VLOOKUP($C25,'RECAP SECT'!$G$6:$FJ$253,67,FALSE) -> 49% | S25: =VLOOKUP($C25,'RECAP SECT'!$G$6:$FJ$253,68,FALSE) -> 26% | T25: =VLOOKUP($C25,'RECAP SECT'!$G$6:$FJ$253,69,FALSE) -> 12
A26: 80 | B26: VOSGES | C26: 57 | D26: EPINAL | E26: =VLOOKUP($C26,'RECAP SECT'!$G$6:$FJ$253,3,FALSE) -> 59.8 | F26: =VLOOKUP($C26,'RECAP SECT'!$G$6:$FJ$253,55,FALSE) -> 395.19 | G26: =VLOOKUP($C26,'RECAP SECT'!$G$6:$FJ$253,56,FALSE) -> 10.14 | H26: =VLOOKUP($C26,'RECAP SECT'!$G$6:$FJ$253,57,FALSE) -> 39% | I26: =VLOOKUP($C26,'RECAP SECT'!$G$6:$FJ$253,58,FALSE) -> 13 | J26: =VLOOKUP($C26,'RECAP SECT'!$G$6:$FJ$253,59,FALSE) -> 187.06 | K26: =VLOOKUP($C26,'RECAP SECT'!$G$6:$FJ$253,60,FALSE) -> 0.99 | L26: =VLOOKUP($C26,'RECAP SECT'!$G$6:$FJ$253,61,FALSE) -> 51% | M26: =VLOOKUP($C26,'RECAP SECT'!$G$6:$FJ$253,62,FALSE) -> 17 | N26: =VLOOKUP($C26,'RECAP SECT'!$G$6:$FJ$253,63,FALSE) -> -26.55 | O26: =VLOOKUP($C26,'RECAP SECT'!$G$6:$FJ$253,64,FALSE) -> -0.95 | P26: =VLOOKUP($C26,'RECAP SECT'!$G$6:$FJ$253,65,FALSE) -> 67% | Q26: =VLOOKUP($C26,'RECAP SECT'!$G$6:$FJ$253,66,FALSE) -> 7 | R26: =VLOOKUP($C26,'RECAP SECT'!$G$6:$FJ$253,67,FALSE) -> 52% | S26: =VLOOKUP($C26,'RECAP SECT'!$G$6:$FJ$253,68,FALSE) -> 29% | T26: =VLOOKUP($C26,'RECAP SECT'!$G$6:$FJ$253,69,FALSE) -> 15
A27: 80 | B27: VOSGES | C27: 55 | D27: SAINT DIE | E27: =VLOOKUP($C27,'RECAP SECT'!$G$6:$FJ$253,3,FALSE) -> 48.0 | F27: =VLOOKUP($C27,'RECAP SECT'!$G$6:$FJ$253,55,FALSE) -> 342.29 | G27: =VLOOKUP($C27,'RECAP SECT'!$G$6:$FJ$253,56,FALSE) -> 9.47 | H27: =VLOOKUP($C27,'RECAP SECT'!$G$6:$FJ$253,57,FALSE) -> 43% | I27: =VLOOKUP($C27,'RECAP SECT'!$G$6:$FJ$253,58,FALSE) -> 17 | J27: =VLOOKUP($C27,'RECAP SECT'!$G$6:$FJ$253,59,FALSE) -> 294.20 | K27: =VLOOKUP($C27,'RECAP SECT'!$G$6:$FJ$253,60,FALSE) -> 1.50 | L27: =VLOOKUP($C27,'RECAP SECT'!$G$6:$FJ$253,61,FALSE) -> 26% | M27: =VLOOKUP($C27,'RECAP SECT'!$G$6:$FJ$253,62,FALSE) -> 5 | N27: =VLOOKUP($C27,'RECAP SECT'!$G$6:$FJ$253,63,FALSE) -> 82.79 | O27: =VLOOKUP($C27,'RECAP SECT'!$G$6:$FJ$253,64,FALSE) -> 2.98 | P27: =VLOOKUP($C27,'RECAP SECT'!$G$6:$FJ$253,65,FALSE) -> 0% | Q27: =VLOOKUP($C27,'RECAP SECT'!$G$6:$FJ$253,66,FALSE) -> 1 | R27: =VLOOKUP($C27,'RECAP SECT'!$G$6:$FJ$253,67,FALSE) -> 23% | S27: =VLOOKUP($C27,'RECAP SECT'!$G$6:$FJ$253,68,FALSE) -> 0% | T27: =VLOOKUP($C27,'RECAP SECT'!$G$6:$FJ$253,69,FALSE) -> 1
A28: Total CEGEE Directions Régionales | E28: =SUM(E10:E27) -> 1159

Sheet SE_CREDIT
B1: Accueil | F1: BAROMETRE BDD - TERRITOIRES
F2: CREDITS
F3: =ACCUEIL!F7 -> 2020-12-31
F7: Engagements crédits conso | J7: ADE crédits conso | N7: Engagements crédits immo | R7: ADE crédits immo | V7: SACCEF | Z7: Engagement Crédits MLT + Crédits Bail | AD7: Total Crédits
F8: =DATEMAJ!C21 -> au 31/12 | H8: coef | I8: ='RECAP DIRCOM'!CG4 -> 4% | K8: =DATEMAJ!C22 -> au 31/12 | L8: coef | M8: ='RECAP DIRCOM'!CK4 -> 1% | N8: =DATEMAJ!C23 -> au 31/12 | P8: coef | Q8: ='RECAP DIRCOM'!CO4 -> 4% | S8: =DATEMAJ!C24 -> au 31/12 | T8: coef | U8: ='RECAP DIRCOM'!CS4 -> 2% | W8: =DATEMAJ!C25 -> au 31/12 | X8: coef | Y8: ='RECAP DIRCOM'!CW4 -> 2% | Z8: =DATEMAJ!C26 -> au 31/12 | AB8: coef | AC8: ='RECAP DIRCOM'!DA4 -> 2% | AE8: coef | AF8: ='RECAP DIRCOM'!DD4 -> 15%
B9: Direction | C9: eds | D9: Territoire | E9: ="ETP perf "&DATEMAJ!$C$39 -> ETP perf au 31/10 | F9: Réal / ETP | G9: PNB / ETP | H9: % Ecart au 1er | I9: Rang | K9: PNB / ETP | L9: % Ecart au 1er | M9: Rang | N9: Réal / ETP | O9: PNB / ETP | P9: % Ecart au 1er | Q9: Rang | S9: PNB / ETP | T9: % Ecart au 1er | U9: Rang | W9: PNB / ETP | X9: % Ecart au 1er | Y9: Rang | Z9: Réal / ETP | AA9: PNB / ETP | AB9: % Ecart au 1er | AC9: Rang | AD9: Moyenne ecart au 1er | AE9: % Ecart au 1er | AF9: Rang CEGEE
A10: 50 | B10: AUBE HAUTE MARNE | C10: 21 | D10: CHAUMONT | E10: =VLOOKUP($C10,'RECAP SECT'!$G$6:$FJ$253,3,FALSE) -> 36.0 | F10: =VLOOKUP($C10,'RECAP SECT'!$G$6:$FJ$253,76,FALSE) -> 624.00 | G10: =VLOOKUP($C10,'RECAP SECT'!$G$6:$FJ$253,77,FALSE) -> 55.91 | H10: =VLOOKUP($C10,'RECAP SECT'!$G$6:$FJ$253,78,FALSE) -> 7% | I10: =VLOOKUP($C10,'RECAP SECT'!$G$6:$FJ$253,79,FALSE) -> 3 | K10: =VLOOKUP($C10,'RECAP SECT'!$G$6:$FJ$253,81,FALSE) -> 12.83 | L10: =VLOOKUP($C10,'RECAP SECT'!$G$6:$FJ$253,82,FALSE) -> 19% | M10: =VLOOKUP($C10,'RECAP SECT'!$G$6:$FJ$253,83,FALSE) -> 2 | N10: =VLOOKUP($C10,'RECAP SECT'!$G$6:$FJ$253,84,FALSE) -> 1262.41 | O10: =VLOOKUP($C10,'RECAP SECT'!$G$6:$FJ$253,85,FALSE) -> 54.33 | P10: =VLOOKUP($C10,'RECAP SECT'!$G$6:$FJ$253,86,FALSE) -> 60% | Q10: =VLOOKUP($C10,'RECAP SECT'!$G$6:$FJ$253,87,FALSE) -> 15 | S10: =VLOOKUP($C10,'RECAP SECT'!$G$6:$FJ$253,89,FALSE) -> 26.42 | T10: =VLOOKUP($C10,'RECAP SECT'!$G$6:$FJ$253,90,FALSE) -> 68% | U10: =VLOOKUP($C10,'RECAP SECT'!$G$6:$FJ$253,91,FALSE) -> 16 | W10: =VLOOKUP($C10,'RECAP SECT'!$G$6:$FJ$253,93,FALSE) -> 2.82 | X10: =VLOOKUP($C10,'RECAP SECT'!$G$6:$FJ$253,94,FALSE) -> 61% | Y10: =VLOOKUP($C10,'RECAP SECT'!$G$6:$FJ$253,95,FALSE) -> 13 | Z10: =VLOOKUP($C10,'RECAP SECT'!$G$6:$FJ$253,96,FALSE) -> 164.86 | AA10: =VLOOKUP($C10,'RECAP SECT'!$G$6:$FJ$253,97,FALSE) -> 6.83 | AB10: =VLOOKUP($C10,'RECAP SECT'!$G$6:$FJ$253,98,FALSE) -> 57% | AC10: =VLOOKUP($C10,'RECAP SECT'!$G$6:$FJ$253,99,FALSE) -> 6 | AD10: =VLOOKUP($C10,'RECAP SECT'!$G$6:$FJ$253,100,FALSE) -> 44% | AE10: =VLOOKUP($C10,'RECAP SECT'!$G$6:$FJ$253,101,FALSE) -> 37% | AF10: =VLOOKUP($C10,'RECAP SECT'!$G$6:$FJ$253,102,FALSE) -> 11
A11: 50 | B11: AUBE HAUTE MARNE | C11: 14 | D11: TROYES | E11: =VLOOKUP($C11,'RECAP SECT'!$G$6:$FJ$253,3,FALSE) -> 67.3 | F11: =VLOOKUP($C11,'RECAP SECT'!$G$6:$FJ$253,76,FALSE) -> 577.06 | G11: =VLOOKUP($C11,'RECAP SECT'!$G$6:$FJ$253,77,FALSE) -> 51.11 | H11: =VLOOKUP($C11,'RECAP SECT'!$G$6:$FJ$253,78,FALSE) -> 15% | I11: =VLOOKUP($C11,'RECAP SECT'!$G$6:$FJ$253,79,FALSE) -> 6 | K11: =VLOOKUP($C11,'RECAP SECT'!$G$6:$FJ$253,81,FALSE) -> 10.96 | L11: =VLOOKUP($C11,'RECAP SECT'!$G$6:$FJ$253,82,FALSE) -> 31% | M11: =VLOOKUP($C11,'RECAP SECT'!$G$6:$FJ$253,83,FALSE) -> 12 | N11: =VLOOKUP($C11,'RECAP SECT'!$G$6:$FJ$253,84,FALSE) -> 1421.21 | O11: =VLOOKUP($C11,'RECAP SECT'!$G$6:$FJ$253,85,FALSE) -> 64.60 | P11: =VLOOKUP($C11,'RECAP SECT'!$G$6:$FJ$253,86,FALSE) -> 53% | Q11: =VLOOKUP($C11,'RECAP SECT'!$G$6:$FJ$253,87,FALSE) -> 9 | S11: =VLOOKUP($C11,'RECAP SECT'!$G$6:$FJ$253,89,FALSE) -> 25.81 | T11: =VLOOKUP($C11,'RECAP SECT'!$G$6:$FJ$253,90,FALSE) -> 69% | U11: =VLOOKUP($C11,'RECAP SECT'!$G$6:$FJ$253,91,FALSE) -> 17 | W11: =VLOOKUP($C11,'RECAP SECT'!$G$6:$FJ$253,93,FALSE) -> 3.26 | X11: =VLOOKUP($C11,'RECAP SECT'!$G$6:$FJ$253,94,FALSE) -> 54% | Y11: =VLOOKUP($C11,'RECAP SECT'!$G$6:$FJ$253,95,FALSE) -> 11 | Z11: =VLOOKUP($C11,'RECAP SECT'!$G$6:$FJ$253,96,FALSE) -> 292.20 | AA11: =VLOOKUP($C11,'RECAP SECT'!$G$6:$FJ$253,97,FALSE) -> 10.43 | AB11: =VLOOKUP($C11,'RECAP SECT'!$G$6:$FJ$253,98,FALSE) -> 35% | AC11: =VLOOKUP($C11,'RECAP SECT'!$G$6:$FJ$253,99,FALSE) -> 3 | AD11: =VLOOKUP($C11,'RECAP SECT'!$G$6:$FJ$253,100,FALSE) -> 41% | AE11: =VLOOKUP($C11,'RECAP SECT'!$G$6:$FJ$253,101,FALSE) -> 34% | AF11: =VLOOKUP($C11,'RECAP SECT'!$G$6:$FJ$253,102,FALSE) -> 9
A12: 262 | B12: BAS-RHIN | C12: 5060 | D12: HAGUENAU | E12: =VLOOKUP($C12,'RECAP SECT'!$G$6:$FJ$253,3,FALSE) -> 75.0 | F12: =VLOOKUP($C12,'RECAP SECT'!$G$6:$FJ$253,76,FALSE) -> 524.45 | G12: =VLOOKUP($C12,'RECAP SECT'!$G$6:$FJ$253,77,FALSE) -> 43.35 | H12: =VLOOKUP($C12,'RECAP SECT'!$G$6:$FJ$253,78,FALSE) -> 28% | I12: =VLOOKUP($C12,'RECAP SECT'!$G$6:$FJ$253,79,FALSE) -> 14 | K12: =VLOOKUP($C12,'RECAP SECT'!$G$6:$FJ$253,81,FALSE) -> 11.26 | L12: =VLOOKUP($C12,'RECAP SECT'!$G$6:$FJ$253,82,FALSE) -> 29% | M12: =VLOOKUP($C12,'RECAP SECT'!$G$6:$FJ$253,83,FALSE) -> 9 | N12: =VLOOKUP($C12,'RECAP SECT'!$G$6:$FJ$253,84,FALSE) -> 1268.25 | O12: =VLOOKUP($C12,'RECAP SECT'!$G$6:$FJ$253,85,FALSE) -> 48.27 | P12: =VLOOKUP($C12,'RECAP SECT'!$G$6:$FJ$253,86,FALSE) -> 65% | Q12: =VLOOKUP($C12,'RECAP SECT'!$G$6:$FJ$253,87,FALSE) -> 18 | S12: =VLOOKUP($C12,'RECAP SECT'!$G$6:$FJ$253,89,FALSE) -> 28.72 | T12: =VLOOKUP($C12,'RECAP SECT'!$G$6:$FJ$253,90,FALSE) -> 66% | U12: =VLOOKUP($C12,'RECAP SECT'!$G$6:$FJ$253,91,FALSE) -> 15 | W12: =VLOOKUP($C12,'RECAP SECT'!$G$6:$FJ$253,93,FALSE) -> 2.61 | X12: =VLOOKUP($C12,'RECAP SECT'!$G$6:$FJ$253,94,FALSE) -> 64% | Y12: =VLOOKUP($C12,'RECAP SECT'!$G$6:$FJ$253,95,FALSE) -> 14 | Z12: =VLOOKUP($C12,'RECAP SECT'!$G$6:$FJ$253,96,FALSE) -> 147.87 | AA12: =VLOOKUP($C12,'RECAP SECT'!$G$6:$FJ$253,97,FALSE) -> 6.24 | AB12: =VLOOKUP($C12,'RECAP SECT'!$G$6:$FJ$253,98,FALSE) -> 61% | AC12: =VLOOKUP($C12,'RECAP SECT'!$G$6:$FJ$253,99,FALSE) -> 8 | AD12: =VLOOKUP($C12,'RECAP SECT'!$G$6:$FJ$253,100,FALSE) -> 52% | AE12: =VLOOKUP($C12,'RECAP SECT'!$G$6:$FJ$253,101,FALSE) -> 45% | AF12: =VLOOKUP($C12,'RECAP SECT'!$G$6:$FJ$253,102,FALSE) -> 17
A13: 262 | B13: BAS-RHIN | C13: 5101 | D13: SELESTAT | E13: =VLOOKUP($C13,'RECAP SECT'!$G$6:$FJ$253,3,FALSE) -> 63.0 | F13: =VLOOKUP($C13,'RECAP SECT'!$G$6:$FJ$253,76,FALSE) -> 520.27 | G13: =VLOOKUP($C13,'RECAP SECT'!$G$6:$FJ$253,77,FALSE) -> 42.80 | H13: =VLOOKUP($C13,'RECAP SECT'!$G$6:$FJ$253,78,FALSE) -> 29% | I13: =VLOOKUP($C13,'RECAP SECT'!$G$6:$FJ$253,79,FALSE) -> 16 | K13: =VLOOKUP($C13,'RECAP SECT'!$G$6:$FJ$253,81,FALSE) -> 10.94 | L13: =VLOOKUP($C13,'RECAP SECT'!$G$6:$FJ$253,82,FALSE) -> 31% | M13: =VLOOKUP($C13,'RECAP SECT'!$G$6:$FJ$253,83,FALSE) -> 13 | N13: =VLOOKUP($C13,'RECAP SECT'!$G$6:$FJ$253,84,FALSE) -> 1561.84 | O13: =VLOOKUP($C13,'RECAP SECT'!$G$6:$FJ$253,85,FALSE) -> 52.97 | P13: =VLOOKUP($C13,'RECAP SECT'!$G$6:$FJ$253,86,FALSE) -> 61% | Q13: =VLOOKUP($C13,'RECAP SECT'!$G$6:$FJ$253,87,FALSE) -> 16 | S13: =VLOOKUP($C13,'RECAP SECT'!$G$6:$FJ$253,89,FALSE) -> 30.91 | T13: =VLOOKUP($C13,'RECAP SECT'!$G$6:$FJ$253,90,FALSE) -> 63% | U13: =VLOOKUP($C13,'RECAP SECT'!$G$6:$FJ$253,91,FALSE) -> 11 | W13: =VLOOKUP($C13,'RECAP SECT'!$G$6:$FJ$253,93,FALSE) -> 3.08 | X13: =VLOOKUP($C13,'RECAP SECT'!$G$6:$FJ$253,94,FALSE) -> 57% | Y13: =VLOOKUP($C13,'RECAP SECT'!$G$6:$FJ$253,95,FALSE) -> 12 | Z13: =VLOOKUP($C13,'RECAP SECT'!$G$6:$FJ$253,96,FALSE) -> 170.71 | AA13: =VLOOKUP($C13,'RECAP SECT'!$G$6:$FJ$253,97,FALSE) -> 5.74 | AB13: =VLOOKUP($C13,'RECAP SECT'!$G$6:$FJ$253,98,FALSE) -> 64% | AC13: =VLOOKUP($C13,'RECAP SECT'!$G$6:$FJ$253,99,FALSE) -> 10 | AD13: =VLOOKUP($C13,'RECAP SECT'!$G$6:$FJ$253,100,FALSE) -> 51% | AE13: =VLOOKUP($C13,'RECAP SECT'!$G$6:$FJ$253,101,FALSE) -> 43% | AF13: =VLOOKUP($C13,'RECAP SECT'!$G$6:$FJ$253,102,FALSE) -> 16
A14: 262 | B14: BAS-RHIN | C14: 5006 | D14: STRASBOURG | E14: =VLOOKUP($C14,'RECAP SECT'!$G$6:$FJ$253,3,FALSE) -> 76.0 | F14: =VLOOKUP($C14,'RECAP SECT'!$G$6:$FJ$253,76,FALSE) -> 487.56 | G14: =VLOOKUP($C14,'RECAP SECT'!$G$6:$FJ$253,77,FALSE) -> 40.04 | H14: =VLOOKUP($C14,'RECAP SECT'!$G$6:$FJ$253,78,FALSE) -> 33% | I14: =VLOOKUP($C14,'RECAP SECT'!$G$6:$FJ$253,79,FALSE) -> 17 | K14: =VLOOKUP($C14,'RECAP SECT'!$G$6:$FJ$253,81,FALSE) -> 9.95 | L14: =VLOOKUP($C14,'RECAP SECT'!$G$6:$FJ$253,82,FALSE) -> 37% | M14: =VLOOKUP($C14,'RECAP SECT'!$G$6:$FJ$253,83,FALSE) -> 17 | N14: =VLOOKUP($C14,'RECAP SECT'!$G$6:$FJ$253,84,FALSE) -> 2330.44 | O14: =VLOOKUP($C14,'RECAP SECT'!$G$6:$FJ$253,85,FALSE) -> 62.35 | P14: =VLOOKUP($C14,'RECAP SECT'!$G$6:$FJ$253,86,FALSE) -> 54% | Q14: =VLOOKUP($C14,'RECAP SECT'!$G$6:$FJ$253,87,FALSE) -> 11 | S14: =VLOOKUP($C14,'RECAP SECT'!$G$6:$FJ$253,89,FALSE) -> 31.91 | T14: =VLOOKUP($C14,'RECAP SECT'!$G$6:$FJ$253,90,FALSE) -> 62% | U14: =VLOOKUP($C14,'RECAP SECT'!$G$6:$FJ$253,91,FALSE) -> 10 | W14: =VLOOKUP($C14,'RECAP SECT'!$G$6:$FJ$253,93,FALSE) -> 4.23 | X14: =VLOOKUP($C14,'RECAP SECT'!$G$6:$FJ$253,94,FALSE) -> 41% | Y14: =VLOOKUP($C14,'RECAP SECT'!$G$6:$FJ$253,95,FALSE) -> 8 | Z14: =VLOOKUP($C14,'RECAP SECT'!$G$6:$FJ$253,96,FALSE) -> 328.05 | AA14: =VLOOKUP($C14,'RECAP SECT'!$G$6:$FJ$253,97,FALSE) -> 12.58 | AB14: =VLOOKUP($C14,'RECAP SECT'!$G$6:$FJ$253,98,FALSE) -> 21% | AC14: =VLOOKUP($C14,'RECAP SECT'!$G$6:$FJ$253,99,FALSE) -> 2 | AD14: =VLOOKUP($C14,'RECAP SECT'!$G$6:$FJ$253,100,FALSE) -> 42% | AE14: =VLOOKUP($C14,'RECAP SECT'!$G$6:$FJ$253,101,FALSE) -> 35% | AF14: =VLOOKUP($C14,'RECAP SECT'!$G$6:$FJ$253,102,FALSE) -> 10
A15: 264 | B15: HAUT-RHIN | C15: 5130 | D15: COLMAR | E15: =VLOOKUP($C15,'RECAP SECT'!$G$6:$FJ$253,3,FALSE) -> 65.9 | F15: =VLOOKUP($C15,'RECAP SECT'!$G$6:$FJ$253,76,FALSE) -> 421.95 | G15: =VLOOKUP($C15,'RECAP SECT'!$G$6:$FJ$253,77,FALSE) -> 35.93 | H15: =VLOOKUP($C15,'RECAP SECT'!$G$6:$FJ$253,78,FALSE) -> 40% | I15: =VLOOKUP($C15,'RECAP SECT'!$G$6:$FJ$253,79,FALSE) -> 18 | K15: =VLOOKUP($C15,'RECAP SECT'!$G$6:$FJ$253,81,FALSE) -> 8.48 | L15: =VLOOKUP($C15,'RECAP SECT'!$G$6:$FJ$253,82,FALSE) -> 46% | M15: =VLOOKUP($C15,'RECAP SECT'!$G$6:$FJ$253,83,FALSE) -> 18 | N15: =VLOOKUP($C15,'RECAP SECT'!$G$6:$FJ$253,84,FALSE) -> 1421.67 | O15: =VLOOKUP($C15,'RECAP SECT'!$G$6:$FJ$253,85,FALSE) -> 50.60 | P15: =VLOOKUP($C15,'RECAP SECT'!$G$6:$FJ$253,86,FALSE) -> 63% | Q15: =VLOOKUP($C15,'RECAP SECT'!$G$6:$FJ$253,87,FALSE) -> 17 | S15: =VLOOKUP($C15,'RECAP SECT'!$G$6:$FJ$253,89,FALSE) -> 24.91 | T15: =VLOOKUP($C15,'RECAP SECT'!$G$6:$FJ$253,90,FALSE) -> 70% | U15: =VLOOKUP($C15,'RECAP SECT'!$G$6:$FJ$253,91,FALSE) -> 18 | W15: =VLOOKUP($C15,'RECAP SECT'!$G$6:$FJ$253,93,FALSE) -> 2.46 | X15: =VLOOKUP($C15,'RECAP SECT'!$G$6:$FJ$253,94,FALSE) -> 66% | Y15: =VLOOKUP($C15,'RECAP SECT'!$G$6:$FJ$253,95,FALSE) -> 17 | Z15: =VLOOKUP($C15,'RECAP SECT'!$G$6:$FJ$253,96,FALSE) -> 226.75 | AA15: =VLOOKUP($C15,'RECAP SECT'!$G$6:$FJ$253,97,FALSE) -> 7.54 | AB15: =VLOOKUP($C15,'RECAP SECT'!$G$6:$FJ$253,98,FALSE) -> 53% | AC15: =VLOOKUP($C15,'RECAP SECT'!$G$6:$FJ$253,99,FALSE) -> 5 | AD15: =VLOOKUP($C15,'RECAP SECT'!$G$6:$FJ$253,100,FALSE) -> 56% | AE15: =VLOOKUP($C15,'RECAP SECT'!$G$6:$FJ$253,101,FALSE) -> 48% | AF15: =VLOOKUP($C15,'RECAP SECT'!$G$6:$FJ$253,102,FALSE) -> 18
A16: 264 | B16: HAUT-RHIN | C16: 5169 | D16: MULHOUSE | E16: =VLOOKUP($C16,'RECAP SECT'!$G$6:$FJ$253,3,FALSE) -> 62.1 | F16: =VLOOKUP($C16,'RECAP SECT'!$G$6:$FJ$253,76,FALSE) -> 515.83 | G16: =VLOOKUP($C16,'RECAP SECT'!$G$6:$FJ$253,77,FALSE) -> 43.45 | H16: =VLOOKUP($C16,'RECAP SECT'!$G$6:$FJ$253,78,FALSE) -> 28% | I16: =VLOOKUP($C16,'RECAP SECT'!$G$6:$FJ$253,79,FALSE) -> 13 | K16: =VLOOKUP($C16,'RECAP SECT'!$G$6:$FJ$253,81,FALSE) -> 10.36 | L16: =VLOOKUP($C16,'RECAP SECT'!$G$6:$FJ$253,82,FALSE) -> 34% | M16: =VLOOKUP($C16,'RECAP SECT'!$G$6:$FJ$253,83,FALSE) -> 15 | N16: =VLOOKUP($C16,'RECAP SECT'!$G$6:$FJ$253,84,FALSE) -> 1626.44 | O16: =VLOOKUP($C16,'RECAP SECT'!$G$6:$FJ$253,85,FALSE) -> 58.67 | P16: =VLOOKUP($C16,'RECAP SECT'!$G$6:$FJ$253,86,FALSE) -> 57% | Q16: =VLOOKUP($C16,'RECAP SECT'!$G$6:$FJ$253,87,FALSE) -> 13 | S16: =VLOOKUP($C16,'RECAP SECT'!$G$6:$FJ$253,89,FALSE) -> 39.28 | T16: =VLOOKUP($C16,'RECAP SECT'!$G$6:$FJ$253,90,FALSE) -> 53% | U16: =VLOOKUP($C16,'RECAP SECT'!$G$6:$FJ$253,91,FALSE) -> 9 | W16: =VLOOKUP($C16,'RECAP SECT'!$G$6:$FJ$253,93,FALSE) -> 2.29 | X16: =VLOOKUP($C16,'RECAP SECT'!$G$6:$FJ$253,94,FALSE) -> 68% | Y16: =VLOOKUP($C16,'RECAP SECT'!$G$6:$FJ$253,95,FALSE) -> 18 | Z16: =VLOOKUP($C16,'RECAP SECT'!$G$6:$FJ$253,96,FALSE) -> 194.87 | AA16: =VLOOKUP($C16,'RECAP SECT'!$G$6:$FJ$253,97,FALSE) -> 6.68 | AB16: =VLOOKUP($C16,'RECAP SECT'!$G$6:$FJ$253,98,FALSE) -> 58% | AC16: =VLOOKUP($C16,'RECAP SECT'!$G$6:$FJ$253,99,FALSE) -> 7 | AD16: =VLOOKUP($C16,'RECAP SECT'!$G$6:$FJ$253,100,FALSE) -> 49% | AE16: =VLOOKUP($C16,'RECAP SECT'!$G$6:$FJ$253,101,FALSE) -> 41% | AF16: =VLOOKUP($C16,'RECAP SECT'!$G$6:$FJ$253,102,FALSE) -> 14
A17: 30 | B17: MARNE-ARDENNES | C17: 6 | D17: CHALONS EN CHAMPAGNE | E17: =VLOOKUP($C17,'RECAP SECT'!$G$6:$FJ$253,3,FALSE) -> 45.2 | F17: =VLOOKUP($C17,'RECAP SECT'!$G$6:$FJ$253,76,FALSE) -> 587.89 | G17: =VLOOKUP($C17,'RECAP SECT'!$G$6:$FJ$253,77,FALSE) -> 48.91 | H17: =VLOOKUP($C17,'RECAP SECT'!$G$6:$FJ$253,78,FALSE) -> 18% | I17: =VLOOKUP($C17,'RECAP SECT'!$G$6:$FJ$253,79,FALSE) -> 9 | K17: =VLOOKUP($C17,'RECAP SECT'!$G$6:$FJ$253,81,FALSE) -> 12.51 | L17: =VLOOKUP($C17,'RECAP SECT'!$G$6:$FJ$253,82,FALSE) -> 21% | M17: =VLOOKUP($C17,'RECAP SECT'!$G$6:$FJ$253,83,FALSE) -> 4 | N17: =VLOOKUP($C17,'RECAP SECT'!$G$6:$FJ$253,84,FALSE) -> 2154.48 | O17: =VLOOKUP($C17,'RECAP SECT'!$G$6:$FJ$253,85,FALSE) -> 102.99 | P17: =VLOOKUP($C17,'RECAP SECT'!$G$6:$FJ$253,86,FALSE) -> 25% | Q17: =VLOOKUP($C17,'RECAP SECT'!$G$6:$FJ$253,87,FALSE) -> 5 | S17: =VLOOKUP($C17,'RECAP SECT'!$G$6:$FJ$253,89,FALSE) -> 55.34 | T17: =VLOOKUP($C17,'RECAP SECT'!$G$6:$FJ$253,90,FALSE) -> 34% | U17: =VLOOKUP($C17,'RECAP SECT'!$G$6:$FJ$253,91,FALSE) -> 5 | W17: =VLOOKUP($C17,'RECAP SECT'!$G$6:$FJ$253,93,FALSE) -> 4.89 | X17: =VLOOKUP($C17,'RECAP SECT'!$G$6:$FJ$253,94,FALSE) -> 32% | Y17: =VLOOKUP($C17,'RECAP SECT'!$G$6:$FJ$253,95,FALSE) -> 5 | Z17: =VLOOKUP($C17,'RECAP SECT'!$G$6:$FJ$253,96,FALSE) -> 222.14 | AA17: =VLOOKUP($C17,'RECAP SECT'!$G$6:$FJ$253,97,FALSE) -> 5.15 | AB17: =VLOOKUP($C17,'RECAP SECT'!$G$6:$FJ$253,98,FALSE) -> 68% | AC17: =VLOOKUP($C17,'RECAP SECT'!$G$6:$FJ$253,99,FALSE) -> 13 | AD17: =VLOOKUP($C17,'RECAP SECT'!$G$6:$FJ$253,100,FALSE) -> 31% | AE17: =VLOOKUP($C17,'RECAP SECT'!$G$6:$FJ$253,101,FALSE) -> 23% | AF17: =VLOOKUP($C17,'RECAP SECT'!$G$6:$FJ$253,102,FALSE) -> 5
A18: 30 | B18: MARNE-ARDENNES | C18: 2 | D18: CHARLEVILLE MEZIERES | E18: =VLOOKUP($C18,'RECAP SECT'!$G$6:$FJ$253,3,FALSE) -> 54.8 | F18: =VLOOKUP($C18,'RECAP SECT'!$G$6:$FJ$253,76,FALSE) -> 565.02 | G18: =VLOOKUP($C18,'RECAP SECT'!$G$6:$FJ$253,77,FALSE) -> 51.82 | H18: =VLOOKUP($C18,'RECAP SECT'!$G$6:$FJ$253,78,FALSE) -> 14% | I18: =VLOOKUP($C18,'RECAP SECT'!$G$6:$FJ$253,79,FALSE) -> 5 | K18: =VLOOKUP($C18,'RECAP SECT'!$G$6:$FJ$253,81,FALSE) -> 11.78 | L18: =VLOOKUP($C18,'RECAP SECT'!$G$6:$FJ$253,82,FALSE) -> 26% | M18: =VLOOKUP($C18,'RECAP SECT'!$G$6:$FJ$253,83,FALSE) -> 7 | N18: =VLOOKUP($C18,'RECAP SECT'!$G$6:$FJ$253,84,FALSE) -> 2281.56 | O18: =VLOOKUP($C18,'RECAP SECT'!$G$6:$FJ$253,85,FALSE) -> 118.13 | P18: =VLOOKUP($C18,'RECAP SECT'!$G$6:$FJ$253,86,FALSE) -> 13% | Q18: =VLOOKUP($C18,'RECAP SECT'!$G$6:$FJ$253,87,FALSE) -> 3 | S18: =VLOOKUP($C18,'RECAP SECT'!$G$6:$FJ$253,89,FALSE) -> 62.81 | T18: =VLOOKUP($C18,'RECAP SECT'!$G$6:$FJ$253,90,FALSE) -> 25% | U18: =VLOOKUP($C18,'RECAP SECT'!$G$6:$FJ$253,91,FALSE) -> 4 | W18: =VLOOKUP($C18,'RECAP SECT'!$G$6:$FJ$253,93,FALSE) -> 5.62 | X18: =VLOOKUP($C18,'RECAP SECT'!$G$6:$FJ$253,94,FALSE) -> 22% | Y18: =VLOOKUP($C18,'RECAP SECT'!$G$6:$FJ$253,95,FALSE) -> 4 | Z18: =VLOOKUP($C18,'RECAP SECT'!$G$6:$FJ$253,96,FALSE) -> 166.23 | AA18: =VLOOKUP($C18,'RECAP SECT'!$G$6:$FJ$253,97,FALSE) -> 4.29 | AB18: =VLOOKUP($C18,'RECAP SECT'!$G$6:$FJ$253,98,FALSE) -> 73% | AC18: =VLOOKUP($C18,'RECAP SECT'!$G$6:$FJ$253,99,FALSE) -> 16 | AD18: =VLOOKUP($C18,'RECAP SECT'!$G$6:$FJ$253,100,FALSE) -> 25% | AE18: =VLOOKUP($C18,'RECAP SECT'!$G$6:$FJ$253,101,FALSE) -> 18% | AF18: =VLOOKUP($C18,'RECAP SECT'!$G$6:$FJ$253,102,FALSE) -> 3
A19: 30 | B19: MARNE-ARDENNES | C19: 11 | D19: REIMS | E19: =VLOOKUP($C19,'RECAP SECT'!$G$6:$FJ$253,3,FALSE) -> 80.3 | F19: =VLOOKUP($C19,'RECAP SECT'!$G$6:$FJ$253,76,FALSE) -> 593.97 | G19: =VLOOKUP($C19,'RECAP SECT'!$G$6:$FJ$253,77,FALSE) -> 47.07 | H19: =VLOOKUP($C19,'RECAP SECT'!$G$6:$FJ$253,78,FALSE) -> 21% | I19: =VLOOKUP($C19,'RECAP SECT'!$G$6:$FJ$253,79,FALSE) -> 11 | K19: =VLOOKUP($C19,'RECAP SECT'!$G$6:$FJ$253,81,FALSE) -> 11.84 | L19: =VLOOKUP($C19,'RECAP SECT'!$G$6:$FJ$253,82,FALSE) -> 25% | M19: =VLOOKUP($C19,'RECAP SECT'!$G$6:$FJ$253,83,FALSE) -> 6 | N19: =VLOOKUP($C19,'RECAP SECT'!$G$6:$FJ$253,84,FALSE) -> 3172.89 | O19: =VLOOKUP($C19,'RECAP SECT'!$G$6:$FJ$253,85,FALSE) -> 129.47 | P19: =VLOOKUP($C19,'RECAP SECT'!$G$6:$FJ$253,86,FALSE) -> 5% | Q19: =VLOOKUP($C19,'RECAP SECT'!$G$6:$FJ$253,87,FALSE) -> 2 | S19: =VLOOKUP($C19,'RECAP SECT'!$G$6:$FJ$253,89,FALSE) -> 83.36 | T19: =VLOOKUP($C19,'RECAP SECT'!$G$6:$FJ$253,90,FALSE) -> 0% | U19: =VLOOKUP($C19,'RECAP SECT'!$G$6:$FJ$253,91,FALSE) -> 1 | W19: =VLOOKUP($C19,'RECAP SECT'!$G$6:$FJ$253,93,FALSE) -> 6.88 | X19: =VLOOKUP($C19,'RECAP SECT'!$G$6:$FJ$253,94,FALSE) -> 4% | Y19: =VLOOKUP($C19,'RECAP SECT'!$G$6:$FJ$253,95,FALSE) -> 2 | Z19: =VLOOKUP($C19,'RECAP SECT'!$G$6:$FJ$253,96,FALSE) -> 461.78 | AA19: =VLOOKUP($C19,'RECAP SECT'!$G$6:$FJ$253,97,FALSE) -> 15.95 | AB19: =VLOOKUP($C19,'RECAP SECT'!$G$6:$FJ$253,98,FALSE) -> 0% | AC19: =VLOOKUP($C19,'RECAP SECT'!$G$6:$FJ$253,99,FALSE) -> 1 | AD19: =VLOOKUP($C19,'RECAP SECT'!$G$6:$FJ$253,100,FALSE) -> 9% | AE19: =VLOOKUP($C19,'RECAP SECT'!$G$6:$FJ$253,101,FALSE) -> 2% | AF19: =VLOOKUP($C19,'RECAP SECT'!$G$6:$FJ$253,102,FALSE) -> 2
A20: 110 | B20: MEURTHE ET MOSELLE MEUSE | C20: 26 | D20: NANCY | E20: =VLOOKUP($C20,'RECAP SECT'!$G$6:$FJ$253,3,FALSE) -> 65.2 | F20: =VLOOKUP($C20,'RECAP SECT'!$G$6:$FJ$253,76,FALSE) -> 515.26 | G20: =VLOOKUP($C20,'RECAP SECT'!$G$6:$FJ$253,77,FALSE) -> 47.26 | H20: =VLOOKUP($C20,'RECAP SECT'!$G$6:$FJ$253,78,FALSE) -> 21% | I20: =VLOOKUP($C20,'RECAP SECT'!$G$6:$FJ$253,79,FALSE) -> 10 | K20: =VLOOKUP($C20,'RECAP SECT'!$G$6:$FJ$253,81,FALSE) -> 10.55 | L20: =VLOOKUP($C20,'RECAP SECT'!$G$6:$FJ$253,82,FALSE) -> 33% | M20: =VLOOKUP($C20,'RECAP SECT'!$G$6:$FJ$253,83,FALSE) -> 14 | N20: =VLOOKUP($C20,'RECAP SECT'!$G$6:$FJ$253,84,FALSE) -> 2997.41 | O20: =VLOOKUP($C20,'RECAP SECT'!$G$6:$FJ$253,85,FALSE) -> 112.04 | P20: =VLOOKUP($C20,'RECAP SECT'!$G$6:$FJ$253,86,FALSE) -> 18% | Q20: =VLOOKUP($C20,'RECAP SECT'!$G$6:$FJ$253,87,FALSE) -> 4 | S20: =VLOOKUP($C20,'RECAP SECT'!$G$6:$FJ$253,89,FALSE) -> 63.61 | T20: =VLOOKUP($C20,'RECAP SECT'!$G$6:$FJ$253,90,FALSE) -> 24% | U20: =VLOOKUP($C20,'RECAP SECT'!$G$6:$FJ$253,91,FALSE) -> 3 | W20: =VLOOKUP($C20,'RECAP SECT'!$G$6:$FJ$253,93,FALSE) -> 6.68 | X20: =VLOOKUP($C20,'RECAP SECT'!$G$6:$FJ$253,94,FALSE) -> 7% | Y20: =VLOOKUP($C20,'RECAP SECT'!$G$6:$FJ$253,95,FALSE) -> 3 | Z20: =VLOOKUP($C20,'RECAP SECT'!$G$6:$FJ$253,96,FALSE) -> 108.82 | AA20: =VLOOKUP($C20,'RECAP SECT'!$G$6:$FJ$253,97,FALSE) -> 4.22 | AB20: =VLOOKUP($C20,'RECAP SECT'!$G$6:$FJ$253,98,FALSE) -> 74% | AC20: =VLOOKUP($C20,'RECAP SECT'!$G$6:$FJ$253,99,FALSE) -> 17 | AD20: =VLOOKUP($C20,'RECAP SECT'!$G$6:$FJ$253,100,FALSE) -> 26% | AE20: =VLOOKUP($C20,'RECAP SECT'!$G$6:$FJ$253,101,FALSE) -> 19% | AF20: =VLOOKUP($C20,'RECAP SECT'!$G$6:$FJ$253,102,FALSE) -> 4
A21: 110 | B21: MEURTHE ET MOSELLE MEUSE | C21: 27 | D21: PONT A MOUSSON | E21: =VLOOKUP($C21,'RECAP SECT'!$G$6:$FJ$253,3,FALSE) -> 74.0 | F21: =VLOOKUP($C21,'RECAP SECT'!$G$6:$FJ$253,76,FALSE) -> 668.18 | G21: =VLOOKUP($C21,'RECAP SECT'!$G$6:$FJ$253,77,FALSE) -> 59.97 | H21: =VLOOKUP($C21,'RECAP SECT'!$G$6:$FJ$253,78,FALSE) -> 0% | I21: =VLOOKUP($C21,'RECAP SECT'!$G$6:$FJ$253,79,FALSE) -> 1 | K21: =VLOOKUP($C21,'RECAP SECT'!$G$6:$FJ$253,81,FALSE) -> 15.81 | L21: =VLOOKUP($C21,'RECAP SECT'!$G$6:$FJ$253,82,FALSE) -> 0% | M21: =VLOOKUP($C21,'RECAP SECT'!$G$6:$FJ$253,83,FALSE) -> 1 | N21: =VLOOKUP($C21,'RECAP SECT'!$G$6:$FJ$253,84,FALSE) -> 3333.65 | O21: =VLOOKUP($C21,'RECAP SECT'!$G$6:$FJ$253,85,FALSE) -> 136.45 | P21: =VLOOKUP($C21,'RECAP SECT'!$G$6:$FJ$253,86,FALSE) -> 0% | Q21: =VLOOKUP($C21,'RECAP SECT'!$G$6:$FJ$253,87,FALSE) -> 1 | S21: =VLOOKUP($C21,'RECAP SECT'!$G$6:$FJ$253,89,FALSE) -> 79.76 | T21: =VLOOKUP($C21,'RECAP SECT'!$G$6:$FJ$253,90,FALSE) -> 4% | U21: =VLOOKUP($C21,'RECAP SECT'!$G$6:$FJ$253,91,FALSE) -> 2 | W21: =VLOOKUP($C21,'RECAP SECT'!$G$6:$FJ$253,93,FALSE) -> 7.16 | X21: =VLOOKUP($C21,'RECAP SECT'!$G$6:$FJ$253,94,FALSE) -> 0% | Y21: =VLOOKUP($C21,'RECAP SECT'!$G$6:$FJ$253,95,FALSE) -> 1 | Z21: =VLOOKUP($C21,'RECAP SECT'!$G$6:$FJ$253,96,FALSE) -> 174.76 | AA21: =VLOOKUP($C21,'RECAP SECT'!$G$6:$FJ$253,97,FALSE) -> 7.94 | AB21: =VLOOKUP($C21,'RECAP SECT'!$G$6:$FJ$253,98,FALSE) -> 50% | AC21: =VLOOKUP($C21,'RECAP SECT'!$G$6:$FJ$253,99,FALSE) -> 4 | AD21: =VLOOKUP($C21,'RECAP SECT'!$G$6:$FJ$253,100,FALSE) -> 7% | AE21: =VLOOKUP($C21,'RECAP SECT'!$G$6:$FJ$253,101,FALSE) -> 0% | AF21: =VLOOKUP($C21,'RECAP SECT'!$G$6:$FJ$253,102,FALSE) -> 1
A22: 110 | B22: MEURTHE ET MOSELLE MEUSE | C22: 31 | D22: VERDUN | E22: =VLOOKUP($C22,'RECAP SECT'!$G$6:$FJ$253,3,FALSE) -> 53.6 | F22: =VLOOKUP($C22,'RECAP SECT'!$G$6:$FJ$253,76,FALSE) -> 614.56 | G22: =VLOOKUP($C22,'RECAP SECT'!$G$6:$FJ$253,77,FALSE) -> 57.04 | H22: =VLOOKUP($C22,'RECAP SECT'!$G$6:$FJ$253,78,FALSE) -> 5% | I22: =VLOOKUP($C22,'RECAP SECT'!$G$6:$FJ$253,79,FALSE) -> 2 | K22: =VLOOKUP($C22,'RECAP SECT'!$G$6:$FJ$253,81,FALSE) -> 12.43 | L22: =VLOOKUP($C22,'RECAP SECT'!$G$6:$FJ$253,82,FALSE) -> 21% | M22: =VLOOKUP($C22,'RECAP SECT'!$G$6:$FJ$253,83,FALSE) -> 5 | N22: =VLOOKUP($C22,'RECAP SECT'!$G$6:$FJ$253,84,FALSE) -> 1694.41 | O22: =VLOOKUP($C22,'RECAP SECT'!$G$6:$FJ$253,85,FALSE) -> 87.74 | P22: =VLOOKUP($C22,'RECAP SECT'!$G$6:$FJ$253,86,FALSE) -> 36% | Q22: =VLOOKUP($C22,'RECAP SECT'!$G$6:$FJ$253,87,FALSE) -> 6 | S22: =VLOOKUP($C22,'RECAP SECT'!$G$6:$FJ$253,89,FALSE) -> 39.57 | T22: =VLOOKUP($C22,'RECAP SECT'!$G$6:$FJ$253,90,FALSE) -> 53% | U22: =VLOOKUP($C22,'RECAP SECT'!$G$6:$FJ$253,91,FALSE) -> 8 | W22: =VLOOKUP($C22,'RECAP SECT'!$G$6:$FJ$253,93,FALSE) -> 4.17 | X22: =VLOOKUP($C22,'RECAP SECT'!$G$6:$FJ$253,94,FALSE) -> 42% | Y22: =VLOOKUP($C22,'RECAP SECT'!$G$6:$FJ$253,95,FALSE) -> 9 | Z22: =VLOOKUP($C22,'RECAP SECT'!$G$6:$FJ$253,96,FALSE) -> 110.00 | AA22: =VLOOKUP($C22,'RECAP SECT'!$G$6:$FJ$253,97,FALSE) -> 5.21 | AB22: =VLOOKUP($C22,'RECAP SECT'!$G$6:$FJ$253,98,FALSE) -> 67% | AC22: =VLOOKUP($C22,'RECAP SECT'!$G$6:$FJ$253,99,FALSE) -> 12 | AD22: =VLOOKUP($C22,'RECAP SECT'!$G$6:$FJ$253,100,FALSE) -> 34% | AE22: =VLOOKUP($C22,'RECAP SECT'!$G$6:$FJ$253,101,FALSE) -> 27% | AF22: =VLOOKUP($C22,'RECAP SECT'!$G$6:$FJ$253,102,FALSE) -> 6
A23: 160 | B23: MOSELLE | C23: 45 | D23: METZ | E23: =VLOOKUP($C23,'RECAP SECT'!$G$6:$FJ$253,3,FALSE) -> 87.6 | F23: =VLOOKUP($C23,'RECAP SECT'!$G$6:$FJ$253,76,FALSE) -> 578.62 | G23: =VLOOKUP($C23,'RECAP SECT'!$G$6:$FJ$253,77,FALSE) -> 49.58 | H23: =VLOOKUP($C23,'RECAP SECT'!$G$6:$FJ$253,78,FALSE) -> 17% | I23: =VLOOKUP($C23,'RECAP SECT'!$G$6:$FJ$253,79,FALSE) -> 8 | K23: =VLOOKUP($C23,'RECAP SECT'!$G$6:$FJ$253,81,FALSE) -> 11.13 | L23: =VLOOKUP($C23,'RECAP SECT'!$G$6:$FJ$253,82,FALSE) -> 30% | M23: =VLOOKUP($C23,'RECAP SECT'!$G$6:$FJ$253,83,FALSE) -> 10 | N23: =VLOOKUP($C23,'RECAP SECT'!$G$6:$FJ$253,84,FALSE) -> 2180.52 | O23: =VLOOKUP($C23,'RECAP SECT'!$G$6:$FJ$253,85,FALSE) -> 76.20 | P23: =VLOOKUP($C23,'RECAP SECT'!$G$6:$FJ$253,86,FALSE) -> 44% | Q23: =VLOOKUP($C23,'RECAP SECT'!$G$6:$FJ$253,87,FALSE) -> 8 | S23: =VLOOKUP($C23,'RECAP SECT'!$G$6:$FJ$253,89,FALSE) -> 39.95 | T23: =VLOOKUP($C23,'RECAP SECT'!$G$6:$FJ$253,90,FALSE) -> 52% | U23: =VLOOKUP($C23,'RECAP SECT'!$G$6:$FJ$253,91,FALSE) -> 6 | W23: =VLOOKUP($C23,'RECAP SECT'!$G$6:$FJ$253,93,FALSE) -> 4.52 | X23: =VLOOKUP($C23,'RECAP SECT'!$G$6:$FJ$253,94,FALSE) -> 37% | Y23: =VLOOKUP($C23,'RECAP SECT'!$G$6:$FJ$253,95,FALSE) -> 7 | Z23: =VLOOKUP($C23,'RECAP SECT'!$G$6:$FJ$253,96,FALSE) -> 112.18 | AA23: =VLOOKUP($C23,'RECAP SECT'!$G$6:$FJ$253,97,FALSE) -> 4.48 | AB23: =VLOOKUP($C23,'RECAP SECT'!$G$6:$FJ$253,98,FALSE) -> 72% | AC23: =VLOOKUP($C23,'RECAP SECT'!$G$6:$FJ$253,99,FALSE) -> 14 | AD23: =VLOOKUP($C23,'RECAP SECT'!$G$6:$FJ$253,100,FALSE) -> 40% | AE23: =VLOOKUP($C23,'RECAP SECT'!$G$6:$FJ$253,101,FALSE) -> 33% | AF23: =VLOOKUP($C23,'RECAP SECT'!$G$6:$FJ$253,102,FALSE) -> 7
A24: 160 | B24: MOSELLE | C24: 42 | D24: MOSELLE EST | E24: =VLOOKUP($C24,'RECAP SECT'!$G$6:$FJ$253,3,FALSE) -> 73.0 | F24: =VLOOKUP($C24,'RECAP SECT'!$G$6:$FJ$253,76,FALSE) -> 553.37 | G24: =VLOOKUP($C24,'RECAP SECT'!$G$6:$FJ$253,77,FALSE) -> 49.99 | H24: =VLOOKUP($C24,'RECAP SECT'!$G$6:$FJ$253,78,FALSE) -> 17% | I24: =VLOOKUP($C24,'RECAP SECT'!$G$6:$FJ$253,79,FALSE) -> 7 | K24: =VLOOKUP($C24,'RECAP SECT'!$G$6:$FJ$253,81,FALSE) -> 11.42 | L24: =VLOOKUP($C24,'RECAP SECT'!$G$6:$FJ$253,82,FALSE) -> 28% | M24: =VLOOKUP($C24,'RECAP SECT'!$G$6:$FJ$253,83,FALSE) -> 8 | N24: =VLOOKUP($C24,'RECAP SECT'!$G$6:$FJ$253,84,FALSE) -> 1214.09 | O24: =VLOOKUP($C24,'RECAP SECT'!$G$6:$FJ$253,85,FALSE) -> 54.47 | P24: =VLOOKUP($C24,'RECAP SECT'!$G$6:$FJ$253,86,FALSE) -> 60% | Q24: =VLOOKUP($C24,'RECAP SECT'!$G$6:$FJ$253,87,FALSE) -> 14 | S24: =VLOOKUP($C24,'RECAP SECT'!$G$6:$FJ$253,89,FALSE) -> 28.80 | T24: =VLOOKUP($C24,'RECAP SECT'!$G$6:$FJ$253,90,FALSE) -> 65% | U24: =VLOOKUP($C24,'RECAP SECT'!$G$6:$FJ$253,91,FALSE) -> 14 | W24: =VLOOKUP($C24,'RECAP SECT'!$G$6:$FJ$253,93,FALSE) -> 2.54 | X24: =VLOOKUP($C24,'RECAP SECT'!$G$6:$FJ$253,94,FALSE) -> 65% | Y24: =VLOOKUP($C24,'RECAP SECT'!$G$6:$FJ$253,95,FALSE) -> 16 | Z24: =VLOOKUP($C24,'RECAP SECT'!$G$6:$FJ$253,96,FALSE) -> 93.99 | AA24: =VLOOKUP($C24,'RECAP SECT'!$G$6:$FJ$253,97,FALSE) -> 4.41 | AB24: =VLOOKUP($C24,'RECAP SECT'!$G$6:$FJ$253,98,FALSE) -> 72% | AC24: =VLOOKUP($C24,'RECAP SECT'!$G$6:$FJ$253,99,FALSE) -> 15 | AD24: =VLOOKUP($C24,'RECAP SECT'!$G$6:$FJ$253,100,FALSE) -> 49% | AE24: =VLOOKUP($C24,'RECAP SECT'!$G$6:$FJ$253,101,FALSE) -> 42% | AF24: =VLOOKUP($C24,'RECAP SECT'!$G$6:$FJ$253,102,FALSE) -> 15
A25: 160 | B25: MOSELLE | C25: 44 | D25: MOSELLE NORD | E25: =VLOOKUP($C25,'RECAP SECT'!$G$6:$FJ$253,3,FALSE) -> 71.8 | F25: =VLOOKUP($C25,'RECAP SECT'!$G$6:$FJ$253,76,FALSE) -> 541.94 | G25: =VLOOKUP($C25,'RECAP SECT'!$G$6:$FJ$253,77,FALSE) -> 46.92 | H25: =VLOOKUP($C25,'RECAP SECT'!$G$6:$FJ$253,78,FALSE) -> 22% | I25: =VLOOKUP($C25,'RECAP SECT'!$G$6:$FJ$253,79,FALSE) -> 12 | K25: =VLOOKUP($C25,'RECAP SECT'!$G$6:$FJ$253,81,FALSE) -> 10.99 | L25: =VLOOKUP($C25,'RECAP SECT'!$G$6:$FJ$253,82,FALSE) -> 31% | M25: =VLOOKUP($C25,'RECAP SECT'!$G$6:$FJ$253,83,FALSE) -> 11 | N25: =VLOOKUP($C25,'RECAP SECT'!$G$6:$FJ$253,84,FALSE) -> 2159.86 | O25: =VLOOKUP($C25,'RECAP SECT'!$G$6:$FJ$253,85,FALSE) -> 81.69 | P25: =VLOOKUP($C25,'RECAP SECT'!$G$6:$FJ$253,86,FALSE) -> 40% | Q25: =VLOOKUP($C25,'RECAP SECT'!$G$6:$FJ$253,87,FALSE) -> 7 | S25: =VLOOKUP($C25,'RECAP SECT'!$G$6:$FJ$253,89,FALSE) -> 39.82 | T25: =VLOOKUP($C25,'RECAP SECT'!$G$6:$FJ$253,90,FALSE) -> 52% | U25: =VLOOKUP($C25,'RECAP SECT'!$G$6:$FJ$253,91,FALSE) -> 7 | W25: =VLOOKUP($C25,'RECAP SECT'!$G$6:$FJ$253,93,FALSE) -> 4.85 | X25: =VLOOKUP($C25,'RECAP SECT'!$G$6:$FJ$253,94,FALSE) -> 32% | Y25: =VLOOKUP($C25,'RECAP SECT'!$G$6:$FJ$253,95,FALSE) -> 6 | Z25: =VLOOKUP($C25,'RECAP SECT'!$G$6:$FJ$253,96,FALSE) -> 73.69 | AA25: =VLOOKUP($C25,'RECAP SECT'!$G$6:$FJ$253,97,FALSE) -> 3.05 | AB25: =VLOOKUP($C25,'RECAP SECT'!$G$6:$FJ$253,98,FALSE) -> 81% | AC25: =VLOOKUP($C25,'RECAP SECT'!$G$6:$FJ$253,99,FALSE) -> 18 | AD25: =VLOOKUP($C25,'RECAP SECT'!$G$6:$FJ$253,100,FALSE) -> 41% | AE25: =VLOOKUP($C25,'RECAP SECT'!$G$6:$FJ$253,101,FALSE) -> 33% | AF25: =VLOOKUP($C25,'RECAP SECT'!$G$6:$FJ$253,102,FALSE) -> 8
A26: 80 | B26: VOSGES | C26: 57 | D26: EPINAL | E26: =VLOOKUP($C26,'RECAP SECT'!$G$6:$FJ$253,3,FALSE) -> 59.8 | F26: =VLOOKUP($C26,'RECAP SECT'!$G$6:$FJ$253,76,FALSE) -> 501.44 | G26: =VLOOKUP($C26,'RECAP SECT'!$G$6:$FJ$253,77,FALSE) -> 42.88 | H26: =VLOOKUP($C26,'RECAP SECT'!$G$6:$FJ$253,78,FALSE) -> 28% | I26: =VLOOKUP($C26,'RECAP SECT'!$G$6:$FJ$253,79,FALSE) -> 15 | K26: =VLOOKUP($C26,'RECAP SECT'!$G$6:$FJ$253,81,FALSE) -> 10.02 | L26: =VLOOKUP($C26,'RECAP SECT'!$G$6:$FJ$253,82,FALSE) -> 37% | M26: =VLOOKUP($C26,'RECAP SECT'!$G$6:$FJ$253,83,FALSE) -> 16 | N26: =VLOOKUP($C26,'RECAP SECT'!$G$6:$FJ$253,84,FALSE) -> 1420.39 | O26: =VLOOKUP($C26,'RECAP SECT'!$G$6:$FJ$253,85,FALSE) -> 64.58 | P26: =VLOOKUP($C26,'RECAP SECT'!$G$6:$FJ$253,86,FALSE) -> 53% | Q26: =VLOOKUP($C26,'RECAP SECT'!$G$6:$FJ$253,87,FALSE) -> 10 | S26: =VLOOKUP($C26,'RECAP SECT'!$G$6:$FJ$253,89,FALSE) -> 29.98 | T26: =VLOOKUP($C26,'RECAP SECT'!$G$6:$FJ$253,90,FALSE) -> 64% | U26: =VLOOKUP($C26,'RECAP SECT'!$G$6:$FJ$253,91,FALSE) -> 13 | W26: =VLOOKUP($C26,'RECAP SECT'!$G$6:$FJ$253,93,FALSE) -> 3.32 | X26: =VLOOKUP($C26,'RECAP SECT'!$G$6:$FJ$253,94,FALSE) -> 54% | Y26: =VLOOKUP($C26,'RECAP SECT'!$G$6:$FJ$253,95,FALSE) -> 10 | Z26: =VLOOKUP($C26,'RECAP SECT'!$G$6:$FJ$253,96,FALSE) -> 163.50 | AA26: =VLOOKUP($C26,'RECAP SECT'!$G$6:$FJ$253,97,FALSE) -> 5.30 | AB26: =VLOOKUP($C26,'RECAP SECT'!$G$6:$FJ$253,98,FALSE) -> 67% | AC26: =VLOOKUP($C26,'RECAP SECT'!$G$6:$FJ$253,99,FALSE) -> 11 | AD26: =VLOOKUP($C26,'RECAP SECT'!$G$6:$FJ$253,100,FALSE) -> 49% | AE26: =VLOOKUP($C26,'RECAP SECT'!$G$6:$FJ$253,101,FALSE) -> 41% | AF26: =VLOOKUP($C26,'RECAP SECT'!$G$6:$FJ$253,102,FALSE) -> 13
A27: 80 | B27: VOSGES | C27: 55 | D27: SAINT DIE | E27: =VLOOKUP($C27,'RECAP SECT'!$G$6:$FJ$253,3,FALSE) -> 48.0 | F27: =VLOOKUP($C27,'RECAP SECT'!$G$6:$FJ$253,76,FALSE) -> 593.58 | G27: =VLOOKUP($C27,'RECAP SECT'!$G$6:$FJ$253,77,FALSE) -> 52.48 | H27: =VLOOKUP($C27,'RECAP SECT'!$G$6:$FJ$253,78,FALSE) -> 12% | I27: =VLOOKUP($C27,'RECAP SECT'!$G$6:$FJ$253,79,FALSE) -> 4 | K27: =VLOOKUP($C27,'RECAP SECT'!$G$6:$FJ$253,81,FALSE) -> 12.60 | L27: =VLOOKUP($C27,'RECAP SECT'!$G$6:$FJ$253,82,FALSE) -> 20% | M27: =VLOOKUP($C27,'RECAP SECT'!$G$6:$FJ$253,83,FALSE) -> 3 | N27: =VLOOKUP($C27,'RECAP SECT'!$G$6:$FJ$253,84,FALSE) -> 1285.46 | O27: =VLOOKUP($C27,'RECAP SECT'!$G$6:$FJ$253,85,FALSE) -> 59.63 | P27: =VLOOKUP($C27,'RECAP SECT'!$G$6:$FJ$253,86,FALSE) -> 56% | Q27: =VLOOKUP($C27,'RECAP SECT'!$G$6:$FJ$253,87,FALSE) -> 12 | S27: =VLOOKUP($C27,'RECAP SECT'!$G$6:$FJ$253,89,FALSE) -> 30.24 | T27: =VLOOKUP($C27,'RECAP SECT'!$G$6:$FJ$253,90,FALSE) -> 64% | U27: =VLOOKUP($C27,'RECAP SECT'!$G$6:$FJ$253,91,FALSE) -> 12 | W27: =VLOOKUP($C27,'RECAP SECT'!$G$6:$FJ$253,93,FALSE) -> 2.60 | X27: =VLOOKUP($C27,'RECAP SECT'!$G$6:$FJ$253,94,FALSE) -> 64% | Y27: =VLOOKUP($C27,'RECAP SECT'!$G$6:$FJ$253,95,FALSE) -> 15 | Z27: =VLOOKUP($C27,'RECAP SECT'!$G$6:$FJ$253,96,FALSE) -> 140.92 | AA27: =VLOOKUP($C27,'RECAP SECT'!$G$6:$FJ$253,97,FALSE) -> 6.19 | AB27: =VLOOKUP($C27,'RECAP SECT'!$G$6:$FJ$253,98,FALSE) -> 61% | AC27: =VLOOKUP($C27,'RECAP SECT'!$G$6:$FJ$253,99,FALSE) -> 9 | AD27: =VLOOKUP($C27,'RECAP SECT'!$G$6:$FJ$253,100,FALSE) -> 45% | AE27: =VLOOKUP($C27,'RECAP SECT'!$G$6:$FJ$253,101,FALSE) -> 38% | AF27: =VLOOKUP($C27,'RECAP SECT'!$G$6:$FJ$253,102,FALSE) -> 12
A28: Total CEGEE Directions Régionales | E28: =SUM(E10:E27) -> 1159

Sheet SE_IARD
B1: Accueil | F1: BAROMETRE BDD - TERRITOIRES
F2: IARD ET PREVOYANCE
F3: =ACCUEIL!F7 -> 2020-12-31
F7: Ventes nettes IARD | J7: Ventes nettes Prévoyance | N7: Total IARD Prévoyance
F8: =DATEMAJ!C28 -> au 31/12 | H8: coef | I8: ='RECAP DIRCOM'!DN4 -> 9% | J8: =DATEMAJ!C29 -> au 31/12 | L8: coef | M8: ='RECAP DIRCOM'!DR4 -> 6% | O8: coef | P8: ='RECAP DIRCOM'!DU4 -> 15%
B9: Direction | C9: eds | D9: Territoire | E9: ="ETP perf "&DATEMAJ!$C$39 -> ETP perf au 31/10 | F9: Nb / ETP | H9: % Ecart au 1er | I9: Rang | J9: Nb / ETP | L9: % Ecart au 1er | M9: Rang | N9: Moyenne ecart au 1er | O9: % Ecart au 1er | P9: Rang CEGEE
A10: 50 | B10: AUBE HAUTE MARNE | C10: 21 | D10: CHAUMONT | E10: =VLOOKUP($C10,'RECAP SECT'!$G$6:$FJ$253,3,FALSE) -> 36.0 | F10: =VLOOKUP($C10,'RECAP SECT'!$G$6:$FJ$253,109,FALSE) -> 14.43 | G10: =VLOOKUP($C10,'RECAP SECT'!$G$6:$FJ$253,110,FALSE) -> 1.42 | H10: =VLOOKUP($C10,'RECAP SECT'!$G$6:$FJ$253,111,FALSE) -> 51% | I10: =VLOOKUP($C10,'RECAP SECT'!$G$6:$FJ$253,112,FALSE) -> 9 | J10: =VLOOKUP($C10,'RECAP SECT'!$G$6:$FJ$253,113,FALSE) -> 9.12 | K10: =VLOOKUP($C10,'RECAP SECT'!$G$6:$FJ$253,114,FALSE) -> 1.90 | L10: =VLOOKUP($C10,'RECAP SECT'!$G$6:$FJ$253,115,FALSE) -> 16% | M10: =VLOOKUP($C10,'RECAP SECT'!$G$6:$FJ$253,116,FALSE) -> 7 | N10: =VLOOKUP($C10,'RECAP SECT'!$G$6:$FJ$253,117,FALSE) -> 37% | O10: =VLOOKUP($C10,'RECAP SECT'!$G$6:$FJ$253,118,FALSE) -> 34% | P10: =VLOOKUP($C10,'RECAP SECT'!$G$6:$FJ$253,119,FALSE) -> 6
A11: 50 | B11: AUBE HAUTE MARNE | C11: 14 | D11: TROYES | E11: =VLOOKUP($C11,'RECAP SECT'!$G$6:$FJ$253,3,FALSE) -> 67.3 | F11: =VLOOKUP($C11,'RECAP SECT'!$G$6:$FJ$253,109,FALSE) -> 9.02 | G11: =VLOOKUP($C11,'RECAP SECT'!$G$6:$FJ$253,110,FALSE) -> 0.96 | H11: =VLOOKUP($C11,'RECAP SECT'!$G$6:$FJ$253,111,FALSE) -> 67% | I11: =VLOOKUP($C11,'RECAP SECT'!$G$6:$FJ$253,112,FALSE) -> 13 | J11: =VLOOKUP($C11,'RECAP SECT'!$G$6:$FJ$253,113,FALSE) -> 8.15 | K11: =VLOOKUP($C11,'RECAP SECT'!$G$6:$FJ$253,114,FALSE) -> 1.90 | L11: =VLOOKUP($C11,'RECAP SECT'!$G$6:$FJ$253,115,FALSE) -> 16% | M11: =VLOOKUP($C11,'RECAP SECT'!$G$6:$FJ$253,116,FALSE) -> 8 | N11: =VLOOKUP($C11,'RECAP SECT'!$G$6:$FJ$253,117,FALSE) -> 47% | O11: =VLOOKUP($C11,'RECAP SECT'!$G$6:$FJ$253,118,FALSE) -> 44% | P11: =VLOOKUP($C11,'RECAP SECT'!$G$6:$FJ$253,119,FALSE) -> 11
A12: 262 | B12: BAS-RHIN | C12: 5060 | D12: HAGUENAU | E12: =VLOOKUP($C12,'RECAP SECT'!$G$6:$FJ$253,3,FALSE) -> 75.0 | F12: =VLOOKUP($C12,'RECAP SECT'!$G$6:$FJ$253,109,FALSE) -> 6.88 | G12: =VLOOKUP($C12,'RECAP SECT'!$G$6:$FJ$253,110,FALSE) -> 0.64 | H12: =VLOOKUP($C12,'RECAP SECT'!$G$6:$FJ$253,111,FALSE) -> 78% | I12: =VLOOKUP($C12,'RECAP SECT'!$G$6:$FJ$253,112,FALSE) -> 15 | J12: =VLOOKUP($C12,'RECAP SECT'!$G$6:$FJ$253,113,FALSE) -> 6.37 | K12: =VLOOKUP($C12,'RECAP SECT'!$G$6:$FJ$253,114,FALSE) -> 1.46 | L12: =VLOOKUP($C12,'RECAP SECT'!$G$6:$FJ$253,115,FALSE) -> 35% | M12: =VLOOKUP($C12,'RECAP SECT'!$G$6:$FJ$253,116,FALSE) -> 13 | N12: =VLOOKUP($C12,'RECAP SECT'!$G$6:$FJ$253,117,FALSE) -> 61% | O12: =VLOOKUP($C12,'RECAP SECT'!$G$6:$FJ$253,118,FALSE) -> 58% | P12: =VLOOKUP($C12,'RECAP SECT'!$G$6:$FJ$253,119,FALSE) -> 16
A13: 262 | B13: BAS-RHIN | C13: 5101 | D13: SELESTAT | E13: =VLOOKUP($C13,'RECAP SECT'!$G$6:$FJ$253,3,FALSE) -> 63.0 | F13: =VLOOKUP($C13,'RECAP SECT'!$G$6:$FJ$253,109,FALSE) -> 4.40 | G13: =VLOOKUP($C13,'RECAP SECT'!$G$6:$FJ$253,110,FALSE) -> 0.31 | H13: =VLOOKUP($C13,'RECAP SECT'!$G$6:$FJ$253,111,FALSE) -> 89% | I13: =VLOOKUP($C13,'RECAP SECT'!$G$6:$FJ$253,112,FALSE) -> 17 | J13: =VLOOKUP($C13,'RECAP SECT'!$G$6:$FJ$253,113,FALSE) -> 4.26 | K13: =VLOOKUP($C13,'RECAP SECT'!$G$6:$FJ$253,114,FALSE) -> 1.28 | L13: =VLOOKUP($C13,'RECAP SECT'!$G$6:$FJ$253,115,FALSE) -> 44% | M13: =VLOOKUP($C13,'RECAP SECT'!$G$6:$FJ$253,116,FALSE) -> 17 | N13: =VLOOKUP($C13,'RECAP SECT'!$G$6:$FJ$253,117,FALSE) -> 71% | O13: =VLOOKUP($C13,'RECAP SECT'!$G$6:$FJ$253,118,FALSE) -> 68% | P13: =VLOOKUP($C13,'RECAP SECT'!$G$6:$FJ$253,119,FALSE) -> 17
A14: 262 | B14: BAS-RHIN | C14: 5006 | D14: STRASBOURG | E14: =VLOOKUP($C14,'RECAP SECT'!$G$6:$FJ$253,3,FALSE) -> 76.0 | F14: =VLOOKUP($C14,'RECAP SECT'!$G$6:$FJ$253,109,FALSE) -> 9.00 | G14: =VLOOKUP($C14,'RECAP SECT'!$G$6:$FJ$253,110,FALSE) -> 0.91 | H14: =VLOOKUP($C14,'RECAP SECT'!$G$6:$FJ$253,111,FALSE) -> 69% | I14: =VLOOKUP($C14,'RECAP SECT'!$G$6:$FJ$253,112,FALSE) -> 14 | J14: =VLOOKUP($C14,'RECAP SECT'!$G$6:$FJ$253,113,FALSE) -> 11.24 | K14: =VLOOKUP($C14,'RECAP SECT'!$G$6:$FJ$253,114,FALSE) -> 2.13 | L14: =VLOOKUP($C14,'RECAP SECT'!$G$6:$FJ$253,115,FALSE) -> 6% | M14: =VLOOKUP($C14,'RECAP SECT'!$G$6:$FJ$253,116,FALSE) -> 3 | N14: =VLOOKUP($C14,'RECAP SECT'!$G$6:$FJ$253,117,FALSE) -> 43% | O14: =VLOOKUP($C14,'RECAP SECT'!$G$6:$FJ$253,118,FALSE) -> 41% | P14: =VLOOKUP($C14,'RECAP SECT'!$G$6:$FJ$253,119,FALSE) -> 10
A15: 264 | B15: HAUT-RHIN | C15: 5130 | D15: COLMAR | E15: =VLOOKUP($C15,'RECAP SECT'!$G$6:$FJ$253,3,FALSE) -> 65.9 | F15: =VLOOKUP($C15,'RECAP SECT'!$G$6:$FJ$253,109,FALSE) -> 4.13 | G15: =VLOOKUP($C15,'RECAP SECT'!$G$6:$FJ$253,110,FALSE) -> 0.37 | H15: =VLOOKUP($C15,'RECAP SECT'!$G$6:$FJ$253,111,FALSE) -> 87% | I15: =VLOOKUP($C15,'RECAP SECT'!$G$6:$FJ$253,112,FALSE) -> 16 | J15: =VLOOKUP($C15,'RECAP SECT'!$G$6:$FJ$253,113,FALSE) -> 10.33 | K15: =VLOOKUP($C15,'RECAP SECT'!$G$6:$FJ$253,114,FALSE) -> 2.10 | L15: =VLOOKUP($C15,'RECAP SECT'!$G$6:$FJ$253,115,FALSE) -> 7% | M15: =VLOOKUP($C15,'RECAP SECT'!$G$6:$FJ$253,116,FALSE) -> 5 | N15: =VLOOKUP($C15,'RECAP SECT'!$G$6:$FJ$253,117,FALSE) -> 55% | O15: =VLOOKUP($C15,'RECAP SECT'!$G$6:$FJ$253,118,FALSE) -> 52% | P15: =VLOOKUP($C15,'RECAP SECT'!$G$6:$FJ$253,119,FALSE) -> 15
A16: 264 | B16: HAUT-RHIN | C16: 5169 | D16: MULHOUSE | E16: =VLOOKUP($C16,'RECAP SECT'!$G$6:$FJ$253,3,FALSE) -> 62.1 | F16: =VLOOKUP($C16,'RECAP SECT'!$G$6:$FJ$253,109,FALSE) -> 0.77 | G16: =VLOOKUP($C16,'RECAP SECT'!$G$6:$FJ$253,110,FALSE) -> -0.01 | H16: =VLOOKUP($C16,'RECAP SECT'!$G$6:$FJ$253,111,FALSE) -> 100% | I16: =VLOOKUP($C16,'RECAP SECT'!$G$6:$FJ$253,112,FALSE) -> 18 | J16: =VLOOKUP($C16,'RECAP SECT'!$G$6:$FJ$253,113,FALSE) -> 5.14 | K16: =VLOOKUP($C16,'RECAP SECT'!$G$6:$FJ$253,114,FALSE) -> 1.35 | L16: =VLOOKUP($C16,'RECAP SECT'!$G$6:$FJ$253,115,FALSE) -> 40% | M16: =VLOOKUP($C16,'RECAP SECT'!$G$6:$FJ$253,116,FALSE) -> 16 | N16: =VLOOKUP($C16,'RECAP SECT'!$G$6:$FJ$253,117,FALSE) -> 76% | O16: =VLOOKUP($C16,'RECAP SECT'!$G$6:$FJ$253,118,FALSE) -> 73% | P16: =VLOOKUP($C16,'RECAP SECT'!$G$6:$FJ$253,119,FALSE) -> 18
A17: 30 | B17: MARNE-ARDENNES | C17: 6 | D17: CHALONS EN CHAMPAGNE | E17: =VLOOKUP($C17,'RECAP SECT'!$G$6:$FJ$253,3,FALSE) -> 45.2 | F17: =VLOOKUP($C17,'RECAP SECT'!$G$6:$FJ$253,109,FALSE) -> 18.17 | G17: =VLOOKUP($C17,'RECAP SECT'!$G$6:$FJ$253,110,FALSE) -> 1.99 | H17: =VLOOKUP($C17,'RECAP SECT'!$G$6:$FJ$253,111,FALSE) -> 31% | I17: =VLOOKUP($C17,'RECAP SECT'!$G$6:$FJ$253,112,FALSE) -> 2 | J17: =VLOOKUP($C17,'RECAP SECT'!$G$6:$FJ$253,113,FALSE) -> 12.49 | K17: =VLOOKUP($C17,'RECAP SECT'!$G$6:$FJ$253,114,FALSE) -> 2.18 | L17: =VLOOKUP($C17,'RECAP SECT'!$G$6:$FJ$253,115,FALSE) -> 3% | M17: =VLOOKUP($C17,'RECAP SECT'!$G$6:$FJ$253,116,FALSE) -> 2 | N17: =VLOOKUP($C17,'RECAP SECT'!$G$6:$FJ$253,117,FALSE) -> 20% | O17: =VLOOKUP($C17,'RECAP SECT'!$G$6:$FJ$253,118,FALSE) -> 17% | P17: =VLOOKUP($C17,'RECAP SECT'!$G$6:$FJ$253,119,FALSE) -> 2
A18: 30 | B18: MARNE-ARDENNES | C18: 2 | D18: CHARLEVILLE MEZIERES | E18: =VLOOKUP($C18,'RECAP SECT'!$G$6:$FJ$253,3,FALSE) -> 54.8 | F18: =VLOOKUP($C18,'RECAP SECT'!$G$6:$FJ$253,109,FALSE) -> 17.87 | G18: =VLOOKUP($C18,'RECAP SECT'!$G$6:$FJ$253,110,FALSE) -> 1.80 | H18: =VLOOKUP($C18,'RECAP SECT'!$G$6:$FJ$253,111,FALSE) -> 38% | I18: =VLOOKUP($C18,'RECAP SECT'!$G$6:$FJ$253,112,FALSE) -> 5 | J18: =VLOOKUP($C18,'RECAP SECT'!$G$6:$FJ$253,113,FALSE) -> 10.39 | K18: =VLOOKUP($C18,'RECAP SECT'!$G$6:$FJ$253,114,FALSE) -> 2.06 | L18: =VLOOKUP($C18,'RECAP SECT'!$G$6:$FJ$253,115,FALSE) -> 9% | M18: =VLOOKUP($C18,'RECAP SECT'!$G$6:$FJ$253,116,FALSE) -> 6 | N18: =VLOOKUP($C18,'RECAP SECT'!$G$6:$FJ$253,117,FALSE) -> 26% | O18: =VLOOKUP($C18,'RECAP SECT'!$G$6:$FJ$253,118,FALSE) -> 24% | P18: =VLOOKUP($C18,'RECAP SECT'!$G$6:$FJ$253,119,FALSE) -> 4
A19: 30 | B19: MARNE-ARDENNES | C19: 11 | D19: REIMS | E19: =VLOOKUP($C19,'RECAP SECT'!$G$6:$FJ$253,3,FALSE) -> 80.3 | F19: =VLOOKUP($C19,'RECAP SECT'!$G$6:$FJ$253,109,FALSE) -> 18.11 | G19: =VLOOKUP($C19,'RECAP SECT'!$G$6:$FJ$253,110,FALSE) -> 1.91 | H19: =VLOOKUP($C19,'RECAP SECT'!$G$6:$FJ$253,111,FALSE) -> 34% | I19: =VLOOKUP($C19,'RECAP SECT'!$G$6:$FJ$253,112,FALSE) -> 3 | J19: =VLOOKUP($C19,'RECAP SECT'!$G$6:$FJ$253,113,FALSE) -> 9.61 | K19: =VLOOKUP($C19,'RECAP SECT'!$G$6:$FJ$253,114,FALSE) -> 2.26 | L19: =VLOOKUP($C19,'RECAP SECT'!$G$6:$FJ$253,115,FALSE) -> 0% | M19: =VLOOKUP($C19,'RECAP SECT'!$G$6:$FJ$253,116,FALSE) -> 1 | N19: =VLOOKUP($C19,'RECAP SECT'!$G$6:$FJ$253,117,FALSE) -> 21% | O19: =VLOOKUP($C19,'RECAP SECT'!$G$6:$FJ$253,118,FALSE) -> 18% | P19: =VLOOKUP($C19,'RECAP SECT'!$G$6:$FJ$253,119,FALSE) -> 3
A20: 110 | B20: MEURTHE ET MOSELLE MEUSE | C20: 26 | D20: NANCY | E20: =VLOOKUP($C20,'RECAP SECT'!$G$6:$FJ$253,3,FALSE) -> 65.2 | F20: =VLOOKUP($C20,'RECAP SECT'!$G$6:$FJ$253,109,FALSE) -> 16.51 | G20: =VLOOKUP($C20,'RECAP SECT'!$G$6:$FJ$253,110,FALSE) -> 1.67 | H20: =VLOOKUP($C20,'RECAP SECT'!$G$6:$FJ$253,111,FALSE) -> 42% | I20: =VLOOKUP($C20,'RECAP SECT'!$G$6:$FJ$253,112,FALSE) -> 6 | J20: =VLOOKUP($C20,'RECAP SECT'!$G$6:$FJ$253,113,FALSE) -> 7.64 | K20: =VLOOKUP($C20,'RECAP SECT'!$G$6:$FJ$253,114,FALSE) -> 1.50 | L20: =VLOOKUP($C20,'RECAP SECT'!$G$6:$FJ$253,115,FALSE) -> 34% | M20: =VLOOKUP($C20,'RECAP SECT'!$G$6:$FJ$253,116,FALSE) -> 12 | N20: =VLOOKUP($C20,'RECAP SECT'!$G$6:$FJ$253,117,FALSE) -> 39% | O20: =VLOOKUP($C20,'RECAP SECT'!$G$6:$FJ$253,118,FALSE) -> 36% | P20: =VLOOKUP($C20,'RECAP SECT'!$G$6:$FJ$253,119,FALSE) -> 7
A21: 110 | B21: MEURTHE ET MOSELLE MEUSE | C21: 27 | D21: PONT A MOUSSON | E21: =VLOOKUP($C21,'RECAP SECT'!$G$6:$FJ$253,3,FALSE) -> 74.0 | F21: =VLOOKUP($C21,'RECAP SECT'!$G$6:$FJ$253,109,FALSE) -> 29.98 | G21: =VLOOKUP($C21,'RECAP SECT'!$G$6:$FJ$253,110,FALSE) -> 2.90 | H21: =VLOOKUP($C21,'RECAP SECT'!$G$6:$FJ$253,111,FALSE) -> 0% | I21: =VLOOKUP($C21,'RECAP SECT'!$G$6:$FJ$253,112,FALSE) -> 1 | J21: =VLOOKUP($C21,'RECAP SECT'!$G$6:$FJ$253,113,FALSE) -> 18.19 | K21: =VLOOKUP($C21,'RECAP SECT'!$G$6:$FJ$253,114,FALSE) -> 2.10 | L21: =VLOOKUP($C21,'RECAP SECT'!$G$6:$FJ$253,115,FALSE) -> 7% | M21: =VLOOKUP($C21,'RECAP SECT'!$G$6:$FJ$253,116,FALSE) -> 4 | N21: =VLOOKUP($C21,'RECAP SECT'!$G$6:$FJ$253,117,FALSE) -> 3% | O21: =VLOOKUP($C21,'RECAP SECT'!$G$6:$FJ$253,118,FALSE) -> 0% | P21: =VLOOKUP($C21,'RECAP SECT'!$G$6:$FJ$253,119,FALSE) -> 1
A22: 110 | B22: MEURTHE ET MOSELLE MEUSE | C22: 31 | D22: VERDUN | E22: =VLOOKUP($C22,'RECAP SECT'!$G$6:$FJ$253,3,FALSE) -> 53.6 | F22: =VLOOKUP($C22,'RECAP SECT'!$G$6:$FJ$253,109,FALSE) -> 14.14 | G22: =VLOOKUP($C22,'RECAP SECT'!$G$6:$FJ$253,110,FALSE) -> 1.44 | H22: =VLOOKUP($C22,'RECAP SECT'!$G$6:$FJ$253,111,FALSE) -> 50% | I22: =VLOOKUP($C22,'RECAP SECT'!$G$6:$FJ$253,112,FALSE) -> 7 | J22: =VLOOKUP($C22,'RECAP SECT'!$G$6:$FJ$253,113,FALSE) -> 9.18 | K22: =VLOOKUP($C22,'RECAP SECT'!$G$6:$FJ$253,114,FALSE) -> 1.73 | L22: =VLOOKUP($C22,'RECAP SECT'!$G$6:$FJ$253,115,FALSE) -> 24% | M22: =VLOOKUP($C22,'RECAP SECT'!$G$6:$FJ$253,116,FALSE) -> 10 | N22: =VLOOKUP($C22,'RECAP SECT'!$G$6:$FJ$253,117,FALSE) -> 40% | O22: =VLOOKUP($C22,'RECAP SECT'!$G$6:$FJ$253,118,FALSE) -> 37% | P22: =VLOOKUP($C22,'RECAP SECT'!$G$6:$FJ$253,119,FALSE) -> 9
A23: 160 | B23: MOSELLE | C23: 45 | D23: METZ | E23: =VLOOKUP($C23,'RECAP SECT'!$G$6:$FJ$253,3,FALSE) -> 87.6 | F23: =VLOOKUP($C23,'RECAP SECT'!$G$6:$FJ$253,109,FALSE) -> 11.87 | G23: =VLOOKUP($C23,'RECAP SECT'!$G$6:$FJ$253,110,FALSE) -> 1.24 | H23: =VLOOKUP($C23,'RECAP SECT'!$G$6:$FJ$253,111,FALSE) -> 57% | I23: =VLOOKUP($C23,'RECAP SECT'!$G$6:$FJ$253,112,FALSE) -> 11 | J23: =VLOOKUP($C23,'RECAP SECT'!$G$6:$FJ$253,113,FALSE) -> 7.70 | K23: =VLOOKUP($C23,'RECAP SECT'!$G$6:$FJ$253,114,FALSE) -> 1.37 | L23: =VLOOKUP($C23,'RECAP SECT'!$G$6:$FJ$253,115,FALSE) -> 39% | M23: =VLOOKUP($C23,'RECAP SECT'!$G$6:$FJ$253,116,FALSE) -> 15 | N23: =VLOOKUP($C23,'RECAP SECT'!$G$6:$FJ$253,117,FALSE) -> 50% | O23: =VLOOKUP($C23,'RECAP SECT'!$G$6:$FJ$253,118,FALSE) -> 47% | P23: =VLOOKUP($C23,'RECAP SECT'!$G$6:$FJ$253,119,FALSE) -> 13
A24: 160 | B24: MOSELLE | C24: 42 | D24: MOSELLE EST | E24: =VLOOKUP($C24,'RECAP SECT'!$G$6:$FJ$253,3,FALSE) -> 73.0 | F24: =VLOOKUP($C24,'RECAP SECT'!$G$6:$FJ$253,109,FALSE) -> 12.20 | G24: =VLOOKUP($C24,'RECAP SECT'!$G$6:$FJ$253,110,FALSE) -> 1.25 | H24: =VLOOKUP($C24,'RECAP SECT'!$G$6:$FJ$253,111,FALSE) -> 57% | I24: =VLOOKUP($C24,'RECAP SECT'!$G$6:$FJ$253,112,FALSE) -> 10 | J24: =VLOOKUP($C24,'RECAP SECT'!$G$6:$FJ$253,113,FALSE) -> 3.93 | K24: =VLOOKUP($C24,'RECAP SECT'!$G$6:$FJ$253,114,FALSE) -> 1.18 | L24: =VLOOKUP($C24,'RECAP SECT'!$G$6:$FJ$253,115,FALSE) -> 48% | M24: =VLOOKUP($C24,'RECAP SECT'!$G$6:$FJ$253,116,FALSE) -> 18 | N24: =VLOOKUP($C24,'RECAP SECT'!$G$6:$FJ$253,117,FALSE) -> 53% | O24: =VLOOKUP($C24,'RECAP SECT'!$G$6:$FJ$253,118,FALSE) -> 50% | P24: =VLOOKUP($C24,'RECAP SECT'!$G$6:$FJ$253,119,FALSE) -> 14
A25: 160 | B25: MOSELLE | C25: 44 | D25: MOSELLE NORD | E25: =VLOOKUP($C25,'RECAP SECT'!$G$6:$FJ$253,3,FALSE) -> 71.8 | F25: =VLOOKUP($C25,'RECAP SECT'!$G$6:$FJ$253,109,FALSE) -> 18.47 | G25: =VLOOKUP($C25,'RECAP SECT'!$G$6:$FJ$253,110,FALSE) -> 1.88 | H25: =VLOOKUP($C25,'RECAP SECT'!$G$6:$FJ$253,111,FALSE) -> 35% | I25: =VLOOKUP($C25,'RECAP SECT'!$G$6:$FJ$253,112,FALSE) -> 4 | J25: =VLOOKUP($C25,'RECAP SECT'!$G$6:$FJ$253,113,FALSE) -> 8.90 | K25: =VLOOKUP($C25,'RECAP SECT'!$G$6:$FJ$253,114,FALSE) -> 1.45 | L25: =VLOOKUP($C25,'RECAP SECT'!$G$6:$FJ$253,115,FALSE) -> 36% | M25: =VLOOKUP($C25,'RECAP SECT'!$G$6:$FJ$253,116,FALSE) -> 14 | N25: =VLOOKUP($C25,'RECAP SECT'!$G$6:$FJ$253,117,FALSE) -> 35% | O25: =VLOOKUP($C25,'RECAP SECT'!$G$6:$FJ$253,118,FALSE) -> 33% | P25: =VLOOKUP($C25,'RECAP SECT'!$G$6:$FJ$253,119,FALSE) -> 5
A26: 80 | B26: VOSGES | C26: 57 | D26: EPINAL | E26: =VLOOKUP($C26,'RECAP SECT'!$G$6:$FJ$253,3,FALSE) -> 59.8 | F26: =VLOOKUP($C26,'RECAP SECT'!$G$6:$FJ$253,109,FALSE) -> 11.06 | G26: =VLOOKUP($C26,'RECAP SECT'!$G$6:$FJ$253,110,FALSE) -> 1.20 | H26: =VLOOKUP($C26,'RECAP SECT'!$G$6:$FJ$253,111,FALSE) -> 59% | I26: =VLOOKUP($C26,'RECAP SECT'!$G$6:$FJ$253,112,FALSE) -> 12 | J26: =VLOOKUP($C26,'RECAP SECT'!$G$6:$FJ$253,113,FALSE) -> 7.59 | K26: =VLOOKUP($C26,'RECAP SECT'!$G$6:$FJ$253,114,FALSE) -> 1.61 | L26: =VLOOKUP($C26,'RECAP SECT'!$G$6:$FJ$253,115,FALSE) -> 29% | M26: =VLOOKUP($C26,'RECAP SECT'!$G$6:$FJ$253,116,FALSE) -> 11 | N26: =VLOOKUP($C26,'RECAP SECT'!$G$6:$FJ$253,117,FALSE) -> 47% | O26: =VLOOKUP($C26,'RECAP SECT'!$G$6:$FJ$253,118,FALSE) -> 44% | P26: =VLOOKUP($C26,'RECAP SECT'!$G$6:$FJ$253,119,FALSE) -> 12
A27: 80 | B27: VOSGES | C27: 55 | D27: SAINT DIE | E27: =VLOOKUP($C27,'RECAP SECT'!$G$6:$FJ$253,3,FALSE) -> 48.0 | F27: =VLOOKUP($C27,'RECAP SECT'!$G$6:$FJ$253,109,FALSE) -> 13.43 | G27: =VLOOKUP($C27,'RECAP SECT'!$G$6:$FJ$253,110,FALSE) -> 1.44 | H27: =VLOOKUP($C27,'RECAP SECT'!$G$6:$FJ$253,111,FALSE) -> 50% | I27: =VLOOKUP($C27,'RECAP SECT'!$G$6:$FJ$253,112,FALSE) -> 8 | J27: =VLOOKUP($C27,'RECAP SECT'!$G$6:$FJ$253,113,FALSE) -> 8.63 | K27: =VLOOKUP($C27,'RECAP SECT'!$G$6:$FJ$253,114,FALSE) -> 1.76 | L27: =VLOOKUP($C27,'RECAP SECT'!$G$6:$FJ$253,115,FALSE) -> 22% | M27: =VLOOKUP($C27,'RECAP SECT'!$G$6:$FJ$253,116,FALSE) -> 9 | N27: =VLOOKUP($C27,'RECAP SECT'!$G$6:$FJ$253,117,FALSE) -> 39% | O27: =VLOOKUP($C27,'RECAP SECT'!$G$6:$FJ$253,118,FALSE) -> 36% | P27: =VLOOKUP($C27,'RECAP SECT'!$G$6:$FJ$253,119,FALSE) -> 8
A28: Total CEGEE Directions Régionales | E28: =SUM(E10:E27) -> 1159

Sheet SE_CONQUETE
B1: Accueil | F1: BAROMETRE BDD - TERRITOIRES
F2: CLIENTS
F3: =ACCUEIL!F7 -> 2020-12-31
F7: Evolution nette clients Bancarisés Principaux | J7: Evolution nette relations PREMIUM | N7: Evolution nette clients Jeunes équipés | R7: Evolution nette clients Pro actif équipés | V7: Total Clients
F8: =DATEMAJ!C7 -> au 30/11 | H8: coef | I8: ='RECAP DIRCOM'!N4 -> 4% | J8: =DATEMAJ!C8 -> au 30/11 | L8: coef | M8: ='RECAP DIRCOM'!R4 -> 5% | N8: =DATEMAJ!C9 -> au 30/11 | P8: coef | Q8: ='RECAP DIRCOM'!V4 -> 3% | R8: =DATEMAJ!C10 -> au 30/11 | T8: coef | U8: ='RECAP DIRCOM'!Z4 -> 3% | W8: coef | X8: ='RECAP DIRCOM'!AC4 -> 15%
B9: Direction | C9: eds | D9: Territoire | E9: ="ETP perf "&DATEMAJ!$C$39 -> ETP perf au 31/10 | F9: Nb / ETP | G9: PNB / ETP | H9: % Ecart au 1er | I9: Rang | J9: Nb / ETP | K9: PNB / ETP | L9: % Ecart au 1er | M9: Rang | N9: Nb / ETP | O9: PNB / ETP | P9: % Ecart au 1er | Q9: Rang | R9: Nb / ETP | S9: PNB / ETP | T9: % Ecart au 1er | U9: Rang | V9: Moyenne ecart au 1er | W9: % Ecart au 1er | X9: Rang CEGEE
A10: 50 | B10: AUBE HAUTE MARNE | C10: 21 | D10: CHAUMONT | E10: =VLOOKUP($C10,'RECAP SECT'!$G$6:$FJ$253,3,FALSE) -> 36.0 | F10: =VLOOKUP($C10,'RECAP SECT'!$G$6:$FJ$253,5,FALSE) -> -3.64 | G10: =VLOOKUP($C10,'RECAP SECT'!$G$6:$FJ$253,6,FALSE) -> -1.82 | H10: =VLOOKUP($C10,'RECAP SECT'!$G$6:$FJ$253,7,FALSE) -> 64% | I10: =VLOOKUP($C10,'RECAP SECT'!$G$6:$FJ$253,8,FALSE) -> 8 | J10: =VLOOKUP($C10,'RECAP SECT'!$G$6:$FJ$253,9,FALSE) -> 2.53 | K10: =VLOOKUP($C10,'RECAP SECT'!$G$6:$FJ$253,10,FALSE) -> 1.77 | L10: =VLOOKUP($C10,'RECAP SECT'!$G$6:$FJ$253,11,FALSE) -> 44% | M10: =VLOOKUP($C10,'RECAP SECT'!$G$6:$FJ$253,12,FALSE) -> 15 | N10: =VLOOKUP($C10,'RECAP SECT'!$G$6:$FJ$253,13,FALSE) -> -4.03 | O10: =VLOOKUP($C10,'RECAP SECT'!$G$6:$FJ$253,14,FALSE) -> -0.60 | P10: =VLOOKUP($C10,'RECAP SECT'!$G$6:$FJ$253,15,FALSE) -> 90% | Q10: =VLOOKUP($C10,'RECAP SECT'!$G$6:$FJ$253,16,FALSE) -> 11 | R10: =VLOOKUP($C10,'RECAP SECT'!$G$6:$FJ$253,17,FALSE) -> 64% | S10: =VLOOKUP($C10,'RECAP SECT'!$G$6:$FJ$253,18,FALSE) -> 160% | T10: =VLOOKUP($C10,'RECAP SECT'!$G$6:$FJ$253,19,FALSE) -> 44% | U10: =VLOOKUP($C10,'RECAP SECT'!$G$6:$FJ$253,20,FALSE) -> 9 | V10: =VLOOKUP($C10,'RECAP SECT'!$G$6:$FJ$253,21,FALSE) -> 59% | W10: =VLOOKUP($C10,'RECAP SECT'!$G$6:$FJ$253,22,FALSE) -> 37% | X10: =VLOOKUP($C10,'RECAP SECT'!$G$6:$FJ$253,23,FALSE) -> 10
A11: 50 | B11: AUBE HAUTE MARNE | C11: 14 | D11: TROYES | E11: =VLOOKUP($C11,'RECAP SECT'!$G$6:$FJ$253,3,FALSE) -> 67.3 | F11: =VLOOKUP($C11,'RECAP SECT'!$G$6:$FJ$253,5,FALSE) -> -7.19 | G11: =VLOOKUP($C11,'RECAP SECT'!$G$6:$FJ$253,6,FALSE) -> -3.60 | H11: =VLOOKUP($C11,'RECAP SECT'!$G$6:$FJ$253,7,FALSE) -> 91% | I11: =VLOOKUP($C11,'RECAP SECT'!$G$6:$FJ$253,8,FALSE) -> 15 | J11: =VLOOKUP($C11,'RECAP SECT'!$G$6:$FJ$253,9,FALSE) -> 2.79 | K11: =VLOOKUP($C11,'RECAP SECT'!$G$6:$FJ$253,10,FALSE) -> 1.96 | L11: =VLOOKUP($C11,'RECAP SECT'!$G$6:$FJ$253,11,FALSE) -> 39% | M11: =VLOOKUP($C11,'RECAP SECT'!$G$6:$FJ$253,12,FALSE) -> 11 | N11: =VLOOKUP($C11,'RECAP SECT'!$G$6:$FJ$253,13,FALSE) -> -4.88 | O11: =VLOOKUP($C11,'RECAP SECT'!$G$6:$FJ$253,14,FALSE) -> -0.73 | P11: =VLOOKUP($C11,'RECAP SECT'!$G$6:$FJ$253,15,FALSE) -> 100% | Q11: =VLOOKUP($C11,'RECAP SECT'!$G$6:$FJ$253,16,FALSE) -> 13 | R11: =VLOOKUP($C11,'RECAP SECT'!$G$6:$FJ$253,17,FALSE) -> 94% | S11: =VLOOKUP($C11,'RECAP SECT'!$G$6:$FJ$253,18,FALSE) -> 234% | T11: =VLOOKUP($C11,'RECAP SECT'!$G$6:$FJ$253,19,FALSE) -> 19% | U11: =VLOOKUP($C11,'RECAP SECT'!$G$6:$FJ$253,20,FALSE) -> 3 | V11: =VLOOKUP($C11,'RECAP SECT'!$G$6:$FJ$253,21,FALSE) -> 61% | W11: =VLOOKUP($C11,'RECAP SECT'!$G$6:$FJ$253,22,FALSE) -> 39% | X11: =VLOOKUP($C11,'RECAP SECT'!$G$6:$FJ$253,23,FALSE) -> 12
A12: 262 | B12: BAS-RHIN | C12: 5060 | D12: HAGUENAU | E12: =VLOOKUP($C12,'RECAP SECT'!$G$6:$FJ$253,3,FALSE) -> 75.0 | F12: =VLOOKUP($C12,'RECAP SECT'!$G$6:$FJ$253,5,FALSE) -> -6.50 | G12: =VLOOKUP($C12,'RECAP SECT'!$G$6:$FJ$253,6,FALSE) -> -3.25 | H12: =VLOOKUP($C12,'RECAP SECT'!$G$6:$FJ$253,7,FALSE) -> 86% | I12: =VLOOKUP($C12,'RECAP SECT'!$G$6:$FJ$253,8,FALSE) -> 14 | J12: =VLOOKUP($C12,'RECAP SECT'!$G$6:$FJ$253,9,FALSE) -> 2.67 | K12: =VLOOKUP($C12,'RECAP SECT'!$G$6:$FJ$253,10,FALSE) -> 1.87 | L12: =VLOOKUP($C12,'RECAP SECT'!$G$6:$FJ$253,11,FALSE) -> 41% | M12: =VLOOKUP($C12,'RECAP SECT'!$G$6:$FJ$253,12,FALSE) -> 13 | N12: =VLOOKUP($C12,'RECAP SECT'!$G$6:$FJ$253,13,FALSE) -> -5.16 | O12: =VLOOKUP($C12,'RECAP SECT'!$G$6:$FJ$253,14,FALSE) -> -0.77 | P12: =VLOOKUP($C12,'RECAP SECT'!$G$6:$FJ$253,15,FALSE) -> 103% | Q12: =VLOOKUP($C12,'RECAP SECT'!$G$6:$FJ$253,16,FALSE) -> 15 | R12: =VLOOKUP($C12,'RECAP SECT'!$G$6:$FJ$253,17,FALSE) -> 53% | S12: =VLOOKUP($C12,'RECAP SECT'!$G$6:$FJ$253,18,FALSE) -> 133% | T12: =VLOOKUP($C12,'RECAP SECT'!$G$6:$FJ$253,19,FALSE) -> 54% | U12: =VLOOKUP($C12,'RECAP SECT'!$G$6:$FJ$253,20,FALSE) -> 12 | V12: =VLOOKUP($C12,'RECAP SECT'!$G$6:$FJ$253,21,FALSE) -> 68% | W12: =VLOOKUP($C12,'RECAP SECT'!$G$6:$FJ$253,22,FALSE) -> 47% | X12: =VLOOKUP($C12,'RECAP SECT'!$G$6:$FJ$253,23,FALSE) -> 14
A13: 262 | B13: BAS-RHIN | C13: 5101 | D13: SELESTAT | E13: =VLOOKUP($C13,'RECAP SECT'!$G$6:$FJ$253,3,FALSE) -> 63.0 | F13: =VLOOKUP($C13,'RECAP SECT'!$G$6:$FJ$253,5,FALSE) -> -11.18 | G13: =VLOOKUP($C13,'RECAP SECT'!$G$6:$FJ$253,6,FALSE) -> -5.59 | H13: =VLOOKUP($C13,'RECAP SECT'!$G$6:$FJ$253,7,FALSE) -> 122% | I13: =VLOOKUP($C13,'RECAP SECT'!$G$6:$FJ$253,8,FALSE) -> 17 | J13: =VLOOKUP($C13,'RECAP SECT'!$G$6:$FJ$253,9,FALSE) -> 3.22 | K13: =VLOOKUP($C13,'RECAP SECT'!$G$6:$FJ$253,10,FALSE) -> 2.26 | L13: =VLOOKUP($C13,'RECAP SECT'!$G$6:$FJ$253,11,FALSE) -> 29% | M13: =VLOOKUP($C13,'RECAP SECT'!$G$6:$FJ$253,12,FALSE) -> 6 | N13: =VLOOKUP($C13,'RECAP SECT'!$G$6:$FJ$253,13,FALSE) -> -7.32 | O13: =VLOOKUP($C13,'RECAP SECT'!$G$6:$FJ$253,14,FALSE) -> -1.10 | P13: =VLOOKUP($C13,'RECAP SECT'!$G$6:$FJ$253,15,FALSE) -> 129% | Q13: =VLOOKUP($C13,'RECAP SECT'!$G$6:$FJ$253,16,FALSE) -> 17 | R13: =VLOOKUP($C13,'RECAP SECT'!$G$6:$FJ$253,17,FALSE) -> 27% | S13: =VLOOKUP($C13,'RECAP SECT'!$G$6:$FJ$253,18,FALSE) -> 67% | T13: =VLOOKUP($C13,'RECAP SECT'!$G$6:$FJ$253,19,FALSE) -> 77% | U13: =VLOOKUP($C13,'RECAP SECT'!$G$6:$FJ$253,20,FALSE) -> 17 | V13: =VLOOKUP($C13,'RECAP SECT'!$G$6:$FJ$253,21,FALSE) -> 83% | W13: =VLOOKUP($C13,'RECAP SECT'!$G$6:$FJ$253,22,FALSE) -> 62% | X13: =VLOOKUP($C13,'RECAP SECT'!$G$6:$FJ$253,23,FALSE) -> 17
A14: 262 | B14: BAS-RHIN | C14: 5006 | D14: STRASBOURG | E14: =VLOOKUP($C14,'RECAP SECT'!$G$6:$FJ$253,3,FALSE) -> 76.0 | F14: =VLOOKUP($C14,'RECAP SECT'!$G$6:$FJ$253,5,FALSE) -> -3.59 | G14: =VLOOKUP($C14,'RECAP SECT'!$G$6:$FJ$253,6,FALSE) -> -1.80 | H14: =VLOOKUP($C14,'RECAP SECT'!$G$6:$FJ$253,7,FALSE) -> 64% | I14: =VLOOKUP($C14,'RECAP SECT'!$G$6:$FJ$253,8,FALSE) -> 7 | J14: =VLOOKUP($C14,'RECAP SECT'!$G$6:$FJ$253,9,FALSE) -> 2.67 | K14: =VLOOKUP($C14,'RECAP SECT'!$G$6:$FJ$253,10,FALSE) -> 1.87 | L14: =VLOOKUP($C14,'RECAP SECT'!$G$6:$FJ$253,11,FALSE) -> 41% | M14: =VLOOKUP($C14,'RECAP SECT'!$G$6:$FJ$253,12,FALSE) -> 12 | N14: =VLOOKUP($C14,'RECAP SECT'!$G$6:$FJ$253,13,FALSE) -> -3.99 | O14: =VLOOKUP($C14,'RECAP SECT'!$G$6:$FJ$253,14,FALSE) -> -0.60 | P14: =VLOOKUP($C14,'RECAP SECT'!$G$6:$FJ$253,15,FALSE) -> 89% | Q14: =VLOOKUP($C14,'RECAP SECT'!$G$6:$FJ$253,16,FALSE) -> 10 | R14: =VLOOKUP($C14,'RECAP SECT'!$G$6:$FJ$253,17,FALSE) -> 96% | S14: =VLOOKUP($C14,'RECAP SECT'!$G$6:$FJ$253,18,FALSE) -> 240% | T14: =VLOOKUP($C14,'RECAP SECT'!$G$6:$FJ$253,19,FALSE) -> 16% | U14: =VLOOKUP($C14,'RECAP SECT'!$G$6:$FJ$253,20,FALSE) -> 2 | V14: =VLOOKUP($C14,'RECAP SECT'!$G$6:$FJ$253,21,FALSE) -> 52% | W14: =VLOOKUP($C14,'RECAP SECT'!$G$6:$FJ$253,22,FALSE) -> 30% | X14: =VLOOKUP($C14,'RECAP SECT'!$G$6:$FJ$253,23,FALSE) -> 8
A15: 264 | B15: HAUT-RHIN | C15: 5130 | D15: COLMAR | E15: =VLOOKUP($C15,'RECAP SECT'!$G$6:$FJ$253,3,FALSE) -> 65.9 | F15: =VLOOKUP($C15,'RECAP SECT'!$G$6:$FJ$253,5,FALSE) -> -11.17 | G15: =VLOOKUP($C15,'RECAP SECT'!$G$6:$FJ$253,6,FALSE) -> -5.58 | H15: =VLOOKUP($C15,'RECAP SECT'!$G$6:$FJ$253,7,FALSE) -> 122% | I15: =VLOOKUP($C15,'RECAP SECT'!$G$6:$FJ$253,8,FALSE) -> 16 | J15: =VLOOKUP($C15,'RECAP SECT'!$G$6:$FJ$253,9,FALSE) -> 3.16 | K15: =VLOOKUP($C15,'RECAP SECT'!$G$6:$FJ$253,10,FALSE) -> 2.21 | L15: =VLOOKUP($C15,'RECAP SECT'!$G$6:$FJ$253,11,FALSE) -> 31% | M15: =VLOOKUP($C15,'RECAP SECT'!$G$6:$FJ$253,12,FALSE) -> 8 | N15: =VLOOKUP($C15,'RECAP SECT'!$G$6:$FJ$253,13,FALSE) -> -5.92 | O15: =VLOOKUP($C15,'RECAP SECT'!$G$6:$FJ$253,14,FALSE) -> -0.89 | P15: =VLOOKUP($C15,'RECAP SECT'!$G$6:$FJ$253,15,FALSE) -> 112% | Q15: =VLOOKUP($C15,'RECAP SECT'!$G$6:$FJ$253,16,FALSE) -> 16 | R15: =VLOOKUP($C15,'RECAP SECT'!$G$6:$FJ$253,17,FALSE) -> 46% | S15: =VLOOKUP($C15,'RECAP SECT'!$G$6:$FJ$253,18,FALSE) -> 114% | T15: =VLOOKUP($C15,'RECAP SECT'!$G$6:$FJ$253,19,FALSE) -> 60% | U15: =VLOOKUP($C15,'RECAP SECT'!$G$6:$FJ$253,20,FALSE) -> 14 | V15: =VLOOKUP($C15,'RECAP SECT'!$G$6:$FJ$253,21,FALSE) -> 77% | W15: =VLOOKUP($C15,'RECAP SECT'!$G$6:$FJ$253,22,FALSE) -> 56% | X15: =VLOOKUP($C15,'RECAP SECT'!$G$6:$FJ$253,23,FALSE) -> 16
A16: 264 | B16: HAUT-RHIN | C16: 5169 | D16: MULHOUSE | E16: =VLOOKUP($C16,'RECAP SECT'!$G$6:$FJ$253,3,FALSE) -> 62.1 | F16: =VLOOKUP($C16,'RECAP SECT'!$G$6:$FJ$253,5,FALSE) -> -14.78 | G16: =VLOOKUP($C16,'RECAP SECT'!$G$6:$FJ$253,6,FALSE) -> -7.39 | H16: =VLOOKUP($C16,'RECAP SECT'!$G$6:$FJ$253,7,FALSE) -> 150% | I16: =VLOOKUP($C16,'RECAP SECT'!$G$6:$FJ$253,8,FALSE) -> 18 | J16: =VLOOKUP($C16,'RECAP SECT'!$G$6:$FJ$253,9,FALSE) -> 1.19 | K16: =VLOOKUP($C16,'RECAP SECT'!$G$6:$FJ$253,10,FALSE) -> 0.83 | L16: =VLOOKUP($C16,'RECAP SECT'!$G$6:$FJ$253,11,FALSE) -> 74% | M16: =VLOOKUP($C16,'RECAP SECT'!$G$6:$FJ$253,12,FALSE) -> 18 | N16: =VLOOKUP($C16,'RECAP SECT'!$G$6:$FJ$253,13,FALSE) -> -9.08 | O16: =VLOOKUP($C16,'RECAP SECT'!$G$6:$FJ$253,14,FALSE) -> -1.36 | P16: =VLOOKUP($C16,'RECAP SECT'!$G$6:$FJ$253,15,FALSE) -> 150% | Q16: =VLOOKUP($C16,'RECAP SECT'!$G$6:$FJ$253,16,FALSE) -> 18 | R16: =VLOOKUP($C16,'RECAP SECT'!$G$6:$FJ$253,17,FALSE) -> 63% | S16: =VLOOKUP($C16,'RECAP SECT'!$G$6:$FJ$253,18,FALSE) -> 157% | T16: =VLOOKUP($C16,'RECAP SECT'!$G$6:$FJ$253,19,FALSE) -> 45% | U16: =VLOOKUP($C16,'RECAP SECT'!$G$6:$FJ$253,20,FALSE) -> 10 | V16: =VLOOKUP($C16,'RECAP SECT'!$G$6:$FJ$253,21,FALSE) -> 104% | W16: =VLOOKUP($C16,'RECAP SECT'!$G$6:$FJ$253,22,FALSE) -> 82% | X16: =VLOOKUP($C16,'RECAP SECT'!$G$6:$FJ$253,23,FALSE) -> 18
A17: 30 | B17: MARNE-ARDENNES | C17: 6 | D17: CHALONS EN CHAMPAGNE | E17: =VLOOKUP($C17,'RECAP SECT'!$G$6:$FJ$253,3,FALSE) -> 45.2 | F17: =VLOOKUP($C17,'RECAP SECT'!$G$6:$FJ$253,5,FALSE) -> 0.88 | G17: =VLOOKUP($C17,'RECAP SECT'!$G$6:$FJ$253,6,FALSE) -> 0.44 | H17: =VLOOKUP($C17,'RECAP SECT'!$G$6:$FJ$253,7,FALSE) -> 29% | I17: =VLOOKUP($C17,'RECAP SECT'!$G$6:$FJ$253,8,FALSE) -> 4 | J17: =VLOOKUP($C17,'RECAP SECT'!$G$6:$FJ$253,9,FALSE) -> 1.70 | K17: =VLOOKUP($C17,'RECAP SECT'!$G$6:$FJ$253,10,FALSE) -> 1.19 | L17: =VLOOKUP($C17,'RECAP SECT'!$G$6:$FJ$253,11,FALSE) -> 63% | M17: =VLOOKUP($C17,'RECAP SECT'!$G$6:$FJ$253,12,FALSE) -> 17 | N17: =VLOOKUP($C17,'RECAP SECT'!$G$6:$FJ$253,13,FALSE) -> 2.08 | O17: =VLOOKUP($C17,'RECAP SECT'!$G$6:$FJ$253,14,FALSE) -> 0.31 | P17: =VLOOKUP($C17,'RECAP SECT'!$G$6:$FJ$253,15,FALSE) -> 17% | Q17: =VLOOKUP($C17,'RECAP SECT'!$G$6:$FJ$253,16,FALSE) -> 2 | R17: =VLOOKUP($C17,'RECAP SECT'!$G$6:$FJ$253,17,FALSE) -> 115% | S17: =VLOOKUP($C17,'RECAP SECT'!$G$6:$FJ$253,18,FALSE) -> 287% | T17: =VLOOKUP($C17,'RECAP SECT'!$G$6:$FJ$253,19,FALSE) -> 0% | U17: =VLOOKUP($C17,'RECAP SECT'!$G$6:$FJ$253,20,FALSE) -> 1 | V17: =VLOOKUP($C17,'RECAP SECT'!$G$6:$FJ$253,21,FALSE) -> 32% | W17: =VLOOKUP($C17,'RECAP SECT'!$G$6:$FJ$253,22,FALSE) -> 10% | X17: =VLOOKUP($C17,'RECAP SECT'!$G$6:$FJ$253,23,FALSE) -> 3
A18: 30 | B18: MARNE-ARDENNES | C18: 2 | D18: CHARLEVILLE MEZIERES | E18: =VLOOKUP($C18,'RECAP SECT'!$G$6:$FJ$253,3,FALSE) -> 54.8 | F18: =VLOOKUP($C18,'RECAP SECT'!$G$6:$FJ$253,5,FALSE) -> 1.68 | G18: =VLOOKUP($C18,'RECAP SECT'!$G$6:$FJ$253,6,FALSE) -> 0.84 | H18: =VLOOKUP($C18,'RECAP SECT'!$G$6:$FJ$253,7,FALSE) -> 23% | I18: =VLOOKUP($C18,'RECAP SECT'!$G$6:$FJ$253,8,FALSE) -> 3 | J18: =VLOOKUP($C18,'RECAP SECT'!$G$6:$FJ$253,9,FALSE) -> 3.18 | K18: =VLOOKUP($C18,'RECAP SECT'!$G$6:$FJ$253,10,FALSE) -> 2.22 | L18: =VLOOKUP($C18,'RECAP SECT'!$G$6:$FJ$253,11,FALSE) -> 30% | M18: =VLOOKUP($C18,'RECAP SECT'!$G$6:$FJ$253,12,FALSE) -> 7 | N18: =VLOOKUP($C18,'RECAP SECT'!$G$6:$FJ$253,13,FALSE) -> 3.47 | O18: =VLOOKUP($C18,'RECAP SECT'!$G$6:$FJ$253,14,FALSE) -> 0.52 | P18: =VLOOKUP($C18,'RECAP SECT'!$G$6:$FJ$253,15,FALSE) -> 0% | Q18: =VLOOKUP($C18,'RECAP SECT'!$G$6:$FJ$253,16,FALSE) -> 1 | R18: =VLOOKUP($C18,'RECAP SECT'!$G$6:$FJ$253,17,FALSE) -> 84% | S18: =VLOOKUP($C18,'RECAP SECT'!$G$6:$FJ$253,18,FALSE) -> 210% | T18: =VLOOKUP($C18,'RECAP SECT'!$G$6:$FJ$253,19,FALSE) -> 27% | U18: =VLOOKUP($C18,'RECAP SECT'!$G$6:$FJ$253,20,FALSE) -> 6 | V18: =VLOOKUP($C18,'RECAP SECT'!$G$6:$FJ$253,21,FALSE) -> 22% | W18: =VLOOKUP($C18,'RECAP SECT'!$G$6:$FJ$253,22,FALSE) -> 0% | X18: =VLOOKUP($C18,'RECAP SECT'!$G$6:$FJ$253,23,FALSE) -> 1
A19: 30 | B19: MARNE-ARDENNES | C19: 11 | D19: REIMS | E19: =VLOOKUP($C19,'RECAP SECT'!$G$6:$FJ$253,3,FALSE) -> 80.3 | F19: =VLOOKUP($C19,'RECAP SECT'!$G$6:$FJ$253,5,FALSE) -> 2.55 | G19: =VLOOKUP($C19,'RECAP SECT'!$G$6:$FJ$253,6,FALSE) -> 1.28 | H19: =VLOOKUP($C19,'RECAP SECT'!$G$6:$FJ$253,7,FALSE) -> 16% | I19: =VLOOKUP($C19,'RECAP SECT'!$G$6:$FJ$253,8,FALSE) -> 2 | J19: =VLOOKUP($C19,'RECAP SECT'!$G$6:$FJ$253,9,FALSE) -> 3.65 | K19: =VLOOKUP($C19,'RECAP SECT'!$G$6:$FJ$253,10,FALSE) -> 2.55 | L19: =VLOOKUP($C19,'RECAP SECT'!$G$6:$FJ$253,11,FALSE) -> 20% | M19: =VLOOKUP($C19,'RECAP SECT'!$G$6:$FJ$253,12,FALSE) -> 4 | N19: =VLOOKUP($C19,'RECAP SECT'!$G$6:$FJ$253,13,FALSE) -> -5.03 | O19: =VLOOKUP($C19,'RECAP SECT'!$G$6:$FJ$253,14,FALSE) -> -0.75 | P19: =VLOOKUP($C19,'RECAP SECT'!$G$6:$FJ$253,15,FALSE) -> 102% | Q19: =VLOOKUP($C19,'RECAP SECT'!$G$6:$FJ$253,16,FALSE) -> 14 | R19: =VLOOKUP($C19,'RECAP SECT'!$G$6:$FJ$253,17,FALSE) -> 83% | S19: =VLOOKUP($C19,'RECAP SECT'!$G$6:$FJ$253,18,FALSE) -> 209% | T19: =VLOOKUP($C19,'RECAP SECT'!$G$6:$FJ$253,19,FALSE) -> 27% | U19: =VLOOKUP($C19,'RECAP SECT'!$G$6:$FJ$253,20,FALSE) -> 7 | V19: =VLOOKUP($C19,'RECAP SECT'!$G$6:$FJ$253,21,FALSE) -> 37% | W19: =VLOOKUP($C19,'RECAP SECT'!$G$6:$FJ$253,22,FALSE) -> 15% | X19: =VLOOKUP($C19,'RECAP SECT'!$G$6:$FJ$253,23,FALSE) -> 5
A20: 110 | B20: MEURTHE ET MOSELLE MEUSE | C20: 26 | D20: NANCY | E20: =VLOOKUP($C20,'RECAP SECT'!$G$6:$FJ$253,3,FALSE) -> 65.2 | F20: =VLOOKUP($C20,'RECAP SECT'!$G$6:$FJ$253,5,FALSE) -> 0.86 | G20: =VLOOKUP($C20,'RECAP SECT'!$G$6:$FJ$253,6,FALSE) -> 0.43 | H20: =VLOOKUP($C20,'RECAP SECT'!$G$6:$FJ$253,7,FALSE) -> 29% | I20: =VLOOKUP($C20,'RECAP SECT'!$G$6:$FJ$253,8,FALSE) -> 5 | J20: =VLOOKUP($C20,'RECAP SECT'!$G$6:$FJ$253,9,FALSE) -> 3.59 | K20: =VLOOKUP($C20,'RECAP SECT'!$G$6:$FJ$253,10,FALSE) -> 2.51 | L20: =VLOOKUP($C20,'RECAP SECT'!$G$6:$FJ$253,11,FALSE) -> 21% | M20: =VLOOKUP($C20,'RECAP SECT'!$G$6:$FJ$253,12,FALSE) -> 5 | N20: =VLOOKUP($C20,'RECAP SECT'!$G$6:$FJ$253,13,FALSE) -> -2.29 | O20: =VLOOKUP($C20,'RECAP SECT'!$G$6:$FJ$253,14,FALSE) -> -0.34 | P20: =VLOOKUP($C20,'RECAP SECT'!$G$6:$FJ$253,15,FALSE) -> 69% | Q20: =VLOOKUP($C20,'RECAP SECT'!$G$6:$FJ$253,16,FALSE) -> 6 | R20: =VLOOKUP($C20,'RECAP SECT'!$G$6:$FJ$253,17,FALSE) -> 81% | S20: =VLOOKUP($C20,'RECAP SECT'!$G$6:$FJ$253,18,FALSE) -> 203% | T20: =VLOOKUP($C20,'RECAP SECT'!$G$6:$FJ$253,19,FALSE) -> 29% | U20: =VLOOKUP($C20,'RECAP SECT'!$G$6:$FJ$253,20,FALSE) -> 8 | V20: =VLOOKUP($C20,'RECAP SECT'!$G$6:$FJ$253,21,FALSE) -> 34% | W20: =VLOOKUP($C20,'RECAP SECT'!$G$6:$FJ$253,22,FALSE) -> 13% | X20: =VLOOKUP($C20,'RECAP SECT'!$G$6:$FJ$253,23,FALSE) -> 4
A21: 110 | B21: MEURTHE ET MOSELLE MEUSE | C21: 27 | D21: PONT A MOUSSON | E21: =VLOOKUP($C21,'RECAP SECT'!$G$6:$FJ$253,3,FALSE) -> 74.0 | F21: =VLOOKUP($C21,'RECAP SECT'!$G$6:$FJ$253,5,FALSE) -> 4.66 | G21: =VLOOKUP($C21,'RECAP SECT'!$G$6:$FJ$253,6,FALSE) -> 2.33 | H21: =VLOOKUP($C21,'RECAP SECT'!$G$6:$FJ$253,7,FALSE) -> 0% | I21: =VLOOKUP($C21,'RECAP SECT'!$G$6:$FJ$253,8,FALSE) -> 1 | J21: =VLOOKUP($C21,'RECAP SECT'!$G$6:$FJ$253,9,FALSE) -> 4.55 | K21: =VLOOKUP($C21,'RECAP SECT'!$G$6:$FJ$253,10,FALSE) -> 3.19 | L21: =VLOOKUP($C21,'RECAP SECT'!$G$6:$FJ$253,11,FALSE) -> 0% | M21: =VLOOKUP($C21,'RECAP SECT'!$G$6:$FJ$253,12,FALSE) -> 1 | N21: =VLOOKUP($C21,'RECAP SECT'!$G$6:$FJ$253,13,FALSE) -> -2.39 | O21: =VLOOKUP($C21,'RECAP SECT'!$G$6:$FJ$253,14,FALSE) -> -0.36 | P21: =VLOOKUP($C21,'RECAP SECT'!$G$6:$FJ$253,15,FALSE) -> 70% | Q21: =VLOOKUP($C21,'RECAP SECT'!$G$6:$FJ$253,16,FALSE) -> 7 | R21: =VLOOKUP($C21,'RECAP SECT'!$G$6:$FJ$253,17,FALSE) -> 50% | S21: =VLOOKUP($C21,'RECAP SECT'!$G$6:$FJ$253,18,FALSE) -> 125% | T21: =VLOOKUP($C21,'RECAP SECT'!$G$6:$FJ$253,19,FALSE) -> 57% | U21: =VLOOKUP($C21,'RECAP SECT'!$G$6:$FJ$253,20,FALSE) -> 13 | V21: =VLOOKUP($C21,'RECAP SECT'!$G$6:$FJ$253,21,FALSE) -> 25% | W21: =VLOOKUP($C21,'RECAP SECT'!$G$6:$FJ$253,22,FALSE) -> 4% | X21: =VLOOKUP($C21,'RECAP SECT'!$G$6:$FJ$253,23,FALSE) -> 2
A22: 110 | B22: MEURTHE ET MOSELLE MEUSE | C22: 31 | D22: VERDUN | E22: =VLOOKUP($C22,'RECAP SECT'!$G$6:$FJ$253,3,FALSE) -> 53.6 | F22: =VLOOKUP($C22,'RECAP SECT'!$G$6:$FJ$253,5,FALSE) -> -6.16 | G22: =VLOOKUP($C22,'RECAP SECT'!$G$6:$FJ$253,6,FALSE) -> -3.08 | H22: =VLOOKUP($C22,'RECAP SECT'!$G$6:$FJ$253,7,FALSE) -> 83% | I22: =VLOOKUP($C22,'RECAP SECT'!$G$6:$FJ$253,8,FALSE) -> 12 | J22: =VLOOKUP($C22,'RECAP SECT'!$G$6:$FJ$253,9,FALSE) -> 3.00 | K22: =VLOOKUP($C22,'RECAP SECT'!$G$6:$FJ$253,10,FALSE) -> 2.10 | L22: =VLOOKUP($C22,'RECAP SECT'!$G$6:$FJ$253,11,FALSE) -> 34% | M22: =VLOOKUP($C22,'RECAP SECT'!$G$6:$FJ$253,12,FALSE) -> 10 | N22: =VLOOKUP($C22,'RECAP SECT'!$G$6:$FJ$253,13,FALSE) -> -2.11 | O22: =VLOOKUP($C22,'RECAP SECT'!$G$6:$FJ$253,14,FALSE) -> -0.32 | P22: =VLOOKUP($C22,'RECAP SECT'!$G$6:$FJ$253,15,FALSE) -> 67% | Q22: =VLOOKUP($C22,'RECAP SECT'!$G$6:$FJ$253,16,FALSE) -> 4 | R22: =VLOOKUP($C22,'RECAP SECT'!$G$6:$FJ$253,17,FALSE) -> 30% | S22: =VLOOKUP($C22,'RECAP SECT'!$G$6:$FJ$253,18,FALSE) -> 75% | T22: =VLOOKUP($C22,'RECAP SECT'!$G$6:$FJ$253,19,FALSE) -> 74% | U22: =VLOOKUP($C22,'RECAP SECT'!$G$6:$FJ$253,20,FALSE) -> 16 | V22: =VLOOKUP($C22,'RECAP SECT'!$G$6:$FJ$253,21,FALSE) -> 62% | W22: =VLOOKUP($C22,'RECAP SECT'!$G$6:$FJ$253,22,FALSE) -> 40% | X22: =VLOOKUP($C22,'RECAP SECT'!$G$6:$FJ$253,23,FALSE) -> 13
A23: 160 | B23: MOSELLE | C23: 45 | D23: METZ | E23: =VLOOKUP($C23,'RECAP SECT'!$G$6:$FJ$253,3,FALSE) -> 87.6 | F23: =VLOOKUP($C23,'RECAP SECT'!$G$6:$FJ$253,5,FALSE) -> -3.54 | G23: =VLOOKUP($C23,'RECAP SECT'!$G$6:$FJ$253,6,FALSE) -> -1.77 | H23: =VLOOKUP($C23,'RECAP SECT'!$G$6:$FJ$253,7,FALSE) -> 63% | I23: =VLOOKUP($C23,'RECAP SECT'!$G$6:$FJ$253,8,FALSE) -> 6 | J23: =VLOOKUP($C23,'RECAP SECT'!$G$6:$FJ$253,9,FALSE) -> 3.98 | K23: =VLOOKUP($C23,'RECAP SECT'!$G$6:$FJ$253,10,FALSE) -> 2.79 | L23: =VLOOKUP($C23,'RECAP SECT'!$G$6:$FJ$253,11,FALSE) -> 12% | M23: =VLOOKUP($C23,'RECAP SECT'!$G$6:$FJ$253,12,FALSE) -> 2 | N23: =VLOOKUP($C23,'RECAP SECT'!$G$6:$FJ$253,13,FALSE) -> -1.93 | O23: =VLOOKUP($C23,'RECAP SECT'!$G$6:$FJ$253,14,FALSE) -> -0.29 | P23: =VLOOKUP($C23,'RECAP SECT'!$G$6:$FJ$253,15,FALSE) -> 65% | Q23: =VLOOKUP($C23,'RECAP SECT'!$G$6:$FJ$253,16,FALSE) -> 3 | R23: =VLOOKUP($C23,'RECAP SECT'!$G$6:$FJ$253,17,FALSE) -> 59% | S23: =VLOOKUP($C23,'RECAP SECT'!$G$6:$FJ$253,18,FALSE) -> 148% | T23: =VLOOKUP($C23,'RECAP SECT'!$G$6:$FJ$253,19,FALSE) -> 48% | U23: =VLOOKUP($C23,'RECAP SECT'!$G$6:$FJ$253,20,FALSE) -> 11 | V23: =VLOOKUP($C23,'RECAP SECT'!$G$6:$FJ$253,21,FALSE) -> 44% | W23: =VLOOKUP($C23,'RECAP SECT'!$G$6:$FJ$253,22,FALSE) -> 22% | X23: =VLOOKUP($C23,'RECAP SECT'!$G$6:$FJ$253,23,FALSE) -> 6
A24: 160 | B24: MOSELLE | C24: 42 | D24: MOSELLE EST | E24: =VLOOKUP($C24,'RECAP SECT'!$G$6:$FJ$253,3,FALSE) -> 73.0 | F24: =VLOOKUP($C24,'RECAP SECT'!$G$6:$FJ$253,5,FALSE) -> -5.91 | G24: =VLOOKUP($C24,'RECAP SECT'!$G$6:$FJ$253,6,FALSE) -> -2.95 | H24: =VLOOKUP($C24,'RECAP SECT'!$G$6:$FJ$253,7,FALSE) -> 82% | I24: =VLOOKUP($C24,'RECAP SECT'!$G$6:$FJ$253,8,FALSE) -> 11 | J24: =VLOOKUP($C24,'RECAP SECT'!$G$6:$FJ$253,9,FALSE) -> 2.21 | K24: =VLOOKUP($C24,'RECAP SECT'!$G$6:$FJ$253,10,FALSE) -> 1.54 | L24: =VLOOKUP($C24,'RECAP SECT'!$G$6:$FJ$253,11,FALSE) -> 52% | M24: =VLOOKUP($C24,'RECAP SECT'!$G$6:$FJ$253,12,FALSE) -> 16 | N24: =VLOOKUP($C24,'RECAP SECT'!$G$6:$FJ$253,13,FALSE) -> -4.87 | O24: =VLOOKUP($C24,'RECAP SECT'!$G$6:$FJ$253,14,FALSE) -> -0.73 | P24: =VLOOKUP($C24,'RECAP SECT'!$G$6:$FJ$253,15,FALSE) -> 100% | Q24: =VLOOKUP($C24,'RECAP SECT'!$G$6:$FJ$253,16,FALSE) -> 12 | R24: =VLOOKUP($C24,'RECAP SECT'!$G$6:$FJ$253,17,FALSE) -> 25% | S24: =VLOOKUP($C24,'RECAP SECT'!$G$6:$FJ$253,18,FALSE) -> 62% | T24: =VLOOKUP($C24,'RECAP SECT'!$G$6:$FJ$253,19,FALSE) -> 79% | U24: =VLOOKUP($C24,'RECAP SECT'!$G$6:$FJ$253,20,FALSE) -> 18 | V24: =VLOOKUP($C24,'RECAP SECT'!$G$6:$FJ$253,21,FALSE) -> 75% | W24: =VLOOKUP($C24,'RECAP SECT'!$G$6:$FJ$253,22,FALSE) -> 53% | X24: =VLOOKUP($C24,'RECAP SECT'!$G$6:$FJ$253,23,FALSE) -> 15
A25: 160 | B25: MOSELLE | C25: 44 | D25: MOSELLE NORD | E25: =VLOOKUP($C25,'RECAP SECT'!$G$6:$FJ$253,3,FALSE) -> 71.8 | F25: =VLOOKUP($C25,'RECAP SECT'!$G$6:$FJ$253,5,FALSE) -> -4.01 | G25: =VLOOKUP($C25,'RECAP SECT'!$G$6:$FJ$253,6,FALSE) -> -2.01 | H25: =VLOOKUP($C25,'RECAP SECT'!$G$6:$FJ$253,7,FALSE) -> 67% | I25: =VLOOKUP($C25,'RECAP SECT'!$G$6:$FJ$253,8,FALSE) -> 9 | J25: =VLOOKUP($C25,'RECAP SECT'!$G$6:$FJ$253,9,FALSE) -> 3.13 | K25: =VLOOKUP($C25,'RECAP SECT'!$G$6:$FJ$253,10,FALSE) -> 2.19 | L25: =VLOOKUP($C25,'RECAP SECT'!$G$6:$FJ$253,11,FALSE) -> 31% | M25: =VLOOKUP($C25,'RECAP SECT'!$G$6:$FJ$253,12,FALSE) -> 9 | N25: =VLOOKUP($C25,'RECAP SECT'!$G$6:$FJ$253,13,FALSE) -> -3.72 | O25: =VLOOKUP($C25,'RECAP SECT'!$G$6:$FJ$253,14,FALSE) -> -0.56 | P25: =VLOOKUP($C25,'RECAP SECT'!$G$6:$FJ$253,15,FALSE) -> 86% | Q25: =VLOOKUP($C25,'RECAP SECT'!$G$6:$FJ$253,16,FALSE) -> 9 | R25: =VLOOKUP($C25,'RECAP SECT'!$G$6:$FJ$253,17,FALSE) -> 31% | S25: =VLOOKUP($C25,'RECAP SECT'!$G$6:$FJ$253,18,FALSE) -> 77% | T25: =VLOOKUP($C25,'RECAP SECT'!$G$6:$FJ$253,19,FALSE) -> 73% | U25: =VLOOKUP($C25,'RECAP SECT'!$G$6:$FJ$253,20,FALSE) -> 15 | V25: =VLOOKUP($C25,'RECAP SECT'!$G$6:$FJ$253,21,FALSE) -> 60% | W25: =VLOOKUP($C25,'RECAP SECT'!$G$6:$FJ$253,22,FALSE) -> 38% | X25: =VLOOKUP($C25,'RECAP SECT'!$G$6:$FJ$253,23,FALSE) -> 11
A26: 80 | B26: VOSGES | C26: 57 | D26: EPINAL | E26: =VLOOKUP($C26,'RECAP SECT'!$G$6:$FJ$253,3,FALSE) -> 59.8 | F26: =VLOOKUP($C26,'RECAP SECT'!$G$6:$FJ$253,5,FALSE) -> -5.30 | G26: =VLOOKUP($C26,'RECAP SECT'!$G$6:$FJ$253,6,FALSE) -> -2.65 | H26: =VLOOKUP($C26,'RECAP SECT'!$G$6:$FJ$253,7,FALSE) -> 77% | I26: =VLOOKUP($C26,'RECAP SECT'!$G$6:$FJ$253,8,FALSE) -> 10 | J26: =VLOOKUP($C26,'RECAP SECT'!$G$6:$FJ$253,9,FALSE) -> 3.69 | K26: =VLOOKUP($C26,'RECAP SECT'!$G$6:$FJ$253,10,FALSE) -> 2.59 | L26: =VLOOKUP($C26,'RECAP SECT'!$G$6:$FJ$253,11,FALSE) -> 19% | M26: =VLOOKUP($C26,'RECAP SECT'!$G$6:$FJ$253,12,FALSE) -> 3 | N26: =VLOOKUP($C26,'RECAP SECT'!$G$6:$FJ$253,13,FALSE) -> -2.17 | O26: =VLOOKUP($C26,'RECAP SECT'!$G$6:$FJ$253,14,FALSE) -> -0.33 | P26: =VLOOKUP($C26,'RECAP SECT'!$G$6:$FJ$253,15,FALSE) -> 67% | Q26: =VLOOKUP($C26,'RECAP SECT'!$G$6:$FJ$253,16,FALSE) -> 5 | R26: =VLOOKUP($C26,'RECAP SECT'!$G$6:$FJ$253,17,FALSE) -> 92% | S26: =VLOOKUP($C26,'RECAP SECT'!$G$6:$FJ$253,18,FALSE) -> 230% | T26: =VLOOKUP($C26,'RECAP SECT'!$G$6:$FJ$253,19,FALSE) -> 20% | U26: =VLOOKUP($C26,'RECAP SECT'!$G$6:$FJ$253,20,FALSE) -> 4 | V26: =VLOOKUP($C26,'RECAP SECT'!$G$6:$FJ$253,21,FALSE) -> 44% | W26: =VLOOKUP($C26,'RECAP SECT'!$G$6:$FJ$253,22,FALSE) -> 23% | X26: =VLOOKUP($C26,'RECAP SECT'!$G$6:$FJ$253,23,FALSE) -> 7
A27: 80 | B27: VOSGES | C27: 55 | D27: SAINT DIE | E27: =VLOOKUP($C27,'RECAP SECT'!$G$6:$FJ$253,3,FALSE) -> 48.0 | F27: =VLOOKUP($C27,'RECAP SECT'!$G$6:$FJ$253,5,FALSE) -> -6.21 | G27: =VLOOKUP($C27,'RECAP SECT'!$G$6:$FJ$253,6,FALSE) -> -3.11 | H27: =VLOOKUP($C27,'RECAP SECT'!$G$6:$FJ$253,7,FALSE) -> 84% | I27: =VLOOKUP($C27,'RECAP SECT'!$G$6:$FJ$253,8,FALSE) -> 13 | J27: =VLOOKUP($C27,'RECAP SECT'!$G$6:$FJ$253,9,FALSE) -> 2.65 | K27: =VLOOKUP($C27,'RECAP SECT'!$G$6:$FJ$253,10,FALSE) -> 1.85 | L27: =VLOOKUP($C27,'RECAP SECT'!$G$6:$FJ$253,11,FALSE) -> 42% | M27: =VLOOKUP($C27,'RECAP SECT'!$G$6:$FJ$253,12,FALSE) -> 14 | N27: =VLOOKUP($C27,'RECAP SECT'!$G$6:$FJ$253,13,FALSE) -> -3.44 | O27: =VLOOKUP($C27,'RECAP SECT'!$G$6:$FJ$253,14,FALSE) -> -0.52 | P27: =VLOOKUP($C27,'RECAP SECT'!$G$6:$FJ$253,15,FALSE) -> 83% | Q27: =VLOOKUP($C27,'RECAP SECT'!$G$6:$FJ$253,16,FALSE) -> 8 | R27: =VLOOKUP($C27,'RECAP SECT'!$G$6:$FJ$253,17,FALSE) -> 92% | S27: =VLOOKUP($C27,'RECAP SECT'!$G$6:$FJ$253,18,FALSE) -> 229% | T27: =VLOOKUP($C27,'RECAP SECT'!$G$6:$FJ$253,19,FALSE) -> 20% | U27: =VLOOKUP($C27,'RECAP SECT'!$G$6:$FJ$253,20,FALSE) -> 5 | V27: =VLOOKUP($C27,'RECAP SECT'!$G$6:$FJ$253,21,FALSE) -> 57% | W27: =VLOOKUP($C27,'RECAP SECT'!$G$6:$FJ$253,22,FALSE) -> 35% | X27: =VLOOKUP($C27,'RECAP SECT'!$G$6:$FJ$253,23,FALSE) -> 9
A28: Total CEGEE Directions Régionales | E28: =SUM(E10:E27) -> 1159

Sheet SE_ACCELER
B1: Accueil | F1: BAROMETRE BDD - TERRITOIRES
F2: ACCELERATEURS DE PNB
F3: =ACCUEIL!F7 -> 2020-12-31
F7: Ventes brutes SED finalisées | J7: Clients Equipés E documents | N7: Economie Opt'in | R7: Remises Commerciales | V7: Total Accélérateurs PNB
F8: =DATEMAJ!C31 -> au 31/12 | H8: coef | I8: ='RECAP DIRCOM'!EE4 -> 6% | J8: =DATEMAJ!C32 -> au 30/11 | L8: coef | M8: ='RECAP DIRCOM'!EI4 -> 3% | N8: =DATEMAJ!C33 -> au 30/11 | P8: coef | Q8: ='RECAP DIRCOM'!EM4 -> 3% | R8: =DATEMAJ!C34 -> au 30/11 | T8: coef | U8: ='RECAP DIRCOM'!EQ4 -> 3% | W8: coef | X8: ='RECAP DIRCOM'!ET4 -> 15%
B9: Direction | C9: eds | D9: Territoire | E9: ="ETP perf "&DATEMAJ!$C$39 -> ETP perf au 31/10 | F9: Nb / ETP | G9: PNB / ETP | H9: % Ecart au 1er | I9: Rang | J9: Nb / ETP | K9: PNB / ETP | L9: % Ecart au 1er | M9: Rang | N9: Nb / ETP | O9: PNB / ETP | P9: % Ecart au 1er | Q9: Rang | R9: Rem / ETP | S9: PNB / ETP | T9: % Ecart au 1er | U9: Rang | V9: Moyenne ecart au 1er | W9: % Ecart au 1er | X9: Rang CEGEE
A10: 50 | B10: AUBE HAUTE MARNE | C10: 21 | D10: CHAUMONT | E10: =VLOOKUP($C10,'RECAP SECT'!$G$6:$FJ$253,3,FALSE) -> 36.0 | F10: =VLOOKUP($C10,'RECAP SECT'!$G$6:$FJ$253,126,FALSE) -> 69.27 | G10: =VLOOKUP($C10,'RECAP SECT'!$G$6:$FJ$253,127,FALSE) -> 0.69 | H10: =VLOOKUP($C10,'RECAP SECT'!$G$6:$FJ$253,128,FALSE) -> 26% | I10: =VLOOKUP($C10,'RECAP SECT'!$G$6:$FJ$253,129,FALSE) -> 10 | J10: =VLOOKUP($C10,'RECAP SECT'!$G$6:$FJ$253,130,FALSE) -> 35.75 | K10: =VLOOKUP($C10,'RECAP SECT'!$G$6:$FJ$253,131,FALSE) -> 1.79 | L10: =VLOOKUP($C10,'RECAP SECT'!$G$6:$FJ$253,132,FALSE) -> 34% | M10: =VLOOKUP($C10,'RECAP SECT'!$G$6:$FJ$253,133,FALSE) -> 15 | N10: =VLOOKUP($C10,'RECAP SECT'!$G$6:$FJ$253,134,FALSE) -> 31.86 | O10: =VLOOKUP($C10,'RECAP SECT'!$G$6:$FJ$253,135,FALSE) -> 0.48 | P10: =VLOOKUP($C10,'RECAP SECT'!$G$6:$FJ$253,136,FALSE) -> 53% | Q10: =VLOOKUP($C10,'RECAP SECT'!$G$6:$FJ$253,137,FALSE) -> 16 | R10: =VLOOKUP($C10,'RECAP SECT'!$G$6:$FJ$253,138,FALSE) -> -100.22 | S10: =VLOOKUP($C10,'RECAP SECT'!$G$6:$FJ$253,139,FALSE) -> -2.79 | T10: =VLOOKUP($C10,'RECAP SECT'!$G$6:$FJ$253,140,FALSE) -> 0% | U10: =VLOOKUP($C10,'RECAP SECT'!$G$6:$FJ$253,141,FALSE) -> 1 | V10: =VLOOKUP($C10,'RECAP SECT'!$G$6:$FJ$253,142,FALSE) -> 28% | W10: =VLOOKUP($C10,'RECAP SECT'!$G$6:$FJ$253,143,FALSE) -> 15% | X10: =VLOOKUP($C10,'RECAP SECT'!$G$6:$FJ$253,144,FALSE) -> 8
A11: 50 | B11: AUBE HAUTE MARNE | C11: 14 | D11: TROYES | E11: =VLOOKUP($C11,'RECAP SECT'!$G$6:$FJ$253,3,FALSE) -> 67.3 | F11: =VLOOKUP($C11,'RECAP SECT'!$G$6:$FJ$253,126,FALSE) -> 57.81 | G11: =VLOOKUP($C11,'RECAP SECT'!$G$6:$FJ$253,127,FALSE) -> 0.58 | H11: =VLOOKUP($C11,'RECAP SECT'!$G$6:$FJ$253,128,FALSE) -> 38% | I11: =VLOOKUP($C11,'RECAP SECT'!$G$6:$FJ$253,129,FALSE) -> 15 | J11: =VLOOKUP($C11,'RECAP SECT'!$G$6:$FJ$253,130,FALSE) -> 39.64 | K11: =VLOOKUP($C11,'RECAP SECT'!$G$6:$FJ$253,131,FALSE) -> 1.98 | L11: =VLOOKUP($C11,'RECAP SECT'!$G$6:$FJ$253,132,FALSE) -> 27% | M11: =VLOOKUP($C11,'RECAP SECT'!$G$6:$FJ$253,133,FALSE) -> 12 | N11: =VLOOKUP($C11,'RECAP SECT'!$G$6:$FJ$253,134,FALSE) -> 41.49 | O11: =VLOOKUP($C11,'RECAP SECT'!$G$6:$FJ$253,135,FALSE) -> 0.62 | P11: =VLOOKUP($C11,'RECAP SECT'!$G$6:$FJ$253,136,FALSE) -> 38% | Q11: =VLOOKUP($C11,'RECAP SECT'!$G$6:$FJ$253,137,FALSE) -> 10 | R11: =VLOOKUP($C11,'RECAP SECT'!$G$6:$FJ$253,138,FALSE) -> -245.87 | S11: =VLOOKUP($C11,'RECAP SECT'!$G$6:$FJ$253,139,FALSE) -> -3.65 | T11: =VLOOKUP($C11,'RECAP SECT'!$G$6:$FJ$253,140,FALSE) -> 31% | U11: =VLOOKUP($C11,'RECAP SECT'!$G$6:$FJ$253,141,FALSE) -> 9 | V11: =VLOOKUP($C11,'RECAP SECT'!$G$6:$FJ$253,142,FALSE) -> 34% | W11: =VLOOKUP($C11,'RECAP SECT'!$G$6:$FJ$253,143,FALSE) -> 22% | X11: =VLOOKUP($C11,'RECAP SECT'!$G$6:$FJ$253,144,FALSE) -> 14
A12: 262 | B12: BAS-RHIN | C12: 5060 | D12: HAGUENAU | E12: =VLOOKUP($C12,'RECAP SECT'!$G$6:$FJ$253,3,FALSE) -> 75.0 | F12: =VLOOKUP($C12,'RECAP SECT'!$G$6:$FJ$253,126,FALSE) -> 67.06 | G12: =VLOOKUP($C12,'RECAP SECT'!$G$6:$FJ$253,127,FALSE) -> 0.67 | H12: =VLOOKUP($C12,'RECAP SECT'!$G$6:$FJ$253,128,FALSE) -> 28% | I12: =VLOOKUP($C12,'RECAP SECT'!$G$6:$FJ$253,129,FALSE) -> 11 | J12: =VLOOKUP($C12,'RECAP SECT'!$G$6:$FJ$253,130,FALSE) -> 33.29 | K12: =VLOOKUP($C12,'RECAP SECT'!$G$6:$FJ$253,131,FALSE) -> 1.66 | L12: =VLOOKUP($C12,'RECAP SECT'!$G$6:$FJ$253,132,FALSE) -> 38% | M12: =VLOOKUP($C12,'RECAP SECT'!$G$6:$FJ$253,133,FALSE) -> 18 | N12: =VLOOKUP($C12,'RECAP SECT'!$G$6:$FJ$253,134,FALSE) -> 53.35 | O12: =VLOOKUP($C12,'RECAP SECT'!$G$6:$FJ$253,135,FALSE) -> 0.80 | P12: =VLOOKUP($C12,'RECAP SECT'!$G$6:$FJ$253,136,FALSE) -> 21% | Q12: =VLOOKUP($C12,'RECAP SECT'!$G$6:$FJ$253,137,FALSE) -> 6 | R12: =VLOOKUP($C12,'RECAP SECT'!$G$6:$FJ$253,138,FALSE) -> -274.23 | S12: =VLOOKUP($C12,'RECAP SECT'!$G$6:$FJ$253,139,FALSE) -> -3.65 | T12: =VLOOKUP($C12,'RECAP SECT'!$G$6:$FJ$253,140,FALSE) -> 31% | U12: =VLOOKUP($C12,'RECAP SECT'!$G$6:$FJ$253,141,FALSE) -> 8 | V12: =VLOOKUP($C12,'RECAP SECT'!$G$6:$FJ$253,142,FALSE) -> 29% | W12: =VLOOKUP($C12,'RECAP SECT'!$G$6:$FJ$253,143,FALSE) -> 17% | X12: =VLOOKUP($C12,'RECAP SECT'!$G$6:$FJ$253,144,FALSE) -> 10
A13: 262 | B13: BAS-RHIN | C13: 5101 | D13: SELESTAT | E13: =VLOOKUP($C13,'RECAP SECT'!$G$6:$FJ$253,3,FALSE) -> 63.0 | F13: =VLOOKUP($C13,'RECAP SECT'!$G$6:$FJ$253,126,FALSE) -> 59.15 | G13: =VLOOKUP($C13,'RECAP SECT'!$G$6:$FJ$253,127,FALSE) -> 0.59 | H13: =VLOOKUP($C13,'RECAP SECT'!$G$6:$FJ$253,128,FALSE) -> 37% | I13: =VLOOKUP($C13,'RECAP SECT'!$G$6:$FJ$253,129,FALSE) -> 14 | J13: =VLOOKUP($C13,'RECAP SECT'!$G$6:$FJ$253,130,FALSE) -> 36.65 | K13: =VLOOKUP($C13,'RECAP SECT'!$G$6:$FJ$253,131,FALSE) -> 1.83 | L13: =VLOOKUP($C13,'RECAP SECT'!$G$6:$FJ$253,132,FALSE) -> 32% | M13: =VLOOKUP($C13,'RECAP SECT'!$G$6:$FJ$253,133,FALSE) -> 14 | N13: =VLOOKUP($C13,'RECAP SECT'!$G$6:$FJ$253,134,FALSE) -> 64.29 | O13: =VLOOKUP($C13,'RECAP SECT'!$G$6:$FJ$253,135,FALSE) -> 0.96 | P13: =VLOOKUP($C13,'RECAP SECT'!$G$6:$FJ$253,136,FALSE) -> 5% | Q13: =VLOOKUP($C13,'RECAP SECT'!$G$6:$FJ$253,137,FALSE) -> 3 | R13: =VLOOKUP($C13,'RECAP SECT'!$G$6:$FJ$253,138,FALSE) -> -262.26 | S13: =VLOOKUP($C13,'RECAP SECT'!$G$6:$FJ$253,139,FALSE) -> -4.16 | T13: =VLOOKUP($C13,'RECAP SECT'!$G$6:$FJ$253,140,FALSE) -> 49% | U13: =VLOOKUP($C13,'RECAP SECT'!$G$6:$FJ$253,141,FALSE) -> 14 | V13: =VLOOKUP($C13,'RECAP SECT'!$G$6:$FJ$253,142,FALSE) -> 32% | W13: =VLOOKUP($C13,'RECAP SECT'!$G$6:$FJ$253,143,FALSE) -> 20% | X13: =VLOOKUP($C13,'RECAP SECT'!$G$6:$FJ$253,144,FALSE) -> 12
A14: 262 | B14: BAS-RHIN | C14: 5006 | D14: STRASBOURG | E14: =VLOOKUP($C14,'RECAP SECT'!$G$6:$FJ$253,3,FALSE) -> 76.0 | F14: =VLOOKUP($C14,'RECAP SECT'!$G$6:$FJ$253,126,FALSE) -> 70.73 | G14: =VLOOKUP($C14,'RECAP SECT'!$G$6:$FJ$253,127,FALSE) -> 0.71 | H14: =VLOOKUP($C14,'RECAP SECT'!$G$6:$FJ$253,128,FALSE) -> 24% | I14: =VLOOKUP($C14,'RECAP SECT'!$G$6:$FJ$253,129,FALSE) -> 8 | J14: =VLOOKUP($C14,'RECAP SECT'!$G$6:$FJ$253,130,FALSE) -> 49.60 | K14: =VLOOKUP($C14,'RECAP SECT'!$G$6:$FJ$253,131,FALSE) -> 2.48 | L14: =VLOOKUP($C14,'RECAP SECT'!$G$6:$FJ$253,132,FALSE) -> 8% | M14: =VLOOKUP($C14,'RECAP SECT'!$G$6:$FJ$253,133,FALSE) -> 6 | N14: =VLOOKUP($C14,'RECAP SECT'!$G$6:$FJ$253,134,FALSE) -> 19.19 | O14: =VLOOKUP($C14,'RECAP SECT'!$G$6:$FJ$253,135,FALSE) -> 0.29 | P14: =VLOOKUP($C14,'RECAP SECT'!$G$6:$FJ$253,136,FALSE) -> 72% | Q14: =VLOOKUP($C14,'RECAP SECT'!$G$6:$FJ$253,137,FALSE) -> 18 | R14: =VLOOKUP($C14,'RECAP SECT'!$G$6:$FJ$253,138,FALSE) -> -335.94 | S14: =VLOOKUP($C14,'RECAP SECT'!$G$6:$FJ$253,139,FALSE) -> -4.42 | T14: =VLOOKUP($C14,'RECAP SECT'!$G$6:$FJ$253,140,FALSE) -> 59% | U14: =VLOOKUP($C14,'RECAP SECT'!$G$6:$FJ$253,141,FALSE) -> 16 | V14: =VLOOKUP($C14,'RECAP SECT'!$G$6:$FJ$253,142,FALSE) -> 37% | W14: =VLOOKUP($C14,'RECAP SECT'!$G$6:$FJ$253,143,FALSE) -> 25% | X14: =VLOOKUP($C14,'RECAP SECT'!$G$6:$FJ$253,144,FALSE) -> 16
A15: 264 | B15: HAUT-RHIN | C15: 5130 | D15: COLMAR | E15: =VLOOKUP($C15,'RECAP SECT'!$G$6:$FJ$253,3,FALSE) -> 65.9 | F15: =VLOOKUP($C15,'RECAP SECT'!$G$6:$FJ$253,126,FALSE) -> 61.84 | G15: =VLOOKUP($C15,'RECAP SECT'!$G$6:$FJ$253,127,FALSE) -> 0.62 | H15: =VLOOKUP($C15,'RECAP SECT'!$G$6:$FJ$253,128,FALSE) -> 34% | I15: =VLOOKUP($C15,'RECAP SECT'!$G$6:$FJ$253,129,FALSE) -> 12 | J15: =VLOOKUP($C15,'RECAP SECT'!$G$6:$FJ$253,130,FALSE) -> 33.82 | K15: =VLOOKUP($C15,'RECAP SECT'!$G$6:$FJ$253,131,FALSE) -> 1.69 | L15: =VLOOKUP($C15,'RECAP SECT'!$G$6:$FJ$253,132,FALSE) -> 37% | M15: =VLOOKUP($C15,'RECAP SECT'!$G$6:$FJ$253,133,FALSE) -> 17 | N15: =VLOOKUP($C15,'RECAP SECT'!$G$6:$FJ$253,134,FALSE) -> 38.72 | O15: =VLOOKUP($C15,'RECAP SECT'!$G$6:$FJ$253,135,FALSE) -> 0.58 | P15: =VLOOKUP($C15,'RECAP SECT'!$G$6:$FJ$253,136,FALSE) -> 43% | Q15: =VLOOKUP($C15,'RECAP SECT'!$G$6:$FJ$253,137,FALSE) -> 14 | R15: =VLOOKUP($C15,'RECAP SECT'!$G$6:$FJ$253,138,FALSE) -> -262.95 | S15: =VLOOKUP($C15,'RECAP SECT'!$G$6:$FJ$253,139,FALSE) -> -3.99 | T15: =VLOOKUP($C15,'RECAP SECT'!$G$6:$FJ$253,140,FALSE) -> 43% | U15: =VLOOKUP($C15,'RECAP SECT'!$G$6:$FJ$253,141,FALSE) -> 13 | V15: =VLOOKUP($C15,'RECAP SECT'!$G$6:$FJ$253,142,FALSE) -> 38% | W15: =VLOOKUP($C15,'RECAP SECT'!$G$6:$FJ$253,143,FALSE) -> 26% | X15: =VLOOKUP($C15,'RECAP SECT'!$G$6:$FJ$253,144,FALSE) -> 17
A16: 264 | B16: HAUT-RHIN | C16: 5169 | D16: MULHOUSE | E16: =VLOOKUP($C16,'RECAP SECT'!$G$6:$FJ$253,3,FALSE) -> 62.1 | F16: =VLOOKUP($C16,'RECAP SECT'!$G$6:$FJ$253,126,FALSE) -> 51.14 | G16: =VLOOKUP($C16,'RECAP SECT'!$G$6:$FJ$253,127,FALSE) -> 0.51 | H16: =VLOOKUP($C16,'RECAP SECT'!$G$6:$FJ$253,128,FALSE) -> 45% | I16: =VLOOKUP($C16,'RECAP SECT'!$G$6:$FJ$253,129,FALSE) -> 18 | J16: =VLOOKUP($C16,'RECAP SECT'!$G$6:$FJ$253,130,FALSE) -> 38.18 | K16: =VLOOKUP($C16,'RECAP SECT'!$G$6:$FJ$253,131,FALSE) -> 1.91 | L16: =VLOOKUP($C16,'RECAP SECT'!$G$6:$FJ$253,132,FALSE) -> 29% | M16: =VLOOKUP($C16,'RECAP SECT'!$G$6:$FJ$253,133,FALSE) -> 13 | N16: =VLOOKUP($C16,'RECAP SECT'!$G$6:$FJ$253,134,FALSE) -> 39.95 | O16: =VLOOKUP($C16,'RECAP SECT'!$G$6:$FJ$253,135,FALSE) -> 0.60 | P16: =VLOOKUP($C16,'RECAP SECT'!$G$6:$FJ$253,136,FALSE) -> 41% | Q16: =VLOOKUP($C16,'RECAP SECT'!$G$6:$FJ$253,137,FALSE) -> 13 | R16: =VLOOKUP($C16,'RECAP SECT'!$G$6:$FJ$253,138,FALSE) -> -282.37 | S16: =VLOOKUP($C16,'RECAP SECT'!$G$6:$FJ$253,139,FALSE) -> -4.55 | T16: =VLOOKUP($C16,'RECAP SECT'!$G$6:$FJ$253,140,FALSE) -> 63% | U16: =VLOOKUP($C16,'RECAP SECT'!$G$6:$FJ$253,141,FALSE) -> 17 | V16: =VLOOKUP($C16,'RECAP SECT'!$G$6:$FJ$253,142,FALSE) -> 45% | W16: =VLOOKUP($C16,'RECAP SECT'!$G$6:$FJ$253,143,FALSE) -> 33% | X16: =VLOOKUP($C16,'RECAP SECT'!$G$6:$FJ$253,144,FALSE) -> 18
A17: 30 | B17: MARNE-ARDENNES | C17: 6 | D17: CHALONS EN CHAMPAGNE | E17: =VLOOKUP($C17,'RECAP SECT'!$G$6:$FJ$253,3,FALSE) -> 45.2 | F17: =VLOOKUP($C17,'RECAP SECT'!$G$6:$FJ$253,126,FALSE) -> 72.85 | G17: =VLOOKUP($C17,'RECAP SECT'!$G$6:$FJ$253,127,FALSE) -> 0.73 | H17: =VLOOKUP($C17,'RECAP SECT'!$G$6:$FJ$253,128,FALSE) -> 22% | I17: =VLOOKUP($C17,'RECAP SECT'!$G$6:$FJ$253,129,FALSE) -> 5 | J17: =VLOOKUP($C17,'RECAP SECT'!$G$6:$FJ$253,130,FALSE) -> 49.78 | K17: =VLOOKUP($C17,'RECAP SECT'!$G$6:$FJ$253,131,FALSE) -> 2.49 | L17: =VLOOKUP($C17,'RECAP SECT'!$G$6:$FJ$253,132,FALSE) -> 8% | M17: =VLOOKUP($C17,'RECAP SECT'!$G$6:$FJ$253,133,FALSE) -> 5 | N17: =VLOOKUP($C17,'RECAP SECT'!$G$6:$FJ$253,134,FALSE) -> 66.71 | O17: =VLOOKUP($C17,'RECAP SECT'!$G$6:$FJ$253,135,FALSE) -> 1.00 | P17: =VLOOKUP($C17,'RECAP SECT'!$G$6:$FJ$253,136,FALSE) -> 1% | Q17: =VLOOKUP($C17,'RECAP SECT'!$G$6:$FJ$253,137,FALSE) -> 2 | R17: =VLOOKUP($C17,'RECAP SECT'!$G$6:$FJ$253,138,FALSE) -> -137.75 | S17: =VLOOKUP($C17,'RECAP SECT'!$G$6:$FJ$253,139,FALSE) -> -3.04 | T17: =VLOOKUP($C17,'RECAP SECT'!$G$6:$FJ$253,140,FALSE) -> 9% | U17: =VLOOKUP($C17,'RECAP SECT'!$G$6:$FJ$253,141,FALSE) -> 4 | V17: =VLOOKUP($C17,'RECAP SECT'!$G$6:$FJ$253,142,FALSE) -> 12% | W17: =VLOOKUP($C17,'RECAP SECT'!$G$6:$FJ$253,143,FALSE) -> 0% | X17: =VLOOKUP($C17,'RECAP SECT'!$G$6:$FJ$253,144,FALSE) -> 2
A18: 30 | B18: MARNE-ARDENNES | C18: 2 | D18: CHARLEVILLE MEZIERES | E18: =VLOOKUP($C18,'RECAP SECT'!$G$6:$FJ$253,3,FALSE) -> 54.8 | F18: =VLOOKUP($C18,'RECAP SECT'!$G$6:$FJ$253,126,FALSE) -> 89.17 | G18: =VLOOKUP($C18,'RECAP SECT'!$G$6:$FJ$253,127,FALSE) -> 0.89 | H18: =VLOOKUP($C18,'RECAP SECT'!$G$6:$FJ$253,128,FALSE) -> 5% | I18: =VLOOKUP($C18,'RECAP SECT'!$G$6:$FJ$253,129,FALSE) -> 2 | J18: =VLOOKUP($C18,'RECAP SECT'!$G$6:$FJ$253,130,FALSE) -> 50.26 | K18: =VLOOKUP($C18,'RECAP SECT'!$G$6:$FJ$253,131,FALSE) -> 2.51 | L18: =VLOOKUP($C18,'RECAP SECT'!$G$6:$FJ$253,132,FALSE) -> 7% | M18: =VLOOKUP($C18,'RECAP SECT'!$G$6:$FJ$253,133,FALSE) -> 4 | N18: =VLOOKUP($C18,'RECAP SECT'!$G$6:$FJ$253,134,FALSE) -> 41.10 | O18: =VLOOKUP($C18,'RECAP SECT'!$G$6:$FJ$253,135,FALSE) -> 0.62 | P18: =VLOOKUP($C18,'RECAP SECT'!$G$6:$FJ$253,136,FALSE) -> 39% | Q18: =VLOOKUP($C18,'RECAP SECT'!$G$6:$FJ$253,137,FALSE) -> 12 | R18: =VLOOKUP($C18,'RECAP SECT'!$G$6:$FJ$253,138,FALSE) -> -162.02 | S18: =VLOOKUP($C18,'RECAP SECT'!$G$6:$FJ$253,139,FALSE) -> -2.96 | T18: =VLOOKUP($C18,'RECAP SECT'!$G$6:$FJ$253,140,FALSE) -> 6% | U18: =VLOOKUP($C18,'RECAP SECT'!$G$6:$FJ$253,141,FALSE) -> 2 | V18: =VLOOKUP($C18,'RECAP SECT'!$G$6:$FJ$253,142,FALSE) -> 12% | W18: =VLOOKUP($C18,'RECAP SECT'!$G$6:$FJ$253,143,FALSE) -> 0% | X18: =VLOOKUP($C18,'RECAP SECT'!$G$6:$FJ$253,144,FALSE) -> 1
A19: 30 | B19: MARNE-ARDENNES | C19: 11 | D19: REIMS | E19: =VLOOKUP($C19,'RECAP SECT'!$G$6:$FJ$253,3,FALSE) -> 80.3 | F19: =VLOOKUP($C19,'RECAP SECT'!$G$6:$FJ$253,126,FALSE) -> 85.77 | G19: =VLOOKUP($C19,'RECAP SECT'!$G$6:$FJ$253,127,FALSE) -> 0.86 | H19: =VLOOKUP($C19,'RECAP SECT'!$G$6:$FJ$253,128,FALSE) -> 8% | I19: =VLOOKUP($C19,'RECAP SECT'!$G$6:$FJ$253,129,FALSE) -> 3 | J19: =VLOOKUP($C19,'RECAP SECT'!$G$6:$FJ$253,130,FALSE) -> 53.99 | K19: =VLOOKUP($C19,'RECAP SECT'!$G$6:$FJ$253,131,FALSE) -> 2.70 | L19: =VLOOKUP($C19,'RECAP SECT'!$G$6:$FJ$253,132,FALSE) -> 0% | M19: =VLOOKUP($C19,'RECAP SECT'!$G$6:$FJ$253,133,FALSE) -> 1 | N19: =VLOOKUP($C19,'RECAP SECT'!$G$6:$FJ$253,134,FALSE) -> 42.01 | O19: =VLOOKUP($C19,'RECAP SECT'!$G$6:$FJ$253,135,FALSE) -> 0.63 | P19: =VLOOKUP($C19,'RECAP SECT'!$G$6:$FJ$253,136,FALSE) -> 38% | Q19: =VLOOKUP($C19,'RECAP SECT'!$G$6:$FJ$253,137,FALSE) -> 9 | R19: =VLOOKUP($C19,'RECAP SECT'!$G$6:$FJ$253,138,FALSE) -> -373.49 | S19: =VLOOKUP($C19,'RECAP SECT'!$G$6:$FJ$253,139,FALSE) -> -4.65 | T19: =VLOOKUP($C19,'RECAP SECT'!$G$6:$FJ$253,140,FALSE) -> 67% | U19: =VLOOKUP($C19,'RECAP SECT'!$G$6:$FJ$253,141,FALSE) -> 18 | V19: =VLOOKUP($C19,'RECAP SECT'!$G$6:$FJ$253,142,FALSE) -> 24% | W19: =VLOOKUP($C19,'RECAP SECT'!$G$6:$FJ$253,143,FALSE) -> 12% | X19: =VLOOKUP($C19,'RECAP SECT'!$G$6:$FJ$253,144,FALSE) -> 7
A20: 110 | B20: MEURTHE ET MOSELLE MEUSE | C20: 26 | D20: NANCY | E20: =VLOOKUP($C20,'RECAP SECT'!$G$6:$FJ$253,3,FALSE) -> 65.2 | F20: =VLOOKUP($C20,'RECAP SECT'!$G$6:$FJ$253,126,FALSE) -> 93.37 | G20: =VLOOKUP($C20,'RECAP SECT'!$G$6:$FJ$253,127,FALSE) -> 0.93 | H20: =VLOOKUP($C20,'RECAP SECT'!$G$6:$FJ$253,128,FALSE) -> 0% | I20: =VLOOKUP($C20,'RECAP SECT'!$G$6:$FJ$253,129,FALSE) -> 1 | J20: =VLOOKUP($C20,'RECAP SECT'!$G$6:$FJ$253,130,FALSE) -> 51.64 | K20: =VLOOKUP($C20,'RECAP SECT'!$G$6:$FJ$253,131,FALSE) -> 2.58 | L20: =VLOOKUP($C20,'RECAP SECT'!$G$6:$FJ$253,132,FALSE) -> 4% | M20: =VLOOKUP($C20,'RECAP SECT'!$G$6:$FJ$253,133,FALSE) -> 3 | N20: =VLOOKUP($C20,'RECAP SECT'!$G$6:$FJ$253,134,FALSE) -> 42.59 | O20: =VLOOKUP($C20,'RECAP SECT'!$G$6:$FJ$253,135,FALSE) -> 0.64 | P20: =VLOOKUP($C20,'RECAP SECT'!$G$6:$FJ$253,136,FALSE) -> 37% | Q20: =VLOOKUP($C20,'RECAP SECT'!$G$6:$FJ$253,137,FALSE) -> 8 | R20: =VLOOKUP($C20,'RECAP SECT'!$G$6:$FJ$253,138,FALSE) -> -280.40 | S20: =VLOOKUP($C20,'RECAP SECT'!$G$6:$FJ$253,139,FALSE) -> -4.30 | T20: =VLOOKUP($C20,'RECAP SECT'!$G$6:$FJ$253,140,FALSE) -> 54% | U20: =VLOOKUP($C20,'RECAP SECT'!$G$6:$FJ$253,141,FALSE) -> 15 | V20: =VLOOKUP($C20,'RECAP SECT'!$G$6:$FJ$253,142,FALSE) -> 19% | W20: =VLOOKUP($C20,'RECAP SECT'!$G$6:$FJ$253,143,FALSE) -> 7% | X20: =VLOOKUP($C20,'RECAP SECT'!$G$6:$FJ$253,144,FALSE) -> 4
A21: 110 | B21: MEURTHE ET MOSELLE MEUSE | C21: 27 | D21: PONT A MOUSSON | E21: =VLOOKUP($C21,'RECAP SECT'!$G$6:$FJ$253,3,FALSE) -> 74.0 | F21: =VLOOKUP($C21,'RECAP SECT'!$G$6:$FJ$253,126,FALSE) -> 83.96 | G21: =VLOOKUP($C21,'RECAP SECT'!$G$6:$FJ$253,127,FALSE) -> 0.84 | H21: =VLOOKUP($C21,'RECAP SECT'!$G$6:$FJ$253,128,FALSE) -> 10% | I21: =VLOOKUP($C21,'RECAP SECT'!$G$6:$FJ$253,129,FALSE) -> 4 | J21: =VLOOKUP($C21,'RECAP SECT'!$G$6:$FJ$253,130,FALSE) -> 52.32 | K21: =VLOOKUP($C21,'RECAP SECT'!$G$6:$FJ$253,131,FALSE) -> 2.62 | L21: =VLOOKUP($C21,'RECAP SECT'!$G$6:$FJ$253,132,FALSE) -> 3% | M21: =VLOOKUP($C21,'RECAP SECT'!$G$6:$FJ$253,133,FALSE) -> 2 | N21: =VLOOKUP($C21,'RECAP SECT'!$G$6:$FJ$253,134,FALSE) -> 41.34 | O21: =VLOOKUP($C21,'RECAP SECT'!$G$6:$FJ$253,135,FALSE) -> 0.62 | P21: =VLOOKUP($C21,'RECAP SECT'!$G$6:$FJ$253,136,FALSE) -> 39% | Q21: =VLOOKUP($C21,'RECAP SECT'!$G$6:$FJ$253,137,FALSE) -> 11 | R21: =VLOOKUP($C21,'RECAP SECT'!$G$6:$FJ$253,138,FALSE) -> -278.75 | S21: =VLOOKUP($C21,'RECAP SECT'!$G$6:$FJ$253,139,FALSE) -> -3.76 | T21: =VLOOKUP($C21,'RECAP SECT'!$G$6:$FJ$253,140,FALSE) -> 35% | U21: =VLOOKUP($C21,'RECAP SECT'!$G$6:$FJ$253,141,FALSE) -> 11 | V21: =VLOOKUP($C21,'RECAP SECT'!$G$6:$FJ$253,142,FALSE) -> 19% | W21: =VLOOKUP($C21,'RECAP SECT'!$G$6:$FJ$253,143,FALSE) -> 7% | X21: =VLOOKUP($C21,'RECAP SECT'!$G$6:$FJ$253,144,FALSE) -> 6
A22: 110 | B22: MEURTHE ET MOSELLE MEUSE | C22: 31 | D22: VERDUN | E22: =VLOOKUP($C22,'RECAP SECT'!$G$6:$FJ$253,3,FALSE) -> 53.6 | F22: =VLOOKUP($C22,'RECAP SECT'!$G$6:$FJ$253,126,FALSE) -> 55.01 | G22: =VLOOKUP($C22,'RECAP SECT'!$G$6:$FJ$253,127,FALSE) -> 0.55 | H22: =VLOOKUP($C22,'RECAP SECT'!$G$6:$FJ$253,128,FALSE) -> 41% | I22: =VLOOKUP($C22,'RECAP SECT'!$G$6:$FJ$253,129,FALSE) -> 17 | J22: =VLOOKUP($C22,'RECAP SECT'!$G$6:$FJ$253,130,FALSE) -> 42.12 | K22: =VLOOKUP($C22,'RECAP SECT'!$G$6:$FJ$253,131,FALSE) -> 2.11 | L22: =VLOOKUP($C22,'RECAP SECT'!$G$6:$FJ$253,132,FALSE) -> 22% | M22: =VLOOKUP($C22,'RECAP SECT'!$G$6:$FJ$253,133,FALSE) -> 11 | N22: =VLOOKUP($C22,'RECAP SECT'!$G$6:$FJ$253,134,FALSE) -> 49.58 | O22: =VLOOKUP($C22,'RECAP SECT'!$G$6:$FJ$253,135,FALSE) -> 0.74 | P22: =VLOOKUP($C22,'RECAP SECT'!$G$6:$FJ$253,136,FALSE) -> 26% | Q22: =VLOOKUP($C22,'RECAP SECT'!$G$6:$FJ$253,137,FALSE) -> 7 | R22: =VLOOKUP($C22,'RECAP SECT'!$G$6:$FJ$253,138,FALSE) -> -192.57 | S22: =VLOOKUP($C22,'RECAP SECT'!$G$6:$FJ$253,139,FALSE) -> -3.59 | T22: =VLOOKUP($C22,'RECAP SECT'!$G$6:$FJ$253,140,FALSE) -> 29% | U22: =VLOOKUP($C22,'RECAP SECT'!$G$6:$FJ$253,141,FALSE) -> 7 | V22: =VLOOKUP($C22,'RECAP SECT'!$G$6:$FJ$253,142,FALSE) -> 32% | W22: =VLOOKUP($C22,'RECAP SECT'!$G$6:$FJ$253,143,FALSE) -> 20% | X22: =VLOOKUP($C22,'RECAP SECT'!$G$6:$FJ$253,144,FALSE) -> 13
A23: 160 | B23: MOSELLE | C23: 45 | D23: METZ | E23: =VLOOKUP($C23,'RECAP SECT'!$G$6:$FJ$253,3,FALSE) -> 87.6 | F23: =VLOOKUP($C23,'RECAP SECT'!$G$6:$FJ$253,126,FALSE) -> 71.59 | G23: =VLOOKUP($C23,'RECAP SECT'!$G$6:$FJ$253,127,FALSE) -> 0.72 | H23: =VLOOKUP($C23,'RECAP SECT'!$G$6:$FJ$253,128,FALSE) -> 23% | I23: =VLOOKUP($C23,'RECAP SECT'!$G$6:$FJ$253,129,FALSE) -> 7 | J23: =VLOOKUP($C23,'RECAP SECT'!$G$6:$FJ$253,130,FALSE) -> 43.48 | K23: =VLOOKUP($C23,'RECAP SECT'!$G$6:$FJ$253,131,FALSE) -> 2.17 | L23: =VLOOKUP($C23,'RECAP SECT'!$G$6:$FJ$253,132,FALSE) -> 19% | M23: =VLOOKUP($C23,'RECAP SECT'!$G$6:$FJ$253,133,FALSE) -> 9 | N23: =VLOOKUP($C23,'RECAP SECT'!$G$6:$FJ$253,134,FALSE) -> 34.79 | O23: =VLOOKUP($C23,'RECAP SECT'!$G$6:$FJ$253,135,FALSE) -> 0.52 | P23: =VLOOKUP($C23,'RECAP SECT'!$G$6:$FJ$253,136,FALSE) -> 48% | Q23: =VLOOKUP($C23,'RECAP SECT'!$G$6:$FJ$253,137,FALSE) -> 15 | R23: =VLOOKUP($C23,'RECAP SECT'!$G$6:$FJ$253,138,FALSE) -> -336.58 | S23: =VLOOKUP($C23,'RECAP SECT'!$G$6:$FJ$253,139,FALSE) -> -3.84 | T23: =VLOOKUP($C23,'RECAP SECT'!$G$6:$FJ$253,140,FALSE) -> 38% | U23: =VLOOKUP($C23,'RECAP SECT'!$G$6:$FJ$253,141,FALSE) -> 12 | V23: =VLOOKUP($C23,'RECAP SECT'!$G$6:$FJ$253,142,FALSE) -> 30% | W23: =VLOOKUP($C23,'RECAP SECT'!$G$6:$FJ$253,143,FALSE) -> 18% | X23: =VLOOKUP($C23,'RECAP SECT'!$G$6:$FJ$253,144,FALSE) -> 11
A24: 160 | B24: MOSELLE | C24: 42 | D24: MOSELLE EST | E24: =VLOOKUP($C24,'RECAP SECT'!$G$6:$FJ$253,3,FALSE) -> 73.0 | F24: =VLOOKUP($C24,'RECAP SECT'!$G$6:$FJ$253,126,FALSE) -> 59.75 | G24: =VLOOKUP($C24,'RECAP SECT'!$G$6:$FJ$253,127,FALSE) -> 0.60 | H24: =VLOOKUP($C24,'RECAP SECT'!$G$6:$FJ$253,128,FALSE) -> 36% | I24: =VLOOKUP($C24,'RECAP SECT'!$G$6:$FJ$253,129,FALSE) -> 13 | J24: =VLOOKUP($C24,'RECAP SECT'!$G$6:$FJ$253,130,FALSE) -> 34.54 | K24: =VLOOKUP($C24,'RECAP SECT'!$G$6:$FJ$253,131,FALSE) -> 1.73 | L24: =VLOOKUP($C24,'RECAP SECT'!$G$6:$FJ$253,132,FALSE) -> 36% | M24: =VLOOKUP($C24,'RECAP SECT'!$G$6:$FJ$253,133,FALSE) -> 16 | N24: =VLOOKUP($C24,'RECAP SECT'!$G$6:$FJ$253,134,FALSE) -> 28.58 | O24: =VLOOKUP($C24,'RECAP SECT'!$G$6:$FJ$253,135,FALSE) -> 0.43 | P24: =VLOOKUP($C24,'RECAP SECT'!$G$6:$FJ$253,136,FALSE) -> 58% | Q24: =VLOOKUP($C24,'RECAP SECT'!$G$6:$FJ$253,137,FALSE) -> 17 | R24: =VLOOKUP($C24,'RECAP SECT'!$G$6:$FJ$253,138,FALSE) -> -242.21 | S24: =VLOOKUP($C24,'RECAP SECT'!$G$6:$FJ$253,139,FALSE) -> -3.32 | T24: =VLOOKUP($C24,'RECAP SECT'!$G$6:$FJ$253,140,FALSE) -> 19% | U24: =VLOOKUP($C24,'RECAP SECT'!$G$6:$FJ$253,141,FALSE) -> 5 | V24: =VLOOKUP($C24,'RECAP SECT'!$G$6:$FJ$253,142,FALSE) -> 37% | W24: =VLOOKUP($C24,'RECAP SECT'!$G$6:$FJ$253,143,FALSE) -> 25% | X24: =VLOOKUP($C24,'RECAP SECT'!$G$6:$FJ$253,144,FALSE) -> 15
A25: 160 | B25: MOSELLE | C25: 44 | D25: MOSELLE NORD | E25: =VLOOKUP($C25,'RECAP SECT'!$G$6:$FJ$253,3,FALSE) -> 71.8 | F25: =VLOOKUP($C25,'RECAP SECT'!$G$6:$FJ$253,126,FALSE) -> 70.65 | G25: =VLOOKUP($C25,'RECAP SECT'!$G$6:$FJ$253,127,FALSE) -> 0.71 | H25: =VLOOKUP($C25,'RECAP SECT'!$G$6:$FJ$253,128,FALSE) -> 24% | I25: =VLOOKUP($C25,'RECAP SECT'!$G$6:$FJ$253,129,FALSE) -> 9 | J25: =VLOOKUP($C25,'RECAP SECT'!$G$6:$FJ$253,130,FALSE) -> 43.94 | K25: =VLOOKUP($C25,'RECAP SECT'!$G$6:$FJ$253,131,FALSE) -> 2.20 | L25: =VLOOKUP($C25,'RECAP SECT'!$G$6:$FJ$253,132,FALSE) -> 19% | M25: =VLOOKUP($C25,'RECAP SECT'!$G$6:$FJ$253,133,FALSE) -> 8 | N25: =VLOOKUP($C25,'RECAP SECT'!$G$6:$FJ$253,134,FALSE) -> 63.10 | O25: =VLOOKUP($C25,'RECAP SECT'!$G$6:$FJ$253,135,FALSE) -> 0.95 | P25: =VLOOKUP($C25,'RECAP SECT'!$G$6:$FJ$253,136,FALSE) -> 6% | Q25: =VLOOKUP($C25,'RECAP SECT'!$G$6:$FJ$253,137,FALSE) -> 4 | R25: =VLOOKUP($C25,'RECAP SECT'!$G$6:$FJ$253,138,FALSE) -> -218.30 | S25: =VLOOKUP($C25,'RECAP SECT'!$G$6:$FJ$253,139,FALSE) -> -3.04 | T25: =VLOOKUP($C25,'RECAP SECT'!$G$6:$FJ$253,140,FALSE) -> 9% | U25: =VLOOKUP($C25,'RECAP SECT'!$G$6:$FJ$253,141,FALSE) -> 3 | V25: =VLOOKUP($C25,'RECAP SECT'!$G$6:$FJ$253,142,FALSE) -> 17% | W25: =VLOOKUP($C25,'RECAP SECT'!$G$6:$FJ$253,143,FALSE) -> 4% | X25: =VLOOKUP($C25,'RECAP SECT'!$G$6:$FJ$253,144,FALSE) -> 3
A26: 80 | B26: VOSGES | C26: 57 | D26: EPINAL | E26: =VLOOKUP($C26,'RECAP SECT'!$G$6:$FJ$253,3,FALSE) -> 59.8 | F26: =VLOOKUP($C26,'RECAP SECT'!$G$6:$FJ$253,126,FALSE) -> 57.61 | G26: =VLOOKUP($C26,'RECAP SECT'!$G$6:$FJ$253,127,FALSE) -> 0.58 | H26: =VLOOKUP($C26,'RECAP SECT'!$G$6:$FJ$253,128,FALSE) -> 38% | I26: =VLOOKUP($C26,'RECAP SECT'!$G$6:$FJ$253,129,FALSE) -> 16 | J26: =VLOOKUP($C26,'RECAP SECT'!$G$6:$FJ$253,130,FALSE) -> 45.25 | K26: =VLOOKUP($C26,'RECAP SECT'!$G$6:$FJ$253,131,FALSE) -> 2.26 | L26: =VLOOKUP($C26,'RECAP SECT'!$G$6:$FJ$253,132,FALSE) -> 16% | M26: =VLOOKUP($C26,'RECAP SECT'!$G$6:$FJ$253,133,FALSE) -> 7 | N26: =VLOOKUP($C26,'RECAP SECT'!$G$6:$FJ$253,134,FALSE) -> 53.38 | O26: =VLOOKUP($C26,'RECAP SECT'!$G$6:$FJ$253,135,FALSE) -> 0.80 | P26: =VLOOKUP($C26,'RECAP SECT'!$G$6:$FJ$253,136,FALSE) -> 21% | Q26: =VLOOKUP($C26,'RECAP SECT'!$G$6:$FJ$253,137,FALSE) -> 5 | R26: =VLOOKUP($C26,'RECAP SECT'!$G$6:$FJ$253,138,FALSE) -> -221.74 | S26: =VLOOKUP($C26,'RECAP SECT'!$G$6:$FJ$253,139,FALSE) -> -3.71 | T26: =VLOOKUP($C26,'RECAP SECT'!$G$6:$FJ$253,140,FALSE) -> 33% | U26: =VLOOKUP($C26,'RECAP SECT'!$G$6:$FJ$253,141,FALSE) -> 10 | V26: =VLOOKUP($C26,'RECAP SECT'!$G$6:$FJ$253,142,FALSE) -> 29% | W26: =VLOOKUP($C26,'RECAP SECT'!$G$6:$FJ$253,143,FALSE) -> 17% | X26: =VLOOKUP($C26,'RECAP SECT'!$G$6:$FJ$253,144,FALSE) -> 9
A27: 80 | B27: VOSGES | C27: 55 | D27: SAINT DIE | E27: =VLOOKUP($C27,'RECAP SECT'!$G$6:$FJ$253,3,FALSE) -> 48.0 | F27: =VLOOKUP($C27,'RECAP SECT'!$G$6:$FJ$253,126,FALSE) -> 71.61 | G27: =VLOOKUP($C27,'RECAP SECT'!$G$6:$FJ$253,127,FALSE) -> 0.72 | H27: =VLOOKUP($C27,'RECAP SECT'!$G$6:$FJ$253,128,FALSE) -> 23% | I27: =VLOOKUP($C27,'RECAP SECT'!$G$6:$FJ$253,129,FALSE) -> 6 | J27: =VLOOKUP($C27,'RECAP SECT'!$G$6:$FJ$253,130,FALSE) -> 42.61 | K27: =VLOOKUP($C27,'RECAP SECT'!$G$6:$FJ$253,131,FALSE) -> 2.13 | L27: =VLOOKUP($C27,'RECAP SECT'!$G$6:$FJ$253,132,FALSE) -> 21% | M27: =VLOOKUP($C27,'RECAP SECT'!$G$6:$FJ$253,133,FALSE) -> 10 | N27: =VLOOKUP($C27,'RECAP SECT'!$G$6:$FJ$253,134,FALSE) -> 67.40 | O27: =VLOOKUP($C27,'RECAP SECT'!$G$6:$FJ$253,135,FALSE) -> 1.01 | P27: =VLOOKUP($C27,'RECAP SECT'!$G$6:$FJ$253,136,FALSE) -> 0% | Q27: =VLOOKUP($C27,'RECAP SECT'!$G$6:$FJ$253,137,FALSE) -> 1 | R27: =VLOOKUP($C27,'RECAP SECT'!$G$6:$FJ$253,138,FALSE) -> -172.33 | S27: =VLOOKUP($C27,'RECAP SECT'!$G$6:$FJ$253,139,FALSE) -> -3.59 | T27: =VLOOKUP($C27,'RECAP SECT'!$G$6:$FJ$253,140,FALSE) -> 29% | U27: =VLOOKUP($C27,'RECAP SECT'!$G$6:$FJ$253,141,FALSE) -> 6 | V27: =VLOOKUP($C27,'RECAP SECT'!$G$6:$FJ$253,142,FALSE) -> 19% | W27: =VLOOKUP($C27,'RECAP SECT'!$G$6:$FJ$253,143,FALSE) -> 7% | X27: =VLOOKUP($C27,'RECAP SECT'!$G$6:$FJ$253,144,FALSE) -> 5
A28: Total CEGEE Directions Régionales | E28: =SUM(E10:E27) -> 1159

Sheet SE_SATISFACTION
B1: Accueil | F1: BAROMETRE BDD - TERRITOIRES
F2: QUALITE / SATISFACTION
F3: =ACCUEIL!F7 -> 2020-12-31
F7: N P S | I7: Enquête Qualité Haute Définition | L7: Total Satisfaction Clients
F8: =DATEMAJ!C36 -> au 31/10 | G8: coef | H8: ='RECAP DIRCOM'!FC4 -> 8% | I8: =DATEMAJ!C37 -> au 31/10 | J8: coef | K8: ='RECAP DIRCOM'!FF4 -> 7% | M8: coef | N8: ='RECAP DIRCOM'!FI4 -> 15%
B9: Direction | C9: eds | D9: Territoire | E9: ="ETP perf "&DATEMAJ!$C$39 -> ETP perf au 31/10 | G9: % Ecart au 1er | H9: Rang | J9: % Ecart au 1er | K9: Rang | L9: Moyenne ecart au 1er | M9: % Ecart au 1er | N9: Rang CEGEE
A10: 50 | B10: AUBE HAUTE MARNE | C10: 21 | D10: CHAUMONT | E10: =VLOOKUP($C10,'RECAP SECT'!$G$6:$FJ$253,3,FALSE) -> 36.0 | F10: =VLOOKUP($C10,'RECAP SECT'!$G$6:$FJ$253,151,FALSE) -> -4 | G10: =VLOOKUP($C10,'RECAP SECT'!$G$6:$FJ$253,152,FALSE) -> 0% | H10: =VLOOKUP($C10,'RECAP SECT'!$G$6:$FJ$253,153,FALSE) -> 1 | I10: =VLOOKUP($C10,'RECAP SECT'!$G$6:$FJ$253,154,FALSE) -> 44% | J10: =VLOOKUP($C10,'RECAP SECT'!$G$6:$FJ$253,155,FALSE) -> 31% | K10: =VLOOKUP($C10,'RECAP SECT'!$G$6:$FJ$253,156,FALSE) -> 13 | L10: =VLOOKUP($C10,'RECAP SECT'!$G$6:$FJ$253,157,FALSE) -> 15% | M10: =VLOOKUP($C10,'RECAP SECT'!$G$6:$FJ$253,158,FALSE) -> 11% | N10: =VLOOKUP($C10,'RECAP SECT'!$G$6:$FJ$253,159,FALSE) -> 2
A11: 50 | B11: AUBE HAUTE MARNE | C11: 14 | D11: TROYES | E11: =VLOOKUP($C11,'RECAP SECT'!$G$6:$FJ$253,3,FALSE) -> 67.3 | F11: =VLOOKUP($C11,'RECAP SECT'!$G$6:$FJ$253,151,FALSE) -> -16 | G11: =VLOOKUP($C11,'RECAP SECT'!$G$6:$FJ$253,152,FALSE) -> 75% | H11: =VLOOKUP($C11,'RECAP SECT'!$G$6:$FJ$253,153,FALSE) -> 13 | I11: =VLOOKUP($C11,'RECAP SECT'!$G$6:$FJ$253,154,FALSE) -> 42% | J11: =VLOOKUP($C11,'RECAP SECT'!$G$6:$FJ$253,155,FALSE) -> 34% | K11: =VLOOKUP($C11,'RECAP SECT'!$G$6:$FJ$253,156,FALSE) -> 14 | L11: =VLOOKUP($C11,'RECAP SECT'!$G$6:$FJ$253,157,FALSE) -> 56% | M11: =VLOOKUP($C11,'RECAP SECT'!$G$6:$FJ$253,158,FALSE) -> 52% | N11: =VLOOKUP($C11,'RECAP SECT'!$G$6:$FJ$253,159,FALSE) -> 13
A12: 262 | B12: BAS-RHIN | C12: 5060 | D12: HAGUENAU | E12: =VLOOKUP($C12,'RECAP SECT'!$G$6:$FJ$253,3,FALSE) -> 75.0 | F12: =VLOOKUP($C12,'RECAP SECT'!$G$6:$FJ$253,151,FALSE) -> -12 | G12: =VLOOKUP($C12,'RECAP SECT'!$G$6:$FJ$253,152,FALSE) -> 50% | H12: =VLOOKUP($C12,'RECAP SECT'!$G$6:$FJ$253,153,FALSE) -> 8 | I12: =VLOOKUP($C12,'RECAP SECT'!$G$6:$FJ$253,154,FALSE) -> 49% | J12: =VLOOKUP($C12,'RECAP SECT'!$G$6:$FJ$253,155,FALSE) -> 24% | K12: =VLOOKUP($C12,'RECAP SECT'!$G$6:$FJ$253,156,FALSE) -> 8 | L12: =VLOOKUP($C12,'RECAP SECT'!$G$6:$FJ$253,157,FALSE) -> 38% | M12: =VLOOKUP($C12,'RECAP SECT'!$G$6:$FJ$253,158,FALSE) -> 35% | N12: =VLOOKUP($C12,'RECAP SECT'!$G$6:$FJ$253,159,FALSE) -> 10
A13: 262 | B13: BAS-RHIN | C13: 5101 | D13: SELESTAT | E13: =VLOOKUP($C13,'RECAP SECT'!$G$6:$FJ$253,3,FALSE) -> 63.0 | F13: =VLOOKUP($C13,'RECAP SECT'!$G$6:$FJ$253,151,FALSE) -> -25 | G13: =VLOOKUP($C13,'RECAP SECT'!$G$6:$FJ$253,152,FALSE) -> 131% | H13: =VLOOKUP($C13,'RECAP SECT'!$G$6:$FJ$253,153,FALSE) -> 16 | I13: =VLOOKUP($C13,'RECAP SECT'!$G$6:$FJ$253,154,FALSE) -> 40% | J13: =VLOOKUP($C13,'RECAP SECT'!$G$6:$FJ$253,155,FALSE) -> 37% | K13: =VLOOKUP($C13,'RECAP SECT'!$G$6:$FJ$253,156,FALSE) -> 15 | L13: =VLOOKUP($C13,'RECAP SECT'!$G$6:$FJ$253,157,FALSE) -> 87% | M13: =VLOOKUP($C13,'RECAP SECT'!$G$6:$FJ$253,158,FALSE) -> 84% | N13: =VLOOKUP($C13,'RECAP SECT'!$G$6:$FJ$253,159,FALSE) -> 16
A14: 262 | B14: BAS-RHIN | C14: 5006 | D14: STRASBOURG | E14: =VLOOKUP($C14,'RECAP SECT'!$G$6:$FJ$253,3,FALSE) -> 76.0 | F14: =VLOOKUP($C14,'RECAP SECT'!$G$6:$FJ$253,151,FALSE) -> -28 | G14: =VLOOKUP($C14,'RECAP SECT'!$G$6:$FJ$253,152,FALSE) -> 150% | H14: =VLOOKUP($C14,'RECAP SECT'!$G$6:$FJ$253,153,FALSE) -> 18 | I14: =VLOOKUP($C14,'RECAP SECT'!$G$6:$FJ$253,154,FALSE) -> 34% | J14: =VLOOKUP($C14,'RECAP SECT'!$G$6:$FJ$253,155,FALSE) -> 47% | K14: =VLOOKUP($C14,'RECAP SECT'!$G$6:$FJ$253,156,FALSE) -> 18 | L14: =VLOOKUP($C14,'RECAP SECT'!$G$6:$FJ$253,157,FALSE) -> 102% | M14: =VLOOKUP($C14,'RECAP SECT'!$G$6:$FJ$253,158,FALSE) -> 99% | N14: =VLOOKUP($C14,'RECAP SECT'!$G$6:$FJ$253,159,FALSE) -> 18
A15: 264 | B15: HAUT-RHIN | C15: 5130 | D15: COLMAR | E15: =VLOOKUP($C15,'RECAP SECT'!$G$6:$FJ$253,3,FALSE) -> 65.9 | F15: =VLOOKUP($C15,'RECAP SECT'!$G$6:$FJ$253,151,FALSE) -> -19 | G15: =VLOOKUP($C15,'RECAP SECT'!$G$6:$FJ$253,152,FALSE) -> 94% | H15: =VLOOKUP($C15,'RECAP SECT'!$G$6:$FJ$253,153,FALSE) -> 14 | I15: =VLOOKUP($C15,'RECAP SECT'!$G$6:$FJ$253,154,FALSE) -> 45% | J15: =VLOOKUP($C15,'RECAP SECT'!$G$6:$FJ$253,155,FALSE) -> 30% | K15: =VLOOKUP($C15,'RECAP SECT'!$G$6:$FJ$253,156,FALSE) -> 12 | L15: =VLOOKUP($C15,'RECAP SECT'!$G$6:$FJ$253,157,FALSE) -> 64% | M15: =VLOOKUP($C15,'RECAP SECT'!$G$6:$FJ$253,158,FALSE) -> 61% | N15: =VLOOKUP($C15,'RECAP SECT'!$G$6:$FJ$253,159,FALSE) -> 14
A16: 264 | B16: HAUT-RHIN | C16: 5169 | D16: MULHOUSE | E16: =VLOOKUP($C16,'RECAP SECT'!$G$6:$FJ$253,3,FALSE) -> 62.1 | F16: =VLOOKUP($C16,'RECAP SECT'!$G$6:$FJ$253,151,FALSE) -> -25 | G16: =VLOOKUP($C16,'RECAP SECT'!$G$6:$FJ$253,152,FALSE) -> 131% | H16: =VLOOKUP($C16,'RECAP SECT'!$G$6:$FJ$253,153,FALSE) -> 16 | I16: =VLOOKUP($C16,'RECAP SECT'!$G$6:$FJ$253,154,FALSE) -> 34% | J16: =VLOOKUP($C16,'RECAP SECT'!$G$6:$FJ$253,155,FALSE) -> 47% | K16: =VLOOKUP($C16,'RECAP SECT'!$G$6:$FJ$253,156,FALSE) -> 17 | L16: =VLOOKUP($C16,'RECAP SECT'!$G$6:$FJ$253,157,FALSE) -> 92% | M16: =VLOOKUP($C16,'RECAP SECT'!$G$6:$FJ$253,158,FALSE) -> 89% | N16: =VLOOKUP($C16,'RECAP SECT'!$G$6:$FJ$253,159,FALSE) -> 17
A17: 30 | B17: MARNE-ARDENNES | C17: 6 | D17: CHALONS EN CHAMPAGNE | E17: =VLOOKUP($C17,'RECAP SECT'!$G$6:$FJ$253,3,FALSE) -> 45.2 | F17: =VLOOKUP($C17,'RECAP SECT'!$G$6:$FJ$253,151,FALSE) -> -5 | G17: =VLOOKUP($C17,'RECAP SECT'!$G$6:$FJ$253,152,FALSE) -> 6% | H17: =VLOOKUP($C17,'RECAP SECT'!$G$6:$FJ$253,153,FALSE) -> 2 | I17: =VLOOKUP($C17,'RECAP SECT'!$G$6:$FJ$253,154,FALSE) -> 64% | J17: =VLOOKUP($C17,'RECAP SECT'!$G$6:$FJ$253,155,FALSE) -> 0% | K17: =VLOOKUP($C17,'RECAP SECT'!$G$6:$FJ$253,156,FALSE) -> 1 | L17: =VLOOKUP($C17,'RECAP SECT'!$G$6:$FJ$253,157,FALSE) -> 3% | M17: =VLOOKUP($C17,'RECAP SECT'!$G$6:$FJ$253,158,FALSE) -> 0% | N17: =VLOOKUP($C17,'RECAP SECT'!$G$6:$FJ$253,159,FALSE) -> 1
A18: 30 | B18: MARNE-ARDENNES | C18: 2 | D18: CHARLEVILLE MEZIERES | E18: =VLOOKUP($C18,'RECAP SECT'!$G$6:$FJ$253,3,FALSE) -> 54.8 | F18: =VLOOKUP($C18,'RECAP SECT'!$G$6:$FJ$253,151,FALSE) -> -12 | G18: =VLOOKUP($C18,'RECAP SECT'!$G$6:$FJ$253,152,FALSE) -> 50% | H18: =VLOOKUP($C18,'RECAP SECT'!$G$6:$FJ$253,153,FALSE) -> 8 | I18: =VLOOKUP($C18,'RECAP SECT'!$G$6:$FJ$253,154,FALSE) -> 57% | J18: =VLOOKUP($C18,'RECAP SECT'!$G$6:$FJ$253,155,FALSE) -> 10% | K18: =VLOOKUP($C18,'RECAP SECT'!$G$6:$FJ$253,156,FALSE) -> 2 | L18: =VLOOKUP($C18,'RECAP SECT'!$G$6:$FJ$253,157,FALSE) -> 31% | M18: =VLOOKUP($C18,'RECAP SECT'!$G$6:$FJ$253,158,FALSE) -> 28% | N18: =VLOOKUP($C18,'RECAP SECT'!$G$6:$FJ$253,159,FALSE) -> 8
A19: 30 | B19: MARNE-ARDENNES | C19: 11 | D19: REIMS | E19: =VLOOKUP($C19,'RECAP SECT'!$G$6:$FJ$253,3,FALSE) -> 80.3 | F19: =VLOOKUP($C19,'RECAP SECT'!$G$6:$FJ$253,151,FALSE) -> -7 | G19: =VLOOKUP($C19,'RECAP SECT'!$G$6:$FJ$253,152,FALSE) -> 19% | H19: =VLOOKUP($C19,'RECAP SECT'!$G$6:$FJ$253,153,FALSE) -> 3 | I19: =VLOOKUP($C19,'RECAP SECT'!$G$6:$FJ$253,154,FALSE) -> 53% | J19: =VLOOKUP($C19,'RECAP SECT'!$G$6:$FJ$253,155,FALSE) -> 16% | K19: =VLOOKUP($C19,'RECAP SECT'!$G$6:$FJ$253,156,FALSE) -> 6 | L19: =VLOOKUP($C19,'RECAP SECT'!$G$6:$FJ$253,157,FALSE) -> 18% | M19: =VLOOKUP($C19,'RECAP SECT'!$G$6:$FJ$253,158,FALSE) -> 14% | N19: =VLOOKUP($C19,'RECAP SECT'!$G$6:$FJ$253,159,FALSE) -> 3
A20: 110 | B20: MEURTHE ET MOSELLE MEUSE | C20: 26 | D20: NANCY | E20: =VLOOKUP($C20,'RECAP SECT'!$G$6:$FJ$253,3,FALSE) -> 65.2 | F20: =VLOOKUP($C20,'RECAP SECT'!$G$6:$FJ$253,151,FALSE) -> -12 | G20: =VLOOKUP($C20,'RECAP SECT'!$G$6:$FJ$253,152,FALSE) -> 50% | H20: =VLOOKUP($C20,'RECAP SECT'!$G$6:$FJ$253,153,FALSE) -> 8 | I20: =VLOOKUP($C20,'RECAP SECT'!$G$6:$FJ$253,154,FALSE) -> 47% | J20: =VLOOKUP($C20,'RECAP SECT'!$G$6:$FJ$253,155,FALSE) -> 27% | K20: =VLOOKUP($C20,'RECAP SECT'!$G$6:$FJ$253,156,FALSE) -> 9 | L20: =VLOOKUP($C20,'RECAP SECT'!$G$6:$FJ$253,157,FALSE) -> 39% | M20: =VLOOKUP($C20,'RECAP SECT'!$G$6:$FJ$253,158,FALSE) -> 36% | N20: =VLOOKUP($C20,'RECAP SECT'!$G$6:$FJ$253,159,FALSE) -> 11
A21: 110 | B21: MEURTHE ET MOSELLE MEUSE | C21: 27 | D21: PONT A MOUSSON | E21: =VLOOKUP($C21,'RECAP SECT'!$G$6:$FJ$253,3,FALSE) -> 74.0 | F21: =VLOOKUP($C21,'RECAP SECT'!$G$6:$FJ$253,151,FALSE) -> -15 | G21: =VLOOKUP($C21,'RECAP SECT'!$G$6:$FJ$253,152,FALSE) -> 69% | H21: =VLOOKUP($C21,'RECAP SECT'!$G$6:$FJ$253,153,FALSE) -> 12 | I21: =VLOOKUP($C21,'RECAP SECT'!$G$6:$FJ$253,154,FALSE) -> 45% | J21: =VLOOKUP($C21,'RECAP SECT'!$G$6:$FJ$253,155,FALSE) -> 30% | K21: =VLOOKUP($C21,'RECAP SECT'!$G$6:$FJ$253,156,FALSE) -> 11 | L21: =VLOOKUP($C21,'RECAP SECT'!$G$6:$FJ$253,157,FALSE) -> 50% | M21: =VLOOKUP($C21,'RECAP SECT'!$G$6:$FJ$253,158,FALSE) -> 47% | N21: =VLOOKUP($C21,'RECAP SECT'!$G$6:$FJ$253,159,FALSE) -> 12
A22: 110 | B22: MEURTHE ET MOSELLE MEUSE | C22: 31 | D22: VERDUN | E22: =VLOOKUP($C22,'RECAP SECT'!$G$6:$FJ$253,3,FALSE) -> 53.6 | F22: =VLOOKUP($C22,'RECAP SECT'!$G$6:$FJ$253,151,FALSE) -> -8 | G22: =VLOOKUP($C22,'RECAP SECT'!$G$6:$FJ$253,152,FALSE) -> 25% | H22: =VLOOKUP($C22,'RECAP SECT'!$G$6:$FJ$253,153,FALSE) -> 4 | I22: =VLOOKUP($C22,'RECAP SECT'!$G$6:$FJ$253,154,FALSE) -> 56% | J22: =VLOOKUP($C22,'RECAP SECT'!$G$6:$FJ$253,155,FALSE) -> 12% | K22: =VLOOKUP($C22,'RECAP SECT'!$G$6:$FJ$253,156,FALSE) -> 3 | L22: =VLOOKUP($C22,'RECAP SECT'!$G$6:$FJ$253,157,FALSE) -> 19% | M22: =VLOOKUP($C22,'RECAP SECT'!$G$6:$FJ$253,158,FALSE) -> 16% | N22: =VLOOKUP($C22,'RECAP SECT'!$G$6:$FJ$253,159,FALSE) -> 4
A23: 160 | B23: MOSELLE | C23: 45 | D23: METZ | E23: =VLOOKUP($C23,'RECAP SECT'!$G$6:$FJ$253,3,FALSE) -> 87.6 | F23: =VLOOKUP($C23,'RECAP SECT'!$G$6:$FJ$253,151,FALSE) -> -8 | G23: =VLOOKUP($C23,'RECAP SECT'!$G$6:$FJ$253,152,FALSE) -> 25% | H23: =VLOOKUP($C23,'RECAP SECT'!$G$6:$FJ$253,153,FALSE) -> 4 | I23: =VLOOKUP($C23,'RECAP SECT'!$G$6:$FJ$253,154,FALSE) -> 53% | J23: =VLOOKUP($C23,'RECAP SECT'!$G$6:$FJ$253,155,FALSE) -> 18% | K23: =VLOOKUP($C23,'RECAP SECT'!$G$6:$FJ$253,156,FALSE) -> 7 | L23: =VLOOKUP($C23,'RECAP SECT'!$G$6:$FJ$253,157,FALSE) -> 22% | M23: =VLOOKUP($C23,'RECAP SECT'!$G$6:$FJ$253,158,FALSE) -> 18% | N23: =VLOOKUP($C23,'RECAP SECT'!$G$6:$FJ$253,159,FALSE) -> 5
A24: 160 | B24: MOSELLE | C24: 42 | D24: MOSELLE EST | E24: =VLOOKUP($C24,'RECAP SECT'!$G$6:$FJ$253,3,FALSE) -> 73.0 | F24: =VLOOKUP($C24,'RECAP SECT'!$G$6:$FJ$253,151,FALSE) -> -8 | G24: =VLOOKUP($C24,'RECAP SECT'!$G$6:$FJ$253,152,FALSE) -> 25% | H24: =VLOOKUP($C24,'RECAP SECT'!$G$6:$FJ$253,153,FALSE) -> 4 | I24: =VLOOKUP($C24,'RECAP SECT'!$G$6:$FJ$253,154,FALSE) -> 47% | J24: =VLOOKUP($C24,'RECAP SECT'!$G$6:$FJ$253,155,FALSE) -> 27% | K24: =VLOOKUP($C24,'RECAP SECT'!$G$6:$FJ$253,156,FALSE) -> 10 | L24: =VLOOKUP($C24,'RECAP SECT'!$G$6:$FJ$253,157,FALSE) -> 26% | M24: =VLOOKUP($C24,'RECAP SECT'!$G$6:$FJ$253,158,FALSE) -> 23% | N24: =VLOOKUP($C24,'RECAP SECT'!$G$6:$FJ$253,159,FALSE) -> 7
A25: 160 | B25: MOSELLE | C25: 44 | D25: MOSELLE NORD | E25: =VLOOKUP($C25,'RECAP SECT'!$G$6:$FJ$253,3,FALSE) -> 71.8 | F25: =VLOOKUP($C25,'RECAP SECT'!$G$6:$FJ$253,151,FALSE) -> -23 | G25: =VLOOKUP($C25,'RECAP SECT'!$G$6:$FJ$253,152,FALSE) -> 119% | H25: =VLOOKUP($C25,'RECAP SECT'!$G$6:$FJ$253,153,FALSE) -> 15 | I25: =VLOOKUP($C25,'RECAP SECT'!$G$6:$FJ$253,154,FALSE) -> 37% | J25: =VLOOKUP($C25,'RECAP SECT'!$G$6:$FJ$253,155,FALSE) -> 43% | K25: =VLOOKUP($C25,'RECAP SECT'!$G$6:$FJ$253,156,FALSE) -> 16 | L25: =VLOOKUP($C25,'RECAP SECT'!$G$6:$FJ$253,157,FALSE) -> 83% | M25: =VLOOKUP($C25,'RECAP SECT'!$G$6:$FJ$253,158,FALSE) -> 80% | N25: =VLOOKUP($C25,'RECAP SECT'!$G$6:$FJ$253,159,FALSE) -> 15
A26: 80 | B26: VOSGES | C26: 57 | D26: EPINAL | E26: =VLOOKUP($C26,'RECAP SECT'!$G$6:$FJ$253,3,FALSE) -> 59.8 | F26: =VLOOKUP($C26,'RECAP SECT'!$G$6:$FJ$253,151,FALSE) -> -13 | G26: =VLOOKUP($C26,'RECAP SECT'!$G$6:$FJ$253,152,FALSE) -> 56% | H26: =VLOOKUP($C26,'RECAP SECT'!$G$6:$FJ$253,153,FALSE) -> 11 | I26: =VLOOKUP($C26,'RECAP SECT'!$G$6:$FJ$253,154,FALSE) -> 55% | J26: =VLOOKUP($C26,'RECAP SECT'!$G$6:$FJ$253,155,FALSE) -> 15% | K26: =VLOOKUP($C26,'RECAP SECT'!$G$6:$FJ$253,156,FALSE) -> 4 | L26: =VLOOKUP($C26,'RECAP SECT'!$G$6:$FJ$253,157,FALSE) -> 37% | M26: =VLOOKUP($C26,'RECAP SECT'!$G$6:$FJ$253,158,FALSE) -> 33% | N26: =VLOOKUP($C26,'RECAP SECT'!$G$6:$FJ$253,159,FALSE) -> 9
A27: 80 | B27: VOSGES | C27: 55 | D27: SAINT DIE | E27: =VLOOKUP($C27,'RECAP SECT'!$G$6:$FJ$253,3,FALSE) -> 48.0 | F27: =VLOOKUP($C27,'RECAP SECT'!$G$6:$FJ$253,151,FALSE) -> -9 | G27: =VLOOKUP($C27,'RECAP SECT'!$G$6:$FJ$253,152,FALSE) -> 31% | H27: =VLOOKUP($C27,'RECAP SECT'!$G$6:$FJ$253,153,FALSE) -> 7 | I27: =VLOOKUP($C27,'RECAP SECT'!$G$6:$FJ$253,154,FALSE) -> 54% | J27: =VLOOKUP($C27,'RECAP SECT'!$G$6:$FJ$253,155,FALSE) -> 16% | K27: =VLOOKUP($C27,'RECAP SECT'!$G$6:$FJ$253,156,FALSE) -> 5 | L27: =VLOOKUP($C27,'RECAP SECT'!$G$6:$FJ$253,157,FALSE) -> 24% | M27: =VLOOKUP($C27,'RECAP SECT'!$G$6:$FJ$253,158,FALSE) -> 21% | N27: =VLOOKUP($C27,'RECAP SECT'!$G$6:$FJ$253,159,FALSE) -> 6
A28: Total CEGEE Directions Régionales | E28: =SUM(E10:E27) -> 1159

Sheet AG_CLASS
B1: Accueil | H1: BAROMETRE BDD - AGENCES
H2: CLASSEMENTS
H3: =ACCUEIL!F7 -> 2020-12-31
H8: CLASSEMENT GENERAL | I8: CRITERE CLIENTS | J8: Evolution nette clients Bancarisés Principaux | K8: Evolution nette relations PREMIUM | L8: Evolution nette clients Jeunes équipés | M8: Evolution nette clients Pro actif équipés | N8: CRITERE BANCARISATION | O8: Ventes nettes FORFAITS | P8: Ventes nettes IZICARTES débit différé | Q8: Ventes nettes Cartes HDG débit différé | R8: Ventes nettes Forfaits Pro Cartes Pro | S8: CRITERE EPARGNE | T8: Excédent Epargne Liquide | U8: CA UC + arbitrage | V8: Excédent Assurance Vie | W8: CRITERE CREDITS | X8: Engagements crédits conso | Y8: ADE crédits conso | Z8: Engagements crédits immo | AA8: ADE crédits immo | AB8: SACCEF | AC8: Engagement Crédits MLT + Crédits Bail | AD8: CRITERE IARD PREVOYANCE | AE8: Ventes nettes IARD | AF8: Ventes nettes Prévoyance | AG8: CRITERE ACCELERATEURS PNB | AH8: Ventes brutes SED finalisées | AI8: Clients Equipés E documents | AJ8: Economie Opt'in | AK8: Remises Commerciales | AL8: CRITERE Qualité Satisfaction Clients | AM8: Objectifs NPS* | AN8: Enquête Qualité Haute Définition
B9: Direction | C9: eds | D9: Territoire | E9: eds | F9: Agence | G9: ="ETP perf "&DATEMAJ!$C$39 -> ETP perf au 31/10 | H9: Rang | I9: Rang | J9: Rang | K9: Rang | L9: Rang | M9: Rang | N9: Rang | O9: Rang | P9: Rang | Q9: Rang | R9: Rang | S9: Rang | T9: Rang | U9: Rang | V9: Rang | W9: Rang | X9: Rang | Y9: Rang | Z9: Rang | AA9: Rang | AB9: Rang | AC9: Rang | AD9: Rang | AE9: Rang | AF9: Rang | AG9: Rang | AH9: Rang | AI9: Rang | AJ9: Rang | AK9: Rang | AL9: Rang | AM9: Rang | AN9: Rang
A10: 110 | B10: MEURTHE ET MOSELLE MEUSE | C10: 27 | D10: PONT A MOUSSON | E10: 454651 | F10: TOUL REPUBLIQUE | G10: 10.9 | H10: 1 | I10: 1 | J10: 1 | K10: 3 | L10: 21 | M10: 124 | N10: 1 | O10: 1 | P10: 1 | Q10: 1 | R10: 6 | S10: 21 | T10: 52 | U10: 78 | V10: 22 | W10: 1 | X10: 1 | Y10: 1 | Z10: 1 | AA10: 1 | AB10: 1 | AC10: 18 | AD10: 1 | AE10: 1 | AF10: 1 | AG10: 1 | AH10: 3 | AI10: 1 | AJ10: 6 | AK10: 118 | AL10: 238 | AM10: 221 | AN10: 244
A11: 80 | B11: VOSGES | C11: 57 | D11: EPINAL | E11: 488288 | F11: EPINAL LEOPOLD BOURG | G11: 1.9 | H11: 2 | I11: 9 | J11: 13 | K11: 9 | L11: 58 | M11: 24 | N11: 5 | O11: 24 | P11: 11 | Q11: 16 | R11: 15 | S11: 7 | T11: 6 | U11: 98 | V11: 18 | W11: 7 | X11: 51 | Y11: 23 | Z11: 2 | AA11: 32 | AB11: 17 | AC11: 200 | AD11: 58 | AE11: 9 | AF11: 217 | AG11: 13 | AH11: 4 | AI11: 18 | AJ11: 131 | AK11: 263 | AL11: 3 | AM11: 7 | AN11: 5
A12: 160 | B12: MOSELLE | C12: 44 | D12: MOSELLE NORD | E12: 557508 | F12: NILVANGE | G12: 2.6 | H12: 3 | I12: 120 | J12: 185 | K12: 254 | L12: 1 | M12: 194 | N12: 10 | O12: 16 | P12: 4 | Q12: 6 | R12: 227 | S12: 196 | T12: 191 | U12: 191 | V12: 158 | W12: 33 | X12: 52 | Y12: 14 | Z12: 19 | AA12: 65 | AB12: 37 | AC12: 255 | AD12: 2 | AE12: 2 | AF12: 2 | AG12: 9 | AH12: 97 | AI12: 20 | AJ12: 1 | AK12: 147 | AL12: 97 | AM12: 91 | AN12: 117
A13: 30 | B13: MARNE-ARDENNES | C13: 2 | D13: CHARLEVILLE MEZIERES | E13: 408822 | F13: CHARLEVILLE MEZIERES | G13: 4.2 | H13: 4 | I13: 3 | J13: 5 | K13: 16 | L13: 2 | M13: 110 | N13: 18 | O13: 10 | P13: 28 | Q13: 75 | R13: 41 | S13: 113 | T13: 165 | U13: 171 | V13: 35 | W13: 6 | X13: 93 | Y13: 125 | Z13: 3 | AA13: 10 | AB13: 8 | AC13: 90 | AD13: 16 | AE13: 26 | AF13: 39 | AG13: 8 | AH13: 9 | AI13: 22 | AJ13: 40 | AK13: 63 | AL13: 123 | AM13: 146 | AN13: 70
A14: 110 | B14: MEURTHE ET MOSELLE MEUSE | C14: 26 | D14: NANCY | E14: 454481 | F14: NANCY PLACE DOMBASLE | G14: 10.4 | H14: 5 | I14: 2 | J14: 2 | K14: 78 | L14: 16 | M14: 4 | N14: 12 | O14: 3 | P14: 60 | Q14: 111 | R14: 22 | S14: 53 | T14: 92 | U14: 16 | V14: 177 | W14: 14 | X14: 238 | Y14: 239 | Z14: 6 | AA14: 9 | AB14: 3 | AC14: 42 | AD14: 14 | AE14: 20 | AF14: 37 | AG14: 5 | AH14: 5 | AI14: 11 | AJ14: 57 | AK14: 253 | AL14: 172 | AM14: 175 | AN14: 177
A15: 30 | B15: MARNE-ARDENNES | C15: 11 | D15: REIMS | E15: 551340 | F15: BETHENY | G15: 3.0 | H15: 6 | I15: 7 | J15: 17 | K15: 2 | L15: 206 | M15: 21 | N15: 80 | O15: 17 | P15: 83 | Q15: 129 | R15: 178 | S15: 12 | T15: 15 | U15: 80 | V15: 27 | W15: 13 | X15: 44 | Y15: 98 | Z15: 14 | AA15: 5 | AB15: 15 | AC15: 69 | AD15: 12 | AE15: 11 | AF15: 30 | AG15: 37 | AH15: 20 | AI15: 54 | AJ15: 132 | AK15: 173 | AL15: 77 | AM15: 136 | AN15: 15
A16: 30 | B16: MARNE-ARDENNES | C16: 11 | D16: REIMS | E16: 551369 | F16: DAMERY | G16: 2.9 | H16: 7 | I16: 6 | J16: 8 | K16: 203 | L16: 36 | M16: 1 | N16: 17 | O16: 7 | P16: 227 | Q16: 186 | R16: 4 | S16: 91 | T16: 54 | U16: 164 | V16: 121 | W16: 2 | X16: 225 | Y16: 114 | Z16: 27 | AA16: 8 | AB16: 12 | AC16: 1 | AD16: 26 | AE16: 110 | AF16: 8 | AG16: 280 | AH16: 273 | AI16: 71 | AJ16: 117 | AK16: 279 | AL16: 22 | AM16: 9 | AN16: 123
A17: 30 | B17: MARNE-ARDENNES | C17: 2 | D17: CHARLEVILLE MEZIERES | E17: 508833 | F17: VILLERS SEMEUSE CORA | G17: 2.9 | H17: 8 | I17: 69 | J17: 63 | K17: 77 | L17: 45 | M17: 171 | N17: 2 | O17: 14 | P17: 6 | Q17: 3 | R17: 137 | S17: 188 | T17: 185 | U17: 237 | V17: 95 | W17: 17 | X17: 29 | Y17: 32 | Z17: 16 | AA17: 23 | AB17: 26 | AC17: 196 | AD17: 4 | AE17: 7 | AF17: 6 | AG17: 3 | AH17: 2 | AI17: 26 | AJ17: 202 | AK17: 127 | AL17: 164 | AM17: 193 | AN17: 128
A18: 30 | B18: MARNE-ARDENNES | C18: 11 | D18: REIMS | E18: 551349 | F18: REIMS SAINT REMI | G18: 2.8 | H18: 9 | I18: 72 | J18: 221 | K18: 27 | L18: 70 | M18: 112 | N18: 9 | O18: 5 | P18: 9 | Q18: 9 | R18: 177 | S18: 117 | T18: 2 | U18: 277 | V18: 281 | W18: 9 | X18: 148 | Y18: 127 | Z18: 4 | AA18: 3 | AB18: 4 | AC18: 255 | AD18: 76 | AE18: 156 | AF18: 35 | AG18: 10 | AH18: 6 | AI18: 2 | AJ18: 128 | AK18: 256 | AL18: 51 | AM18: 43 | AN18: 77
A19: 30 | B19: MARNE-ARDENNES | C19: 11 | D19: REIMS | E19: 551310 | F19: REIMS CHATILLONS | G19: 3.6 | H19: 10 | I19: 66 | J19: 11 | K19: 69 | L19: 158 | M19: 194 | N19: 13 | O19: 9 | P19: 24 | Q19: 13 | R19: 116 | S19: 222 | T19: 145 | U19: 204 | V19: 231 | W19: 18 | X19: 81 | Y19: 28 | Z19: 15 | AA19: 11 | AB19: 14 | AC19: 141 | AD19: 83 | AE19: 31 | AF19: 182 | AG19: 2 | AH19: 1 | AI19: 8 | AJ19: 5 | AK19: 65 | AL19: 110 | AM19: 79 | AN19: 165
A20: 160 | B20: MOSELLE | C20: 45 | D20: METZ | E20: 557447 | F20: METZ SAINT MAXIMIN | G20: 3.0 | H20: 11 | I20: 8 | J20: 4 | K20: 20 | L20: 10 | M20: 119 | N20: 105 | O20: 8 | P20: 210 | Q20: 247 | R20: 112 | S20: 103 | T20: 125 | U20: 198 | V20: 33 | W20: 23 | X20: 128 | Y20: 84 | Z20: 13 | AA20: 12 | AB20: 11 | AC20: 281 | AD20: 81 | AE20: 66 | AF20: 102 | AG20: 4 | AH20: 12 | AI20: 44 | AJ20: 20 | AK20: 21 | AL20: 66 | AM20: 44 | AN20: 94
A21: 110 | B21: MEURTHE ET MOSELLE MEUSE | C21: 27 | D21: PONT A MOUSSON | E21: 554531 | F21: POMPEY | G21: 2.5 | H21: 12 | I21: 54 | J21: 53 | K21: 157 | L21: 11 | M21: 155 | N21: 20 | O21: 38 | P21: 21 | Q21: 67 | R21: 24 | S21: 231 | T21: 271 | U21: 211 | V21: 88 | W21: 11 | X21: 15 | Y21: 4 | Z21: 17 | AA21: 22 | AB21: 29 | AC21: 167 | AD21: 10 | AE21: 32 | AF21: 10 | AG21: 15 | AH21: 17 | AI21: 37 | AJ21: 127 | AK21: 31 | AL21: 92 | AM21: 102 | AN21: 81
A22: 30 | B22: MARNE-ARDENNES | C22: 6 | D22: CHALONS EN CHAMPAGNE | E22: 451115 | F22: MOURMELON suippes | G22: 3.0 | H22: 13 | I22: 21 | J22: 92 | K22: 141 | L22: 15 | M22: 20 | N22: 29 | O22: 6 | P22: 77 | Q22: 98 | R22: 55 | S22: 261 | T22: 251 | U22: 257 | V22: 200 | W22: 31 | X22: 24 | Y22: 9 | Z22: 35 | AA22: 44 | AB22: 77 | AC22: 117 | AD22: 11 | AE22: 10 | AF22: 27 | AG22: 11 | AH22: 31 | AI22: 17 | AJ22: 7 | AK22: 133 | AL22: 90 | AM22: 126 | AN22: 54
A23: 30 | B23: MARNE-ARDENNES | C23: 6 | D23: CHALONS EN CHAMPAGNE | E23: 551354 | F23: VERTUS | G23: 2.8 | H23: 14 | I23: 20 | J23: 140 | K23: 238 | L23: 25 | M23: 2 | N23: 192 | O23: 60 | P23: 183 | Q23: 178 | R23: 254 | S23: 16 | T23: 14 | U23: 127 | V23: 32 | W23: 201 | X23: 229 | Y23: 188 | Z23: 119 | AA23: 119 | AB23: 165 | AC23: 149 | AD23: 36 | AE23: 88 | AF23: 24 | AG23: 67 | AH23: 40 | AI23: 152 | AJ23: 116 | AK23: 165 | AL23: 4 | AM23: 8 | AN23: 3
A24: 30 | B24: MARNE-ARDENNES | C24: 6 | D24: CHALONS EN CHAMPAGNE | E24: 451101 | F24: CHALONS VIVIERS | G24: 9.7 | H24: 15 | I24: 26 | J24: 52 | K24: 162 | L24: 18 | M24: 31 | N24: 100 | O24: 54 | P24: 79 | Q24: 134 | R24: 145 | S24: 96 | T24: 53 | U24: 24 | V24: 247 | W24: 42 | X24: 123 | Y24: 49 | Z24: 24 | AA24: 37 | AB24: 44 | AC24: 111 | AD24: 19 | AE24: 29 | AF24: 40 | AG24: 34 | AH24: 80 | AI24: 33 | AJ24: 23 | AK24: 157 | AL24: 38 | AM24: 65 | AN24: 22
A25: 30 | B25: MARNE-ARDENNES | C25: 11 | D25: REIMS | E25: 451361 | F25: PIERRY LECLERC | G25: 1.9 | H25: 16 | I25: 61 | J25: 18 | K25: 116 | L25: 68 | M25: 141 | N25: 19 | O25: 45 | P25: 13 | Q25: 33 | R25: 47 | S25: 40 | T25: 76 | U25: 205 | V25: 13 | W25: 74 | X25: 190 | Y25: 175 | Z25: 41 | AA25: 27 | AB25: 49 | AC25: 194 | AD25: 159 | AE25: 98 | AF25: 215 | AG25: 91 | AH25: 130 | AI25: 34 | AJ25: 200 | AK25: 49 | AL25: 8 | AM25: 4 | AN25: 55
A26: 80 | B26: VOSGES | C26: 55 | D26: SAINT DIE | E26: 488326 | F26: GERARDMER | G26: 5.1 | H26: 17 | I26: 30 | J26: 62 | K26: 121 | L26: 50 | M26: 26 | N26: 27 | O26: 68 | P26: 38 | Q26: 60 | R26: 25 | S26: 8 | T26: 74 | U26: 18 | V26: 2 | W26: 84 | X26: 107 | Y26: 53 | Z26: 125 | AA26: 134 | AB26: 178 | AC26: 13 | AD26: 73 | AE26: 59 | AF26: 91 | AG26: 178 | AH26: 102 | AI26: 132 | AJ26: 160 | AK26: 238 | AL26: 20 | AM26: 31 | AN26: 7
A27: 110 | B27: MEURTHE ET MOSELLE MEUSE | C27: 27 | D27: PONT A MOUSSON | E27: 554416 | F27: LUDRES | G27: 3.9 | H27: 18 | I27: 64 | J27: 39 | K27: 7 | L27: 237 | M27: 186 | N27: 113 | O27: 29 | P27: 186 | Q27: 216 | R27: 86 | S27: 13 | T27: 21 | U27: 54 | V27: 41 | W27: 35 | X27: 222 | Y27: 200 | Z27: 51 | AA27: 50 | AB27: 18 | AC27: 3 | AD27: 206 | AE27: 87 | AF27: 260 | AG27: 54 | AH27: 63 | AI27: 21 | AJ27: 63 | AK27: 230 | AL27: 5 | AM27: 9 | AN27: 1
A28: 30 | B28: MARNE-ARDENNES | C28: 6 | D28: CHALONS EN CHAMPAGNE | E28: 551103 | F28: FAGNIERES LECLERC | G28: 2.7 | H28: 19 | I28: 14 | J28: 6 | K28: 92 | L28: 122 | M28: 35 | N28: 39 | O28: 11 | P28: 175 | Q28: 105 | R28: 40 | S28: 62 | T28: 23 | U28: 159 | V28: 163 | W28: 8 | X28: 46 | Y28: 46 | Z28: 10 | AA28: 15 | AB28: 6 | AC28: 109 | AD28: 34 | AE28: 80 | AF28: 23 | AG28: 24 | AH28: 53 | AI28: 5 | AJ28: 41 | AK28: 216 | AL28: 139 | AM28: 180 | AN28: 79
A29: 160 | B29: MOSELLE | C29: 44 | D29: MOSELLE NORD | E29: 557660 | F29: UCKANGE JEANNE D ARC | G29: 1.9 | H29: 20 | I29: 19 | J29: 72 | K29: 26 | L29: 4 | M29: 194 | N29: 14 | O29: 118 | P29: 22 | Q29: 30 | R29: 11 | S29: 64 | T29: 180 | U29: 68 | V29: 23 | W29: 10 | X29: 18 | Y29: 55 | Z29: 39 | AA29: 25 | AB29: 10 | AC29: 17 | AD29: 7 | AE29: 37 | AF29: 7 | AG29: 25 | AH29: 27 | AI29: 36 | AJ29: 60 | AK29: 169 | AL29: 200 | AM29: 193 | AN29: 212
A30: 30 | B30: MARNE-ARDENNES | C30: 6 | D30: CHALONS EN CHAMPAGNE | E30: 451120 | F30: SARRY | G30: 2.5 | H30: 21 | I30: 18 | J30: 20 | K30: 57 | L30: 3 | M30: 194 | N30: 88 | O30: 43 | P30: 105 | Q30: 101 | R30: 151 | S30: 20 | T30: 141 | U30: 66 | V30: 3 | W30: 194 | X30: 195 | Y30: 201 | Z30: 114 | AA30: 168 | AB30: 181 | AC30: 209 | AD30: 46 | AE30: 18 | AF30: 149 | AG30: 32 | AH30: 134 | AI30: 16 | AJ30: 110 | AK30: 3 | AL30: 27 | AM30: 33 | AN30: 41
A31: 30 | B31: MARNE-ARDENNES | C31: 11 | D31: REIMS | E31: 551309 | F31: REIMS EUROPE | G31: 2.8 | H31: 22 | I31: 91 | J31: 59 | K31: 168 | L31: 37 | M31: 167 | N31: 38 | O31: 32 | P31: 29 | Q31: 49 | R31: 153 | S31: 94 | T31: 32 | U31: 227 | V31: 133 | W31: 55 | X31: 49 | Y31: 131 | Z31: 42 | AA31: 66 | AB31: 93 | AC31: 168 | AD31: 127 | AE31: 102 | AF31: 166 | AG31: 72 | AH31: 89 | AI31: 9 | AJ31: 51 | AK31: 255 | AL31: 9 | AM31: 4 | AN31: 58
A32: 80 | B32: VOSGES | C32: 55 | D32: SAINT DIE | E32: 488346 | F32: GRANGES AUMONTZEY | G32: 1.8 | H32: 23 | I32: 270 | J32: 245 | K32: 275 | L32: 110 | M32: 194 | N32: 21 | O32: 44 | P32: 7 | Q32: 19 | R32: 202 | S32: 159 | T32: 267 | U32: 115 | V32: 30 | W32: 103 | X32: 14 | Y32: 3 | Z32: 246 | AA32: 162 | AB32: 246 | AC32: 255 | AD32: 6 | AE32: 17 | AF32: 9 | AG32: 6 | AH32: 10 | AI32: 263 | AJ32: 15 | AK32: 4 | AL32: 44 | AM32: 96 | AN32: 4
A33: 30 | B33: MARNE-ARDENNES | C33: 11 | D33: REIMS | E33: 551306 | F33: REIMS SAINT MARCEAUX | G33: 4.8 | H33: 24 | I33: 51 | J33: 24 | K33: 161 | L33: 102 | M33: 49 | N33: 32 | O33: 13 | P33: 10 | Q33: 113 | R33: 183 | S33: 10 | T33: 115 | U33: 4 | V33: 173 | W33: 49 | X33: 138 | Y33: 167 | Z33: 34 | AA33: 19 | AB33: 53 | AC33: 77 | AD33: 71 | AE33: 82 | AF33: 70 | AG33: 115 | AH33: 123 | AI33: 80 | AJ33: 194 | AK33: 68 | AL33: 45 | AM33: 74 | AN33: 23
A34: 30 | B34: MARNE-ARDENNES | C34: 2 | D34: CHARLEVILLE MEZIERES | E34: 508839 | F34: GIVET | G34: 2.9 | H34: 25 | I34: 48 | J34: 22 | K34: 243 | L34: 9 | M34: 116 | N34: 53 | O34: 66 | P34: 139 | Q34: 40 | R34: 72 | S34: 130 | T34: 134 | U34: 20 | V34: 219 | W34: 54 | X34: 57 | Y34: 176 | Z34: 47 | AA34: 54 | AB34: 47 | AC34: 207 | AD34: 31 | AE34: 27 | AF34: 81 | AG34: 65 | AH34: 79 | AI34: 94 | AJ34: 77 | AK34: 129 | AL34: 36 | AM34: 23 | AN34: 119
A35: 262 | B35: BAS-RHIN | C35: 5060 | D35: HAGUENAU | E35: 4031 | F35: TRUCHTERSHEIM | G35: 3.0 | H35: 26 | I35: 80 | J35: 36 | K35: 243 | L35: 207 | M35: 8 | N35: 15 | O35: 27 | P35: 67 | Q35: 44 | R35: 17 | S35: 45 | T35: 17 | U35: 121 | V35: 179 | W35: 90 | X35: 189 | Y35: 87 | Z35: 117 | AA35: 63 | AB35: 58 | AC35: 38 | AD35: 188 | AE35: 168 | AF35: 183 | AG35: 44 | AH35: 108 | AI35: 97 | AJ35: 12 | AK35: 184 | AL35: 19 | AM35: 35 | AN35: 2
A36: 30 | B36: MARNE-ARDENNES | C36: 11 | D36: REIMS | E36: 551365 | F36: DORMANS | G36: 2.7 | H36: 27 | I36: 81 | J36: 10 | K36: 50 | L36: 107 | M36: 275 | N36: 226 | O36: 19 | P36: 134 | Q36: 202 | R36: 282 | S36: 158 | T36: 169 | U36: 168 | V36: 102 | W36: 28 | X36: 212 | Y36: 135 | Z36: 11 | AA36: 6 | AB36: 19 | AC36: 79 | AD36: 90 | AE36: 125 | AF36: 76 | AG36: 38 | AH36: 13 | AI36: 93 | AJ36: 141 | AK36: 162 | AL36: 10 | AM36: 3 | AN36: 86
A37: 50 | B37: AUBE HAUTE MARNE | C37: 21 | D37: CHAUMONT | E37: 410560 | F37: BOURBONNE LES BAINS | G37: 1.9 | H37: 28 | I37: 136 | J37: 14 | K37: 258 | L37: 52 | M37: 194 | N37: 109 | O37: 41 | P37: 63 | Q37: 108 | R37: 238 | S37: 209 | T37: 224 | U37: 195 | V37: 120 | W37: 256 | X37: 119 | Y37: 43 | Z37: 281 | AA37: 280 | AB37: 280 | AC37: 255 | AD37: 68 | AE37: 78 | AF37: 71 | AG37: 27 | AH37: 30 | AI37: 227 | AJ37: 113 | AK37: 7 | AL37: 2 | AM37: 1 | AN37: 63
A38: 30 | B38: MARNE-ARDENNES | C38: 6 | D38: CHALONS EN CHAMPAGNE | E38: 551330 | F38: MONTMIRAIL | G38: 3.1 | H38: 29 | I38: 32 | J38: 15 | K38: 269 | L38: 6 | M38: 76 | N38: 133 | O38: 30 | P38: 168 | Q38: 167 | R38: 191 | S38: 199 | T38: 98 | U38: 215 | V38: 224 | W38: 61 | X38: 165 | Y38: 110 | Z38: 36 | AA38: 28 | AB38: 51 | AC38: 206 | AD38: 75 | AE38: 97 | AF38: 63 | AG38: 17 | AH38: 18 | AI38: 126 | AJ38: 78 | AK38: 20 | AL38: 40 | AM38: 44 | AN38: 40
A39: 262 | B39: BAS-RHIN | C39: 5006 | D39: STRASBOURG | E39: 4043 | F39: STRASBOURG HALLES | G39: 8.4 | H39: 30 | I39: 5 | J39: 9 | K39: 37 | L39: 12 | M39: 15 | N39: 11 | O39: 39 | P39: 30 | Q39: 47 | R39: 8 | S39: 52 | T39: 20 | U39: 45 | V39: 232 | W39: 56 | X39: 261 | Y39: 237 | Z39: 53 | AA39: 142 | AB39: 45 | AC39: 2 | AD39: 20 | AE39: 61 | AF39: 13 | AG39: 188 | AH39: 185 | AI39: 38 | AJ39: 232 | AK39: 177 | AL39: 174 | AM39: 193 | AN39: 148
A40: 160 | B40: MOSELLE | C40: 45 | D40: METZ | E40: 557434 | F40: MARLY | G40: 3.8 | H40: 31 | I40: 57 | J40: 180 | K40: 88 | L40: 56 | M40: 42 | N40: 81 | O40: 31 | P40: 114 | Q40: 80 | R40: 165 | S40: 22 | T40: 11 | U40: 229 | V40: 63 | W40: 113 | X40: 183 | Y40: 162 | Z40: 62 | AA40: 156 | AB40: 59 | AC40: 130 | AD40: 239 | AE40: 209 | AF40: 248 | AG40: 14 | AH40: 11 | AI40: 207 | AJ40: 71 | AK40: 11 | AL40: 15 | AM40: 27 | AN40: 14
A41: 160 | B41: MOSELLE | C41: 45 | D41: METZ | E41: 457443 | F41: METZ REPUBLIQUE | G41: 3.9 | H41: 32 | I41: 43 | J41: 159 | K41: 15 | L41: 88 | M41: 98 | N41: 231 | O41: 214 | P41: 110 | Q41: 100 | R41: 278 | S41: 57 | T41: 96 | U41: 34 | V41: 93 | W41: 112 | X41: 232 | Y41: 226 | Z41: 118 | AA41: 188 | AB41: 69 | AC41: 7 | AD41: 113 | AE41: 171 | AF41: 83 | AG41: 168 | AH41: 117 | AI41: 99 | AJ41: 164 | AK41: 223 | AL41: 1 | AM41: 2 | AN41: 6
A42: 30 | B42: MARNE-ARDENNES | C42: 11 | D42: REIMS | E42: 451336 | F42: TINQUEUX | G42: 5.2 | H42: 33 | I42: 158 | J42: 128 | K42: 209 | L42: 264 | M42: 32 | N42: 28 | O42: 59 | P42: 111 | Q42: 142 | R42: 7 | S42: 2 | T42: 1 | U42: 146 | V42: 81 | W42: 19 | X42: 85 | Y42: 38 | Z42: 30 | AA42: 24 | AB42: 46 | AC42: 8 | AD42: 21 | AE42: 25 | AF42: 48 | AG42: 62 | AH42: 21 | AI42: 64 | AJ42: 225 | AK42: 195 | AL42: 141 | AM42: 175 | AN42: 92
A43: 110 | B43: MEURTHE ET MOSELLE MEUSE | C43: 26 | D43: NANCY | E43: 554636 | F43: TOMBLAINE | G43: 2.7 | H43: 34 | I43: 102 | J43: 186 | K43: 101 | L43: 84 | M43: 107 | N43: 129 | O43: 79 | P43: 147 | Q43: 227 | R43: 54 | S43: 95 | T43: 90 | U43: 85 | V43: 124 | W43: 89 | X43: 64 | Y43: 77 | Z43: 141 | AA43: 59 | AB43: 90 | AC43: 240 | AD43: 8 | AE43: 23 | AF43: 15 | AG43: 73 | AH43: 127 | AI43: 50 | AJ43: 68 | AK43: 115 | AL43: 33 | AM43: 65 | AN43: 12
A44: 30 | B44: MARNE-ARDENNES | C44: 2 | D44: CHARLEVILLE MEZIERES | E44: 408862 | F44: REVIN | G44: 3.9 | H44: 35 | I44: 52 | J44: 34 | K44: 216 | L44: 44 | M44: 30 | N44: 24 | O44: 20 | P44: 49 | Q44: 78 | R44: 35 | S44: 244 | T44: 144 | U44: 265 | V44: 239 | W44: 78 | X44: 54 | Y44: 72 | Z44: 90 | AA44: 77 | AB44: 131 | AC44: 80 | AD44: 47 | AE44: 48 | AF44: 60 | AG44: 36 | AH44: 41 | AI44: 96 | AJ44: 152 | AK44: 30 | AL44: 73 | AM44: 136 | AN44: 13
A45: 30 | B45: MARNE-ARDENNES | C45: 6 | D45: CHALONS EN CHAMPAGNE | E45: 551110 | F45: CHALONS ROOSEVELT | G45: 5.4 | H45: 36 | I45: 87 | J45: 118 | K45: 217 | L45: 14 | M45: 106 | N45: 118 | O45: 62 | P45: 178 | Q45: 183 | R45: 65 | S45: 66 | T45: 31 | U45: 136 | V45: 159 | W45: 82 | X45: 114 | Y45: 99 | Z45: 88 | AA45: 72 | AB45: 80 | AC45: 68 | AD45: 38 | AE45: 16 | AF45: 123 | AG45: 142 | AH45: 178 | AI45: 209 | AJ45: 156 | AK45: 40 | AL45: 24 | AM45: 41 | AN45: 9
A46: 30 | B46: MARNE-ARDENNES | C46: 11 | D46: REIMS | E46: 551305 | F46: REIMS HIPPODROME | G46: 3.7 | H46: 37 | I46: 23 | J46: 16 | K46: 12 | L46: 155 | M46: 138 | N46: 196 | O46: 84 | P46: 273 | Q46: 195 | R46: 150 | S46: 37 | T46: 4 | U46: 274 | V46: 166 | W46: 15 | X46: 168 | Y46: 126 | Z46: 7 | AA46: 4 | AB46: 5 | AC46: 166 | AD46: 134 | AE46: 107 | AF46: 162 | AG46: 191 | AH46: 56 | AI46: 15 | AJ46: 201 | AK46: 280 | AL46: 23 | AM46: 20 | AN46: 65
A47: 30 | B47: MARNE-ARDENNES | C47: 11 | D47: REIMS | E47: 451370 | F47: EPERNAY VERRON | G47: 10.6 | H47: 38 | I47: 118 | J47: 76 | K47: 135 | L47: 185 | M47: 101 | N47: 30 | O47: 67 | P47: 35 | Q47: 59 | R47: 32 | S47: 58 | T47: 46 | U47: 36 | V47: 184 | W47: 64 | X47: 167 | Y47: 92 | Z47: 57 | AA47: 36 | AB47: 66 | AC47: 26 | AD47: 24 | AE47: 47 | AF47: 20 | AG47: 166 | AH47: 76 | AI47: 147 | AJ47: 153 | AK47: 251 | AL47: 60 | AM47: 51 | AN47: 73
A48: 30 | B48: MARNE-ARDENNES | C48: 2 | D48: CHARLEVILLE MEZIERES | E48: 508815 | F48: CARIGNAN | G48: 2.9 | H48: 39 | I48: 13 | J48: 88 | K48: 14 | L48: 5 | M48: 172 | N48: 95 | O48: 99 | P48: 71 | Q48: 119 | R48: 102 | S48: 142 | T48: 179 | U48: 201 | V48: 51 | W48: 59 | X48: 65 | Y48: 73 | Z48: 43 | AA48: 68 | AB48: 108 | AC48: 103 | AD48: 77 | AE48: 159 | AF48: 32 | AG48: 22 | AH48: 51 | AI48: 40 | AJ48: 107 | AK48: 16 | AL48: 117 | AM48: 152 | AN48: 51
A49: 50 | B49: AUBE HAUTE MARNE | C49: 14 | D49: TROYES | E49: 510570 | F49: NOGENT SUR SEINE | G49: 3.8 | H49: 40 | I49: 39 | J49: 73 | K49: 67 | L49: 97 | M49: 44 | N49: 157 | O49: 148 | P49: 167 | Q49: 199 | R49: 84 | S49: 89 | T49: 216 | U49: 13 | V49: 150 | W49: 38 | X49: 28 | Y49: 56 | Z49: 44 | AA49: 106 | AB49: 62 | AC49: 65 | AD49: 144 | AE49: 162 | AF49: 128 | AG49: 167 | AH49: 248 | AI49: 146 | AJ49: 59 | AK49: 124 | AL49: 14 | AM49: 14 | AN49: 56
A50: 80 | B50: VOSGES | C50: 57 | D50: EPINAL | E50: 488561 | F50: REMIREMONT | G50: 6.2 | H50: 41 | I50: 11 | J50: 115 | K50: 22 | L50: 19 | M50: 16 | N50: 51 | O50: 153 | P50: 106 | Q50: 117 | R50: 13 | S50: 74 | T50: 139 | U50: 65 | V50: 50 | W50: 219 | X50: 259 | Y50: 241 | Z50: 189 | AA50: 125 | AB50: 82 | AC50: 70 | AD50: 87 | AE50: 146 | AF50: 53 | AG50: 26 | AH50: 96 | AI50: 23 | AJ50: 24 | AK50: 109 | AL50: 91 | AM50: 111 | AN50: 69
A51: 30 | B51: MARNE-ARDENNES | C51: 11 | D51: REIMS | E51: 551367 | F51: AY CHAMPAGNE | G51: 2.7 | H51: 42 | I51: 174 | J51: 35 | K51: 271 | L51: 72 | M51: 162 | N51: 74 | O51: 22 | P51: 66 | Q51: 122 | R51: 170 | S51: 135 | T51: 210 | U51: 132 | V51: 49 | W51: 25 | X51: 224 | Y51: 86 | Z51: 18 | AA51: 7 | AB51: 22 | AC51: 20 | AD51: 18 | AE51: 19 | AF51: 51 | AG51: 59 | AH51: 44 | AI51: 67 | AJ51: 162 | AK51: 144 | AL51: 72 | AM51: 51 | AN51: 98
A52: 262 | B52: BAS-RHIN | C52: 5101 | D52: SELESTAT | E52: 4113 | F52: BARR | G52: 2.9 | H52: 43 | I52: 104 | J52: 99 | K52: 62 | L52: 255 | M52: 72 | N52: 26 | O52: 25 | P52: 51 | Q52: 34 | R52: 83 | S52: 167 | T52: 112 | U52: 91 | V52: 222 | W52: 69 | X52: 179 | Y52: 213 | Z52: 46 | AA52: 41 | AB52: 36 | AC52: 52 | AD52: 120 | AE52: 67 | AF52: 185 | AG52: 78 | AH52: 68 | AI52: 136 | AJ52: 98 | AK52: 138 | AL52: 28 | AM52: 51 | AN52: 8
A53: 30 | B53: MARNE-ARDENNES | C53: 2 | D53: CHARLEVILLE MEZIERES | E53: 508802 | F53: CHARLEVILLE NEVERS | G53: 3.6 | H53: 44 | I53: 97 | J53: 21 | K53: 266 | L53: 17 | M53: 137 | N53: 114 | O53: 63 | P53: 123 | Q53: 156 | R53: 106 | S53: 197 | T53: 168 | U53: 268 | V53: 107 | W53: 107 | X53: 118 | Y53: 178 | Z53: 89 | AA53: 81 | AB53: 101 | AC53: 163 | AD53: 33 | AE53: 51 | AF53: 33 | AG53: 129 | AH53: 100 | AI53: 176 | AJ53: 189 | AK53: 103 | AL53: 21 | AM53: 16 | AN53: 62
A54: 80 | B54: VOSGES | C54: 55 | D54: SAINT DIE | E54: 488246 | F54: CORNIMONT LA BRESSE | G54: 2.9 | H54: 45 | I54: 88 | J54: 195 | K54: 80 | L54: 148 | M54: 71 | N54: 162 | O54: 56 | P54: 203 | Q54: 110 | R54: 239 | S54: 55 | T54: 208 | U54: 129 | V54: 4 | W54: 140 | X54: 21 | Y54: 8 | Z54: 261 | AA54: 254 | AB54: 262 | AC54: 128 | AD54: 9 | AE54: 15 | AF54: 21 | AG54: 29 | AH54: 26 | AI54: 133 | AJ54: 155 | AK54: 36 | AL54: 81 | AM54: 74 | AN54: 101
A55: 110 | B55: MEURTHE ET MOSELLE MEUSE | C55: 26 | D55: NANCY | E55: 554491 | F55: NANCY SAINT SEBASTIEN | G55: 3.3 | H55: 46 | I55: 76 | J55: 47 | K55: 100 | L55: 178 | M55: 84 | N55: 110 | O55: 55 | P55: 124 | Q55: 131 | R55: 139 | S55: 56 | T55: 108 | U55: 89 | V55: 36 | W55: 123 | X55: 129 | Y55: 217 | Z55: 94 | AA55: 76 | AB55: 132 | AC55: 219 | AD55: 86 | AE55: 46 | AF55: 138 | AG55: 102 | AH55: 82 | AI55: 103 | AJ55: 74 | AK55: 194 | AL55: 25 | AM55: 15 | AN55: 111
A56: 110 | B56: MEURTHE ET MOSELLE MEUSE | C56: 31 | D56: VERDUN | E56: 555679 | F56: VERDUN MAZEL | G56: 3.8 | H56: 47 | I56: 106 | J56: 85 | K56: 89 | L56: 126 | M56: 185 | N56: 84 | O56: 98 | P56: 68 | Q56: 51 | R56: 175 | S56: 88 | T56: 126 | U56: 69 | V56: 76 | W56: 93 | X56: 32 | Y56: 34 | Z56: 160 | AA56: 238 | AB56: 148 | AC56: 96 | AD56: 40 | AE56: 127 | AF56: 16 | AG56: 98 | AH56: 60 | AI56: 193 | AJ56: 134 | AK56: 139 | AL56: 41 | AM56: 65 | AN56: 28
A57: 30 | B57: MARNE-ARDENNES | C57: 2 | D57: CHARLEVILLE MEZIERES | E57: 508819 | F57: MOUZON | G57: 2.0 | H57: 48 | I57: 98 | J57: 42 | K57: 4 | L57: 251 | M57: 266 | N57: 131 | O57: 52 | P57: 217 | Q57: 223 | R57: 57 | S57: 155 | T57: 91 | U57: 270 | V57: 118 | W57: 4 | X57: 7 | Y57: 7 | Z57: 12 | AA57: 13 | AB57: 20 | AC57: 255 | AD57: 192 | AE57: 199 | AF57: 158 | AG57: 88 | AH57: 66 | AI57: 52 | AJ57: 118 | AK57: 199 | AL57: 26 | AM57: 27 | AN57: 67
A58: 30 | B58: MARNE-ARDENNES | C58: 11 | D58: REIMS | E58: 551314 | F58: FISMES | G58: 2.4 | H58: 49 | I58: 17 | J58: 7 | K58: 35 | L58: 267 | M58: 7 | N58: 138 | O58: 4 | P58: 244 | Q58: 161 | R58: 266 | S58: 257 | T58: 188 | U58: 280 | V58: 240 | W58: 5 | X58: 95 | Y58: 64 | Z58: 5 | AA58: 2 | AB58: 7 | AC58: 39 | AD58: 41 | AE58: 49 | AF58: 46 | AG58: 182 | AH58: 258 | AI58: 7 | AJ58: 203 | AK58: 164 | AL58: 89 | AM58: 152 | AN58: 18
A59: 160 | B59: MOSELLE | C59: 44 | D59: MOSELLE NORD | E59: 557307 | F59: FONTOY | G59: 3.1 | H59: 50 | I59: 150 | J59: 113 | K59: 71 | L59: 129 | M59: 251 | N59: 62 | O59: 172 | P59: 47 | Q59: 53 | R59: 79 | S59: 86 | T59: 111 | U59: 176 | V59: 37 | W59: 116 | X59: 35 | Y59: 120 | Z59: 158 | AA59: 164 | AB59: 227 | AC59: 255 | AD59: 199 | AE59: 108 | AF59: 241 | AG59: 48 | AH59: 135 | AI59: 163 | AJ59: 95 | AK59: 2 | AL59: 12 | AM59: 16 | AN59: 26
A60: 80 | B60: VOSGES | C60: 57 | D60: EPINAL | E60: 588716 | F60: XERTIGNY | G60: 2.6 | H60: 51 | I60: 35 | J60: 44 | K60: 56 | L60: 47 | M60: 100 | N60: 75 | O60: 164 | P60: 26 | Q60: 76 | R60: 110 | S60: 214 | T60: 206 | U60: 246 | V60: 147 | W60: 146 | X60: 72 | Y60: 123 | Z60: 174 | AA60: 212 | AB60: 135 | AC60: 171 | AD60: 25 | AE60: 8 | AF60: 104 | AG60: 148 | AH60: 266 | AI60: 51 | AJ60: 45 | AK60: 122 | AL60: 46 | AM60: 51 | AN60: 45
A61: 80 | B61: VOSGES | C61: 55 | D61: SAINT DIE | E61: 588587 | F61: SAINT DIE CATHEDRALE | G61: 4.0 | H61: 52 | I61: 53 | J61: 179 | K61: 142 | L61: 239 | M61: 3 | N61: 16 | O61: 249 | P61: 93 | Q61: 116 | R61: 1 | S61: 265 | T61: 163 | U61: 262 | V61: 264 | W61: 105 | X61: 103 | Y61: 141 | Z61: 201 | AA61: 113 | AB61: 209 | AC61: 11 | AD61: 92 | AE61: 85 | AF61: 119 | AG61: 83 | AH61: 140 | AI61: 117 | AJ61: 28 | AK61: 137 | AL61: 59 | AM61: 35 | AN61: 122
A62: 110 | B62: MEURTHE ET MOSELLE MEUSE | C62: 31 | D62: VERDUN | E62: 554700 | F62: VILLERUPT | G62: 2.7 | H62: 53 | I62: 108 | J62: 142 | K62: 110 | L62: 64 | M62: 159 | N62: 89 | O62: 201 | P62: 54 | Q62: 42 | R62: 148 | S62: 189 | T62: 256 | U62: 35 | V62: 168 | W62: 85 | X62: 45 | Y62: 129 | Z62: 74 | AA62: 93 | AB62: 159 | AC62: 255 | AD62: 121 | AE62: 54 | AF62: 204 | AG62: 164 | AH62: 263 | AI62: 177 | AJ62: 56 | AK62: 71 | AL62: 11 | AM62: 11 | AN62: 34
A63: 262 | B63: BAS-RHIN | C63: 5006 | D63: STRASBOURG | E63: 4010 | F63: STRASBOURG MEINAU | G63: 2.6 | H63: 54 | I63: 173 | J63: 264 | K63: 107 | L63: 39 | M63: 194 | N63: 3 | O63: 193 | P63: 3 | Q63: 2 | R63: 135 | S63: 144 | T63: 211 | U63: 100 | V63: 85 | W63: 79 | X63: 4 | Y63: 40 | Z63: 211 | AA63: 202 | AB63: 258 | AC63: 255 | AD63: 5 | AE63: 21 | AF63: 5 | AG63: 12 | AH63: 22 | AI63: 4 | AJ63: 14 | AK63: 217 | AL63: 251 | AM63: 233 | AN63: 254
A64: 160 | B64: MOSELLE | C64: 45 | D64: METZ | E64: 557444 | F64: METZ SAINT JULIEN | G64: 6.0 | H64: 55 | I64: 83 | J64: 117 | K64: 86 | L64: 41 | M64: 174 | N64: 36 | O64: 49 | P64: 36 | Q64: 48 | R64: 87 | S64: 29 | T64: 146 | U64: 50 | V64: 9 | W64: 71 | X64: 122 | Y64: 149 | Z64: 45 | AA64: 56 | AB64: 61 | AC64: 229 | AD64: 37 | AE64: 12 | AF64: 133 | AG64: 116 | AH64: 152 | AI64: 125 | AJ64: 67 | AK64: 131 | AL64: 118 | AM64: 91 | AN64: 152
A65: 30 | B65: MARNE-ARDENNES | C65: 2 | D65: CHARLEVILLE MEZIERES | E65: 408806 | F65: SEDAN LA HALLE | G65: 8.7 | H65: 56 | I65: 27 | J65: 91 | K65: 120 | L65: 13 | M65: 58 | N65: 121 | O65: 109 | P65: 150 | Q65: 164 | R65: 67 | S65: 25 | T65: 201 | U65: 22 | V65: 10 | W65: 100 | X65: 134 | Y65: 152 | Z65: 70 | AA65: 80 | AB65: 85 | AC65: 155 | AD65: 93 | AE65: 141 | AF65: 72 | AG65: 103 | AH65: 149 | AI65: 140 | AJ65: 109 | AK65: 46 | AL65: 67 | AM65: 79 | AN65: 57
A66: 262 | B66: BAS-RHIN | C66: 5060 | D66: HAGUENAU | E66: 4079 | F66: SOULTZ SOUS FORETS | G66: 2.4 | H66: 57 | I66: 167 | J66: 227 | K66: 112 | L66: 220 | M66: 90 | N66: 66 | O66: 26 | P66: 76 | Q66: 64 | R66: 196 | S66: 105 | T66: 59 | U66: 143 | V66: 146 | W66: 128 | X66: 99 | Y66: 93 | Z66: 140 | AA66: 64 | AB66: 197 | AC66: 255 | AD66: 66 | AE66: 44 | AF66: 105 | AG66: 60 | AH66: 145 | AI66: 86 | AJ66: 8 | AK66: 227 | AL66: 35 | AM66: 27 | AN66: 89
A67: 80 | B67: VOSGES | C67: 57 | D67: EPINAL | E67: 588501 | F67: NEUFCHATEAU | G67: 4.7 | H67: 58 | I67: 15 | J67: 96 | K67: 24 | L67: 35 | M67: 34 | N67: 103 | O67: 156 | P67: 238 | Q67: 242 | R67: 9 | S67: 68 | T67: 45 | U67: 235 | V67: 59 | W67: 131 | X67: 62 | Y67: 102 | Z67: 180 | AA67: 148 | AB67: 185 | AC67: 89 | AD67: 137 | AE67: 207 | AF67: 82 | AG67: 101 | AH67: 259 | AI67: 35 | AJ67: 10 | AK67: 201 | AL67: 58 | AM67: 86 | AN67: 33
A68: 262 | B68: BAS-RHIN | C68: 5101 | D68: SELESTAT | E68: 4126 | F68: MUTZIG | G68: 2.6 | H68: 59 | I68: 10 | J68: 33 | K68: 8 | L68: 31 | M68: 29 | N68: 41 | O68: 33 | P68: 98 | Q68: 103 | R68: 33 | S68: 6 | T68: 5 | U68: 30 | V68: 42 | W68: 29 | X68: 77 | Y68: 27 | Z68: 32 | AA68: 53 | AB68: 13 | AC68: 55 | AD68: 208 | AE68: 129 | AF68: 240 | AG68: 55 | AH68: 15 | AI68: 68 | AJ68: 177 | AK68: 236 | AL68: 191 | AM68: 188 | AN68: 195
A69: 160 | B69: MOSELLE | C69: 42 | D69: MOSELLE EST | E69: 457163 | F69: BEHREN LES FORBACH | G69: 2.4 | H69: 60 | I69: 160 | J69: 101 | K69: 237 | L69: 83 | M69: 153 | N69: 83 | O69: 108 | P69: 84 | Q69: 89 | R69: 80 | S69: 224 | T69: 182 | U69: 271 | V69: 172 | W69: 20 | X69: 5 | Y69: 11 | Z69: 28 | AA69: 79 | AB69: 87 | AC69: 201 | AD69: 96 | AE69: 50 | AF69: 156 | AG69: 66 | AH69: 84 | AI69: 57 | AJ69: 69 | AK69: 159 | AL69: 43 | AM69: 24 | AN69: 138
A70: 30 | B70: MARNE-ARDENNES | C70: 2 | D70: CHARLEVILLE MEZIERES | E70: 508820 | F70: VOUZIERS | G70: 2.8 | H70: 61 | I70: 37 | J70: 156 | K70: 117 | L70: 7 | M70: 109 | N70: 8 | O70: 21 | P70: 5 | Q70: 7 | R70: 157 | S70: 211 | T70: 265 | U70: 216 | V70: 56 | W70: 47 | X70: 22 | Y70: 12 | Z70: 61 | AA70: 83 | AB70: 79 | AC70: 137 | AD70: 23 | AE70: 13 | AF70: 77 | AG70: 28 | AH70: 28 | AI70: 109 | AJ70: 85 | AK70: 66 | AL70: 230 | AM70: 247 | AN70: 181
A71: 262 | B71: BAS-RHIN | C71: 5006 | D71: STRASBOURG | E71: 4047 | F71: STRASBOURG CRONENBOURG | G71: 5.6 | H71: 62 | I71: 42 | J71: 23 | K71: 46 | L71: 180 | M71: 85 | N71: 6 | O71: 92 | P71: 8 | Q71: 14 | R71: 14 | S71: 182 | T71: 161 | U71: 182 | V71: 153 | W71: 182 | X71: 258 | Y71: 240 | Z71: 133 | AA71: 157 | AB71: 52 | AC71: 71 | AD71: 202 | AE71: 190 | AF71: 187 | AG71: 64 | AH71: 25 | AI71: 49 | AJ71: 198 | AK71: 228 | AL71: 76 | AM71: 117 | AN71: 30
A72: 160 | B72: MOSELLE | C72: 42 | D72: MOSELLE EST | E72: 557503 | F72: NEUNKIRCH | G72: 2.7 | H72: 63 | I72: 203 | J72: 114 | K72: 167 | L72: 159 | M72: 259 | N72: 78 | O72: 61 | P72: 43 | Q72: 70 | R72: 189 | S72: 170 | T72: 150 | U72: 228 | V72: 111 | W72: 83 | X72: 38 | Y72: 147 | Z72: 96 | AA72: 70 | AB72: 182 | AC72: 217 | AD72: 150 | AE72: 142 | AF72: 152 | AG72: 179 | AH72: 254 | AI72: 268 | AJ72: 50 | AK72: 45 | AL72: 6 | AM72: 6 | AN72: 39
A73: 30 | B73: MARNE-ARDENNES | C73: 11 | D73: REIMS | E73: 551341 | F73: REIMS JEAN JAURES | G73: 4.1 | H73: 64 | I73: 79 | J73: 26 | K73: 84 | L73: 42 | M73: 244 | N73: 140 | O73: 42 | P73: 140 | Q73: 237 | R73: 125 | S73: 114 | T73: 106 | U73: 139 | V73: 84 | W73: 37 | X73: 78 | Y73: 51 | Z73: 37 | AA73: 33 | AB73: 43 | AC73: 93 | AD73: 50 | AE73: 42 | AF73: 79 | AG73: 18 | AH73: 38 | AI73: 12 | AJ73: 125 | AK73: 27 | AL73: 146 | AM73: 136 | AN73: 160
A74: 262 | B74: BAS-RHIN | C74: 5101 | D74: SELESTAT | E74: 4110 | F74: SELESTAT OUEST | G74: 1.9 | H74: 65 | I74: 227 | J74: 63 | K74: 243 | L74: 79 | M74: 268 | N74: 82 | O74: 131 | P74: 128 | Q74: 41 | R74: 95 | S74: 70 | T74: 159 | U74: 96 | V74: 26 | W74: 230 | X74: 127 | Y74: 115 | Z74: 260 | AA74: 263 | AB74: 252 | AC74: 204 | AD74: 84 | AE74: 60 | AF74: 114 | AG74: 7 | AH74: 116 | AI74: 25 | AJ74: 2 | AK74: 47 | AL74: 62 | AM74: 96 | AN74: 29
A75: 160 | B75: MOSELLE | C75: 45 | D75: METZ | E75: 557105 | F75: ARS SUR MOSELLE | G75: 3.8 | H75: 66 | I75: 65 | J75: 124 | K75: 59 | L75: 73 | M75: 96 | N75: 77 | O75: 53 | P75: 204 | Q75: 120 | R75: 39 | S75: 73 | T75: 61 | U75: 26 | V75: 215 | W75: 12 | X75: 2 | Y75: 20 | Z75: 92 | AA75: 75 | AB75: 23 | AC75: 49 | AD75: 125 | AE75: 96 | AF75: 167 | AG75: 58 | AH75: 42 | AI75: 77 | AJ75: 179 | AK75: 121 | AL75: 137 | AM75: 136 | AN75: 135
A76: 160 | B76: MOSELLE | C76: 42 | D76: MOSELLE EST | E76: 457165 | F76: BITCHE | G76: 3.3 | H76: 67 | I76: 107 | J76: 50 | K76: 158 | L76: 81 | M76: 179 | N76: 22 | O76: 18 | P76: 37 | Q76: 21 | R76: 107 | S76: 126 | T76: 103 | U76: 158 | V76: 114 | W76: 157 | X76: 53 | Y76: 19 | Z76: 221 | AA76: 253 | AB76: 190 | AC76: 164 | AD76: 103 | AE76: 170 | AF76: 59 | AG76: 52 | AH76: 46 | AI76: 82 | AJ76: 181 | AK76: 88 | AL76: 83 | AM76: 102 | AN76: 59
A77: 160 | B77: MOSELLE | C77: 45 | D77: METZ | E77: 457453 | F77: MONTIGNY CENTRALE | G77: 7.7 | H77: 68 | I77: 58 | J77: 30 | K77: 198 | L77: 57 | M77: 46 | N77: 171 | O77: 65 | P77: 226 | Q77: 235 | R77: 99 | S77: 121 | T77: 158 | U77: 10 | V77: 243 | W77: 53 | X77: 144 | Y77: 69 | Z77: 50 | AA77: 55 | AB77: 33 | AC77: 60 | AD77: 166 | AE77: 99 | AF77: 222 | AG77: 134 | AH77: 90 | AI77: 102 | AJ77: 75 | AK77: 244 | AL77: 30 | AM77: 35 | AN77: 43
A78: 110 | B78: MEURTHE ET MOSELLE MEUSE | C78: 31 | D78: VERDUN | E78: 554413 | F78: LONGWY BAS | G78: 3.9 | H78: 69 | I78: 123 | J78: 60 | K78: 199 | L78: 78 | M78: 143 | N78: 65 | O78: 75 | P78: 116 | Q78: 79 | R78: 50 | S78: 79 | T78: 77 | U78: 84 | V78: 108 | W78: 65 | X78: 136 | Y78: 154 | Z78: 56 | AA78: 51 | AB78: 55 | AC78: 35 | AD78: 106 | AE78: 92 | AF78: 132 | AG78: 106 | AH78: 155 | AI78: 98 | AJ78: 26 | AK78: 206 | AL78: 65 | AM78: 24 | AN78: 197
A79: 80 | B79: VOSGES | C79: 55 | D79: SAINT DIE | E79: 488556 | F79: RAON L ETAPE | G79: 3.5 | H79: 70 | I79: 96 | J79: 74 | K79: 38 | L79: 203 | M79: 181 | N79: 52 | O79: 82 | P79: 113 | Q79: 81 | R79: 30 | S79: 212 | T79: 249 | U79: 210 | V79: 80 | W79: 75 | X79: 36 | Y79: 59 | Z79: 102 | AA79: 136 | AB79: 102 | AC79: 153 | AD79: 170 | AE79: 165 | AF79: 153 | AG79: 221 | AH79: 214 | AI79: 196 | AJ79: 239 | AK79: 101 | AL79: 17 | AM79: 18 | AN79: 46
A80: 110 | B80: MEURTHE ET MOSELLE MEUSE | C80: 27 | D80: PONT A MOUSSON | E80: 554516 | F80: PAGNY SUR MOSELLE | G80: 2.6 | H80: 71 | I80: 127 | J80: 187 | K80: 17 | L80: 192 | M80: 194 | N80: 169 | O80: 229 | P80: 141 | Q80: 143 | R80: 89 | S80: 28 | T80: 40 | U80: 249 | V80: 11 | W80: 134 | X80: 104 | Y80: 61 | Z80: 120 | AA80: 177 | AB80: 152 | AC80: 224 | AD80: 32 | AE80: 14 | AF80: 110 | AG80: 117 | AH80: 70 | AI80: 88 | AJ80: 140 | AK80: 215 | AL80: 61 | AM80: 44 | AN80: 84
A81: 30 | B81: MARNE-ARDENNES | C81: 2 | D81: CHARLEVILLE MEZIERES | E81: 408801 | F81: CHARLEVILLE JEAN JAURES | G81: 8.5 | H81: 72 | I81: 33 | J81: 43 | K81: 108 | L81: 104 | M81: 33 | N81: 42 | O81: 37 | P81: 88 | Q81: 147 | R81: 21 | S81: 97 | T81: 129 | U81: 47 | V81: 113 | W81: 22 | X81: 174 | Y81: 157 | Z81: 8 | AA81: 14 | AB81: 9 | AC81: 59 | AD81: 180 | AE81: 167 | AF81: 173 | AG81: 53 | AH81: 64 | AI81: 39 | AJ81: 136 | AK81: 132 | AL81: 144 | AM81: 152 | AN81: 131
A82: 160 | B82: MOSELLE | C82: 44 | D82: MOSELLE NORD | E82: 557347 | F82: GUENANGE | G82: 2.9 | H82: 73 | I82: 171 | J82: 116 | K82: 221 | L82: 161 | M82: 117 | N82: 188 | O82: 81 | P82: 129 | Q82: 213 | R82: 233 | S82: 39 | T82: 34 | U82: 181 | V82: 44 | W82: 40 | X82: 111 | Y82: 112 | Z82: 20 | AA82: 57 | AB82: 31 | AC82: 121 | AD82: 107 | AE82: 86 | AF82: 137 | AG82: 21 | AH82: 54 | AI82: 31 | AJ82: 32 | AK82: 75 | AL82: 80 | AM82: 74 | AN82: 87
A83: 110 | B83: MEURTHE ET MOSELLE MEUSE | C83: 26 | D83: NANCY | E83: 554266 | F83: DOMBASLE SUR MEURTHE | G83: 3.2 | H83: 74 | I83: 217 | J83: 84 | K83: 197 | L83: 252 | M83: 177 | N83: 7 | O83: 77 | P83: 34 | Q83: 28 | R83: 3 | S83: 160 | T83: 104 | U83: 55 | V83: 244 | W83: 16 | X83: 27 | Y83: 17 | Z83: 33 | AA83: 40 | AB83: 16 | AC83: 36 | AD83: 78 | AE83: 70 | AF83: 92 | AG83: 94 | AH83: 7 | AI83: 69 | AJ83: 224 | AK83: 273 | AL83: 145 | AM83: 152 | AN83: 132
A84: 50 | B84: AUBE HAUTE MARNE | C84: 21 | D84: CHAUMONT | E84: 551157 | F84: SAINT DIZIER EUROPE | G84: 2.5 | H84: 75 | I84: 139 | J84: 48 | K84: 136 | L84: 130 | M84: 194 | N84: 167 | O84: 72 | P84: 151 | Q84: 155 | R84: 215 | S84: 4 | T84: 75 | U84: 3 | V84: 78 | W84: 57 | X84: 25 | Y84: 15 | Z84: 108 | AA84: 153 | AB84: 54 | AC84: 234 | AD84: 30 | AE84: 33 | AF84: 50 | AG84: 121 | AH84: 107 | AI84: 47 | AJ84: 205 | AK84: 154 | AL84: 119 | AM84: 96 | AN84: 146
A85: 80 | B85: VOSGES | C85: 55 | D85: SAINT DIE | E85: 488616 | F85: SENONES | G85: 1.9 | H85: 76 | I85: 67 | J85: 82 | K85: 259 | L85: 8 | M85: 69 | N85: 54 | O85: 146 | P85: 174 | Q85: 224 | R85: 5 | S85: 208 | T85: 261 | U85: 64 | V85: 164 | W85: 161 | X85: 37 | Y85: 31 | Z85: 247 | AA85: 228 | AB85: 266 | AC85: 198 | AD85: 29 | AE85: 5 | AF85: 177 | AG85: 39 | AH85: 73 | AI85: 212 | AJ85: 27 | AK85: 64 | AL85: 132 | AM85: 117 | AN85: 147
A86: 110 | B86: MEURTHE ET MOSELLE MEUSE | C86: 26 | D86: NANCY | E86: 454426 | F86: LUNEVILLE CARNOT | G86: 8.5 | H86: 77 | I86: 68 | J86: 51 | K86: 102 | L86: 24 | M86: 187 | N86: 43 | O86: 90 | P86: 33 | Q86: 66 | R86: 44 | S86: 82 | T86: 147 | U86: 12 | V86: 202 | W86: 34 | X86: 55 | Y86: 78 | Z86: 31 | AA86: 30 | AB86: 35 | AC86: 124 | AD86: 59 | AE86: 63 | AF86: 66 | AG86: 63 | AH86: 36 | AI86: 66 | AJ86: 150 | AK86: 178 | AL86: 178 | AM86: 146 | AN86: 205
A87: 160 | B87: MOSELLE | C87: 42 | D87: MOSELLE EST | E87: 557250 | F87: CREUTZWALD | G87: 3.0 | H87: 78 | I87: 216 | J87: 184 | K87: 192 | L87: 147 | M87: 194 | N87: 147 | O87: 130 | P87: 107 | Q87: 150 | R87: 163 | S87: 51 | T87: 190 | U87: 134 | V87: 6 | W87: 87 | X87: 60 | Y87: 65 | Z87: 135 | AA87: 104 | AB87: 105 | AC87: 76 | AD87: 43 | AE87: 6 | AF87: 196 | AG87: 104 | AH87: 133 | AI87: 108 | AJ87: 81 | AK87: 119 | AL87: 47 | AM87: 44 | AN87: 52
A88: 110 | B88: MEURTHE ET MOSELLE MEUSE | C88: 27 | D88: PONT A MOUSSON | E88: 554196 | F88: CHAMPIGNEULLES | G88: 3.2 | H88: 79 | I88: 28 | J88: 90 | K88: 125 | L88: 30 | M88: 28 | N88: 166 | O88: 213 | P88: 56 | Q88: 139 | R88: 199 | S88: 93 | T88: 41 | U88: 239 | V88: 98 | W88: 130 | X88: 166 | Y88: 103 | Z88: 100 | AA88: 88 | AB88: 100 | AC88: 182 | AD88: 69 | AE88: 30 | AF88: 150 | AG88: 211 | AH88: 95 | AI88: 223 | AJ88: 241 | AK88: 231 | AL88: 52 | AM88: 35 | AN88: 103
A89: 80 | B89: VOSGES | C89: 55 | D89: SAINT DIE | E89: 588551 | F89: RAMBERVILLERS | G89: 3.7 | H89: 80 | I89: 115 | J89: 37 | K89: 229 | L89: 166 | M89: 65 | N89: 85 | O89: 96 | P89: 209 | Q89: 107 | R89: 36 | S89: 221 | T89: 236 | U89: 178 | V89: 160 | W89: 77 | X89: 98 | Y89: 63 | Z89: 63 | AA89: 52 | AB89: 78 | AC89: 188 | AD89: 173 | AE89: 174 | AF89: 155 | AG89: 197 | AH89: 197 | AI89: 237 | AJ89: 52 | AK89: 210 | AL89: 18 | AM89: 20 | AN89: 36
A90: 264 | B90: HAUT-RHIN | C90: 5130 | D90: COLMAR | E90: 4162 | F90: ENSISHEIM | G90: 4.5 | H90: 81 | I90: 24 | J90: 102 | K90: 31 | L90: 58 | M90: 43 | N90: 90 | O90: 112 | P90: 75 | Q90: 92 | R90: 105 | S90: 108 | T90: 69 | U90: 189 | V90: 99 | W90: 199 | X90: 221 | Y90: 185 | Z90: 130 | AA90: 151 | AB90: 133 | AC90: 133 | AD90: 51 | AE90: 194 | AF90: 11 | AG90: 70 | AH90: 78 | AI90: 91 | AJ90: 64 | AK90: 163 | AL90: 133 | AM90: 168 | AN90: 74
A91: 80 | B91: VOSGES | C91: 55 | D91: SAINT DIE | E91: 588186 | F91: BRUYERES | G91: 2.7 | H91: 82 | I91: 116 | J91: 148 | K91: 146 | L91: 43 | M91: 161 | N91: 168 | O91: 149 | P91: 133 | Q91: 62 | R91: 249 | S91: 27 | T91: 51 | U91: 39 | V91: 69 | W91: 45 | X91: 9 | Y91: 6 | Z91: 72 | AA91: 84 | AB91: 166 | AC91: 174 | AD91: 48 | AE91: 126 | AF91: 22 | AG91: 114 | AH91: 122 | AI91: 10 | AJ91: 102 | AK91: 243 | AL91: 109 | AM91: 111 | AN91: 108
A92: 110 | B92: MEURTHE ET MOSELLE MEUSE | C92: 27 | D92: PONT A MOUSSON | E92: 554321 | F92: FROUARD | G92: 2.6 | H92: 83 | I92: 161 | J92: 225 | K92: 83 | L92: 247 | M92: 97 | N92: 107 | O92: 64 | P92: 72 | Q92: 162 | R92: 136 | S92: 203 | T92: 155 | U92: 243 | V92: 167 | W92: 125 | X92: 50 | Y92: 132 | Z92: 182 | AA92: 140 | AB92: 143 | AC92: 191 | AD92: 15 | AE92: 24 | AF92: 38 | AG92: 122 | AH92: 55 | AI92: 74 | AJ92: 230 | AK92: 207 | AL92: 79 | AM92: 86 | AN92: 66
A93: 110 | B93: MEURTHE ET MOSELLE MEUSE | C93: 26 | D93: NANCY | E93: 554471 | F93: NANCY JEAN JAURES | G93: 1.9 | H93: 84 | I93: 41 | J93: 58 | K93: 96 | L93: 51 | M93: 66 | N93: 190 | O93: 95 | P93: 103 | Q93: 177 | R93: 255 | S93: 118 | T93: 89 | U93: 110 | V93: 152 | W93: 36 | X93: 43 | Y93: 39 | Z93: 58 | AA93: 18 | AB93: 27 | AC93: 162 | AD93: 128 | AE93: 109 | AF93: 157 | AG93: 56 | AH93: 43 | AI93: 127 | AJ93: 48 | AK93: 208 | AL93: 106 | AM93: 111 | AN93: 106
A94: 50 | B94: AUBE HAUTE MARNE | C94: 14 | D94: TROYES | E94: 510511 | F94: TROYES BROSSOLETTE | G94: 3.2 | H94: 85 | I94: 63 | J94: 105 | K94: 126 | L94: 76 | M94: 51 | N94: 97 | O94: 51 | P94: 61 | Q94: 112 | R94: 195 | S94: 230 | T94: 273 | U94: 175 | V94: 103 | W94: 152 | X94: 124 | Y94: 153 | Z94: 138 | AA94: 169 | AB94: 119 | AC94: 248 | AD94: 62 | AE94: 177 | AF94: 18 | AG94: 46 | AH94: 65 | AI94: 210 | AJ94: 83 | AK94: 39 | AL94: 107 | AM94: 146 | AN94: 50
A95: 80 | B95: VOSGES | C95: 57 | D95: EPINAL | E95: 488706 | F95: VITTEL | G95: 3.3 | H95: 86 | I95: 85 | J95: 165 | K95: 252 | L95: 49 | M95: 13 | N95: 155 | O95: 119 | P95: 229 | Q95: 193 | R95: 66 | S95: 152 | T95: 202 | U95: 88 | V95: 127 | W95: 185 | X95: 161 | Y95: 197 | Z95: 164 | AA95: 206 | AB95: 176 | AC95: 91 | AD95: 64 | AE95: 68 | AF95: 73 | AG95: 145 | AH95: 147 | AI95: 58 | AJ95: 252 | AK95: 83 | AL95: 48 | AM95: 65 | AN95: 42
A96: 50 | B96: AUBE HAUTE MARNE | C96: 21 | D96: CHAUMONT | E96: 410541 | F96: LANGRES | G96: 6.7 | H96: 87 | I96: 121 | J96: 70 | K96: 204 | L96: 191 | M96: 55 | N96: 128 | O96: 129 | P96: 100 | Q96: 225 | R96: 56 | S96: 125 | T96: 109 | U96: 170 | V96: 86 | W96: 143 | X96: 73 | Y96: 74 | Z96: 218 | AA96: 194 | AB96: 171 | AC96: 64 | AD96: 98 | AE96: 39 | AF96: 191 | AG96: 112 | AH96: 62 | AI96: 243 | AJ96: 171 | AK96: 93 | AL96: 54 | AM96: 41 | AN96: 95
A97: 262 | B97: BAS-RHIN | C97: 5060 | D97: HAGUENAU | E97: 4071 | F97: WISSEMBOURG | G97: 8.7 | H97: 88 | I97: 77 | J97: 200 | K97: 52 | L97: 143 | M97: 59 | N97: 182 | O97: 174 | P97: 173 | Q97: 121 | R97: 184 | S97: 123 | T97: 176 | U97: 102 | V97: 70 | W97: 243 | X97: 226 | Y97: 183 | Z97: 242 | AA97: 225 | AB97: 244 | AC97: 47 | AD97: 97 | AE97: 105 | AF97: 107 | AG97: 93 | AH97: 177 | AI97: 173 | AJ97: 39 | AK97: 53 | AL97: 42 | AM97: 35 | AN97: 71
A98: 110 | B98: MEURTHE ET MOSELLE MEUSE | C98: 31 | D98: VERDUN | E98: 455456 | F98: MONTMEDY | G98: 1.7 | H98: 89 | I98: 4 | J98: 275 | K98: 1 | L98: 114 | M98: 14 | N98: 234 | O98: 150 | P98: 222 | Q98: 255 | R98: 220 | S98: 5 | T98: 7 | U98: 14 | V98: 48 | W98: 70 | X98: 11 | Y98: 10 | Z98: 170 | AA98: 197 | AB98: 210 | AC98: 63 | AD98: 110 | AE98: 143 | AF98: 100 | AG98: 243 | AH98: 221 | AI98: 184 | AJ98: 258 | AK98: 152 | AL98: 152 | AM98: 91 | AN98: 226
A99: 110 | B99: MEURTHE ET MOSELLE MEUSE | C99: 26 | D99: NANCY | E99: 454671 | F99: VANDOEUVRE LES NANCY | G99: 4.4 | H99: 90 | I99: 105 | J99: 56 | K99: 66 | L99: 124 | M99: 194 | N99: 91 | O99: 35 | P99: 58 | Q99: 102 | R99: 222 | S99: 104 | T99: 113 | U99: 81 | V99: 91 | W99: 48 | X99: 184 | Y99: 170 | Z99: 21 | AA99: 20 | AB99: 24 | AC99: 255 | AD99: 146 | AE99: 84 | AF99: 216 | AG99: 95 | AH99: 200 | AI99: 32 | AJ99: 16 | AK99: 229 | AL99: 93 | AM99: 44 | AN99: 182
A100: 30 | B100: MARNE-ARDENNES | C100: 2 | D100: CHARLEVILLE MEZIERES | E100: 408814 | F100: VRIGNE AUX BOIS | G100: 0.6 | H100: 91 | I100: 281 | J100: 226 | K100: 283 | L100: 236 | M100: 194 | N100: 4 | O100: 101 | P100: 2 | Q100: 4 | R100: 71 | S100: 9 | T100: 3 | U100: 15 | V100: 194 | W100: 62 | X100: 12 | Y100: 70 | Z100: 132 | AA100: 107 | AB100: 141 | AC100: 142 | AD100: 3 | AE100: 3 | AF100: 12 | AG100: 57 | AH100: 81 | AI100: 60 | AJ100: 130 | AK100: 77 | AL100: 214 | AM100: 51 | AN100: 276
A101: 110 | B101: MEURTHE ET MOSELLE MEUSE | C101: 31 | D101: VERDUN | E101: 455298 | F101: ETAIN | G101: 1.9 | H101: 92 | I101: 188 | J101: 224 | K101: 47 | L101: 225 | M101: 194 | N101: 164 | O101: 195 | P101: 96 | Q101: 118 | R101: 180 | S101: 60 | T101: 217 | U101: 251 | V101: 1 | W101: 63 | X101: 10 | Y101: 79 | Z101: 106 | AA101: 127 | AB101: 172 | AC101: 176 | AD101: 85 | AE101: 114 | AF101: 75 | AG101: 126 | AH101: 118 | AI101: 73 | AJ101: 223 | AK101: 99 | AL101: 57 | AM101: 91 | AN101: 25
A102: 110 | B102: MEURTHE ET MOSELLE MEUSE | C102: 31 | D102: VERDUN | E102: 455678 | F102: VERDUN CENTRALE | G102: 9.2 | H102: 93 | I102: 109 | J102: 63 | K102: 207 | L102: 106 | M102: 77 | N102: 124 | O102: 157 | P102: 185 | Q102: 230 | R102: 23 | S102: 148 | T102: 95 | U102: 126 | V102: 201 | W102: 27 | X102: 63 | Y102: 104 | Z102: 23 | AA102: 48 | AB102: 40 | AC102: 22 | AD102: 139 | AE102: 117 | AF102: 161 | AG102: 210 | AH102: 209 | AI102: 65 | AJ102: 173 | AK102: 222 | AL102: 53 | AM102: 79 | AN102: 35
